{"text_format":"3","workbook":"xlsx","n_sheets":5,"sheets":["SUMMARY","ISIPINGO SECURITY IMPROVEMENT","UMBONGINTWINI STATION","PAHLA STATION","DOONSIDE STATION"],"not_rendered":{"defined_names":4},"read":"whole","date_system":"1900"}

{"sheet":"SUMMARY","index":0,"n_rows":17,"n_cols":8,"rows_kept":17}
["ITEM NO",{"$nulls":6},"AMOUNT"]
[]
[{"v":1,"d":"1 "},null,"Isipingo Security Improvement (Excluding VAT)",{"$nulls":4},{"$f":"'ISIPINGO SECURITY IMPROVEMENT'!H1327","v":0}]
[]
[{"v":2,"d":"2 "},null,"Umbongintwini Station  (Excluding VAT)",{"$nulls":4},{"$f":"'UMBONGINTWINI STATION'!H2145","v":0}]
[]
[{"v":3,"d":"3 "},null,"Pahla Station  (Excluding VAT)",{"$nulls":4},{"$f":"'PAHLA STATION'!H1907","v":0}]
[]
[{"v":4,"d":"4 "},null,"Doonside Station  (Excluding VAT)",{"$nulls":4},{"$f":"'DOONSIDE STATION'!H1847","v":0}]
[]
[null,null,"SUB TOTAL",{"$nulls":4},{"$f":"SUM(H2:H10)","v":0}]
[]
[null,null,"VALUE ADDED TAX"]
[]
[null,null,"Value Added Tax ",{"$nulls":4},{"$f":"H11*0.15","v":0}]
[]
[null,null,"Summary Total",{"$nulls":4},{"$f":"SUM(H11:H16)","v":0}]

{"sheet":"ISIPINGO SECURITY IMPROVEMENT","index":1,"n_rows":1333,"n_cols":8,"rows_kept":1333}
["ITEM NO",null,"DESCRIPTION",null,"UNIT","QUANTITY","RATE","AMOUNT"]
[]
[null,null,"SECTION NO. 1"]
[]
[null,null,"BILL NO. 1"]
[]
[null,null,"PRELIMINARIES AND GENERAL"]
[]
[null,null,"BUILDING AGREEMENT AND PRELIMINARIES"]
[]
[null,null,"The  JBCC Principal Building Agreement (May 2018 Edition 6.2) prepared by the Joint Building Contracts Committee shall be the applicable building agreement, amended as hereinafter described"]
[]
[null,null,"The JBCC Principal Building Agreement contract data form an integral part of this agreement"]
[]
[null,null,"The Preliminaries revision 1 (February 2016) published by the Association of South African Quantity Surveyors for use with the JBCC Principal Building Agreement Edition 6.2 shall be deemed to be incorporated in these bills of quantities, amended as hereinafter described"]
[]
[null,null,"The contractor is deemed to have referred to the abovementioned documents for the full intent and meaning of each clause"]
[]
[null,null,"The clauses in the abovementioned documents are hereinafter referred to by clause number and heading only"]
[]
[null,null,"Where any item is not relevant to this agreement such item is marked N/A signifying \"not applicable\""]
[]
[null,null,"PREAMBLES FOR TRADES"]
[]
[null,null,"The Model Preambles for Trades 2008 published by the Association of South African Quantity Surveyors is designed to support and extend the abbreviated descriptions utilised in these bills of quantities by inter alia referring to SANS construction standards."]
[]
[null,null,"Note that the text of the Standard System of Measuring Building Work (seventh edition) and that of the Standard Method of Measuring Building Work for Africa 2015 (first edition) is the same"]
[]
[null,null,"The Model Preambles for Trades 2008 as published by the Association of South African Quantity Surveyors shall be deemed to be incorporated in these bills of quantities and no claims arising from brevity of description of items fully described in the said Model Preambles will be entertained"]
[]
[null,null,"Supplementary preambles and/or specifications are incorporated in these bills of quantities to satisfy the requirements of this project. Such supplementary preambles and/or specifications shall take precedence over the provisions of the Model Preambles"]
[]
[null,null,"The contractor's prices for all items throughout these bills of quantities shall take account of and include for all of the obligations, requirements and specifications given in the Model Preambles and in any supplementary preambles and/or specifications"]
[]
[null,null,"NOTES TO TENDERERS"]
[]
[null,null,"Tenderers are to inspect the drawings issued with these Bills of Quantities and to satisfy themselves with the nature and the requirements of the Contract works. Failure to do so will be the complete responsibility of the Tenderer and no claims whatsoever will be entertained in this regard."]
[]
[null,null,"Tenderers are to read the descriptions, which are intended as a means of identifying various facets of the work, in conjunction with the drawings. Tenderers shall allow for all costs in connection with the various items taking full cognisance of both the drawings and the Bills of Quantities."]
[]
[null,null,"Tenderers shall notify the Quantity Surveyor in writing of any discrepancies encountered upon which clarification will be given by the Quantity Surveyor in writing to the Tenderer. Failure to do so will be the complete responsibility of the Tenderer and no claims whatsoever will be entertained in this regard"]
[]
[null,null,"Tenderers are to note that setting out of the works will be the complete responsibility of the Tenderer and they should therefore acquaint themselves with the site boundaries, site co-ordinates, datum levels etc. Failure to do so will be the complete responsibility of the Tenderer and no claims whatsoever will be entertained in this regard.  Tenderers are to note that all items with ZERO quantities are Rate Only items and should be priced as such."]
[]
[null,null,"Tenderers are to note that there might be specified suppliers to be used for certain trades as per the annexure to this tender document. Tenderers should familiarise themselves with the suppliers on the list and ensure to allow for accordingly. Failure to do so will be the complete responsibility of the Tenderer and no claims whatsoever will be entertained in this regard."]
[]
[null,null,"Tenderers are to fully acquaint themselves with the construction period and shall allow for any night shift if required. Failure to do so will be the complete responsibility of the Tenderer and no claims whatsoever will be entertained in this regard."]
[]
[null,null,"STRUCTURE OF THIS PRELIMINARIES BILL"]
[]
[null,null,"Section A : A recital of the headings of the individual clauses of the aforementioned JBCC Principal Building Agreement"]
[]
[null,null,"Section B : A recital of the headings of the individual clauses of the aforementioned Preliminaries document"]
[]
[null,null,"Section C : Any special clauses to meet the particular circumstances of the project"]
[]
[null,null,"PRICING OF PRELIMINARIES"]
[]
[null,null,"Should the contractor select Option A in the contract data for the adjustment of preliminaries, the amounts entered against the relevant items in these preliminaries are to be divided into one or more of the three categories provided namely fixed (F), value related (V) and time related (T)"]
[]
[null,null,"SECTION A: PRINCIPAL BUILDING AGREEMENT"]
[]
[null,null,"Interpretation (A1-A7)"]
[]
[{"v":1,"d":"1 "},null,"Clause 1.0 - Definitions and interpretation",null,"CONT"]
[]
[null,null,"F:............................. V:............................ T:............................",null,"Item",{"v":0,"d":"0 "},null,{"$f":"ROUND($F67*G67,2)","v":0}]
[]
[{"v":2,"d":"2 "},null,"Clause 2.0 - Law, regulations and notices",null,"CONT"]
[]
[null,null,"F:............................. V:............................ T:............................",null,"Item",{"v":0,"d":"0 "},null,{"$f":"ROUND($F71*G71,2)","v":0}]
[]
[{"v":3,"d":"3 "},null,"Clause 3.0 - Offer and acceptance  F:............................. V:............................ T:............................",null,"Item",{"v":0,"d":"0 "},null,{"$f":"ROUND($F73*G73,2)","v":0}]
[]
[{"v":4,"d":"4 "},null,"Clause 4.0 - Assignment and cession  F:............................. V:............................ T:............................",null,"Item",{"v":0,"d":"0 "},null,{"$f":"ROUND($F75*G75,2)","v":0}]
[]
[{"v":5,"d":"5 "},null,"Clause 5.0 - Contract documents",null,"CONT"]
[]
[null,null,"F:............................. V:............................ T:............................",null,"Item",{"v":0,"d":"0 "},null,{"$f":"ROUND($F79*G79,2)","v":0}]
[]
[{"v":6,"d":"6 "},null,"Clause 6.0 - Employer's agents",null,"CONT"]
[]
[null,null,"F:............................. V:............................ T:............................",null,"Item",{"v":0,"d":"0 "},null,{"$f":"ROUND($F83*G83,2)","v":0}]
[]
[{"v":7,"d":"7 "},null,"Clause 7.0 - Design responsibility  F:............................. V:............................ T:............................",null,"Item",{"v":0,"d":"0 "},null,{"$f":"ROUND($F85*G85,2)","v":0}]
[]
[null,null,"Insurance and security (A8-A11)"]
[]
[{"v":8,"d":"8 "},null,"Clause 8.0 - Works risk  F:............................. V:............................ T:............................",null,"Item",{"v":0,"d":"0 "},null,{"$f":"ROUND($F89*G89,2)","v":0}]
[]
[{"v":9,"d":"9 "},null,"Clause 9.0 - Indemnities  F:............................. V:............................ T:............................",null,"Item",{"v":0,"d":"0 "},null,{"$f":"ROUND($F91*G91,2)","v":0}]
[]
[{"v":10,"d":"10 "},null,"Clause 10.0 - Insurances  F:............................. V:............................ T:............................",null,"Item",{"v":0,"d":"0 "},null,{"$f":"ROUND($F93*G93,2)","v":0}]
[]
[{"v":11,"d":"11 "},null,"Clause 11.0 - Security",null,"CONT"]
[]
[null,null,"F:............................. V:............................ T:............................",null,"Item",{"v":0,"d":"0 "},null,{"$f":"ROUND($F97*G97,2)","v":0}]
[]
[null,null,"Execution (A12 - A17)"]
[]
[{"v":12,"d":"12 "},null,"Clause 12.0 - Duties of the parties",null,"CONT"]
[]
[null,null,"F:............................. V:............................ T:............................",null,"Item",{"v":1,"d":"1 "},null,{"$f":"ROUND($F103*G103,2)","v":0}]
[]
[{"v":13,"d":"13 "},null,"Clause 13.0 - Setting out  F:............................. V:............................ T:............................",null,"Item",{"v":0,"d":"0 "},null,{"$f":"ROUND($F105*G105,2)","v":0}]
[]
[{"v":14,"d":"14 "},null,"Clause 14.0 - Nominated subcontractors",null,"CONT"]
[]
[null,null,"F:............................. V:............................ T:............................",null,"Item",{"v":0,"d":"0 "},null,{"$f":"ROUND($F109*G109,2)","v":0}]
[]
[{"v":15,"d":"15 "},null,"Clause 15.0 - Selected subcontractors",null,"CONT"]
[]
[null,null,"F:............................. V:............................ T:............................",null,"Item",{"v":0,"d":"0 "},null,{"$f":"ROUND($F113*G113,2)","v":0}]
[]
[{"v":16,"d":"16 "},null,"Clause 16.0 - Direct contractors  Attendance on direct contractors  In respect of direct contractors the contractor shall:",null,"CONT"]
[]
[null,null,"F:............................. V:............................ T:............................",null,"Item",{"v":0,"d":"0 "},null,{"$f":"ROUND($F117*G117,2)","v":0}]
[]
[{"v":17,"d":"17 "},null,"Clause 17.0 - Contract instructions  Site instructions  Instructions issued on site are to be recorded in a site instruction book which is to be supplied and maintained on site by the contractor",null,"CONT"]
[]
[null,null,"F:............................. V:............................ T:............................",null,"Item",{"v":0,"d":"0 "},null,{"$f":"ROUND($F121*G121,2)","v":0}]
[]
[null,null,"Completion (A18 - A24)"]
[]
[{"v":18,"d":"18 "},null,"Clause 18.0 - Interim completion  F:............................. V:............................ T:............................",null,"Item",{"v":0,"d":"0 "},null,{"$f":"ROUND($F125*G125,2)","v":0}]
[]
[{"v":19,"d":"19 "},null,"Clause 19.0 - Practical completion   F:............................. V:............................ T:............................",null,"Item",{"v":0,"d":"0 "},null,{"$f":"ROUND($F127*G127,2)","v":0}]
[]
[{"v":20,"d":"20 "},null,"Clause 20.0 - Sectional completion",null,"CONT"]
[]
[null,null,"F:............................. V:............................ T:............................",null,"Item",{"v":0,"d":"0 "},null,{"$f":"ROUND($F131*G131,2)","v":0}]
[]
[{"v":21,"d":"21 "},null,"Clause 21.0 - Defects liability period and final completion",null,"CONT"]
[]
[null,null,"F:............................. V:............................ T:............................",null,"Item",{"v":0,"d":"0 "},null,{"$f":"ROUND($F135*G135,2)","v":0}]
[]
[{"v":22,"d":"22 "},null,"Clause 22.0 - Latent defects liability period F:............................. V:............................ T:............................",null,"Item",{"v":0,"d":"0 "},null,{"$f":"ROUND($F137*G137,2)","v":0}]
[]
[{"v":23,"d":"23 "},null,"Clause 23.0 - Revision of date for practical completion  Substitution of materials and goods  The removal or substitution of any materials and goods which do not conform to the specification or the contract drawings shall not constitute grounds for the extension of the construction period nor for the adjustment of the contract value [17.1.8, 23.1 & 2]",null,"CONT"]
[]
[null,null,"F:............................. V:............................ T:............................",null,"Item",{"v":0,"d":"0 "},null,{"$f":"ROUND($F141*G141,2)","v":0}]
[]
[{"v":24,"d":"24 "},null,"Clause 24.0 - Penalty for late or non-completion   F:............................. V:............................ T:............................",null,"Item",{"v":0,"d":"0 "},null,{"$f":"ROUND($F143*G143,2)","v":0}]
[]
[null,null,"Payment (A25 - A27)"]
[]
[{"v":25,"d":"25 "},null,"Clause 25.0 - Payment",null,"CONT"]
[]
[null,null,"F:............................. V:............................ T:............................",null,"Item",{"v":0,"d":"0 "},null,{"$f":"ROUND($F149*G149,2)","v":0}]
[]
[{"v":26,"d":"26 "},null,"Clause 26.0 - Adjustment of the contract value and final account",null,"CONT"]
[]
[null,null,"F:............................. V:............................ T:............................",null,"Item",{"v":0,"d":"0 "},null,{"$f":"ROUND($F153*G153,2)","v":0}]
[]
[{"v":27,"d":"27 "},null,"Clause 27.0 - Recovery of expense and/or loss  F:............................. V:............................ T:............................",null,"Item",{"v":0,"d":"0 "},null,{"$f":"ROUND($F155*G155,2)","v":0}]
[]
[null,null,"Suspension and termination (A28 - A29)"]
[]
[{"v":28,"d":"28 "},null,"Clause 28.0 - Suspension by the contractor",null,"CONT"]
[]
[null,null,"F:............................. V:............................ T:............................",null,"Item",{"v":0,"d":"0 "},null,{"$f":"ROUND($F161*G161,2)","v":0}]
[]
[{"v":29,"d":"29 "},null,"Clause 29.0 - Termination",null,"CONT"]
[]
[null,null,"F:............................. V:............................ T:............................",null,"Item",{"v":0,"d":"0 "},null,{"$f":"ROUND($F165*G165,2)","v":0}]
[]
[null,null,"Dispute resolution (A30)"]
[]
[{"v":30,"d":"30 "},null,"Clause 30.0 - Dispute resolution  F:............................. V:............................ T:............................",null,"Item",{"v":0,"d":"0 "},null,{"$f":"ROUND($F169*G169,2)","v":0}]
[]
[null,null,"The required information of the parties and the amount of the contract sum shall be inserted in the agreement for signature of the agreement by the parties  F:............................. V:............................ T:............................",null,"Item",{"v":0,"d":"0 "},null,{"$f":"ROUND($F171*G171,2)","v":0}]
[]
[null,null,"F:............................. V:............................ T:............................",null,"Item",{"v":0,"d":"0 "},null,{"$f":"ROUND($F173*G173,2)","v":0}]
[]
[null,null,"42.1  \tCONTRACTING AND OTHER PARTIES"]
[]
[null,null,"42.1.1Employer: Passenger Rail Agency of South AfricaPostal address: PO Box 51324Durban4062Tel.: \t(031) 813 0376Physical Address:65 Masabalala Yengwa AvenueDurban StationDurban4000"]
[]
[null,null,"42.2  \tCONTRACT DETAILS"]
[]
[null,null,"42.2.1 \tWorks Description: Refurbishment, Alterations and Additions for Isipingo Security Improvement for a period of six (6) months"]
[]
[null,null,"42.2.2 \tSite Description: \t\t\tIsipingo Train Station\t"]
[]
[null,null,"42.2.3 \tWork or installations by direct contractors:  N/A"]
[]
[null,null,"42.2.4 \tThis agreement is for a government contract where there are specific options that are applicable to a State organ only Yes"]
[]
[null,null,"42.2.5 \tDate on which possession of the site is intended to be given: TBC"]
[]
[null,null,"42.2.6 \tPeriod for the commencement of the works after the contractor takes possession: TBC"]
[]
[null,null,"42.2.7 \tFor the works as a whole. Intended date of practical completion and the penalty per calendar day Six (6) Months after contractual commencement date               0.04% of contract amount per calender day Penalty Amount"]
[]
[null,null,"42.2.8\tFor the works in sections:  Intended date of practical completion and the penalty per calender day: N/A"]
[]
[null,null,"42.2.9 The law applicable to this agreement shall be that of South Africa     (country)"]
[]
[null,null,"42.3 \tINSURANCES"]
[]
[null,null,"42.3.1 \tContract works insurance to be effected by:Contractor: For the Sum of R Contract Amount  30.00 % With a deductible of - to be determined by the contractor"]
[]
[null,null,"42.3.2 \tSupplementary insurance is required No"]
[]
[null,null,"42.3.3 \tPublic liability insurance to be effected by:Contractor: For the Sum of R 1 000 000-00With a deductible of - to be determined by the contractor"]
[]
[null,null,"42.4 \tDOCUMENTS"]
[]
[null,null,"42.4.1 \tWaivers of contractors lien or right of continuing possession is required  \tYes"]
[]
[null,null,"42.4.2 \tNumber of construction document copies to be \tsupplied to the contractor free of charge: 3   Number of"]
[]
[null,null,"42.4.3 \tBills of Quantities/Lump sum document schedule of rates drawn up in accordance with:  \t\"€œStandard System of Measuring Builders\"€™ Work\"€\u009d"]
[]
[null,null,"42.4.4 \tOn acceptance of the tender the bills of quantities/lump sum document is to be submitted within:  The priced bills of quantities must be handed in with the tender"]
[]
[null,null,"42.4.5 \tJBCC Engineering General Conditions are to be included in the contract documents: No"]
[]
[null,null,"42.4.6 \tThe contract value is to be adjusted using escalation adjustment indices  N/A \tWhere JBCC CPAP is to be used Base Month    N/A"]
[]
[null,null,"42.4.7 \tDetails of changes made to the provision of JBCC standard documentation:"]
[]
[null,null,"SECTION B:  PRELIMINARIES"]
[]
[null,null,"Interpretation (B1)"]
[]
[{"v":31,"d":"31 "},null,"Clause 1.1 - Definitions  F:............................. V:............................ T:............................",null,"Item",{"v":0,"d":"0 "},null,{"$f":"ROUND($F227*G227,2)","v":0}]
[]
[{"v":32,"d":"32 "},null,"Clause 1.2 - Interpretation  F:............................. V:............................ T:............................",null,"Item",{"v":0,"d":"0 "},null,{"$f":"ROUND($F229*G229,2)","v":0}]
[]
[null,null,"Documents (B2)"]
[]
[{"v":33,"d":"33 "},null,"Clause 2.1 - Checking of documents  F:............................. V:............................ T:............................",null,"Item",{"v":0,"d":"0 "},null,{"$f":"ROUND($F233*G233,2)","v":0}]
[]
[{"v":34,"d":"34 "},null,"Clause 2.2 - Provisional bills of quantities",null,"CONT"]
[]
[null,null," F:............................. V:............................ T:............................",null,"Item",{"v":0,"d":"0 "},null,{"$f":"ROUND($F237*G237,2)","v":0}]
[]
[{"v":35,"d":"35 "},null,"Clause 2.3 - Availability of construction information   F:............................. V:............................ T:............................",null,"Item",{"v":0,"d":"0 "},null,{"$f":"ROUND($F239*G239,2)","v":0}]
[]
[{"v":36,"d":"36 "},null,"Clause 2.4 - Ordering of materials and goods  F:............................. V:............................ T:............................",null,"Item",{"v":0,"d":"0 "},null,{"$f":"ROUND($F241*G241,2)","v":0}]
[]
[null,null,"Previous work and adjoining properties (B3)"]
[]
[{"v":37,"d":"37 "},null,"Clause 3.1 - Previous work - dimensional accuracy  F:............................. V:............................ T:............................",null,"Item",{"v":0,"d":"0 "},null,{"$f":"ROUND($F245*G245,2)","v":0}]
[]
[{"v":38,"d":"38 "},null,"Clause 3.2 - Previous work - defects  F:............................. V:............................ T:............................",null,"Item",{"v":0,"d":"0 "},null,{"$f":"ROUND($F247*G247,2)","v":0}]
[]
[{"v":39,"d":"39 "},null,"Clause 3.3 - Inspection of adjoining properties  F:............................. V:............................ T:............................",null,"Item",{"v":0,"d":"0 "},null,{"$f":"ROUND($F249*G249,2)","v":0}]
[]
[null,null,"The site (B4)"]
[]
[{"v":40,"d":"40 "},null,"Clause 4.1 - Defined works area  F:............................. V:............................ T:...........................",null,"Item",{"v":0,"d":"0 "},null,{"$f":"ROUND($F253*G253,2)","v":0}]
[]
[{"v":41,"d":"41 "},null,"Clause 4.2 - Handover of site in stages  F:............................. V:............................ T:............................",null,"Item",{"v":0,"d":"0 "},null,{"$f":"ROUND($F255*G255,2)","v":0}]
[]
[{"v":42,"d":"42 "},null,"Clause 4.3 - Enclosure of the works  F:............................. V:............................ T:............................",null,"Item",{"v":0,"d":"0 "},null,{"$f":"ROUND($F257*G257,2)","v":0}]
[]
[{"v":43,"d":"43 "},null,"Clause 4.4 - Geotechnical investigation  F:............................. V:............................ T:............................",null,"Item",{"v":0,"d":"0 "},null,{"$f":"ROUND($F259*G259,2)","v":0}]
[]
[{"v":44,"d":"44 "},null,"Clause 4.5 - Encroachments  F:............................. V:............................ T:............................",null,"Item",{"v":0,"d":"0 "},null,{"$f":"ROUND($F261*G261,2)","v":0}]
[]
[{"v":45,"d":"45 "},null,"Clause 4.6 - Existing premises occupied  F:............................. V:............................ T:............................",null,"Item",{"v":0,"d":"0 "},null,{"$f":"ROUND($F263*G263,2)","v":0}]
[]
[{"v":46,"d":"46 "},null,"Clause 4.7 - Services - known  F:............................. V:............................ T:............................",null,"Item",{"v":0,"d":"0 "},null,{"$f":"ROUND($F265*G265,2)","v":0}]
[]
[{"v":47,"d":"47 "},null,"Clause 4.8 - Protection of trees and/or relevant natural features  F:............................. V:............................ T:...........................",null,"Item",{"v":0,"d":"0 "},null,{"$f":"ROUND($F267*G267,2)","v":0}]
[]
[null,null,"Management of contract (B5)"]
[]
[{"v":48,"d":"48 "},null,"Clause 5.1 - Management of the works  F:............................. V:............................ T:............................",null,"Item",{"v":0,"d":"0 "},null,{"$f":"ROUND($F271*G271,2)","v":0}]
[]
[{"v":49,"d":"49 "},null,"Clause 5.2 - Progress meetings  F:............................. V:............................ T:............................",null,"Item",{"v":0,"d":"0 "},null,{"$f":"ROUND($F273*G273,2)","v":0}]
[]
[{"v":50,"d":"50 "},null,"Clause 5.3 - Technical meetings  F:............................. V:............................ T:............................",null,"Item",{"v":0,"d":"0 "},null,{"$f":"ROUND($F275*G275,2)","v":0}]
[]
[null,null,"Samples, shop drawings and manufacturer's instructions (B6)"]
[]
[{"v":51,"d":"51 "},null,"Clause 6.1 - Samples of materials  F:............................. V:............................ T:...........................",null,"Item",{"v":0,"d":"0 "},null,{"$f":"ROUND($F279*G279,2)","v":0}]
[]
[{"v":52,"d":"52 "},null,"Clause 6.2 - Workmanship samples  F:............................. V:............................ T:............................",null,"Item",{"v":0,"d":"0 "},null,{"$f":"ROUND($F281*G281,2)","v":0}]
[]
[{"v":53,"d":"53 "},null,"Clause 6.3 - Shop drawings  F:............................. V:............................ T:............................",null,"Item",{"v":0,"d":"0 "},null,{"$f":"ROUND($F283*G283,2)","v":0}]
[]
[{"v":54,"d":"54 "},null,"Clause 6.4 - Compliance with manufacturer's instructions  F:............................. V:............................ T:............................",null,"Item",{"v":0,"d":"0 "},null,{"$f":"ROUND($F285*G285,2)","v":0}]
[]
[null,null,"Deposits and fees (B7)"]
[]
[{"v":55,"d":"55 "},null,"Clause 7.1 - Deposits and fees  F:............................. V:............................ T:............................",null,"Item",{"v":0,"d":"0 "},null,{"$f":"ROUND($F289*G289,2)","v":0}]
[]
[null,null,"Temporary services (B8)"]
[]
[{"v":56,"d":"56 "},null,"Clause 8.1 - Water  F:............................. V:............................ T:............................",null,"Item",{"v":0,"d":"0 "},null,{"$f":"ROUND($F293*G293,2)","v":0}]
[]
[{"v":57,"d":"57 "},null,"Clause 8.2 - Electricity  F:............................. V:............................ T:............................",null,"Item",{"v":0,"d":"0 "},null,{"$f":"ROUND($F295*G295,2)","v":0}]
[]
[{"v":58,"d":"58 "},null,"Clause 8.3 - Ablution and welfare facilities  F:............................. V:............................ T:............................",null,"Item",{"v":0,"d":"0 "},null,{"$f":"ROUND($F297*G297,2)","v":0}]
[]
[{"v":59,"d":"59 "},null,"Clause 8.4 - Communication facilities  F:............................. V:............................ T:............................",null,"Item",{"v":0,"d":"0 "},null,{"$f":"ROUND($F299*G299,2)","v":0}]
[]
[null,null,"Prime cost amounts (B9)"]
[]
[{"v":60,"d":"60 "},null,"Clause 9.1 - Responsibility for prime cost amounts",null,"CONT"]
[]
[null,null," F:............................. V:............................ T:............................",null,"Item",{"v":0,"d":"0 "},null,{"$f":"ROUND($F305*G305,2)","v":0}]
[]
[null,null,"Attendance on subcontractors (B10)"]
[]
[{"v":61,"d":"61 "},null,"Clause 10.1 - General attendance   F:............................. V:............................ T:............................",null,"Item",{"v":0,"d":"0 "},null,{"$f":"ROUND($F309*G309,2)","v":0}]
[]
[{"v":62,"d":"62 "},null,"Clause 10.2 - Special attendance",null,"CONT"]
[]
[null,null," F:............................. V:............................ T:............................",null,"Item",{"v":0,"d":"0 "},null,{"$f":"ROUND($F313*G313,2)","v":0}]
[]
[null,null,"General (B11)"]
[]
[{"v":63,"d":"63 "},null,"Clause 11.1 - Protection of the works  F:............................. V:............................ T:............................",null,"Item",{"v":0,"d":"0 "},null,{"$f":"ROUND($F317*G317,2)","v":0}]
[]
[{"v":64,"d":"64 "},null,"Clause 11.2 - Protection/isolation of existing/sectionally occupied works  F:............................. V:............................ T:............................",null,"Item",{"v":0,"d":"0 "},null,{"$f":"ROUND($F319*G319,2)","v":0}]
[]
[{"v":65,"d":"65 "},null,"Clause 11.3 - Security of the works  F:............................. V:............................ T:............................",null,"Item",{"v":0,"d":"0 "},null,{"$f":"ROUND($F321*G321,2)","v":0}]
[]
[{"v":66,"d":"66 "},null,"Clause 11.4 - Notice before covering work  F:............................. V:............................ T:............................",null,"Item",{"v":0,"d":"0 "},null,{"$f":"ROUND($F323*G323,2)","v":0}]
[]
[{"v":67,"d":"67 "},null,"Clause 11.5 - Disturbance  F:............................. V:............................ T:............................",null,"Item",{"v":0,"d":"0 "},null,{"$f":"ROUND($F325*G325,2)","v":0}]
[]
[null,null,"Clause 11.6 - Environmental disturbance  F:............................. V:............................ T:............................",null,"Item",{"v":0,"d":"0 "},null,{"$f":"ROUND($F327*G327,2)","v":0}]
[]
[{"v":68,"d":"68 "},null,"Clause 11.7 - Works cleaning and clearing  F:............................. V:............................ T:............................",null,"Item",{"v":0,"d":"0 "},null,{"$f":"ROUND($F329*G329,2)","v":0}]
[]
[{"v":69,"d":"69 "},null,"Clause 11.8 - Vermin  F:............................. V:............................ T:............................",null,"Item",{"v":0,"d":"0 "},null,{"$f":"ROUND($F331*G331,2)","v":0}]
[]
[{"v":70,"d":"70 "},null,"Clause 11.9 - Overhand work  F:............................. V:............................ T:............................",null,"Item",{"v":0,"d":"0 "},null,{"$f":"ROUND($F333*G333,2)","v":0}]
[]
[{"v":71,"d":"71 "},null,"Clause 11.11 - Advertising  F:............................. V:............................ T:............................",null,"Item",{"v":0,"d":"0 "},null,{"$f":"ROUND($F335*G335,2)","v":0}]
[]
[null,null,"Preliminaries schedule (B12)"]
[]
[{"v":72,"d":"72 "},null,"Information for completion of the preliminaries schedule  Information necessary for elections and completion of those clauses contained in the preliminaries schedule which are necessary for tender purposes is given hereunder. Where no information is given it shall mean that no specific requirements are expected or that the clause is not relevant to this specific contract",null,"CONT"]
[]
[null,null,"12.1 -\tProvisional bills of quantities [2.2]  \tThe quantities are provisional - Yes"]
[]
[null,null,"12.2 -\tAvailability of construction information [2.3]  \tConstruction documentation is complete - Yes"]
[]
[null,null,"12.3 -\tPrevious work - dimensional accuracy [3.1]"]
[]
[null,null,"12.4 -\tPrevious work - defects [3.2]"]
[]
[null,null,"12.5 -\tInspection of adjoining properties [3.3]"]
[]
[null,null,"12.6 -\tDefined works area [4.1]"]
[]
[null,null,"12.7 -\tHandover of site in stages [4.2]"]
[]
[null,null,"12.8 -\tEnclosure of the works [4.3]"]
[]
[null,null,"12.9 -\tGeotechnical investigation [4.4]"]
[]
[null,null,"12.10 -\tExisting premises occupied [4.6]"]
[]
[null,null,"12.11 -\tServices - known [4.7]"]
[]
[null,null,"12.12 -\tProtection of trees and/or relevant natural features \t[4.8]"]
[]
[null,null,"12.13 -\tWater [8.1]  \tOption A (by contractor) - Yes  \tOption B (by employer - free of charge)\t - No  \tOption C (by employer - metered) -  No"]
[]
[null,null,"12.14 -\tElectricity [8.2]\tOption A (by contractor) - Yes\tOption B (by employer - free of charge)\t - No\tOption C (by employer - metered) -  No"]
[]
[null,null,"12.15 -\tAblution and welfare facilities [8.3]  \tOption A (by contractor) - Yes  \tOption B (by employer - free of charge)\t - No"]
[]
[null,null,"12.16 -\tCommunication facilities [8.4]"]
[]
[null,null,"12.17 -\tProtection of the works [11.1]"]
[]
[null,null,"12.18 -\tProtection/isolation of existing/sectionally occupied works [11.2]  \tProtection/isolation is required - Yes"]
[]
[null,null,"12.19 -\tDisturbance [11.5]"]
[]
[null,null,"12.20 -\tEnvironmental disturbance [11.6]"]
[]
[null,null,"Controlling all forms of pollution  The contractor shall be responsible for and take all precautions in controlling by whatever means necessary all forms of pollution emanating from the site during the construction period due inter alia to noise, artificial light, wind-blown sand, dust, deposits of mud, etc"]
[]
[null,null,"The contractor is to ensure that all roads which border the site and is used by the contractor during the execution of the works are kept clean and free of any dirt or debris caused by the execution of the works"]
[]
[null,null,"F:............................. V:............................ T:............................",null,"Item",{"v":0,"d":"0 "},null,{"$f":"ROUND($F385*G385,2)","v":0}]
[]
[null,null,"SECTION  C: SPECIFIC PRELIMINARIES"]
[]
[null,null,"Section C Section C contains specific preliminary items which apply to this contract except where N/A (Not Applicable) appears against an item"]
[]
[null,null,"The warranty will not be enforced if the work is damaged by defects in the execution of the works, in which case the responsibility for replacement shall rest entirely with the contractor  F:............................. V:............................ T:............................",null,"Item",{"v":0,"d":"0 "},null,{"$f":"ROUND($F391*G391,2)","v":0}]
[]
[{"v":73,"d":"73 "},null,"Overtime  Should overtime be required to be worked for any reason whatsoever, the cost of such overtime is to be borne by the contractor unless the principal agent has specifically authorised, prior to execution thereof, that costs for such overtime are to be borne by the employer  F:............................. V:............................ T:............................",null,"Item",{"v":0,"d":"0 "},null,{"$f":"ROUND($F393*G393,2)","v":0}]
[]
[{"v":74,"d":"74 "},null,"Co-operation of the contractor for cost management  It is specifically agreed that the contractor accepts the obligation of assisting the principal agent in implementing proper cost management. The contractor will be advised by the principal agent of all cost management procedures which will be implemented to ensure that the contract value does not exceed the budget  F:............................. V:............................ T:............................",null,"Item",{"v":0,"d":"0 "},null,{"$f":"ROUND($F395*G395,2)","v":0}]
[]
[{"v":75,"d":"75 "},null,"Overloading  The contractor shall take all necessary steps to ensure that no damage occurs due to overloading of any portion of the works or temporary works eg scaffolding, etc. The contractor shall submit details of his proposed loading, storage, plant erection, etc to the principal agent for approval prior to proceeding with such loading, storing or erecting and shall comply with and pay for the principal agent's requirements in connection with the provision of temporary support work, etc. Any damage caused to the works by overloading shall be made good by the contractor at his sole expense  F:............................. V:............................ T:............................",null,"Item",{"v":0,"d":"0 "},null,{"$f":"ROUND($F397*G397,2)","v":0}]
[]
[{"v":76,"d":"76 "},null,"Propping of floors below  The contractor is advised that propping of floors below may be required if he wishes to use any areas of completed suspended reinforced concrete slabs for vehicle access, storage of materials and goods and location of plant, scaffolding, etc. The location of these areas and any necessary propping shall be approved by the principal agent and the cost thereof shall be borne by the contractor  F:............................. V:............................ T:............................",null,"Item",{"v":0,"d":"0 "},null,{"$f":"ROUND($F399*G399,2)","v":0}]
[]
[{"v":77,"d":"77 "},null,"Testing of flat roof waterproofing for water tightness  Flat roof waterproof areas shall be prepared with small sand dykes around them of a size and enclosing an area approved by the principal agent, flooded with water and kept \"ponded\" for at least forty (40) hours as a test to ensure the water tightness of the waterproofing and before any further construction work is carried out above the waterproofing  F:............................. V:............................ T:............................",null,"Item",{"v":0,"d":"0 "},null,{"$f":"ROUND($F401*G401,2)","v":0}]
[]
[null,null,"The contractor is to submit to the principal agent on an annual basis a schedule of spend, split into vendors engaged as subcontractors and suppliers indicating their BBBEE rating including proof of the said rating  F:............................. V:............................ T:............................",null,"Item",{"v":0,"d":"0 "},null,{"$f":"ROUND($F403*G403,2)","v":0}]
[]
[{"v":78,"d":"78 "},null,"Advertising rights  The employer may elect to contract with advertising agencies for the erection of advertising hoardings, banners, wraps or the like for the duration of the contract. The contractor shall not prevent such an arrangement and will assist in the facilitation of same. Position and type of advertising structure to be agreed with the principal agent so as not to hinder the contractor in meeting the obligations under this agreement  F:............................. V:............................ T:............................",null,"Item",{"v":0,"d":"0 "},null,{"$f":"ROUND($F405*G405,2)","v":0}]
[]
[{"v":79,"d":"79 "},null,"Confidentiality  The contractor undertakes to maintain in confidence any and all information regarding this project and shall obtain appropriate similar undertakings from all subcontractors and suppliers. Such information shall not be used in any way except in connection with the execution of the works  No information regarding this project shall be published or disclosed without the prior written consent of the employer  F:............................. V:............................ T:............................",null,"Item",{"v":0,"d":"0 "},null,{"$f":"ROUND($F407*G407,2)","v":0}]
[]
[{"v":80,"d":"80 "},null,"Media releases  All rights of publication of articles in the media, together with any advertising relating thereto or in any way connected with this project, shall vest with the employer  The contractor together with his subcontractors shall not, without the prior written consent of the employer, cause any statement or advertisement connected with this project to be printed, screened or aired by the media  F:............................. V:............................ T:............................",null,"Item",{"v":0,"d":"0 "},null,{"$f":"ROUND($F409*G409,2)","v":0}]
[]
[null,null,"SUMMARY OF CATEGORIES"]
[]
[null,null,"Category : Fixed   R........................................  Category : Value   R........................................  Category : Time    R........................................"]
[]
[null,null,"SECTION 2"]
[]
[null,null,"BILL NO.1"]
[]
[null,null,"ALTERATIONS (PROVISIONAL)"]
[]
[null,null,"WORK GROUP ALLOCATION"]
[]
[null,null,"Unless otherwise stated, all items in this Bill will be allocated to Work Group 102 - Alterations"]
[]
[null,null,"PREAMBLES"]
[]
[null,null,"The General Preambles for Trades (2017 edition), as published by the Association of South African Quantity Surveyors, shall be deemed to be incorporated in these bills of quantities and no claims arising from brevity of description of items, fully described in the said General Preambles, will be entertained"]
[]
[null,null,"The following \"Supplementary Preambles\" are incorporated in this bill to satisfy the requirements of the project and shall take precedence over the provisions of the said General Preambles"]
[]
[null,null,"SUPPLEMENTARY PREAMBLES"]
[]
[null,null,"View site:"]
[]
[null,null,"Before submitting his tender, the Contractor shall visit the site and satisfy himself as to the nature and extent of the work to be done and the value of the materials contained in the buildings or portions of the buildings to be demolished.  No claim for any variations of the contract sum in respect of the nature and extent of the work or of inferior or damaged materials will be entertained"]
[]
[null,null,"Old materials to become property of the Contractor:"]
[]
[null,null,"Old materials from alterations, except where described as to be re-used or handed over, become the property of the Contractor, who must allow credit for same in the last item of the \"Alterations\" trade"]
[]
[null,null,"Old materials to be carted away:"]
[]
[null,null,"Old materials from the alterations, except where described as to be re-used or handed over, as well as all rubbish, etc must be regularly carted from the site and not be allowed to accumulate on or around the site"]
[]
[null,null,"Old materials to be re-used:"]
[]
[null,null,"None of the old materials are to be used for new work, except where specifically described as being set aside for re-use"]
[]
[null,null,"Handing over of materials:"]
[]
[null,null,"Where certain materials or articles from demolitions or alterations are described as to be \"handed over to the Employer\", it shall be taken to mean \"handed over by the Contractor to the Principal Agent\" and such materials or articles shall be properly stored by the Contractor until handing over thereof and shall include all necessary transport The Contractor must obtain an official receipt from the Principal Agent listing the materials or articles and dates of handing overShould the Contractor fail to submit the receipt when requested to do so, it shall be deemed that the materials or articles are still in his possession and he will be held liable to the Employer for the full replacement value thereof, which amount will be deducted from any monies due to the Contractor"]
[]
[null,null,"Explosives:"]
[]
[null,null,"No explosives whatsoever may be used for demolition purposes, unless otherwise stated"]
[]
[null,null,"GENERAL"]
[]
[null,null,"The contractor shall carry out the whole of the work with as little mess and noise as possible and with a minimum of disturbance to adjoining premises and their tenants. He shall provide proper protection and provide and erect any temporarytarpaulins and temporary plumbing that may be necessary during the progress of the works, all to the satisfaction of the Architect, and remove when directed."]
[]
[null,null,"Any water supplies pipes and other piping that may be met with and found necessary to disconnect or cut, shall be effectually stopped of or grubbed up and removed, and any new connections that may be necessary shall be made with proper fittings, to the satisfaction of the Architect."]
[]
[null,null,"Doors, fanlights, fittings, frames, linings, etc shall be thoroughly overhauled before re-fixing including taking off, easing and rehanging, cramping up, re-wedging as required and making good cramps, dowels, etc and easing, oiling, adjusting and repairing ironmongery if necessary, replacing any glass damaged in removal or subsequently and stopping up all nail and screw holes with tinted wood to match timber."]
[]
[null,null,"Where doors, windows, etc are described as taken out this shall be understood to include for removal of all beads, architraves, ironmongery, etc and doors which are re-fixed are to be provided with new architraves       (elsewhere measured )."]
[]
[null,null,"Prices for taking out and removing doors and frames shall include for removing door stops, cabin locks, etc and making good to match existing."]
[]
[null,null,"With regard to building up openings in existing walls, cement screeds and pavings, granolithic, etc, shall be levelled and prepared for raising of brickwork."]
[]
[null,null,"Allow for making good all existing plastered walls where damaged by furniture, etc, and stopping up all screw and holes before painting."]
[]
[null,null,"Making good finishes shall be deemed to iclude making good of the brick and concrete surfaces onto which new finishes are applied, where necessary."]
[]
[null,null,"The contractor will be required to take all dimensions affecting existing building on the site and he will be held solely responsible for the accuracy of all such dimensions."]
[]
[null,null,"Hazardous materials:"]
[]
[null,null,"Demolitions of buildings, services, external works, site services, etc are to include for the safe removal and disposal of asbestos or asbestos products or other hazardous materials by approved Registered Specialists"]
[]
[null,null,"TEMPORARY BARRIERS, SCREENS, ETC"]
[]
[null,null,"Temporary barriers, screens, etc including removal:"]
[]
[{"v":1,"d":"1 "},null,"Dust screen 2100mm high formed of suitable timber framing with 250 micron polyethylene sheeting stapled on including corners, ends, etc. to be used on all the phases of the construction project and in accordance to the Health and Safety specifications and regulations",null,"m",{"v":150,"d":"150 "},null,{"$f":"ROUND($F485*G485,2)","v":0}]
[]
[null,null,"REMOVAL OF EXISTING WORK"]
[]
[null,null,"Taking down and removing roof coverings, accessories, etc.:"]
[]
[{"v":2,"d":"2 "},null,"Profiled sheet metal roof covering including timber purlins",null,"m²",{"v":786,"d":"786 "},null,{"$f":"ROUND($F491*G491,2)","v":0}]
[]
[null,null,"Taking down and removing rainwater goods, etc:"]
[]
[{"v":3,"d":"3 "},null,"Metal box gutters not exceeding 250mm girth including ends, bends, outlets, brackets, etc. complete",null,"m",{"v":114,"d":"114 "},null,{"$f":"ROUND($F495*G495,2)","v":0}]
[]
[null,null,"Taking down and removing ceilings, partitions, etc:"]
[]
[{"v":4,"d":"4 "},null,"Gypsum plasterboard ceilings, including cornices, timber brandering, etc.",null,"m²",{"v":11,"d":"11 "},null,{"$f":"ROUND($F499*G499,2)","v":0}]
[]
[null,null,"Hacking up/off and removing ceramic and porcelain tiles, including removing mortar bed or adhesive from concrete or brickwork and preparing surfaces for new screed, plaster, tile finishes, etc:"]
[]
[{"v":5,"d":"5 "},null,"Tiles to floors",null,"m²",{"v":651,"d":"651 "},null,{"$f":"ROUND($F503*G503,2)","v":0}]
[]
[null,null,"SECTION 2"]
[]
[null,null,"BILL NO. 2"]
[]
[null,null,"ROOF COVERINGS"]
[]
[null,null,"WORK GROUP ALLOCATION"]
[]
[null,null,"The items in this Bill will be allocated to Work Groups as indicated in brackets at the ends of headings or descriptions"]
[]
[null,null,"PREAMBLES"]
[]
[null,null,"The General Preambles for Trades (2017 edition) as published by the Association of South African Quantity Surveyors shall be deemed to be incorporated in these bills of quantities and no claims arising from brevity of description of items fully described in the said General Preambles will be entertained"]
[]
[null,null,"The following \"Supplementary Preambles\" are incorporated in this bill to satisfy the requirements of the project and shall take precedence over the provisions of the said General Preambles"]
[]
[null,null,"SUPPLEMENTARY PREAMBLES"]
[]
[null,null,"Profiled metal roof sheeting and accessories shall be supplied with a 10 year guarantee and be installed by an approved installer"]
[]
[null,null,"All fixing holes shall be drilled and not punched"]
[]
[null,null,"Roof covering accessories shall be manufactured from the same material as used for roof covering"]
[]
[null,null,"PROFILED METAL SHEETING AND ACCESSORIES (WORK GROUP 124)"]
[]
[null,null,"0,53mm \"Klip-Tite 700\" or similar approved, profile Z275 spelter galvanised steel light industrial troughed interlocking roof sheeting in single lengths and accessories, with \"Chromodek\" or similar approved finish to one side, fixed to timber purlins:"]
[]
[{"v":1,"d":"1 "},null,"Roof coverings with pitch not exceeding 25 degrees",null,"m²",{"v":786,"d":"786 "},null,{"$f":"ROUND($F533*G533,2)","v":0}]
[]
[null,null,"Accessories:"]
[]
[{"v":2,"d":"2 "},null,"Narrow and broad flute closers",null,"m",{"v":114,"d":"114 "},null,{"$f":"ROUND($F537*G537,2)","v":0}]
[]
[null,null,"ROOF AND WALL INSULATION (WORK GROUP 122)"]
[]
[null,null,"Heavy industrial grade aluminium foil based insulation:"]
[]
[{"v":3,"d":"3 "},null,"Two sided bubble insulation membrane",null,"m²",{"v":786,"d":"786 "},null,{"$f":"ROUND($F543*G543,2)","v":0}]
[]
[null,null,"SECTION 2"]
[]
[null,null,"BILL NO. 3"]
[]
[null,null,"CARPENTRY AND JOINERY"]
[]
[null,null,"WORK GROUP ALLOCATION"]
[]
[null,null,"Unless otherwise stated, all items in this Bill will be allocated to Work Group 126 - Carpentry & Joinery"]
[]
[null,null,"PREAMBLES"]
[]
[null,null,"The General Preambles for Trades (2017 edition) as published by the Association of South African Quantity Surveyors shall be deemed to be incorporated in these bills of quantities and no claims arising from brevity of description of items fully described in the said General Preambles will be entertained"]
[]
[null,null,"The following \"Supplementary Preambles\" are incorporated in this bill to satisfy the requirements of the project and shall take precedence over the provisions of the said General Preambles"]
[]
[null,null,"SUPPLEMENTARY PREAMBLES"]
[]
[null,null,"Fixing:"]
[]
[null,null,"Items described as \"nailed\" shall be deemed to be fixed with hardened steel nails or pins, or to be shot-pinned, to brickwork or concrete"]
[]
[null,null,"Items described as \"plugged\" shall be deemed to include screwing to fibre, plastic or metal plugs at not exceeding 500mm centres, and where described as \"bolted\", the bolts have been given separately elsewhere"]
[]
[null,null,"Joinery:"]
[]
[null,null,"Descriptions of frames shall be deemed to include frames, transomes, rails, etc"]
[]
[null,null,"Descriptions of hardwood joinery shall be deemed to include sinking and pelleting heads and nuts of bolts"]
[]
[null,null,"Particle board"]
[]
[null,null,"All particle board shall comply with SANS 50312 having the required marking as per SANS 50312/EN 312"]
[]
[null,null,"Decorative thermosetting plastic laminate covering:"]
[]
[null,null,"Laminate covering shall be glued under pressure and edge strips of same shall be butt jointed at junctions with adjacent similar finish"]
[]
[null,null,"Sizes:"]
[]
[null,null,"Sizes are nominal and the Contractor shall make allowance in his prices for minor variances in stated finished sizes of timber doors, door members, door frames, architraves, etc"]
[]
[null,null,"Prices"]
[]
[null,null,"Prices for all joinery work are to include for general framing, housing and notching, arris rounded angles, glueing, blocking, planting on, screwing, adhesives, dowels, pellets, cross tongues, screws and nails and setting up complete and also for all square cutting and waste. Tops shall be secured with metal or hardwood buttons."]
[]
[null,null,"ROOFS, ETC"]
[]
[null,null,"EAVES, VERGES, ETC"]
[]
[null,null,"Medium density plain fibre-cement fascias and barge boards:"]
[]
[{"v":1,"d":"1 "},null,"19 x 235mm Fascias and barge boards, including aluminium H-profile jointing strips",null,"m",{"v":114,"d":"114 "},null,{"$f":"ROUND($F597*G597,2)","v":0}]
[]
[null,null,"SECTION 2"]
[]
[null,null,"BILL NO. 4"]
[]
[null,null,"CEILINGS, PARTITIONS AND ACCESS FLOORING"]
[]
[null,null,"WORK GROUP ALLOCATION"]
[]
[null,null,"Unless otherwise stated, all items in this Bill will be allocated to Work Group 129 - Ceilings"]
[]
[null,null,"PREAMBLES"]
[]
[null,null,"The General Preambles for Trades (2017 edition) as published by the Association of South African Quantity Surveyors shall be deemed to be incorporated in these bills of quantities and no claims arising from brevity of description of items fully described in the said General Preambles will be entertained"]
[]
[null,null,"The following \"Supplementary Preambles\" are incorporated in this bill to satisfy the requirements of the project and shall take precedence over the provisions of the said General Preambles"]
[]
[null,null,"SUPPLEMENTARY PREAMBLES"]
[]
[null,null,"Fixing:"]
[]
[null,null,"Items described as \"nailed\" shall be deemed to be fixed with hardened steel nails or pins, or to be shot-pinned, to brickwork or concrete"]
[]
[null,null,"Items described as \"plugged\" shall be deemed to include screwing to fibre, plastic or metal plugs at not exceeding 500mm centres, and where described as \"bolted\", the bolts have been given separately elsewhere"]
[]
[null,null,"Ceilings:"]
[]
[null,null,"Unless otherwise described, ceilings shall be deemed to be horizontal"]
[]
[null,null,"Bulkheads:"]
[]
[null,null,"Bulkheads are defined as those portions of ceilings which are stepped down from the general ceiling level in a particular room or area and which generally occur along the perimeter. Their purpose is either to conceal services or to create architectural features"]
[]
[null,null,"Bulkheads have only been described as such where they conform to the above definition and where the horizontal, vertical or sloping dimensions do not exceed 1200mm. Where these dimensions are more than 1200mm such portions of ceilings have been included in the appropriate general items of ceilings"]
[]
[null,null,"Unless otherwise described, bulkheads shall be deemed to be horizontal along the length"]
[]
[null,null,"Openings:"]
[]
[null,null,"Prices for openings for light fittings, ventilation grilles, air conditioning diffusers, etc. are to include for any necessary additional support, trimming around, etc."]
[]
[null,null,"Steel components:"]
[]
[null,null,"All steel components for ceilings, partitions, etc are to be galvanised in accordance with SANS 121"]
[]
[null,null,"INSULATION"]
[]
[null,null,"Non-combustible fibreglass insulation of a density of not less than 10kg/m3 bonded with an inert thermo-setting resin:"]
[]
[{"v":1,"d":"1 "},null,"120mm Insulation in blanket form, closely fitted and laid on top of brandering between roof timbers, etc.",null,"m²",{"v":11,"d":"11 "},null,{"$f":"ROUND($F647*G647,2)","v":0}]
[]
[null,null,"NAILED UP CEILINGS"]
[]
[null,null,"12mm Fibre-cement plain ceiling boards with H-profile galvanised steel jointing strips:"]
[]
[{"v":2,"d":"2 "},null,"Ceilings including 38 x 38mm sawn softwood brandering at 400mm centres and cross brandering at 400mm centres",null,"m²",{"v":11,"d":"11 "},null,{"$f":"ROUND($F653*G653,2)","v":0}]
[]
[{"v":3,"d":"3 "},null,"Extra over ceiling for 600 x 600mm trap door of 38 x 38mm wrought softwood rebated framing with one cross brander, covered with ceiling board and fitted flush in opening, including necessary trimmers around",null,"No",{"v":1,"d":"1 "},null,{"$f":"ROUND($F655*G655,2)","v":0}]
[]
[null,null,"Gypsum plasterboard cornices:"]
[]
[{"v":4,"d":"4 "},null,"75mm Coved cornices",null,"m",{"v":13,"d":"13 "},null,{"$f":"ROUND($F659*G659,2)","v":0}]
[]
[null,null,"SECTION 2"]
[]
[null,null,"BILL NO. 5"]
[]
[null,null,"STRUCTURAL STEELWORK"]
[]
[null,null,"WORK GROUP ALLOCATION"]
[]
[null,null,"Unless otherwise stated, all items in this Bill will be allocated to Work Group 134 - Structural Steelwork in Buildings"]
[]
[null,null,"PREAMBLES"]
[]
[null,null,"The General Preambles for Trades (2017 edition) as published by the Association of South African Quantity Surveyors shall be deemed to be incorporated in these bills of quantities and no claims arising from brevity of description of items fully described in the said General Preambles will be entertained"]
[]
[null,null,"The following \"Supplementary Preambles\" are incorporated in this bill to satisfy the requirements of the project and shall take precedence over the provisions of the said General Preambles"]
[]
[null,null,"SUPPLEMENTARY PREAMBLES"]
[]
[null,null,"Specification:"]
[]
[null,null,"All structural steel must comply with SANS 1200H (Degree of Accuracy II)"]
[]
[null,null,"All hot rolled structural steel sections must comply with SANS 1431 grade 300W, unless otherwise specified on the drawings"]
[]
[null,null,"Unless otherwise designated, all bolts and nuts will be grade 4.6 to SANS 135 and BS 916. Descriptions of bolts shall be deemed to include nuts and washers. Descriptions of L-shaped and U-shaped anchor bolts shall be deemed to include bending, threading, nuts and washers and embedding in concrete. Descriptions of expansion anchors and bolts and chemical anchors and bolts shall be deemed to include nuts, washers and mortices in brickwork or concrete"]
[]
[null,null,"All connections must be welded all round with a 6mm fillet weld, unless otherwise specified on the drawings"]
[]
[null,null,"Drawings and shop details:"]
[]
[null,null,"The Contractor shall be responsible for preparing shop drawings and details which must be submitted to the Principal Agent for approval prior to commencement of fabrication.  Before commencing any fabrication, the steel fabricator must check the accessibility of the site and design the sizes of individual parts accordingly"]
[]
[null,null,"Hot-dipped galvanizing:"]
[]
[null,null,"After fabrication and prior to delivery to site, all steelwork described as hot-dipped galvanized, is to be descaled and thoroughly cleaned by pickling, after which it is to be hot dip galvanized in accordance with the requirements of SANS 121/1501461"]
[]
[null,null,"Descriptions:"]
[]
[null,null,"Descriptions of bolts shall be deemed to include nuts and washers"]
[]
[null,null,"Descriptions of L-shaped and U-shaped anchor bolts shall be deemed to include bending, threading, nuts and washers and embedding in concrete"]
[]
[null,null,"Descriptions of expansion anchors and bolts and chemical anchors and bolts shall be deemed to include nuts, washers and mortices in brickwork or concrete"]
[]
[null,null,"BUDGETARY ALLOWANCE"]
[]
[{"v":1,"d":"1 "},null,"Provide a budgetary allowance of One Hundred and Fifty Thousand Rand for sundry alterations to structural steelworks be used as directed by the Principal Agent and to be deducted in whole or in part if not required.",null,"Item",{"v":1,"d":"1 "},null,{"$f":"ROUND($F707*G707,2)","v":0}]
[]
[null,null,"Paint testing:"]
[]
[{"v":2,"d":"2 "},null,"Subcontract amount of Twenty Five Thousand Rand for quality control inspection by an authorised independent authority",null,"SUM",{"v":1,"d":"1 "},null,{"$f":"ROUND($F711*G711,2)","v":0}]
[]
[{"v":3,"d":"3 "},null,"Profit",null,"%",{"v":0,"d":"0%"},null,{"$f":"ROUND($F713*G713,2)","v":0}]
[]
[{"v":4,"d":"4 "},null,"Attendance",null,"%",{"v":0,"d":"0%"},null,{"$f":"ROUND($F715*G715,2)","v":0}]
[]
[null,null,"SECTION 2"]
[]
[null,null,"BILL NO. 6"]
[]
[null,null,"METALWORK"]
[]
[null,null,"WORK GROUP ALLOCATION"]
[]
[null,null,"Unless otherwise stated, all items in this Bill will be allocated to Work Group 136 - Metalwork"]
[]
[null,null,"PREAMBLES"]
[]
[null,null,"The General Preambles for Trades (2017 edition) as published by the Association of South African Quantity Surveyors shall be deemed to be incorporated in these bills of quantities and no claims arising from brevity of description of items fully described in the said General Preambles will be entertained"]
[]
[null,null,"The following \"Supplementary Preambles\" are incorporated in this bill to satisfy the requirements of the project and shall take precedence over the provisions of the said General Preambles"]
[]
[null,null,"SUPPLEMENTARY PREAMBLES"]
[]
[null,null,"Descriptions of bolts, anchors, etc:"]
[]
[null,null,"Descriptions of bolts shall be deemed to include nuts and washers"]
[]
[null,null,"Descriptions of expansion anchors and bolts and chemical anchors and bolts shall be deemed to include nuts, washers and mortices in brickwork or concrete"]
[]
[null,null,"Items described as \"holed for bolt(s)\" shall be deemed to exclude the bolts, unless otherwise described"]
[]
[null,null,"Items described as \"plugged\" shall be deemed to include screwing to fibre, plastic or metal plugs at not exceeding 600mm centres"]
[]
[null,null,"Fixing:"]
[]
[null,null,"Unless otherwise described, descriptions of items shall be deemed to include for fixing to brickwork or concrete  Where items are described as \"bolted\", the bolts are measured elsewhere as stated in clause N.7 of the Model Preambles"]
[]
[null,null,"STEEL GATES, SCREENS, ETC"]
[]
[null,null,"Epoxy coated welded screens and gates, to brickwork:"]
[]
[{"v":1,"d":"1 "},null,"Steel burglar bars approximately 1450mm wide x 680mm High, including a 400mm wide overhang (B01)",null,"No",{"v":10,"d":"10 "},null,{"$f":"ROUND($F753*G753,2)","v":0}]
[]
[{"v":2,"d":"2 "},null,"Steel burglar bars approximately 1750mm wide x 680mm High, including a 400mm wide overhang (B02)",null,"No",{"v":4,"d":"4 "},null,{"$f":"ROUND($F755*G755,2)","v":0}]
[]
[null,null,"BUDGETARY ALLOWANCE"]
[]
[{"v":3,"d":"3 "},null,"Provide a budgetary allowance of Ten Thousand Rand for sundry metalwork to be used as directed by the Principal Agent and to be deducted in whole or in part if not required.",null,"Item",{"v":1,"d":"1 "},null,{"$f":"ROUND($F759*G759,2)","v":0}]
[]
[null,null,"SECTION 2"]
[]
[null,null,"BILL NO. 7"]
[]
[null,null,"TILING"]
[]
[null,null,"WORK GROUP ALLOCATION"]
[]
[null,null,"Unless otherwise stated, all items in this Bill will be allocated to Work Group 144 - Tiling"]
[]
[null,null,"PREAMBLES"]
[]
[null,null,"The General Preambles for Trades (2017 edition) as published by the Association of South African Quantity Surveyors shall be deemed to be incorporated in these bills of quantities and no claims arising from brevity of description of items fully described in the said General Preambles will be entertained"]
[]
[null,null,"The following \"Supplementary Preambles\" are incorporated in this bill to satisfy the requirements of the project and shall take precedence over the provisions of the said General Preambles"]
[]
[null,null,"SUPPLEMENTARY PREAMBLES"]
[]
[null,null,"Fixing:"]
[]
[null,null,"Unless described as \"fixed with adhesive to plaster (plaster elsewhere)\", descriptions of tiling on brick or concrete walls, columns, etc shall be deemed to include 1:4 cement plaster backing and descriptions of tiling on concrete floors, etc shall be deemed to include 1:3 cement plaster bedding"]
[]
[null,null,"Tiling described as \"fixed with adhesive on power floated concrete\" shall be deemed to include for approved tiling key-coat"]
[]
[null,null,"Ceramic, porcelain, marble and granite tiles are to be fixed and grouted with suitable adhesives and grouts from the \"Tal Goldstar\" or similar approved range of products as recommended by the manufacturer of the tiles"]
[]
[null,null,"Preparatory work to existing painted plastered surfaces:"]
[]
[null,null,"Preparation of all existing painted plastered surfaces is to include for removing all loose and flaking material by wire brushing, thoroughly washing down and allowing to dry completely and applying one coat masonry bonding agent"]
[]
[null,null,"FLOOR TILING"]
[]
[null,null,"398.5 x 398.5mm Tactile warning paving tiles fixed with adhesive to screed and flush pointing with and including waterproof grout:"]
[]
[{"v":1,"d":"1 "},null,"On floors",null,"m²",{"v":651,"d":"651 "},null,{"$f":"ROUND($F795*G795,2)","v":0}]
[]
[null,null,"SECTION 2"]
[]
[null,null,"BILL NO. 15"]
[]
[null,null,"PAINTWORK"]
[]
[null,null,"WORK GROUP ALLOCATION"]
[]
[null,null,"Unless otherwise stated, all items in this Bill will be allocated to Work Group 152 - Painting"]
[]
[null,null,"PREAMBLES"]
[]
[null,null,"The General Preambles for Trades (2017 edition) as published by the Association of South African Quantity Surveyors shall be deemed to be incorporated in these bills of quantities and no claims arising from brevity of description of items fully described in the said General Preambles will be entertained"]
[]
[null,null,"The following \"Supplementary Preambles\" are incorporated in this bill to satisfy the requirements of the project and shall take precedence over the provisions of the said General Preambles"]
[]
[null,null,"SUPPLEMENTARY PREAMBLES"]
[]
[null,null,"PREPARATORY WORK TO EXISTING WORK"]
[]
[null,null,"Previously painted plastered surfaces:"]
[]
[null,null,"Surfaces shall be thoroughly washed down and allowed to dry completely before any paint is applied. Blistered or peeling paint shall be completely removed and minor cracks shall be opened, filled with a suitable filler and finished smooth"]
[]
[null,null,"Previously painted metal surfaces:"]
[]
[null,null,"Surfaces shall be thoroughly rubbed and cleaned down.  Blistered or peeling paint shall be completely removed down to bare metal"]
[]
[null,null,"Previously painted wood surfaces:"]
[]
[null,null,"Surfaces shall be thoroughly cleaned down.  Blistered or peeling paint shall be completely removed and cracks and crevices shall be primed, filled with suitable filler and finished smooth"]
[]
[null,null,"PAINT SPECIFICATIONS"]
[]
[null,null,"All painting shall be done in accordance with \"Plascon\" or similar approved, etc specifications, unless otherwise described"]
[]
[null,null,"COLOURS"]
[]
[null,null,"When staining timber, the resultant colour or shade must be to the complete satisfaction of the Project Manager before any overcoating or preservative is applied  Paintwork is classified in the following different colour groups: \"White\", \"Pastel\", \"Deep\" and \"Transparent\" in accordance with the \"Natural Colour System\" (NCS) adopted by the SA National Standards Unless otherwise described, all paintwork shall be deemed to be classified in the \"White\" colour group"]
[]
[null,null,"ON FIBRE-CEMENT BOARD SURFACES"]
[]
[null,null,"One coat alkali resistant primer and two coats superior quality acrylic emulsion paint for interior and exterior use, on:"]
[]
[{"v":1,"d":"1 "},null,"Ceilings and cornices, including priming metal cover strips and nailheads",null,"m²",{"v":11,"d":"11 "},null,{"$f":"ROUND($F841*G841,2)","v":0}]
[]
[null,null,"METAL SURFACES WITH"]
[]
[null,null,"One coat alkyd based zinc phosphate primer and two coats premium quality polyurethane enamel paint, on steel:"]
[]
[{"v":2,"d":"2 "},null,"Windows with burglar bars",null,"m²",{"v":30,"d":"30 "},null,{"$f":"ROUND($F847*G847,2)","v":0}]
[]
[{"v":1,"d":"1 "},null,"Alterations",{"$nulls":4},{"$f":"SUM(H443:H504)","v":0}]
[]
[{"v":2,"d":"2 "},null,"Roof Coverings",{"$nulls":4},{"$f":"SUM(H519:H543)","v":0}]
[]
[{"v":3,"d":"3 "},null,"Carpentry and Joinery",{"$nulls":4},{"$f":"SUM(H549:H598)","v":0}]
[]
[{"v":4,"d":"4 "},null,"Ceilings, Partitions and Access Flooring",{"$nulls":4},{"$f":"SUM(H607:H659)","v":0}]
[]
[{"v":5,"d":"5 "},null,"Structural Steelwork",{"$nulls":4},{"$f":"SUM(H676:H715)","v":0}]
[]
[{"v":6,"d":"6 "},null,"Metalwork",{"$nulls":4},{"$f":"SUM(H739:H759)","v":0}]
[]
[{"v":7,"d":"7 "},null,"Tiling",{"$nulls":4},{"$f":"SUM(H773:H796)","v":0}]
[]
[{"v":8,"d":"8 "},null,"Paintwork",{"$nulls":4},{"$f":"SUM(H831:H847)","v":0}]
[]
[null,null,"SECTION 3"]
[]
[null,null,"BILL NO. 1"]
[]
[null,null,"EXTERNAL WORK (PROVISIONAL)"]
[]
[null,null,"(ALL TRADES)"]
[]
[null,null,"WORK GROUP ALLOCATION"]
[]
[null,null,"The items in this Bill will be allocated to Work Groups as indicated in brackets at the end of headings or descriptions"]
[]
[null,null,"PREAMBLES"]
[]
[null,null,"The Model Preambles for Trades (2008 edition) as published by the Association of South African Quantity Surveyors shall be deemed to be incorporated in these bills of quantities and no claims arising from brevity of description of items fully described in the said General Preambles will be entertained"]
[]
[null,null,"The following \"Supplementary Preambles\" are incorporated in this bill to satisfy the requirements of the project and shall take precedence over the provisions of the said General Preambles"]
[]
[null,null,"SUPPLEMENTARY PREAMBLES"]
[]
[null,null,"Nature of ground:"]
[]
[null,null,"The nature of the ground is assumed to be loose sandy material, therefore \"earth\", but possibly interspersed with \"soft rock\" or \"hard rock\""]
[]
[null,null,"The nature of the ground is assumed to be gravel, therefore \"earth\", but possibly interspersed with \"soft rock\" or \"hard rock\""]
[]
[null,null,"The nature of the ground is assumed to be silty clay with loose river boulders varying in size up to approximately 450mm diameter, all of which will be deemed as \"earth\", but possibly interspersed with \"hard rock\""]
[]
[null,null,"Trial holes indicate that the nature of the ground is silty clay to a depth of approximately 500mm with fine to medium loose sandy material below, therefore \"earth\""]
[]
[null,null,"A soils investigation has been carried out on the site by the Engineer and the report is annexed to these bills of quantities.  The soils report indicates that the ground varies between transported soils at surface comprising gravel layers of varying  thickness and interspersed with clay, and weathered shales varying from very soft rock to medium hard rock consistency, all of which will be deemed as \"earth\". All very hard unweathered shale, ironstone, etc the removal of which necessitates the use of explosives or heavy duty hydraulic percussion hammers (peckers), will be classified as \"hard rock\""]
[]
[null,null,"Should the Contractor encounter any \"soft\" or \"hard\" rock in the excavations, he shall immediately notify the Engineer who shall be the sole arbiter as to what constitutes \"soft\" or \"hard\" rock for final account purposes"]
[]
[null,null,"Subterranean water:"]
[]
[null,null,"No subterranean water is expected"]
[]
[null,null,"Excavation for working space in rock:"]
[]
[null,null,"Notwithstanding clause 11 of the Standard System of Measuring Building Work, excavation for working space in rock will be measured in cubic metres to the extent executed and given as \"extra over\" bulk excavation or trench and hole excavation as the case may be"]
[]
[null,null,"Carting away of excavated material:"]
[]
[null,null,"Descriptions of carting away of excavated material shall be deemed to include loading excavated material onto trucks directly from the excavations or, alternatively, from stock piles situated on the building site"]
[]
[null,null,"Filling:"]
[]
[null,null,"Notwithstanding the reference to prescribed multiple handling in Clause 1 of the Standard System of Measuring Building Work, prices for filling and backfilling shall include for all selection and any necessary multiple handling of material"]
[]
[null,null,"Testing:"]
[]
[null,null,"Prices for backfilling to trenches and holes only are to include for all necessary density tests in accordance with SANS 1200D"]
[]
[null,null,"Maintenance period:"]
[]
[null,null,"The maintenance period to civil works such as roads, parking and related earthworks shall be twelve calender months"]
[]
[null,null,"ROADS, PAVINGS, ETC."]
[]
[null,null,"Site clearance"]
[]
[{"v":1,"d":"1 "},null,"Digging up and removing rubbish, debris, vegetation, hedges, shrubs and trees not exceeding 200mm girth, bush, etc.",null,"m²",{"v":180,"d":"180 "},null,{"$f":"ROUND($F927*G927,2)","v":0}]
[]
[null,null,"Excavation not exceeding 2m deep"]
[]
[{"v":2,"d":"2 "},null,"Over site between buildings, retaining walls, etc. to reduce levels and depositing excavated material in prescribed stock piles on site",null,"m³",{"v":59,"d":"59 "},null,{"$f":"ROUND($F931*G931,2)","v":0}]
[]
[null,null,"Extra over bulk excavation in earth for excavation in"]
[]
[{"v":3,"d":"3 "},null,"Soft rock",null,"m³",{"v":5,"d":"5 "},null,{"$f":"ROUND($F935*G935,2)","v":0}]
[]
[{"v":4,"d":"4 "},null,"Hard rock",null,"m³",{"v":3,"d":"3 "},null,{"$f":"ROUND($F937*G937,2)","v":0}]
[]
[null,null,"Extra over bulk excavation in earth for breaking up and removing"]
[]
[{"v":5,"d":"5 "},null,"30mm Asphalt",null,"m³",{"v":5,"d":"5 "},null,{"$f":"ROUND($F941*G941,2)","v":0}]
[]
[null,null,"Extra over all excavations for carting away"]
[]
[{"v":6,"d":"6 "},null,"Surplus material from stock piles on site to a dumping site to be located by the contractor",null,"m³",{"v":59,"d":"59 "},null,{"$f":"ROUND($F945*G945,2)","v":0}]
[]
[null,null,"Keeping excavations free of water"]
[]
[{"v":7,"d":"7 "},null,"Keeping excavations free of all water other than subterranean water",null,"Item",{"v":1,"d":"1 "},null,{"$f":"ROUND($F949*G949,2)","v":0}]
[]
[null,null,"Earth filling supplied by the contractor under pavings etc"]
[]
[{"v":8,"d":"8 "},null,"Over site of G7 material in accordance with SABS 1200 DM compacted to 93% Mod AASHTO density",null,"m³",{"v":27,"d":"27 "},null,{"$f":"ROUND($F953*G953,2)","v":0}]
[]
[{"v":9,"d":"9 "},null,"Over site of G5 material in accordance with SABS 1200 DM compacted to 95% Mod AASHTO density",null,"m³",{"v":27,"d":"27 "},null,{"$f":"ROUND($F955*G955,2)","v":0}]
[]
[null,null,"Compaction of surfaces"]
[]
[{"v":10,"d":"10 "},null,"Compaction of ground surface under roads, pavings, etc. including scarifying for a depth of ?mm, breaking down oversize material, adding suitable material where necessary and compacting to 95% Mod AASHTO density",null,"m²",{"v":180,"d":"180 "},null,{"$f":"ROUND($F959*G959,2)","v":0}]
[]
[null,null,"Prescribed density tests on filling"]
[]
[{"v":11,"d":"11 "},null,"In-situ dry density (sand replacement) test in accordance with method A10 (a) of TMH 1",null,"No",{"v":8,"d":"8 "},null,{"$f":"ROUND($F963*G963,2)","v":0}]
[]
[{"v":12,"d":"12 "},null,"Maximum dry density and optimum moisture content test in accordance with method A7 of TMH 1",null,"No",{"v":8,"d":"8 "},null,{"$f":"ROUND($F965*G965,2)","v":0}]
[]
[null,null,"Bituminous premix road surfacing:"]
[]
[{"v":13,"d":"13 "},null,"35mm Thick paving to parking areas, roadways, etc. including bitumen spray to base course",null,"m²",{"v":180,"d":"180 "},null,{"$f":"ROUND($F969*G969,2)","v":0}]
[]
[null,null,"Bituminous surface treatment with aggregate and slurry seal 13.2mm  aggregate"]
[]
[{"v":14,"d":"14 "},null,"Bitumen rubber binder in the tack coat and 60%net bitumen emulsion in the penetration spray",null,"m²",{"v":180,"d":"180 "},null,{"$f":"ROUND($F973*G973,2)","v":0}]
[]
[null,null,"Variations in quantities of prime and bituminous binders"]
[]
[{"v":15,"d":"15 "},null,"RTH 3/12P or RTL 3/12P tar prime",null,"LITRE",{"v":147,"d":"147 "},null,{"$f":"ROUND($F977*G977,2)","v":0}]
[]
[null,null,"Paintwork:"]
[]
[null,null,"Prepare and apply one coat white reflective road marking paint on bituminous road surfacing, precast concrete paving blocks, etc:"]
[]
[{"v":16,"d":"16 "},null,"100mm Wide line",null,"m",{"v":527,"d":"527 "},null,{"$f":"ROUND($F983*G983,2)","v":0}]
[]
[null,null,"FENCING  (WORK GROUP 136)"]
[]
[null,null,"\"Clearvu\" or similar approved galvanised steel security fence with posts at 3382mm centres, erected complete including concrete bases, stays, rails, verticals, galvanised steel bolts, straining eye bolts, single overhang with 3 strands of barbed wire, etc. and finished with epoxy coating and including site clearance, preparation of ground, etc:"]
[]
[{"v":17,"d":"17 "},null,"Security fence 3000mm high",null,"m",{"v":20,"d":"20 "},null,{"$f":"ROUND($F989*G989,2)","v":0}]
[]
[null,null,"Boundary Wall"]
[]
[{"v":18,"d":"18 "},null,"Construction of double brickwall, 3000mm high including reinforced concrete strip foundations, 700mm wide x 250mm thick 25 MPa concrete footing",null,"m",{"v":400,"d":"400 "},null,{"$f":"ROUND($F993*G993,2)","v":0}]
[]
[null,null,"Barbed wire fencing including two coats aluminium paint on metal stays, framing, etc"]
[]
[{"v":19,"d":"19 "},null,"Galvanised barbed wire installed complete",null,"m",{"v":540,"d":"540 "},null,{"$f":"ROUND($F997*G997,2)","v":0}]
[]
[null,null,"BUDGETARY ALLOWANCE"]
[]
[{"v":20,"d":"20 "},null,"Provide a budgetary allowance of Twenty Five Thousand Rand for the refurbishment of the existing retaining wall to be used as directed by the Principal Agent and to be deducted in whole or in part if not required.",null,"Item",{"v":1,"d":"1 "},null,{"$f":"ROUND($F1001*G1001,2)","v":0}]
[]
[null,null,"SECTION 3"]
[]
[null,null,"BILL NO. 2"]
[]
[null,null,"SITE SERVICES (PROVISIONAL)"]
[]
[null,null,"WORK GROUP ALLOCATION"]
[]
[null,null,"The items in this Bill will be allocated to Work Groups as indicated in brackets at the end of headings or descriptions"]
[]
[null,null,"PREAMBLES"]
[]
[null,null,"The Model Preambles for Trades (2008 edition) as published by the Association of South African Quantity Surveyors shall be deemed to be incorporated in these bills of quantities and no claims arising from brevity of description of items fully described in the said General Preambles will be entertained"]
[]
[null,null,"The following \"Supplementary Preambles\" are incorporated in this bill to satisfy the requirements of the project and shall take precedence over the provisions of the said General Preambles"]
[]
[null,null,"SUPPLEMENTARY PREAMBLES"]
[]
[null,null,"Stormwater channels:"]
[]
[null,null,"Descriptions of channels shall be deemed to include necessary excavation, surface preparation, compaction, etc and disposal of surplus material on site"]
[]
[null,null,"French drains:"]
[]
[null,null,"Descriptions of french drains shall be deemed to include excavation, stone filling graded from 300mm diameter at bottom to 75mm diameter at top, approved geofabric filter blanket over stone, 300mm earthfilling over and disposal of surplus material on site"]
[]
[null,null,"Septic tanks:"]
[]
[null,null,"Descriptions of proprietary type septic tanks shall be deemed to include excavation, bedding and jointing, concrete base slabs, jointing to drains and backfilling, compaction, etc all in accordance with the manufacturer's instructions and disposal of surplus material on site"]
[]
[null,null,"uPVC pipes and fittings:"]
[]
[null,null,"Sewer and drainage pipes and fittings shall be jointed and sealed with butyl rubber rings  Soil, waste and vent pipes and fittings shall be solvent weld jointed or sealed with butyl rubber rings"]
[]
[null,null,"uPVC pressure pipes and fittings:"]
[]
[null,null,"Pipes of 50mm diameter and smaller shall be plain ended with solvent welded uPVC loose sockets and fittings  Pipes of 63mm diameter and greater shall have sockets and spigots with push-in type integral rubber ring joints.  Bends shall be uPVC and all other fittings shall be cast iron, all with similar push-in type joints"]
[]
[null,null,"High density polyethylene (HDPe) pipes and fittings:"]
[]
[null,null,"Pipes shall be type IV and of the class specified with \"Plasson\" or \"Alprene\" or similar approved compression fittings"]
[]
[null,null,"Polycop polypropylene pipes:"]
[]
[null,null,"Polypropylene pipes 54mm diameter and smaller shall be seamless copper coloured Class 16 pipes jointed with \"Fast-fuse\" heat welded thermoplastic or where so described \"Polylock\" or similar approved compression fittings  Pipes shall be firmly fixed to walls, etc with coloured nylon snap-in pipe clips with provision for accommodating thermal movement and jointed and fixed strictly in accordance with the manufacturer's instructions"]
[]
[null,null,"Copper pipes:"]
[]
[null,null,"Pipes shall be hard drawn and half-hard \"Maksal\" or similar approved pipes of the class described.  Class 0 (thin walled hard drawn) pipes shall not be bent.  Class 1 (thin walled half-hard), Class 2 (half-hard) and Class 3 (heavy walled half-hard) pipes shall only be bent with benders with inner and outer formers.  Fittings to copper waste, vent and anti-syphon pipes, capillary solder fittings and compression fittings shall be \"Cobra Watertech\" or similar approved type.  Capillary solder fittings shall comply with ISO 2016"]
[]
[null,null,"Copper pipes are to be installed in accordance with the latest revision of the Code of Practice for Copper Plumbing soldering techniques.  Flux, solder, etc to be strictly in accordance with the manufacturer's requirements with special attention to copper flux composition"]
[]
[null,null,"Reducing fittings:"]
[]
[null,null,"Where fittings have reducing ends or branches they are described as \"reducing\". In the case of pipes with diameters not exceeding 60mm, only the largest end or branch size is given. Should the Contractor wish to use other fittings and bushes or reducers he may do so on the understanding that no claim in this regard will be entertained. In the case of pipes with diameters exceeding 60mm, all sizes are given and no claim for extra bushes, reducers, etc will be entertained"]
[]
[null,null,"Disinfection of water pipework:"]
[]
[null,null,"Water pipework is to be disinfected at completion in accordance with SABS 1200L (provision for disinfection elsewhere)"]
[]
[null,null,"\"Densyl\" or similar approved petrolatum anti-corrosion tape"]
[]
[null,null,"Pipes to be taped shall be coated with the appropriate primer and the tape shall be applied in the appropriate widths and with suitable overlaps  Couplings and fittings to pipes shall be taped in strict accordance with the manufacturer's instructions including mastic, tape, \"Layflat\" or similar approved sheeting, securing of same, etc"]
[]
[null,null,"Prices for wrapping of pipes shall include for all work as described to couplings in the length"]
[]
[null,null,"Laying, backfilling, bedding, etc of pipes:"]
[]
[null,null,"Pipes shall be laid and bedded in accordance with manufacturers' instructions and trenches shall be carefully backfilled"]
[]
[null,null,"Where no manufacturers' instructions exist, pipes shall be laid in accordance with Clauses 5.1 and 5.2 of each of the following: SABS 1200L\t: Medium-pressure pipelines SABS 1200LD\t: Sewers SABS 1200LE\t: Stormwater drainage Pipe trenches, etc shall be backfilled in accordance with Clauses 3, 5.5, 5.6, 5.7 and 7 of SABS 1200DB : Earthworks (Pipe trenches)Pipes shall be bedded in accordance with Clauses 3.1 to 3.4.1, 5.1 to 5.3 and 7 of SABS 1200LB : Bedding (Pipes)Unless otherwise described, bedding of rigid pipes shall be Class B bedding"]
[]
[null,null,"General:"]
[]
[null,null,"Descriptions of pipes laid in and including trenches and of inspection chambers, catchpits, etc shall be deemed to include excavation, bedding, backfilling, compaction to a minimum of 98% Mod AASHTO density and disposal of surplus material on site"]
[]
[null,null,"Descriptions of service pipes and flexible connecting pipes shall be deemed to include connections to taps, cisterns, etc and to steel pipes (adaptors for connections to copper pipes, etc are given separately)"]
[]
[null,null,"As-built drawings:"]
[]
[null,null,"Where required, the Contractor shall prepare an updated set of as-built drawings.  At completion of the contract the Contractor shall hand these drawings to the Project Manager for reproducing onto the originals for handing over to the Employer (provision for allowance of as-built drawings elsewhere)"]
[]
[null,null,"SOIL DRAINAGE (WORK GROUP 146)"]
[]
[null,null,"STORMWATER DRAINAGE (WORK GROUP 146)"]
[]
[{"v":1,"d":"1 "},null,"Excavation in earth not exceeding 1m deep for pipe trenches",null,"m³",{"v":68,"d":"68 "},null,{"$f":"ROUND($F1089*G1089,2)","v":0}]
[]
[{"v":2,"d":"2 "},null,"Excavation in earth exceeding 1m and not exceeding 2m deep for pipe trenches",null,"m³",{"v":68,"d":"68 "},null,{"$f":"ROUND($F1091*G1091,2)","v":0}]
[]
[{"v":3,"d":"3 "},null,"Backfilling to pipe trenches compacted to 95% Mod AASHTO density",null,"m³",{"v":14,"d":"14 "},null,{"$f":"ROUND($F1093*G1093,2)","v":0}]
[]
[{"v":4,"d":"4 "},null,"Selected granular filling in bedding under and filling around pipes",null,"m³",{"v":62,"d":"62 "},null,{"$f":"ROUND($F1095*G1095,2)","v":0}]
[]
[null,null,"Class 100D concrete pipes with interlocking joints:"]
[]
[{"v":5,"d":"5 "},null,"450mm Pipes laid in trenches (trenches elsewhere)",null,"m",{"v":180,"d":"180 "},null,{"$f":"ROUND($F1099*G1099,2)","v":0}]
[]
[null,null,"Sumps, catchpits, inspection chambers, etc including concrete kerbs or precast concrete cover slabs (gratings and covers elsewhere):"]
[]
[{"v":6,"d":"6 "},null,"1000mm Diameter precast concrete circular inspection chamber 1,3m deep internally",null,"No",{"v":4,"d":"4 "},null,{"$f":"ROUND($F1103*G1103,2)","v":0}]
[]
[{"v":7,"d":"7 "},null,"1000mm Diameter precast concrete circular inspection chamber 1,45m deep internally",null,"No",{"v":4,"d":"4 "},null,{"$f":"ROUND($F1105*G1105,2)","v":0}]
[]
[{"v":8,"d":"8 "},null,"1000mm Diameter precast concrete circular inspection chamber 1,6m deep internally",null,"No",{"v":4,"d":"4 "},null,{"$f":"ROUND($F1107*G1107,2)","v":0}]
[]
[null,null,"Cast iron gratings, covers, etc:"]
[]
[{"v":9,"d":"9 "},null,"1000mm Diameter manhole cover and frame",null,"No",{"v":12,"d":"12 "},null,{"$f":"ROUND($F1111*G1111,2)","v":0}]
[]
[{"v":10,"d":"10 "},null,"30mm Diameter galvanised steel rod step iron 500mm long, built in across corner of chamber",null,"No",{"v":48,"d":"48 "},null,{"$f":"ROUND($F1113*G1113,2)","v":0}]
[]
[{"v":11,"d":"11 "},null,"Lifting-key for manhole cover (handed to Employer)",null,"No",{"v":12,"d":"12 "},null,{"$f":"ROUND($F1115*G1115,2)","v":0}]
[]
[null,null,"Encasing pipes in concrete:"]
[]
[{"v":12,"d":"12 "},null,"Unreinforced concrete encasing 150mm thick all round 450mm horizontal pipe",null,"m",{"v":180,"d":"180 "},null,{"$f":"ROUND($F1119*G1119,2)","v":0}]
[]
[null,null,"Alterations, pipe connections, etc:"]
[]
[{"v":13,"d":"13 "},null,"Connection to existing 450mm concrete stormwater pipe for and forming junction with new manhole (elsewhere measured)",null,"No",{"v":2,"d":"2 "},null,{"$f":"ROUND($F1123*G1123,2)","v":0}]
[]
[{"v":14,"d":"14 "},null,"Connection to existing 450mm concrete stormwater pipe for and forming junction with new pipe including connection, fittings, couplings, etc.",null,"No",{"v":2,"d":"2 "},null,{"$f":"ROUND($F1125*G1125,2)","v":0}]
[]
[null,null,"TESTING:"]
[]
[{"v":15,"d":"15 "},null,"Testing stormwater drainage system",null,"Item",{"v":1,"d":"1 "},null,{"$f":"ROUND($F1129*G1129,2)","v":0}]
[]
[null,null,"AS-BUILT DRAWINGS"]
[]
[{"v":16,"d":"16 "},null,"Provision of as-built drawings",null,"Item",{"v":1,"d":"1 "},null,{"$f":"ROUND($F1133*G1133,2)","v":0}]
[]
[null,null,"BUDGETARY ALLOWANCE"]
[]
[{"v":17,"d":"17 "},null,"Provide a budgetary allowance of Fifty Thousand Rand for sundry stormwater items to be used as directed by the Principal Agent and to be deducted in whole or in part if not required.",null,"Item",{"v":1,"d":"1 "},null,{"$f":"ROUND($F1137*G1137,2)","v":0}]
[]
[{"v":1,"d":"1 "},null,"External Works (Provisional)",{"$nulls":4},{"$f":"SUM(H891:H1002)","v":0}]
[]
[{"v":2,"d":"2 "},null,"Site Services (Provisional)",{"$nulls":4},{"$f":"SUM(H1076:H1137)","v":0}]
[]
[null,null,"SECTION NO. 4"]
[]
[null,null,"BILL NO. 1"]
[]
[null,null,"ELECTRICAL INSTALLATION"]
[]
[null,null,"LOW VOLTAGE"]
[]
[null,null,"DISCONNECTION/ REMOVAL OF REDUNDANT ELECTRICAL EQUIPMENT"]
[]
[null,null,"CABLES AND CONDUCTORS"]
[]
[null,null,"Supply, deliver to site cables and conductors as specified. Install, rack, strap and testing of cables as per specification including clamps, ties and cable numbering system"]
[]
[{"v":1,"d":"1 "},null,"2,5mm conductors (mixed colours - live, neutral and earth)",null,"m",{"v":300,"d":"300 "},null,{"$f":"ROUND($F1157*G1157,2)","v":0}]
[]
[null,null,"LUMINARIES AND CONTROL DEVICES"]
[]
[null,null,"Supply, deliver, accept and store the following luminaries, complete with lamps and control gear as per specification. See and refer to the specification document for details of each luminary."]
[]
[{"v":2,"d":"2 "},null,"Type R1 - 53W/+5300lm LED panel recessed mounted 1200mm x 600mm luminaire complete with diffuser and 3m cabtyre and 5A plug top/3pin plug and unplugged socket",null,"No",{"v":10,"d":"10 "},null,{"$f":"ROUND($F1163*G1163,2)","v":0}]
[]
[null,null,"SECTION 5"]
[]
[null,null,"BILL NO. 1"]
[]
[null,null,"HVAC INSTALLATIONS"]
[]
[null,null,"Design, manufacture, works testing, supply and deliver to site, moving into position, Installion, connecting up, site testing, witness testing, providing to insurance inspectors, demonstrating to the Employer, commissioning and maintenance of the complete mechanical systems and equipment as shown on the drawings."]
[]
[null,null,"Supply, deliver and install the following HVAC units as per specification:"]
[]
[{"v":1,"d":"1 "},null,"5kW cooling midwall split indoor unit",null,"No",{"v":2,"d":"2 "},null,{"$f":"ROUND($F1175*G1175,2)","v":0}]
[]
[{"v":2,"d":"2 "},null,"5kW inverter type outdoor condensing unit",null,"No",{"v":2,"d":"2 "},null,{"$f":"ROUND($F1177*G1177,2)","v":0}]
[]
[{"v":3,"d":"3 "},null,"Refrigeration copper piping with thermal insulation and all associated fittings",null,"m",{"v":20,"d":"20 "},null,{"$f":"ROUND($F1179*G1179,2)","v":0}]
[]
[{"v":4,"d":"4 "},null,"PVC condensate drain piping with insulation",null,"m",{"v":15,"d":"15 "},null,{"$f":"ROUND($F1181*G1181,2)","v":0}]
[]
[{"v":5,"d":"5 "},null,"Wired controller",null,"No",{"v":2,"d":"2 "},null,{"$f":"ROUND($F1183*G1183,2)","v":0}]
[]
[{"v":6,"d":"6 "},null,"Fabricate, supply, and install lockable security cages around each outdoor condensing unit",null,"No",{"v":2,"d":"2 "},null,{"$f":"ROUND($F1185*G1185,2)","v":0}]
[]
[{"v":7,"d":"7 "},null,"Application of approved coastal treatment for the outdoor condensing units",null,"No",{"v":2,"d":"2 "},null,{"$f":"ROUND($F1187*G1187,2)","v":0}]
[]
[null,null,"SECTION NO. 5"]
[]
[null,null,"BILL NO. 2"]
[]
[null,null,"FIRE PROTECTION"]
[]
[null,null,"Supply, deliver and install all Fire appliances and  piping with complete with all auxiliary fittings :."]
[]
[{"v":1,"d":"1 "},null,"Troubleshoot, find faults, repair/replace defective components, and restore the fire alarm and detection system so the installation complies with requirements of sans 10139",null,"Item",{"v":1,"d":"1 "},null,{"$f":"ROUND($F1197*G1197,2)","v":0}]
[]
[{"v":1,"d":"1 "},null,"HVAC Installations",{"$nulls":4},{"$f":"SUM(H1171:H1188)","v":0}]
[]
[{"v":2,"d":"2 "},null,"Fire Protection",{"$nulls":4},{"$f":"SUM(H1193:H1197)","v":0}]
[]
[null,null,"SECTION 6"]
[]
[null,null,"BILL NO. 1"]
[]
[null,null,"PROVISIONAL AMOUNTS"]
[]
[null,null,"PREAMBLES"]
[]
[null,null,"The Model Preambles for Trades (2008 edition) as published by the Association of South African Quantity Surveyors shall be deemed to be incorporated in these bills of quantities and no claims arising from brevity of description of items fully described in the said Model Preambles will be entertained"]
[]
[null,null,"The following \"Supplementary Preambles\" are incorporated in this bill to satisfy the requirements of the project and shall take precedence over the provisions of the said Model Preambles"]
[]
[null,null,"SUPPLEMENTARY PREAMBLES"]
[]
[null,null,"General:"]
[]
[null,null,"Subcontract amounts are net.  Subcontract amounts are for material and equipment supplied and installed complete by firms of specialists"]
[]
[null,null,"Each subcontract amount may comprise more than one element of work.  Therefore, each subcontract amount may include for work to be carried out by more than one subcontractor"]
[]
[null,null,"Profit:"]
[]
[null,null,"Where stated, the contractor may allow for profit if required"]
[]
[null,null,"General attendance on nominated/selected subcontractors:"]
[]
[null,null,"The item \"General Attendance\" which follows each subcontract amount for nominated/selected subcontractors' work, shall be deemed to cover all the contractor's costs incurred in providing free of charge to the nominated/selected subcontractors, the following:"]
[]
[null,null,"1.  Access to the site and places where the subcontract work is to be carried out, including the reasonable use of any temporary personnel hoists erected by the contractor"]
[]
[null,null,"2.  The provision of water and lighting and of single phase electric power to a position within 50 metres of the place where the subcontract work is to be carried out but excluding water, fuel and power for commissioning of any installation"]
[]
[null,null,"3.  The provision of an area for the subcontractor to establish temporary office accommodation and workshops and for the storage of plant and materials"]
[]
[null,null,"4.  The use of erected scaffolding belonging to the contractor, in common with others having the like right, while it remains erected on the site"]
[]
[null,null,"5.  The use, at reasonable times by arrangement of the contractor's erected hoisting equipment"]
[]
[null,null,"6.  Making good in all trades and cleaning down and removal of rubbish on completion"]
[]
[null,null,"Special attendance on nominated/selected subcontractors:"]
[]
[null,null,"Where stated, special attendance as set out in clause 8.1 of section B of the Preliminaries will be described in detail in this bill"]
[]
[null,null,"Builder's work:"]
[]
[null,null,"Builder's work in connection with specialist services is given elsewhere in these bills of quantities"]
[]
[null,null,"GENERATOR"]
[]
[{"v":1,"d":"1 "},null,"Sub-contract amount of Eighty Thousand Rand to service and maintain a 60kVA generator set. Amount to be paid at discretion of Principal Agent and the Employer upon receiving a quotation from qualified specialist",null,"Item",{"v":1,"d":"1 "},null,{"$f":"ROUND($F1253*G1253,2)","v":0}]
[]
[{"v":2,"d":"2 "},null,"Profit",null,"%",{"v":0,"d":"0%"},null,{"$f":"ROUND($F1255*G1255,2)","v":0}]
[]
[{"v":3,"d":"3 "},null,"General attendance",null,"%",{"v":0,"d":"0%"},null,{"$f":"ROUND($F1257*G1257,2)","v":0}]
[]
[null,null,"ACCESS CONTROL AND ALARM SYSTEM"]
[]
[{"v":4,"d":"4 "},null,"Subcontract amount of Five Hundred Thousand Rand for services and maintenance of access control and alarm system. Amount to be paid at discretion of Principal Agent and the Employer upon receiving a quotation from qualified specialist",null,"Item",{"v":1,"d":"1 "},null,{"$f":"ROUND($F1261*G1261,2)","v":0}]
[]
[{"v":5,"d":"5 "},null,"Profit",null,"%",{"v":0,"d":"0%"},null,{"$f":"ROUND($F1263*G1263,2)","v":0}]
[]
[{"v":6,"d":"6 "},null,"General attendance",null,"%",{"v":0,"d":"0%"},null,{"$f":"ROUND($F1265*G1265,2)","v":0}]
[]
[null,null,"SERVICING OF LIFT CARS"]
[]
[{"v":7,"d":"7 "},null,"Subcontract amount of One Million Two Hundred Thousand Rand to service and restore three (3) passenger lift cars to their original operating condition and comply with statutory requirements to be spent as the Principal Agent may direct and to be deducted in whole or in part if not required",null,"Item",{"v":1,"d":"1 "},null,{"$f":"ROUND($F1269*G1269,2)","v":0}]
[]
[{"v":8,"d":"8 "},null,"Profit",null,"%",{"v":0,"d":"0%"},null,{"$f":"ROUND($F1271*G1271,2)","v":0}]
[]
[{"v":9,"d":"9 "},null,"General attendance",null,"%",{"v":0,"d":"0%"},null,{"$f":"ROUND($F1273*G1273,2)","v":0}]
[]
[null,null,"PROTECTION SERVICES"]
[]
[{"v":10,"d":"10 "},null,"Sub-contract amount of Four Hundred Thousand Rand for the provision of protection services as directed by the Principal Agent to be deducted in whole or in part as necessary",null,"Item",{"v":1,"d":"1 "},null,{"$f":"ROUND($F1277*G1277,2)","v":0}]
[]
[{"v":11,"d":"11 "},null,"Profit",null,"%",{"v":0,"d":"0%"},null,{"$f":"ROUND($F1279*G1279,2)","v":0}]
[]
[{"v":12,"d":"12 "},null,"General attendance",null,"%",{"v":0,"d":"0%"},null,{"$f":"ROUND($F1281*G1281,2)","v":0}]
[]
[null,null,"STATION SIGNAGE"]
[]
[{"v":13,"d":"13 "},null,"Subcontract amount of One Hundred and Fifty Thousand Rand for the provision and installation of station signage as directed by the Principal Agent to be deducted in whole or in part as necessary",null,"Item",{"v":1,"d":"1 "},null,{"$f":"ROUND($F1285*G1285,2)","v":0}]
[]
[{"v":14,"d":"14 "},null,"Profit",null,"%",{"v":0,"d":"0%"},null,{"$f":"ROUND($F1287*G1287,2)","v":0}]
[]
[{"v":15,"d":"15 "},null,"General attendance",null,"%",{"v":0,"d":"0%"},null,{"$f":"ROUND($F1289*G1289,2)","v":0}]
[]
[null,null,"CLADDING"]
[]
[{"v":16,"d":"16 "},null,"Subcontract amount of Ninety Three Thousand Seven Hundred and Fifty Rand for the provision and installation of cladding to boundary fence as directed by the Principal Agent to be deducted in whole or in part as necessary",null,"Item",{"v":1,"d":"1 "},null,{"$f":"ROUND($F1293*G1293,2)","v":0}]
[]
[{"v":17,"d":"17 "},null,"Profit",null,"%",{"v":0,"d":"0%"},null,{"$f":"ROUND($F1295*G1295,2)","v":0}]
[]
[{"v":18,"d":"18 "},null,"General attendance",null,"%",{"v":0,"d":"0%"},null,{"$f":"ROUND($F1297*G1297,2)","v":0}]
[]
[null,null,"COMMUNITY LIAISON OFFICER"]
[]
[{"v":19,"d":"19 "},null,"Subcontract amount of one Ninety Thousand Rand for Community Liaison Officer for a period of six (6) months",null,"Item",{"v":1,"d":"1 "},null,{"$f":"ROUND($F1301*G1301,2)","v":0}]
[]
[{"v":20,"d":"20 "},null,"Profit",null,"%",{"v":0,"d":"0%"},null,{"$f":"ROUND($F1303*G1303,2)","v":0}]
[]
[{"v":21,"d":"21 "},null,"General attendance",null,"%",{"v":0,"d":"0%"},null,{"$f":"ROUND($F1305*G1305,2)","v":0}]
[]
[null,null,"SUMMARY"]
[]
[{"v":1,"d":"1 "},null,"Preliminaries and General",{"$nulls":4},{"$f":"SUM(H4:H413)","v":0}]
[]
[{"v":2,"d":"2 "},null,"Building Works",{"$nulls":4},{"$f":"SUM(H849:H863)","v":0}]
[]
[{"v":3,"d":"3 "},null,"External Works",{"$nulls":4},{"$f":"SUM(H1139:H1142)","v":0}]
[]
[{"v":4,"d":"4 "},null,"Electrical Installations",{"$nulls":4},{"$f":"SUM(H1154:H1164)","v":0}]
[]
[{"v":5,"d":"5 "},null,"Mechanical Installations",{"$nulls":4},{"$f":"SUM(H1199:H1202)","v":0}]
[]
[{"v":6,"d":"6 "},null,"Provisional Sums",{"$nulls":4},{"$f":"SUM(H1229:H1305)","v":0}]
[]
[null,null,"SUB TOTAL (EXCLUDING CONTINGENCIES)",{"$nulls":4},{"$f":"SUM(H1309:H1320)","v":0}]
[]
[null,null,"CONTRACT CONTINGENCIES"]
[]
[null,null,"Allow the sum of 10% for Contingencies to be spent as the Principal Agent may direct and to be deducted in whole or in part if not required",{"$nulls":4},{"$f":"SUM(H1321)*0.1","v":0}]
[]
[null,null,"SUBTOTAL (INCLUDING CONTINGENCIES)",{"$nulls":4},{"$f":"SUM(H1321:H1325)","v":0}]
[]
[null,null,"VALUE ADDED TAX"]
[{"$nulls":7},{"$f":"H1327*0.15","v":0}]
[null,null,"Value Added Tax "]
[]
[null,null,"Carried to Form of Tender",{"$nulls":4},{"$f":"SUM(H1327:H1332)","v":0}]

{"sheet":"UMBONGINTWINI STATION","index":2,"n_rows":2151,"n_cols":8,"rows_kept":2151}
["ITEM NO",null,"DESCRIPTION",null,"UNIT","QUANTITY","RATE","AMOUNT"]
[]
[null,null,"SECTION NO. 1"]
[]
[null,null,"BILL NO. 1"]
[]
[null,null,"PRELIMINARIES AND GENERAL"]
[]
[null,null,"BUILDING AGREEMENT AND PRELIMINARIES"]
[]
[null,null,"The  JBCC Principal Building Agreement (May 2018 Edition 6.2) prepared by the Joint Building Contracts Committee shall be the applicable building agreement, amended as hereinafter described"]
[]
[null,null,"The JBCC Principal Building Agreement contract data form an integral part of this agreement"]
[]
[null,null,"The Preliminaries revision 1 (February 2016) published by the Association of South African Quantity Surveyors for use with the JBCC Principal Building Agreement Edition 6.2 shall be deemed to be incorporated in these bills of quantities, amended as hereinafter described"]
[]
[null,null,"The contractor is deemed to have referred to the abovementioned documents for the full intent and meaning of each clause"]
[]
[null,null,"The clauses in the abovementioned documents are hereinafter referred to by clause number and heading only"]
[]
[null,null,"Where any item is not relevant to this agreement such item is marked N/A signifying \"not applicable\""]
[]
[null,null,"PREAMBLES FOR TRADES"]
[]
[null,null,"The Model Preambles for Trades 2008 published by the Association of South African Quantity Surveyors is designed to support and extend the abbreviated descriptions utilised in these bills of quantities by inter alia referring to SANS construction standards."]
[]
[null,null,"Note that the text of the Standard System of Measuring Building Work (seventh edition) and that of the Standard Method of Measuring Building Work for Africa 2015 (first edition) is the same"]
[]
[null,null,"The Model Preambles for Trades 2008 as published by the Association of South African Quantity Surveyors shall be deemed to be incorporated in these bills of quantities and no claims arising from brevity of description of items fully described in the said Model Preambles will be entertained"]
[]
[null,null,"Supplementary preambles and/or specifications are incorporated in these bills of quantities to satisfy the requirements of this project. Such supplementary preambles and/or specifications shall take precedence over the provisions of the Model Preambles"]
[]
[null,null,"The contractor's prices for all items throughout these bills of quantities shall take account of and include for all of the obligations, requirements and specifications given in the Model Preambles and in any supplementary preambles and/or specifications"]
[]
[null,null,"NOTES TO TENDERERS"]
[]
[null,null,"Tenderers are to inspect the drawings issued with these Bills of Quantities and to satisfy themselves with the nature and the requirements of the Contract works. Failure to do so will be the complete responsibility of the Tenderer and no claims whatsoever will be entertained in this regard."]
[]
[null,null,"Tenderers are to read the descriptions, which are intended as a means of identifying various facets of the work, in conjunction with the drawings. Tenderers shall allow for all costs in connection with the various items taking full cognisance of both the drawings and the Bills of Quantities."]
[]
[null,null,"Tenderers shall notify the Quantity Surveyor in writing of any discrepancies encountered upon which clarification will be given by the Quantity Surveyor in writing to the Tenderer. Failure to do so will be the complete responsibility of the Tenderer and no claims whatsoever will be entertained in this regard"]
[]
[null,null,"Tenderers are to note that setting out of the works will be the complete responsibility of the Tenderer and they should therefore acquaint themselves with the site boundaries, site co-ordinates, datum levels etc. Failure to do so will be the complete responsibility of the Tenderer and no claims whatsoever will be entertained in this regard.  Tenderers are to note that all items with ZERO quantities are Rate Only items and should be priced as such."]
[]
[null,null,"Tenderers are to note that there might be specified suppliers to be used for certain trades as per the annexure to this tender document. Tenderers should familiarise themselves with the suppliers on the list and ensure to allow for accordingly. Failure to do so will be the complete responsibility of the Tenderer and no claims whatsoever will be entertained in this regard."]
[]
[null,null,"Tenderers are to fully acquaint themselves with the construction period and shall allow for any night shift if required. Failure to do so will be the complete responsibility of the Tenderer and no claims whatsoever will be entertained in this regard."]
[]
[null,null,"STRUCTURE OF THIS PRELIMINARIES BILL"]
[]
[null,null,"Section A : A recital of the headings of the individual clauses of the aforementioned JBCC Principal Building Agreement"]
[]
[null,null,"Section B : A recital of the headings of the individual clauses of the aforementioned Preliminaries document"]
[]
[null,null,"Section C : Any special clauses to meet the particular circumstances of the project"]
[]
[null,null,"PRICING OF PRELIMINARIES"]
[]
[null,null,"Should the contractor select Option A in the contract data for the adjustment of preliminaries, the amounts entered against the relevant items in these preliminaries are to be divided into one or more of the three categories provided namely fixed (F), value related (V) and time related (T)"]
[]
[null,null,"SECTION A: PRINCIPAL BUILDING AGREEMENT"]
[]
[null,null,"Interpretation (A1-A7)"]
[]
[{"v":1,"d":"1 "},null,"Clause 1.0 - Definitions and interpretation",null,"CONT"]
[]
[null,null,"F:............................. V:............................ T:............................",null,"Item",{"v":0,"d":"0 "},null,{"$f":"ROUND($F67*G67,2)","v":0}]
[]
[{"v":2,"d":"2 "},null,"Clause 2.0 - Law, regulations and notices",null,"CONT"]
[]
[null,null,"F:............................. V:............................ T:............................",null,"Item",{"v":0,"d":"0 "},null,{"$f":"ROUND($F71*G71,2)","v":0}]
[]
[{"v":3,"d":"3 "},null,"Clause 3.0 - Offer and acceptance  F:............................. V:............................ T:............................",null,"Item",{"v":0,"d":"0 "},null,{"$f":"ROUND($F73*G73,2)","v":0}]
[]
[{"v":4,"d":"4 "},null,"Clause 4.0 - Assignment and cession  F:............................. V:............................ T:............................",null,"Item",{"v":0,"d":"0 "},null,{"$f":"ROUND($F75*G75,2)","v":0}]
[]
[{"v":5,"d":"5 "},null,"Clause 5.0 - Contract documents",null,"CONT"]
[]
[null,null,"F:............................. V:............................ T:............................",null,"Item",{"v":0,"d":"0 "},null,{"$f":"ROUND($F79*G79,2)","v":0}]
[]
[{"v":6,"d":"6 "},null,"Clause 6.0 - Employer's agents",null,"CONT"]
[]
[null,null,"F:............................. V:............................ T:............................",null,"Item",{"v":0,"d":"0 "},null,{"$f":"ROUND($F83*G83,2)","v":0}]
[]
[{"v":7,"d":"7 "},null,"Clause 7.0 - Design responsibility  F:............................. V:............................ T:............................",null,"Item",{"v":0,"d":"0 "},null,{"$f":"ROUND($F85*G85,2)","v":0}]
[]
[null,null,"Insurance and security (A8-A11)"]
[]
[{"v":8,"d":"8 "},null,"Clause 8.0 - Works risk  F:............................. V:............................ T:............................",null,"Item",{"v":0,"d":"0 "},null,{"$f":"ROUND($F89*G89,2)","v":0}]
[]
[{"v":9,"d":"9 "},null,"Clause 9.0 - Indemnities  F:............................. V:............................ T:............................",null,"Item",{"v":0,"d":"0 "},null,{"$f":"ROUND($F91*G91,2)","v":0}]
[]
[{"v":10,"d":"10 "},null,"Clause 10.0 - Insurances  F:............................. V:............................ T:............................",null,"Item",{"v":0,"d":"0 "},null,{"$f":"ROUND($F93*G93,2)","v":0}]
[]
[{"v":11,"d":"11 "},null,"Clause 11.0 - Security",null,"CONT"]
[]
[null,null,"F:............................. V:............................ T:............................",null,"Item",{"v":0,"d":"0 "},null,{"$f":"ROUND($F97*G97,2)","v":0}]
[]
[null,null,"Execution (A12 - A17)"]
[]
[{"v":12,"d":"12 "},null,"Clause 12.0 - Duties of the parties",null,"CONT"]
[]
[null,null,"F:............................. V:............................ T:............................",null,"Item",{"v":1,"d":"1 "},null,{"$f":"ROUND($F103*G103,2)","v":0}]
[]
[{"v":13,"d":"13 "},null,"Clause 13.0 - Setting out  F:............................. V:............................ T:............................",null,"Item",{"v":0,"d":"0 "},null,{"$f":"ROUND($F105*G105,2)","v":0}]
[]
[{"v":14,"d":"14 "},null,"Clause 14.0 - Nominated subcontractors",null,"CONT"]
[]
[null,null,"F:............................. V:............................ T:............................",null,"Item",{"v":0,"d":"0 "},null,{"$f":"ROUND($F109*G109,2)","v":0}]
[]
[{"v":15,"d":"15 "},null,"Clause 15.0 - Selected subcontractors",null,"CONT"]
[]
[null,null,"F:............................. V:............................ T:............................",null,"Item",{"v":0,"d":"0 "},null,{"$f":"ROUND($F113*G113,2)","v":0}]
[]
[{"v":16,"d":"16 "},null,"Clause 16.0 - Direct contractors  Attendance on direct contractors  In respect of direct contractors the contractor shall:",null,"CONT"]
[]
[null,null,"F:............................. V:............................ T:............................",null,"Item",{"v":0,"d":"0 "},null,{"$f":"ROUND($F117*G117,2)","v":0}]
[]
[{"v":17,"d":"17 "},null,"Clause 17.0 - Contract instructions  Site instructions  Instructions issued on site are to be recorded in a site instruction book which is to be supplied and maintained on site by the contractor",null,"CONT"]
[]
[null,null,"F:............................. V:............................ T:............................",null,"Item",{"v":0,"d":"0 "},null,{"$f":"ROUND($F121*G121,2)","v":0}]
[]
[null,null,"Completion (A18 - A24)"]
[]
[{"v":18,"d":"18 "},null,"Clause 18.0 - Interim completion  F:............................. V:............................ T:............................",null,"Item",{"v":0,"d":"0 "},null,{"$f":"ROUND($F125*G125,2)","v":0}]
[]
[{"v":19,"d":"19 "},null,"Clause 19.0 - Practical completion   F:............................. V:............................ T:............................",null,"Item",{"v":0,"d":"0 "},null,{"$f":"ROUND($F127*G127,2)","v":0}]
[]
[{"v":20,"d":"20 "},null,"Clause 20.0 - Sectional completion",null,"CONT"]
[]
[null,null,"F:............................. V:............................ T:............................",null,"Item",{"v":0,"d":"0 "},null,{"$f":"ROUND($F131*G131,2)","v":0}]
[]
[{"v":21,"d":"21 "},null,"Clause 21.0 - Defects liability period and final completion",null,"CONT"]
[]
[null,null,"F:............................. V:............................ T:............................",null,"Item",{"v":0,"d":"0 "},null,{"$f":"ROUND($F135*G135,2)","v":0}]
[]
[{"v":22,"d":"22 "},null,"Clause 22.0 - Latent defects liability period F:............................. V:............................ T:............................",null,"Item",{"v":0,"d":"0 "},null,{"$f":"ROUND($F137*G137,2)","v":0}]
[]
[{"v":23,"d":"23 "},null,"Clause 23.0 - Revision of date for practical completion  Substitution of materials and goods  The removal or substitution of any materials and goods which do not conform to the specification or the contract drawings shall not constitute grounds for the extension of the construction period nor for the adjustment of the contract value [17.1.8, 23.1 & 2]",null,"CONT"]
[]
[null,null,"F:............................. V:............................ T:............................",null,"Item",{"v":0,"d":"0 "},null,{"$f":"ROUND($F141*G141,2)","v":0}]
[]
[{"v":24,"d":"24 "},null,"Clause 24.0 - Penalty for late or non-completion    F:............................. V:............................ T:............................",null,"Item",{"v":0,"d":"0 "},null,{"$f":"ROUND($F143*G143,2)","v":0}]
[]
[null,null,"Payment (A25 - A27)"]
[]
[{"v":25,"d":"25 "},null,"Clause 25.0 - Payment",null,"CONT"]
[]
[null,null,"F:............................. V:............................ T:............................",null,"Item",{"v":0,"d":"0 "},null,{"$f":"ROUND($F149*G149,2)","v":0}]
[]
[{"v":26,"d":"26 "},null,"Clause 26.0 - Adjustment of the contract value and final account",null,"CONT"]
[]
[null,null,"F:............................. V:............................ T:............................",null,"Item",{"v":0,"d":"0 "},null,{"$f":"ROUND($F153*G153,2)","v":0}]
[]
[{"v":27,"d":"27 "},null,"Clause 27.0 - Recovery of expense and/or loss  F:............................. V:............................ T:............................",null,"Item",{"v":0,"d":"0 "},null,{"$f":"ROUND($F155*G155,2)","v":0}]
[]
[null,null,"Suspension and termination (A28 - A29)"]
[]
[{"v":28,"d":"28 "},null,"Clause 28.0 - Suspension by the contractor",null,"CONT"]
[]
[null,null,"F:............................. V:............................ T:............................",null,"Item",{"v":0,"d":"0 "},null,{"$f":"ROUND($F161*G161,2)","v":0}]
[]
[{"v":29,"d":"29 "},null,"Clause 29.0 - Termination",null,"CONT"]
[]
[null,null,"F:............................. V:............................ T:............................",null,"Item",{"v":0,"d":"0 "},null,{"$f":"ROUND($F165*G165,2)","v":0}]
[]
[null,null,"Dispute resolution (A30)"]
[]
[{"v":30,"d":"30 "},null,"Clause 30.0 - Dispute resolution  F:............................. V:............................ T:............................",null,"Item",{"v":0,"d":"0 "},null,{"$f":"ROUND($F169*G169,2)","v":0}]
[]
[null,null,"The required information of the parties and the amount of the contract sum shall be inserted in the agreement for signature of the agreement by the parties  F:............................. V:............................ T:............................",null,"Item",{"v":0,"d":"0 "},null,{"$f":"ROUND($F171*G171,2)","v":0}]
[]
[null,null,"F:............................. V:............................ T:............................",null,"Item",{"v":0,"d":"0 "},null,{"$f":"ROUND($F173*G173,2)","v":0}]
[]
[null,null,"42.1  \tCONTRACTING AND OTHER PARTIES"]
[]
[null,null,"42.1.1Employer: Passenger Rail Agency of South AfricaPostal address: PO Box 51324Durban4062Tel.: \t(031) 813 0376Physical Address:65 Masabalala Yengwa AvenueDurban StationDurban4000"]
[]
[null,null,"42.2  \tCONTRACT DETAILS"]
[]
[null,null,"42.2.1 \tWorks Description: Refurbishment, Alterations and Additions at Umbongintwini Station for a period of six (6) months"]
[]
[null,null,"42.2.2 \tSite Description: \t\tUmbongintwini Train Station\t"]
[]
[null,null,"42.2.3 \tWork or installations by direct contractors:  N/A"]
[]
[null,null,"42.2.4 \tThis agreement is for a government contract where there are specific options that are applicable to a State organ only Yes"]
[]
[null,null,"42.2.5 \tDate on which possession of the site is intended to be given: TBC"]
[]
[null,null,"42.2.6 \tPeriod for the commencement of the works after the contractor takes possession: TBC"]
[]
[null,null,"42.2.7 \tFor the works as a whole. Intended date of practical completion and the penalty per calendar day Six (6) Months after contractual commencement date               0.04% of contract amount per calender day Penalty Amount"]
[]
[null,null,"42.2.8\tFor the works in sections:  Intended date of practical completion and the penalty per calender day: N/A"]
[]
[null,null,"42.2.9 The law applicable to this agreement shall be that of South Africa     (country)"]
[]
[null,null,"42.3 \tINSURANCES"]
[]
[null,null,"42.3.1 \tContract works insurance to be effected by:Contractor: For the Sum of R Contract Amount  30.00 % With a deductible of - to be determined by the contractor"]
[]
[null,null,"42.3.2 \tSupplementary insurance is required No"]
[]
[null,null,"42.3.3 \tPublic liability insurance to be effected by:Contractor: For the Sum of R 1 000 000-00With a deductible of - to be determined by the contractor"]
[]
[null,null,"42.4 \tDOCUMENTS"]
[]
[null,null,"42.4.1 \tWaivers of contractors lien or right of continuing possession is required  \tYes"]
[]
[null,null,"42.4.2 \tNumber of construction document copies to be \tsupplied to the contractor free of charge: 3   Number of"]
[]
[null,null,"42.4.3 \tBills of Quantities/Lump sum document schedule of rates drawn up in accordance with:  \t\"€œStandard System of Measuring Builders\"€™ Work\"€\u009d"]
[]
[null,null,"42.4.4 \tOn acceptance of the tender the bills of quantities/lump sum document is to be submitted within:  The priced bills of quantities must be handed in with the tender"]
[]
[null,null,"42.4.5 \tJBCC Engineering General Conditions are to be included in the contract documents: No"]
[]
[null,null,"42.4.6 \tThe contract value is to be adjusted using escalation adjustment indices  N/A \tWhere JBCC CPAP is to be used Base Month    N/A"]
[]
[null,null,"42.4.7 \tDetails of changes made to the provision of JBCC standard documentation:"]
[]
[null,null,"SECTION B:  PRELIMINARIES"]
[]
[null,null,"Interpretation (B1)"]
[]
[{"v":31,"d":"31 "},null,"Clause 1.1 - Definitions  F:............................. V:............................ T:............................",null,"Item",{"v":0,"d":"0 "},null,{"$f":"ROUND($F227*G227,2)","v":0}]
[]
[{"v":32,"d":"32 "},null,"Clause 1.2 - Interpretation  F:............................. V:............................ T:............................",null,"Item",{"v":0,"d":"0 "},null,{"$f":"ROUND($F229*G229,2)","v":0}]
[]
[null,null,"Documents (B2)"]
[]
[{"v":33,"d":"33 "},null,"Clause 2.1 - Checking of documents  F:............................. V:............................ T:............................",null,"Item",{"v":0,"d":"0 "},null,{"$f":"ROUND($F233*G233,2)","v":0}]
[]
[{"v":34,"d":"34 "},null,"Clause 2.2 - Provisional bills of quantities",null,"CONT"]
[]
[null,null," F:............................. V:............................ T:............................",null,"Item",{"v":0,"d":"0 "},null,{"$f":"ROUND($F237*G237,2)","v":0}]
[]
[{"v":35,"d":"35 "},null,"Clause 2.3 - Availability of construction information   F:............................. V:............................ T:............................",null,"Item",{"v":0,"d":"0 "},null,{"$f":"ROUND($F239*G239,2)","v":0}]
[]
[{"v":36,"d":"36 "},null,"Clause 2.4 - Ordering of materials and goods  F:............................. V:............................ T:............................",null,"Item",{"v":0,"d":"0 "},null,{"$f":"ROUND($F241*G241,2)","v":0}]
[]
[null,null,"Previous work and adjoining properties (B3)"]
[]
[{"v":37,"d":"37 "},null,"Clause 3.1 - Previous work - dimensional accuracy  F:............................. V:............................ T:............................",null,"Item",{"v":0,"d":"0 "},null,{"$f":"ROUND($F245*G245,2)","v":0}]
[]
[{"v":38,"d":"38 "},null,"Clause 3.2 - Previous work - defects  F:............................. V:............................ T:............................",null,"Item",{"v":0,"d":"0 "},null,{"$f":"ROUND($F247*G247,2)","v":0}]
[]
[{"v":39,"d":"39 "},null,"Clause 3.3 - Inspection of adjoining properties  F:............................. V:............................ T:............................",null,"Item",{"v":0,"d":"0 "},null,{"$f":"ROUND($F249*G249,2)","v":0}]
[]
[null,null,"The site (B4)"]
[]
[{"v":40,"d":"40 "},null,"Clause 4.1 - Defined works area  F:............................. V:............................ T:...........................",null,"Item",{"v":0,"d":"0 "},null,{"$f":"ROUND($F253*G253,2)","v":0}]
[]
[{"v":41,"d":"41 "},null,"Clause 4.2 - Handover of site in stages  F:............................. V:............................ T:............................",null,"Item",{"v":0,"d":"0 "},null,{"$f":"ROUND($F255*G255,2)","v":0}]
[]
[{"v":42,"d":"42 "},null,"Clause 4.3 - Enclosure of the works  F:............................. V:............................ T:............................",null,"Item",{"v":0,"d":"0 "},null,{"$f":"ROUND($F257*G257,2)","v":0}]
[]
[{"v":43,"d":"43 "},null,"Clause 4.4 - Geotechnical investigation  F:............................. V:............................ T:............................",null,"Item",{"v":0,"d":"0 "},null,{"$f":"ROUND($F259*G259,2)","v":0}]
[]
[{"v":44,"d":"44 "},null,"Clause 4.5 - Encroachments  F:............................. V:............................ T:............................",null,"Item",{"v":0,"d":"0 "},null,{"$f":"ROUND($F261*G261,2)","v":0}]
[]
[{"v":45,"d":"45 "},null,"Clause 4.6 - Existing premises occupied  F:............................. V:............................ T:............................",null,"Item",{"v":0,"d":"0 "},null,{"$f":"ROUND($F263*G263,2)","v":0}]
[]
[{"v":46,"d":"46 "},null,"Clause 4.7 - Services - known  F:............................. V:............................ T:............................",null,"Item",{"v":0,"d":"0 "},null,{"$f":"ROUND($F265*G265,2)","v":0}]
[]
[{"v":47,"d":"47 "},null,"Clause 4.8 - Protection of trees and/or relevant natural features  F:............................. V:............................ T:...........................",null,"Item",{"v":0,"d":"0 "},null,{"$f":"ROUND($F267*G267,2)","v":0}]
[]
[null,null,"Management of contract (B5)"]
[]
[{"v":48,"d":"48 "},null,"Clause 5.1 - Management of the works  F:............................. V:............................ T:............................",null,"Item",{"v":0,"d":"0 "},null,{"$f":"ROUND($F271*G271,2)","v":0}]
[]
[{"v":49,"d":"49 "},null,"Clause 5.2 - Progress meetings  F:............................. V:............................ T:............................",null,"Item",{"v":0,"d":"0 "},null,{"$f":"ROUND($F273*G273,2)","v":0}]
[]
[{"v":50,"d":"50 "},null,"Clause 5.3 - Technical meetings  F:............................. V:............................ T:............................",null,"Item",{"v":0,"d":"0 "},null,{"$f":"ROUND($F275*G275,2)","v":0}]
[]
[null,null,"Samples, shop drawings and manufacturer's instructions (B6)"]
[]
[{"v":51,"d":"51 "},null,"Clause 6.1 - Samples of materials  F:............................. V:............................ T:...........................",null,"Item",{"v":0,"d":"0 "},null,{"$f":"ROUND($F279*G279,2)","v":0}]
[]
[{"v":52,"d":"52 "},null,"Clause 6.2 - Workmanship samples  F:............................. V:............................ T:............................",null,"Item",{"v":0,"d":"0 "},null,{"$f":"ROUND($F281*G281,2)","v":0}]
[]
[{"v":53,"d":"53 "},null,"Clause 6.3 - Shop drawings  F:............................. V:............................ T:............................",null,"Item",{"v":0,"d":"0 "},null,{"$f":"ROUND($F283*G283,2)","v":0}]
[]
[{"v":54,"d":"54 "},null,"Clause 6.4 - Compliance with manufacturer's instructions  F:............................. V:............................ T:............................",null,"Item",{"v":0,"d":"0 "},null,{"$f":"ROUND($F285*G285,2)","v":0}]
[]
[null,null,"Deposits and fees (B7)"]
[]
[{"v":55,"d":"55 "},null,"Clause 7.1 - Deposits and fees  F:............................. V:............................ T:............................",null,"Item",{"v":0,"d":"0 "},null,{"$f":"ROUND($F289*G289,2)","v":0}]
[]
[null,null,"Temporary services (B8)"]
[]
[{"v":56,"d":"56 "},null,"Clause 8.1 - Water  F:............................. V:............................ T:............................",null,"Item",{"v":0,"d":"0 "},null,{"$f":"ROUND($F293*G293,2)","v":0}]
[]
[{"v":57,"d":"57 "},null,"Clause 8.2 - Electricity  F:............................. V:............................ T:............................",null,"Item",{"v":0,"d":"0 "},null,{"$f":"ROUND($F295*G295,2)","v":0}]
[]
[{"v":58,"d":"58 "},null,"Clause 8.3 - Ablution and welfare facilities  F:............................. V:............................ T:............................",null,"Item",{"v":0,"d":"0 "},null,{"$f":"ROUND($F297*G297,2)","v":0}]
[]
[{"v":59,"d":"59 "},null,"Clause 8.4 - Communication facilities  F:............................. V:............................ T:............................",null,"Item",{"v":0,"d":"0 "},null,{"$f":"ROUND($F299*G299,2)","v":0}]
[]
[null,null,"Prime cost amounts (B9)"]
[]
[{"v":60,"d":"60 "},null,"Clause 9.1 - Responsibility for prime cost amounts",null,"CONT"]
[]
[null,null," F:............................. V:............................ T:............................",null,"Item",{"v":0,"d":"0 "},null,{"$f":"ROUND($F305*G305,2)","v":0}]
[]
[null,null,"Attendance on subcontractors (B10)"]
[]
[{"v":61,"d":"61 "},null,"Clause 10.1 - General attendance   F:............................. V:............................ T:............................",null,"Item",{"v":0,"d":"0 "},null,{"$f":"ROUND($F309*G309,2)","v":0}]
[]
[{"v":62,"d":"62 "},null,"Clause 10.2 - Special attendance",null,"CONT"]
[]
[null,null," F:............................. V:............................ T:............................",null,"Item",{"v":0,"d":"0 "},null,{"$f":"ROUND($F313*G313,2)","v":0}]
[]
[null,null,"General (B11)"]
[]
[{"v":63,"d":"63 "},null,"Clause 11.1 - Protection of the works  F:............................. V:............................ T:............................",null,"Item",{"v":0,"d":"0 "},null,{"$f":"ROUND($F317*G317,2)","v":0}]
[]
[{"v":64,"d":"64 "},null,"Clause 11.2 - Protection/isolation of existing/sectionally occupied works  F:............................. V:............................ T:............................",null,"Item",{"v":0,"d":"0 "},null,{"$f":"ROUND($F319*G319,2)","v":0}]
[]
[{"v":65,"d":"65 "},null,"Clause 11.3 - Security of the works  F:............................. V:............................ T:............................",null,"Item",{"v":0,"d":"0 "},null,{"$f":"ROUND($F321*G321,2)","v":0}]
[]
[{"v":66,"d":"66 "},null,"Clause 11.4 - Notice before covering work  F:............................. V:............................ T:............................",null,"Item",{"v":0,"d":"0 "},null,{"$f":"ROUND($F323*G323,2)","v":0}]
[]
[{"v":67,"d":"67 "},null,"Clause 11.5 - Disturbance  F:............................. V:............................ T:............................",null,"Item",{"v":0,"d":"0 "},null,{"$f":"ROUND($F325*G325,2)","v":0}]
[]
[null,null,"Clause 11.6 - Environmental disturbance  F:............................. V:............................ T:............................",null,"Item",{"v":0,"d":"0 "},null,{"$f":"ROUND($F327*G327,2)","v":0}]
[]
[{"v":68,"d":"68 "},null,"Clause 11.7 - Works cleaning and clearing  F:............................. V:............................ T:............................",null,"Item",{"v":0,"d":"0 "},null,{"$f":"ROUND($F329*G329,2)","v":0}]
[]
[{"v":69,"d":"69 "},null,"Clause 11.8 - Vermin  F:............................. V:............................ T:............................",null,"Item",{"v":0,"d":"0 "},null,{"$f":"ROUND($F331*G331,2)","v":0}]
[]
[{"v":70,"d":"70 "},null,"Clause 11.9 - Overhand work  F:............................. V:............................ T:............................",null,"Item",{"v":0,"d":"0 "},null,{"$f":"ROUND($F333*G333,2)","v":0}]
[]
[{"v":71,"d":"71 "},null,"Clause 11.11 - Advertising  F:............................. V:............................ T:............................",null,"Item",{"v":0,"d":"0 "},null,{"$f":"ROUND($F335*G335,2)","v":0}]
[]
[null,null,"Preliminaries schedule (B12)"]
[]
[{"v":72,"d":"72 "},null,"Information for completion of the preliminaries schedule  Information necessary for elections and completion of those clauses contained in the preliminaries schedule which are necessary for tender purposes is given hereunder. Where no information is given it shall mean that no specific requirements are expected or that the clause is not relevant to this specific contract",null,"CONT"]
[]
[null,null,"12.1 -\tProvisional bills of quantities [2.2]  \tThe quantities are provisional - Yes"]
[]
[null,null,"12.2 -\tAvailability of construction information [2.3]  \tConstruction documentation is complete - Yes"]
[]
[null,null,"12.3 -\tPrevious work - dimensional accuracy [3.1]"]
[]
[null,null,"12.4 -\tPrevious work - defects [3.2]"]
[]
[null,null,"12.5 -\tInspection of adjoining properties [3.3]"]
[]
[null,null,"12.6 -\tDefined works area [4.1]"]
[]
[null,null,"12.7 -\tHandover of site in stages [4.2]"]
[]
[null,null,"12.8 -\tEnclosure of the works [4.3]"]
[]
[null,null,"12.9 -\tGeotechnical investigation [4.4]"]
[]
[null,null,"12.10 -\tExisting premises occupied [4.6]"]
[]
[null,null,"12.11 -\tServices - known [4.7]"]
[]
[null,null,"12.12 -\tProtection of trees and/or relevant natural features \t[4.8]"]
[]
[null,null,"12.13 -\tWater [8.1]  \tOption A (by contractor) - Yes  \tOption B (by employer - free of charge)\t - No  \tOption C (by employer - metered) -  No"]
[]
[null,null,"12.14 -\tElectricity [8.2]\tOption A (by contractor) - Yes\tOption B (by employer - free of charge)\t - No\tOption C (by employer - metered) -  No"]
[]
[null,null,"12.15 -\tAblution and welfare facilities [8.3]  \tOption A (by contractor) - Yes  \tOption B (by employer - free of charge)\t - No"]
[]
[null,null,"12.16 -\tCommunication facilities [8.4]"]
[]
[null,null,"12.17 -\tProtection of the works [11.1]"]
[]
[null,null,"12.18 -\tProtection/isolation of existing/sectionally occupied works [11.2]  \tProtection/isolation is required - Yes"]
[]
[null,null,"12.19 -\tDisturbance [11.5]"]
[]
[null,null,"12.20 -\tEnvironmental disturbance [11.6]"]
[]
[null,null,"Controlling all forms of pollution  The contractor shall be responsible for and take all precautions in controlling by whatever means necessary all forms of pollution emanating from the site during the construction period due inter alia to noise, artificial light, wind-blown sand, dust, deposits of mud, etc"]
[]
[null,null,"The contractor is to ensure that all roads which border the site and is used by the contractor during the execution of the works are kept clean and free of any dirt or debris caused by the execution of the works"]
[]
[null,null,"F:............................. V:............................ T:............................",null,"Item",{"v":0,"d":"0 "},null,{"$f":"ROUND($F385*G385,2)","v":0}]
[]
[null,null,"SECTION  C: SPECIFIC PRELIMINARIES"]
[]
[null,null,"Section C Section C contains specific preliminary items which apply to this contract except where N/A (Not Applicable) appears against an item"]
[]
[null,null,"The warranty will not be enforced if the work is damaged by defects in the execution of the works, in which case the responsibility for replacement shall rest entirely with the contractor  F:............................. V:............................ T:............................",null,"Item",{"v":0,"d":"0 "},null,{"$f":"ROUND($F391*G391,2)","v":0}]
[]
[{"v":73,"d":"73 "},null,"Overtime  Should overtime be required to be worked for any reason whatsoever, the cost of such overtime is to be borne by the contractor unless the principal agent has specifically authorised, prior to execution thereof, that costs for such overtime are to be borne by the employer  F:............................. V:............................ T:............................",null,"Item",{"v":0,"d":"0 "},null,{"$f":"ROUND($F393*G393,2)","v":0}]
[]
[{"v":74,"d":"74 "},null,"Co-operation of the contractor for cost management  It is specifically agreed that the contractor accepts the obligation of assisting the principal agent in implementing proper cost management. The contractor will be advised by the principal agent of all cost management procedures which will be implemented to ensure that the contract value does not exceed the budget  F:............................. V:............................ T:............................",null,"Item",{"v":0,"d":"0 "},null,{"$f":"ROUND($F395*G395,2)","v":0}]
[]
[{"v":75,"d":"75 "},null,"Overloading  The contractor shall take all necessary steps to ensure that no damage occurs due to overloading of any portion of the works or temporary works eg scaffolding, etc. The contractor shall submit details of his proposed loading, storage, plant erection, etc to the principal agent for approval prior to proceeding with such loading, storing or erecting and shall comply with and pay for the principal agent's requirements in connection with the provision of temporary support work, etc. Any damage caused to the works by overloading shall be made good by the contractor at his sole expense  F:............................. V:............................ T:............................",null,"Item",{"v":0,"d":"0 "},null,{"$f":"ROUND($F397*G397,2)","v":0}]
[]
[{"v":76,"d":"76 "},null,"Propping of floors below  The contractor is advised that propping of floors below may be required if he wishes to use any areas of completed suspended reinforced concrete slabs for vehicle access, storage of materials and goods and location of plant, scaffolding, etc. The location of these areas and any necessary propping shall be approved by the principal agent and the cost thereof shall be borne by the contractor  F:............................. V:............................ T:............................",null,"Item",{"v":0,"d":"0 "},null,{"$f":"ROUND($F399*G399,2)","v":0}]
[]
[{"v":77,"d":"77 "},null,"Testing of flat roof waterproofing for watertightness  Flat roof waterproof areas shall be prepared with small sand dykes around them of a size and enclosing an area approved by the principal agent, flooded with water and kept \"ponded\" for at least forty (40) hours as a test to ensure the watertightness of the waterproofing and before any further construction work is carried out above the waterproofing  F:............................. V:............................ T:............................",null,"Item",{"v":0,"d":"0 "},null,{"$f":"ROUND($F401*G401,2)","v":0}]
[]
[null,null,"The contractor is to submit to the principal agent on an annual basis a schedule of spend, split into vendors engaged as subcontractors and suppliers indicating their BBBEE rating including proof of the said rating  F:............................. V:............................ T:............................",null,"Item",{"v":0,"d":"0 "},null,{"$f":"ROUND($F403*G403,2)","v":0}]
[]
[{"v":78,"d":"78 "},null,"Advertising rights  The employer may elect to contract with advertising agencies for the erection of advertising hoardings, banners, wraps or the like for the duration of the contract. The contractor shall not prevent such an arrangement and will assist in the facilitation of same. Position and type of advertising structure to be agreed with the principal agent so as not to hinder the contractor in meeting the obligations under this agreement  F:............................. V:............................ T:............................",null,"Item",{"v":0,"d":"0 "},null,{"$f":"ROUND($F405*G405,2)","v":0}]
[]
[{"v":79,"d":"79 "},null,"Confidentiality  The contractor undertakes to maintain in confidence any and all information regarding this project and shall obtain appropriate similar undertakings from all subcontractors and suppliers. Such information shall not be used in any way except in connection with the execution of the works  No information regarding this project shall be published or disclosed without the prior written consent of the employer  F:............................. V:............................ T:............................",null,"Item",{"v":0,"d":"0 "},null,{"$f":"ROUND($F407*G407,2)","v":0}]
[]
[{"v":80,"d":"80 "},null,"Media releases  All rights of publication of articles in the media, together with any advertising relating thereto or in any way connected with this project, shall vest with the employer  The contractor together with his subcontractors shall not, without the prior written consent of the employer, cause any statement or advertisement connected with this project to be printed, screened or aired by the media  F:............................. V:............................ T:............................",null,"Item",{"v":0,"d":"0 "},null,{"$f":"ROUND($F409*G409,2)","v":0}]
[]
[null,null,"SUMMARY OF CATEGORIES"]
[]
[null,null,"Category : Fixed   R........................................  Category : Value   R........................................  Category : Time    R........................................"]
[]
[null,null,"SECTION 2"]
[]
[null,null,"BILL NO.1"]
[]
[null,null,"ALTERATIONS (PROVISIONAL)"]
[]
[null,null,"WORK GROUP ALLOCATION"]
[]
[null,null,"Unless otherwise stated, all items in this Bill will be allocated to Work Group 102 - Alterations"]
[]
[null,null,"PREAMBLES"]
[]
[null,null,"The General Preambles for Trades (2017 edition), as published by the Association of South African Quantity Surveyors, shall be deemed to be incorporated in these bills of quantities and no claims arising from brevity of description of items, fully described in the said General Preambles, will be entertained"]
[]
[null,null,"The following \"Supplementary Preambles\" are incorporated in this bill to satisfy the requirements of the project and shall take precedence over the provisions of the said General Preambles"]
[]
[null,null,"SUPPLEMENTARY PREAMBLES"]
[]
[null,null,"View site:"]
[]
[null,null,"Before submitting his tender, the Contractor shall visit the site and satisfy himself as to the nature and extent of the work to be done and the value of the materials contained in the buildings or portions of the buildings to be demolished.  No claim for any variations of the contract sum in respect of the nature and extent of the work or of inferior or damaged materials will be entertained"]
[]
[null,null,"Old materials to become property of the Contractor:"]
[]
[null,null,"Old materials from alterations, except where described as to be re-used or handed over, become the property of the Contractor, who must allow credit for same in the last item of the \"Alterations\" trade"]
[]
[null,null,"Old materials to be carted away:"]
[]
[null,null,"Old materials from the alterations, except where described as to be re-used or handed over, as well as all rubbish, etc must be regularly carted from the site and not be allowed to accumulate on or around the site"]
[]
[null,null,"Old materials to be re-used:"]
[]
[null,null,"None of the old materials are to be used for new work, except where specifically described as being set aside for re-use"]
[]
[null,null,"Handing over of materials:"]
[]
[null,null,"Where certain materials or articles from demolitions or alterations are described as to be \"handed over to the Employer\", it shall be taken to mean \"handed over by the Contractor to the Principal Agent\" and such materials or articles shall be properly stored by the Contractor until handing over thereof and shall include all necessary transport The Contractor must obtain an official receipt from the Principal Agent listing the materials or articles and dates of handing overShould the Contractor fail to submit the receipt when requested to do so, it shall be deemed that the materials or articles are still in his possession and he will be held liable to the Employer for the full replacement value thereof, which amount will be deducted from any monies due to the Contractor"]
[]
[null,null,"Explosives:"]
[]
[null,null,"No explosives whatsoever may be used for demolition purposes, unless otherwise stated"]
[]
[null,null,"GENERAL"]
[]
[null,null,"The contractor shall carry out the whole of the work with as little mess and noise as possible and with a minimum of disturbance to adjoining premises and their tenants. He shall provide proper protection and provide and erect any temporarytarpaulins and temporary plumbing that may be necessary during the progress of the works, all to the satisfaction of the Architect, and remove when directed."]
[]
[null,null,"Any water supplies pipes and other piping that may be met with and found necessary to disconnect or cut, shall be effectually stopped of or grubbed up and removed, and any new connections that may be necessary shall be made with proper fittings, to the satisfaction of the Architect."]
[]
[null,null,"Doors, fanlights, fittings, frames, linings, etc shall be thoroughly overhauled before re-fixing including taking off, easing and rehanging, cramping up, re-wedging as required and making good cramps, dowels, etc and easing, oiling, adjusting and repairing ironmongery if necessary, replacing any glass damaged in removal or subsequently and stopping up all nail and screw holes with tinted wood to match timber."]
[]
[null,null,"Where doors, windows, etc are described as taken out this shall be understood to include for removal of all beads, architraves, ironmongery, etc and doors which are re-fixed are to be provided with new architraves       (elsewhere measured )."]
[]
[null,null,"Prices for taking out and removing doors and frames shall include for removing door stops, cabin locks, etc and making good to match existing."]
[]
[null,null,"With regard to building up openings in existing walls, cement screeds and pavings, granolithic, etc, shall be levelled and prepared for raising of brickwork."]
[]
[null,null,"Allow for making good all existing plastered walls where damaged by furniture, etc, and stopping up all screw and holes before painting."]
[]
[null,null,"Making good finishes shall be deemed to iclude making good of the brick and concrete surfaces onto which new finishes are applied, where necessary."]
[]
[null,null,"The contractor will be required to take all dimensions affecting existing building on the site and he will be held solely responsible for the accuracy of all such dimensions."]
[]
[null,null,"Hazardous materials:"]
[]
[null,null,"Demolitions of buildings, services, external works, site services, etc are to include for the safe removal and disposal of asbestos or asbestos products or other hazardous materials by approved Registered Specialists"]
[]
[null,null," - - - - - - - - - - - - - - - - - - - - - - - - -"]
[]
[null,null,"TEMPORARY BARRIERS, SCREENS, ETC"]
[]
[null,null,"Temporary barriers, screens, etc including removal:"]
[]
[{"v":1,"d":"1 "},null,"Dust screen 2100mm high formed of suitable timber framing with 250 micron polyethylene sheeting stapled on including corners, ends, etc. to be used on all the phases of the construction project and in accordance to the Health and Safety specifications and regulations",null,"m",{"v":300,"d":"300 "},null,{"$f":"ROUND($F487*G487,2)","v":0}]
[]
[null,null,"REMOVAL OF EXISTING WORK"]
[]
[null,null,"Breaking down and removing brickwork, etc:"]
[]
[{"v":2,"d":"2 "},null,"One brickwalls",null,"m²",{"v":24,"d":"24 "},null,{"$f":"ROUND($F493*G493,2)","v":0}]
[]
[null,null,"Taking out and removing doors, windows, etc including thresholds, sills, etc from brickwork (altering openings and making good finishes elsewhere):"]
[]
[{"v":3,"d":"3 "},null,"Timber single door and frame not exceeding 2,5m\"²",null,"No",{"v":32,"d":"32 "},null,{"$f":"ROUND($F497*G497,2)","v":0}]
[]
[{"v":4,"d":"4 "},null,"Timber single door and frame exceeding 2,5m\"²  but not exceeding 3m\"²",null,"No",{"v":1,"d":"1 "},null,{"$f":"ROUND($F499*G499,2)","v":0}]
[]
[null,null,"Taking down and removing roof coverings, accessories, etc.:"]
[]
[{"v":5,"d":"5 "},null,"Profiled sheet metal roof covering including timber purlins",null,"m²",{"v":83,"d":"83 "},null,{"$f":"ROUND($F503*G503,2)","v":0}]
[]
[{"v":6,"d":"6 "},null,"Roof tiling",null,"m²",{"v":363,"d":"363 "},null,{"$f":"ROUND($F505*G505,2)","v":0}]
[]
[{"v":7,"d":"7 "},null,"Fascias and barge boards not exceeding 300mm wide",null,"m",{"v":263,"d":"263 "},null,{"$f":"ROUND($F507*G507,2)","v":0}]
[]
[null,null,"Taking down and removing rainwater goods, etc:"]
[]
[{"v":8,"d":"8 "},null,"Metal box gutters not exceeding 250mm girth including ends, bends, outlets, brackets, etc. complete",null,"m",{"v":227,"d":"227 "},null,{"$f":"ROUND($F511*G511,2)","v":0}]
[]
[null,null,"Taking down and removing ceilings, partitions, etc:"]
[]
[{"v":9,"d":"9 "},null,"Gypsum plasterboard ceilings, including cornices, timber brandering, etc.",null,"m²",{"v":275,"d":"275 "},null,{"$f":"ROUND($F515*G515,2)","v":0}]
[]
[null,null,"Taking out/off and removing ironmongery:"]
[]
[{"v":10,"d":"10 "},null,"Toilet paper holder from wall",null,"No",{"v":11,"d":"11 "},null,{"$f":"ROUND($F519*G519,2)","v":0}]
[]
[null,null,"Taking out/off and removing sundry, metalwork, etc"]
[]
[{"v":11,"d":"11 "},null,"Steel security gate approximately 1500mm wide x 2100mm high overall (TP-03)",null,"No",{"v":1,"d":"1 "},null,{"$f":"ROUND($F523*G523,2)","v":0}]
[]
[null,null,"Hacking up/off and removing ceramic and porcelain tiles, including removing mortar bed or adhesive from concrete or brickwork and preparing surfaces for new screed, plaster, tile finishes, etc:"]
[]
[{"v":12,"d":"12 "},null,"Tiles to floors",null,"m²",{"v":276,"d":"276 "},null,{"$f":"ROUND($F527*G527,2)","v":0}]
[]
[{"v":13,"d":"13 "},null,"Tiles to walls",null,"m²",{"v":237,"d":"237 "},null,{"$f":"ROUND($F529*G529,2)","v":0}]
[]
[null,null,"Taking out and removing piping, sanitary fittings, etc including cutting off as necessary, disconnecting piping from fittings and blocking off and making good damaged plasterwork to walls and screeds to floors (all redecoration work elsewhere):"]
[]
[{"v":14,"d":"14 "},null,"Vitreous china wash hand basin, including short lengths of piping, etc.",null,"No",{"v":4,"d":"4 "},null,{"$f":"ROUND($F533*G533,2)","v":0}]
[]
[{"v":15,"d":"15 "},null,"Vitreous china WC pan with flush valve, including short lengths of piping, etc.",null,"No",{"v":5,"d":"5 "},null,{"$f":"ROUND($F535*G535,2)","v":0}]
[]
[{"v":16,"d":"16 "},null,"150 Litre hot water geyser mounted in roof space including drip tray, valves, connecting pipework, etc.",null,"No",{"v":1,"d":"1 "},null,{"$f":"ROUND($F537*G537,2)","v":0}]
[]
[{"v":17,"d":"17 "},null,"Stainless steel sink and drainer including timber cupboard",null,"No",{"v":1,"d":"1 "},null,{"$f":"ROUND($F539*G539,2)","v":0}]
[]
[{"v":18,"d":"18 "},null,"Vitreous china wall hung urinal with flush valve, including short lengths of piping, etc.",null,"No",{"v":3,"d":"3 "},null,{"$f":"ROUND($F541*G541,2)","v":0}]
[]
[null,null,"Taking out/off and removing glass and mirrors:"]
[]
[{"v":19,"d":"19 "},null,"Mirror 600 x 600mm high from wall",null,"No",{"v":11,"d":"11 "},null,{"$f":"ROUND($F545*G545,2)","v":0}]
[]
[null,null,"MAKING GOOD OF FINISHES, ETC"]
[]
[null,null,"Making good concrete:"]
[]
[{"v":20,"d":"20 "},null,"Floors in patches",null,"m²",{"v":358,"d":"358 "},null,{"$f":"ROUND($F551*G551,2)","v":0}]
[]
[null,null,"Making good internal/external cement plaster:"]
[]
[{"v":21,"d":"21 "},null,"Walls in patches",null,"m²",{"v":3097,"d":"3,097 "},null,{"$f":"ROUND($F555*G555,2)","v":0}]
[]
[null,null,"Making good platform surfaces:"]
[]
[{"v":22,"d":"22 "},null,"Surfaces in patches",null,"m²",{"v":3511,"d":"3,511 "},null,{"$f":"ROUND($F559*G559,2)","v":0}]
[]
[null,null,"GENERAL REPAIRWORK"]
[]
[null,null,"Repairwork to existing brick walls:"]
[]
[{"v":23,"d":"23 "},null,"Waterjetting surfaces of existing facebrick walls with high pressure low-volume water jetting lance to remove all dirt, brushing down and washing to remove surface contamination, mould, fungus, damp and treating with two coats of antifungal wash and leaving perfectly clean on completion",null,"m²",{"v":371,"d":"371 "},null,{"$f":"ROUND($F565*G565,2)","v":0}]
[]
[null,null,"ALTERATIONS, SERVICING AND REPAIRWORK TO EXISTING DOORS, FRAMES AND WINDOWS"]
[]
[null,null,"Notes:"]
[]
[null,null,"The removal and reinstatement of doors, frames, windows, etc for the purpose of altering, servicing and/or repairing are measured elsewhere"]
[]
[null,null,"Supplementary Preambles:"]
[]
[null,null,"Repairwork to timber to include for the following, unless otherwise described:"]
[]
[null,null,"1.\tTimber used in repairs is to match existing in type, moisture content, colour and grain as closely as possible"]
[]
[null,null,"2.\tApproved modern, high-strength waterproof glues which can accommodate any timber movement should be used together with sawdust filler of matching timber"]
[]
[null,null,"3.\tOnly non-corrosive fixings are to be used"]
[]
[null,null,"4.\tAll clamping and pinning as necessary"]
[]
[null,null,"EXISTING WINDOWS"]
[]
[null,null,"Servicing of existing windows including thoroughly cleaning down of all dirt, scale and general contamination from all surfaces, pulleys, handles, rods, fanlight openers, catches, etc. and servicing and lubricating all moving parts, carefully removing all paint from and polishing all brassware and replacing of damaged or missing screws, nuts, etc. (repairing or replacement of existing ironmongery, removal of glass, putty, etc. re-glazing and preparing for and redecorating of existing frames, sashes, etc. all elsewhere measured):"]
[]
[{"v":24,"d":"24 "},null,"Ditto, but size 860 x 1175mm high overall with burglar bars (WT-05)",null,"No",{"v":10,"d":"10 "},null,{"$f":"ROUND($F589*G589,2)","v":0}]
[]
[{"v":25,"d":"25 "},null,"Steel extrusions window, size 1100mm wide x 1570mm high overall with burglar bars (WT-06)",null,"No",{"v":1,"d":"1 "},null,{"$f":"ROUND($F591*G591,2)","v":0}]
[]
[{"v":26,"d":"26 "},null,"Aluminium extrusion window, size 2000mm wide x 765mm high overall with burglar bars (WT-07)",null,"No",{"v":6,"d":"6 "},null,{"$f":"ROUND($F593*G593,2)","v":0}]
[]
[null,null,"BUDGETARY ALLOWANCE"]
[]
[{"v":27,"d":"27 "},null,"Provide a budgetary allowance of Fifty Thousand Rand for sundry alterations to be used as directed by the Principal Agent and to be deducted in whole or in part if not required.",null,"Item",{"v":1,"d":"1 "},null,{"$f":"ROUND($F597*G597,2)","v":0}]
[]
[null,null,"SECTION 2"]
[]
[null,null,"BILL NO. 2"]
[]
[null,null,"ROOF COVERINGS"]
[]
[null,null,"WORK GROUP ALLOCATION"]
[]
[null,null,"The items in this Bill will be allocated to Work Groups as indicated in brackets at the ends of headings or descriptions"]
[]
[null,null,"PREAMBLES"]
[]
[null,null,"The General Preambles for Trades (2017 edition) as published by the Association of South African Quantity Surveyors shall be deemed to be incorporated in these bills of quantities and no claims arising from brevity of description of items fully described in the said General Preambles will be entertained"]
[]
[null,null,"The following \"Supplementary Preambles\" are incorporated in this bill to satisfy the requirements of the project and shall take precedence over the provisions of the said General Preambles"]
[]
[null,null,"SUPPLEMENTARY PREAMBLES"]
[]
[null,null,"Profiled metal roof sheeting and accessories shall be supplied with a 10 year guarantee and be installed by an approved installer"]
[]
[null,null,"All fixing holes shall be drilled and not punched"]
[]
[null,null,"Roof covering accessories shall be manufactured from the same material as used for roof covering"]
[]
[null,null,"TILES"]
[]
[null,null,"User note:"]
[]
[null,null,"The fixing recommendations of the manufacturer of the tiles used for the specific region and/or situation are to be incorporated as supplementary preambles"]
[]
[null,null,"340  x 420mm \"Double Roman\" or similar approved concrete/terra cotta tiles nailed with non-corrosive tile nails to 38 x 38mm sawn softwood battens at 340mm centres"]
[]
[{"v":1,"d":"1 "},null,"Roof covering with pitch not exceeding 25 degrees",null,"m²",{"v":363,"d":"363 "},null,{"$f":"ROUND($F631*G631,2)","v":0}]
[]
[{"v":2,"d":"2 "},null,"Ridge tiles to match roofing tiles bedded and pointed in 1:3 cement mortar tinted to match tile colour",null,"m",{"v":71,"d":"71 "},null,{"$f":"ROUND($F633*G633,2)","v":0}]
[]
[{"v":3,"d":"3 "},null,"Hip tiles to match roofing tiles bedded and pointed in 1:3 cement mortar tinted to match tile colour",null,"m",{"v":27,"d":"27 "},null,{"$f":"ROUND($F635*G635,2)","v":0}]
[]
[{"v":4,"d":"4 "},null,"Verge capping tiles to match roofing tiles fixed with non-corrosive fixing accessories",null,"m",{"v":71,"d":"71 "},null,{"$f":"ROUND($F637*G637,2)","v":0}]
[]
[{"v":5,"d":"5 "},null,"Purpose made tile to end of ridge bedded and pointed in 1:3 cement mortar tinted to match tile colour",null,"No",{"v":16,"d":"16 "},null,{"$f":"ROUND($F639*G639,2)","v":0}]
[]
[null,null,"PROFILED METAL SHEETING AND ACCESSORIES (WORK GROUP 124)"]
[]
[null,null,"0,53mm \"Klip-Tite 700\" or similar approved, profile Z275 spelter galvanised steel light industrial troughed interlocking roof sheeting in single lengths and accessories, with \"Chromodek\" or similar approved finish to one side, fixed to timber purlins:"]
[]
[{"v":6,"d":"6 "},null,"Roof coverings with pitch not exceeding 25 degrees",null,"m²",{"v":83,"d":"83 "},null,{"$f":"ROUND($F645*G645,2)","v":0}]
[]
[null,null,"Accessories:"]
[]
[{"v":7,"d":"7 "},null,"Ridge capping 462mm girth",null,"m",{"v":36,"d":"36 "},null,{"$f":"ROUND($F649*G649,2)","v":0}]
[]
[null,null,"ROOF AND WALL INSULATION (WORK GROUP 122)"]
[]
[null,null,"Heavy industrial grade aluminium foil based insulation:"]
[]
[{"v":8,"d":"8 "},null,"Two sided bubble insulation membrane",null,"m²",{"v":446,"d":"446 "},null,{"$f":"ROUND($F655*G655,2)","v":0}]
[]
[null,null,"SECTION 2"]
[]
[null,null,"BILL NO. 3"]
[]
[null,null,"CARPENTRY AND JOINERY"]
[]
[null,null,"WORK GROUP ALLOCATION"]
[]
[null,null,"Unless otherwise stated, all items in this Bill will be allocated to Work Group 126 - Carpentry & Joinery"]
[]
[null,null,"PREAMBLES"]
[]
[null,null,"The General Preambles for Trades (2017 edition) as published by the Association of South African Quantity Surveyors shall be deemed to be incorporated in these bills of quantities and no claims arising from brevity of description of items fully described in the said General Preambles will be entertained"]
[]
[null,null,"The following \"Supplementary Preambles\" are incorporated in this bill to satisfy the requirements of the project and shall take precedence over the provisions of the said General Preambles"]
[]
[null,null,"SUPPLEMENTARY PREAMBLES"]
[]
[null,null,"Fixing:"]
[]
[null,null,"Items described as \"nailed\" shall be deemed to be fixed with hardened steel nails or pins, or to be shot-pinned, to brickwork or concrete"]
[]
[null,null,"Items described as \"plugged\" shall be deemed to include screwing to fibre, plastic or metal plugs at not exceeding 500mm centres, and where described as \"bolted\", the bolts have been given separately elsewhere"]
[]
[null,null,"Joinery:"]
[]
[null,null,"Descriptions of frames shall be deemed to include frames, transomes, rails, etc"]
[]
[null,null,"Descriptions of hardwood joinery shall be deemed to include sinking and pelleting heads and nuts of bolts"]
[]
[null,null,"Particle board"]
[]
[null,null,"All particle board shall comply with SANS 50312 having the required marking as per SANS 50312/EN 312"]
[]
[null,null,"Decorative thermosetting plastic laminate covering:"]
[]
[null,null,"Laminate covering shall be glued under pressure and edge strips of same shall be butt jointed at junctions with adjacent similar finish"]
[]
[null,null,"Sizes:"]
[]
[null,null,"Sizes are nominal and the Contractor shall make allowance in his prices for minor variances in stated finished sizes of timber doors, door members, door frames, architraves, etc"]
[]
[null,null,"Prices"]
[]
[null,null,"Prices for all joinery work are to include for general framing, housing and notching, arris rounded angles, glueing, blocking, planting on, screwing, adhesives, dowels, pellets, cross tongues, screws and nails and setting up complete and also for all square cutting and waste. Tops shall be secured with metal or hardwood buttons."]
[]
[null,null,"ROOFS, ETC"]
[]
[null,null,"EAVES, VERGES, ETC"]
[]
[null,null,"Medium density plain fibre-cement fascias and barge boards:"]
[]
[{"v":1,"d":"1 "},null,"19 x 235mm Fascias and barge boards, including aluminium H-profile jointing strips",null,"m",{"v":263,"d":"263 "},null,{"$f":"ROUND($F709*G709,2)","v":0}]
[]
[null,null,"FLOORS, ETC"]
[]
[null,null,"SKIRTINGS"]
[]
[null,null,"Wrought meranti:"]
[]
[{"v":2,"d":"2 "},null,"19 x 76mm Skirtings including 19mm quadrant bead, nailed",null,"m",{"v":372,"d":"372 "},null,{"$f":"ROUND($F717*G717,2)","v":0}]
[]
[null,null,"DOORS, ETC"]
[]
[null,null,"Solid hardwood with slated panels with sides and counselled edges to suit opening, hung to steel frames:"]
[]
[{"v":3,"d":"3 "},null,"44mm Door 900 x 2400mm high, including 390 x 300mm high framed openings (TP-02)",null,"No",{"v":9,"d":"9 "},null,{"$f":"ROUND($F723*G723,2)","v":0}]
[]
[{"v":4,"d":"4 "},null,"44mm Door 890 x 2125mm high (TP-03)",null,"No",{"v":1,"d":"1 "},null,{"$f":"ROUND($F725*G725,2)","v":0}]
[]
[{"v":5,"d":"5 "},null,"44mm Door 813 x 2125mm high (TP-04)",null,"No",{"v":4,"d":"4 "},null,{"$f":"ROUND($F727*G727,2)","v":0}]
[]
[{"v":6,"d":"6 "},null,"44mm Door 845 x 3230mm high (TP-06)",null,"No",{"v":1,"d":"1 "},null,{"$f":"ROUND($F729*G729,2)","v":0}]
[]
[null,null,"Semi-solid timber, hung to steel frames:"]
[]
[{"v":7,"d":"7 "},null,"44mm Door 820 x 2100mm high with concealed edges to suit opening (TP-05)",null,"No",{"v":10,"d":"10 "},null,{"$f":"ROUND($F733*G733,2)","v":0}]
[]
[null,null,"SUPPLEMENTARY PREAMBLES"]
[]
[null,null,"Fire doors:"]
[]
[null,null,"Fire doors are to be in accordance with SANS 1253"]
[]
[null,null,"BUDGETARY ALLOWANCE"]
[]
[{"v":8,"d":"8 "},null,"Provide a budgetary allowance of Twenty Five Thousand Rand for sundry carpentry and joinery to be used as directed by the Principal Agent and to be deducted in whole or in part if not required.",null,"Item",{"v":1,"d":"1 "},null,{"$f":"ROUND($F743*G743,2)","v":0}]
[]
[null,null,"SECTION 2"]
[]
[null,null,"BILL NO. 4"]
[]
[null,null,"CEILINGS, PARTITIONS AND ACCESS FLOORING"]
[]
[null,null,"WORK GROUP ALLOCATION"]
[]
[null,null,"Unless otherwise stated, all items in this Bill will be allocated to Work Group 129 - Ceilings"]
[]
[null,null,"PREAMBLES"]
[]
[null,null,"The General Preambles for Trades (2017 edition) as published by the Association of South African Quantity Surveyors shall be deemed to be incorporated in these bills of quantities and no claims arising from brevity of description of items fully described in the said General Preambles will be entertained"]
[]
[null,null,"The following \"Supplementary Preambles\" are incorporated in this bill to satisfy the requirements of the project and shall take precedence over the provisions of the said General Preambles"]
[]
[null,null,"SUPPLEMENTARY PREAMBLES"]
[]
[null,null,"Fixing:"]
[]
[null,null,"Items described as \"nailed\" shall be deemed to be fixed with hardened steel nails or pins, or to be shot-pinned, to brickwork or concrete"]
[]
[null,null,"Items described as \"plugged\" shall be deemed to include screwing to fibre, plastic or metal plugs at not exceeding 500mm centres, and where described as \"bolted\", the bolts have been given separately elsewhere"]
[]
[null,null,"Ceilings:"]
[]
[null,null,"Unless otherwise described, ceilings shall be deemed to be horizontal"]
[]
[null,null,"Bulkheads:"]
[]
[null,null,"Bulkheads are defined as those portions of ceilings which are stepped down from the general ceiling level in a particular room or area and which generally occur along the perimeter. Their purpose is either to conceal services or to create architectural features"]
[]
[null,null,"Bulkheads have only been described as such where they conform to the above definition and where the horizontal, vertical or sloping dimensions do not exceed 1200mm. Where these dimensions are more than 1200mm such portions of ceilings have been included in the appropriate general items of ceilings"]
[]
[null,null,"Unless otherwise described, bulkheads shall be deemed to be horizontal along the length"]
[]
[null,null,"Openings:"]
[]
[null,null,"Prices for openings for light fittings, ventilation grilles, air conditioning diffusers, etc. are to include for any necessary additional support, trimming around, etc."]
[]
[null,null,"Steel components:"]
[]
[null,null,"All steel components for ceilings, partitions, etc are to be galvanised in accordance with SANS 121"]
[]
[null,null,"INSULATION"]
[]
[null,null,"Non-combustible fibreglass insulation of a density of not less than 10kg/m3 bonded with an inert thermo-setting resin:"]
[]
[{"v":1,"d":"1 "},null,"120mm Insulation in blanket form, closely fitted and laid on top of brandering between roof timbers, etc.",null,"m²",{"v":275,"d":"275 "},null,{"$f":"ROUND($F793*G793,2)","v":0}]
[]
[null,null,"NAILED UP CEILINGS"]
[]
[null,null,"12mm Fibre-cement plain ceiling boards with H-profile galvanised steel jointing strips:"]
[]
[{"v":2,"d":"2 "},null,"Ceilings including 38 x 38mm sawn softwood brandering at 400mm centres and cross brandering at 400mm centres",null,"m²",{"v":275,"d":"275 "},null,{"$f":"ROUND($F799*G799,2)","v":0}]
[]
[{"v":3,"d":"3 "},null,"Extra over ceiling for 600 x 600mm trap door of 38 x 38mm wrought softwood rebated framing with one cross brander, covered with ceiling board and fitted flush in opening, including necessary trimmers around",null,"No",{"v":16,"d":"16 "},null,{"$f":"ROUND($F801*G801,2)","v":0}]
[]
[null,null,"Gypsum plasterboard cornices:"]
[]
[{"v":4,"d":"4 "},null,"75mm Coved cornices",null,"m",{"v":372,"d":"372 "},null,{"$f":"ROUND($F805*G805,2)","v":0}]
[]
[null,null,"SECTION 2"]
[]
[null,null,"BILL NO. 5"]
[]
[null,null,"IRONMONGERY"]
[]
[null,null,"WORK GROUP ALLOCATION"]
[]
[null,null,"Unless otherwise stated, all items in this Bill will be allocated to Work Group 132 - Ironmongery"]
[]
[null,null,"PREAMBLES"]
[]
[null,null,"The General Preambles for Trades (2017 edition) as published by the Association of South African Quantity Surveyors shall be deemed to be incorporated in these bills of quantities and no claims arising from brevity of description of items fully described in the said General Preambles will be entertained"]
[]
[null,null,"The following \"Supplementary Preambles\" are incorporated in this bill to satisfy the requirements of the project and shall take precedence over the provisions of the said General Preambles"]
[]
[null,null,"SUPPLEMENTARY PREAMBLES"]
[]
[null,null,"Proprietary items:"]
[]
[null,null,"Where applicable, the manufacturers' names or product catalogue titles are given in sub-headings preceding the itemsNote that the manufacturers names specified in this trade are for the purposes of competitive pricing. Prices are to be based on the specific products/articles specified.On request, returnable samples are to be provided to the Project Manager for consideration"]
[]
[null,null,"Locks:"]
[]
[null,null,"Notwithstanding Clause 2, Item 3 of the \"Ironmongery\" trade of the \"Standard System of Measuring Building Work, Seventh Edition\", descriptions of locks shall be deemed to include two keys per lock"]
[]
[null,null,"Finishes to ironmongery:"]
[]
[null,null,"Where applicable, finishes to ironmongery are indicated by suffixes in accordance with the following list: BS\tSatin bronze lacqueredCH\tChromium plated SC\tSatin chromium plated SE\tSilver enamelled GE\tGrey enamelledAN\tAnodised natural AS\tAnodised silver AB\tAnodised bronze AG\tAnodised gold ABL\tAnodised black PB\tPolished brass PL\tPolished and lacquered PT\tEpoxy coated SD\tSandedBBS\tBrushed stainless steel"]
[]
[null,null,"HINGES, BOLTS, ETC"]
[]
[null,null," \"Union\" or similar approved:"]
[]
[{"v":1,"d":"1 "},null,"\"Ref. CZ80941SCR\" or similar approved sliding indicator bolt set",null,"No",{"v":12,"d":"12 "},null,{"$f":"ROUND($F841*G841,2)","v":0}]
[]
[null,null,"LOCKS"]
[]
[{"v":2,"d":"2 "},null,"75mm Three lever upright mortice rebated lockset with satin chrome furniture (TP-01)",null,"No",{"v":17,"d":"17 "},null,{"$f":"ROUND($F845*G845,2)","v":0}]
[]
[null,null,"\"Calini\" or similar approved:"]
[]
[{"v":3,"d":"3 "},null,"\"Ref. IW2051\" or similar approved double cylinder suitable for master key",null,"No",{"v":1,"d":"1 "},null,{"$f":"ROUND($F849*G849,2)","v":0}]
[]
[null,null,"HANDLES"]
[]
[null,null,"\"Union Assa Abloy\" or similar approved:"]
[]
[{"v":4,"d":"4 "},null,"\"Ref.AL6D67-05A5\" or similar approved anodised aluminium pull handle with back plates",null,"No",{"v":26,"d":"26 "},null,{"$f":"ROUND($F855*G855,2)","v":0}]
[]
[{"v":5,"d":"5 "},null,"100mm Chromium plated bow handle bolted through door with the bolt ends hammered to prevent the nuts being removed",null,"No",{"v":17,"d":"17 "},null,{"$f":"ROUND($F857*G857,2)","v":0}]
[]
[null,null,"DOOR CLOSERS"]
[]
[null,null,"\"Union Assa Abloy\" or similar approved:"]
[]
[{"v":6,"d":"6 "},null,"\"Ref. 7770\" door closer",null,"No",{"v":12,"d":"12 "},null,{"$f":"ROUND($F863*G863,2)","v":0}]
[]
[null,null,"SUNDRIES"]
[]
[null,null,"\"Union Assa Abloy\"or similar approved:"]
[]
[{"v":7,"d":"7 "},null,"\"Ref. 99022SS\" door stop, plugged",null,"No",{"v":31,"d":"31 "},null,{"$f":"ROUND($F869*G869,2)","v":0}]
[]
[null,null,"BATHROOM FITTINGS"]
[]
[null,null,"\"Franke\" or similar approved:"]
[]
[{"v":8,"d":"8 "},null,"\"Ref. EXOS618X\" soap dispenser, plugged",null,"No",{"v":11,"d":"11 "},null,{"$f":"ROUND($F875*G875,2)","v":0}]
[]
[{"v":9,"d":"9 "},null,"\"Ref. STRX672\" stainless steel lockable toilet roll holder, plugged",null,"No",{"v":7,"d":"7 "},null,{"$f":"ROUND($F877*G877,2)","v":0}]
[]
[{"v":10,"d":"10 "},null,"\"Ref. RODX602 \" paper towel dispenser and waste bin combination, plugged",null,"No",{"v":15,"d":"15 "},null,{"$f":"ROUND($F879*G879,2)","v":0}]
[]
[{"v":11,"d":"11 "},null,"\"Ref. BS611V\"  stainless steel sanitary towel disposal bin, plugged",null,"No",{"v":3,"d":"3 "},null,{"$f":"ROUND($F881*G881,2)","v":0}]
[]
[{"v":12,"d":"12 "},null,"Franke Ref: RODX310' or similar approved, wall mounted automated hands free hand dryer; Satin finish; overall size 314 x 215 x 163mm; 100W motor connected to 230/240 volt power supply",null,"No",{"v":11,"d":"11 "},null,{"$f":"ROUND($F883*G883,2)","v":0}]
[]
[{"v":13,"d":"13 "},null,"32mm \"Ref. CNTX750\" stainless steel back grab rail 750mm long, plugged",null,"No",{"v":1,"d":"1 "},null,{"$f":"ROUND($F885*G885,2)","v":0}]
[]
[{"v":14,"d":"14 "},null,"32mm \"Ref. CNTX700A\" stainless steel side grab rail 874mm girth, plugged",null,"No",{"v":1,"d":"1 "},null,{"$f":"ROUND($F887*G887,2)","v":0}]
[]
[null,null,"BUDGETARY ALLOWANCE"]
[]
[{"v":15,"d":"15 "},null,"Provide a budgetary allowance of Twenty Five Thousand Rand for sundry ironmongery to be used as directed by the Principal Agent and to be deducted in whole or in part if not required.",null,"Item",{"v":1,"d":"1 "},null,{"$f":"ROUND($F891*G891,2)","v":0}]
[]
[null,null,"SECTION 2"]
[]
[null,null,"BILL NO. 6"]
[]
[null,null,"STRUCTURAL STEELWORK"]
[]
[null,null,"WORK GROUP ALLOCATION"]
[]
[null,null,"Unless otherwise stated, all items in this Bill will be allocated to Work Group 134 - Structural Steelwork in Buildings"]
[]
[null,null,"PREAMBLES"]
[]
[null,null,"The General Preambles for Trades (2017 edition) as published by the Association of South African Quantity Surveyors shall be deemed to be incorporated in these bills of quantities and no claims arising from brevity of description of items fully described in the said General Preambles will be entertained"]
[]
[null,null,"The following \"Supplementary Preambles\" are incorporated in this bill to satisfy the requirements of the project and shall take precedence over the provisions of the said General Preambles"]
[]
[null,null,"SUPPLEMENTARY PREAMBLES"]
[]
[null,null,"Specification:"]
[]
[null,null,"All structural steel must comply with SANS 1200H (Degree of Accuracy II)"]
[]
[null,null,"All hot rolled structural steel sections must comply with SANS 1431 grade 300W, unless otherwise specified on the drawings"]
[]
[null,null,"Unless otherwise designated, all bolts and nuts will be grade 4.6 to SANS 135 and BS 916. Descriptions of bolts shall be deemed to include nuts and washers. Descriptions of L-shaped and U-shaped anchor bolts shall be deemed to include bending, threading, nuts and washers and embedding in concrete. Descriptions of expansion anchors and bolts and chemical anchors and bolts shall be deemed to include nuts, washers and mortices in brickwork or concrete"]
[]
[null,null,"All connections must be welded all round with a 6mm fillet weld, unless otherwise specified on the drawings"]
[]
[null,null,"Drawings and shop details:"]
[]
[null,null,"The Contractor shall be responsible for preparing shop drawings and details which must be submitted to the Principal Agent for approval prior to commencement of fabrication.  Before commencing any fabrication, the steel fabricator must check the accessibility of the site and design the sizes of individual parts accordingly"]
[]
[null,null,"Hot-dipped galvanizing:"]
[]
[null,null,"After fabrication and prior to delivery to site, all steelwork described as hot-dipped galvanized, is to be descaled and thoroughly cleaned by pickling, after which it is to be hot dip galvanized in accordance with the requirements of SANS 121/1501461"]
[]
[null,null,"Descriptions:"]
[]
[null,null,"Descriptions of bolts shall be deemed to include nuts and washers"]
[]
[null,null,"Descriptions of L-shaped and U-shaped anchor bolts shall be deemed to include bending, threading, nuts and washers and embedding in concrete"]
[]
[null,null,"Descriptions of expansion anchors and bolts and chemical anchors and bolts shall be deemed to include nuts, washers and mortices in brickwork or concrete"]
[]
[null,null,"BUDGETARY ALLOWANCE"]
[]
[{"v":1,"d":"1 "},null,"Provide a budgetary allowance of One Hundred and Fifty Thousand Rand for sundry alterations to structural steelworks be used as directed by the Principal Agent and to be deducted in whole or in part if not required.",null,"Item",{"v":1,"d":"1 "},null,{"$f":"ROUND($F939*G939,2)","v":0}]
[]
[null,null,"Paint testing:"]
[]
[{"v":2,"d":"2 "},null,"Subcontract amount of Twenty Five Thousand Rand for quality control inspection by an authorised independent authority",null,"SUM",{"v":1,"d":"1 "},null,{"$f":"ROUND($F943*G943,2)","v":0}]
[]
[{"v":3,"d":"3 "},null,"Profit",null,"%",{"v":0,"d":"0%"},null,{"$f":"ROUND($F945*G945,2)","v":0}]
[]
[{"v":4,"d":"4 "},null,"Attendance",null,"%",{"v":0,"d":"0%"},null,{"$f":"ROUND($F947*G947,2)","v":0}]
[]
[null,null,"SECTION 2"]
[]
[null,null,"BILL NO. 7"]
[]
[null,null,"METALWORK"]
[]
[null,null,"WORK GROUP ALLOCATION"]
[]
[null,null,"Unless otherwise stated, all items in this Bill will be allocated to Work Group 136 - Metalwork"]
[]
[null,null,"PREAMBLES"]
[]
[null,null,"The General Preambles for Trades (2017 edition) as published by the Association of South African Quantity Surveyors shall be deemed to be incorporated in these bills of quantities and no claims arising from brevity of description of items fully described in the said General Preambles will be entertained"]
[]
[null,null,"The following \"Supplementary Preambles\" are incorporated in this bill to satisfy the requirements of the project and shall take precedence over the provisions of the said General Preambles"]
[]
[null,null,"SUPPLEMENTARY PREAMBLES"]
[]
[null,null,"Descriptions of bolts, anchors, etc:"]
[]
[null,null,"Descriptions of bolts shall be deemed to include nuts and washers"]
[]
[null,null,"Descriptions of expansion anchors and bolts and chemical anchors and bolts shall be deemed to include nuts, washers and mortices in brickwork or concrete"]
[]
[null,null,"Items described as \"holed for bolt(s)\" shall be deemed to exclude the bolts, unless otherwise described"]
[]
[null,null,"Items described as \"plugged\" shall be deemed to include screwing to fibre, plastic or metal plugs at not exceeding 600mm centres"]
[]
[null,null,"Fixing:"]
[]
[null,null,"Unless otherwise described, descriptions of items shall be deemed to include for fixing to brickwork or concrete  Where items are described as \"bolted\", the bolts are measured elsewhere as stated in clause N.7 of the Model Preambles"]
[]
[null,null,"STEEL GATES, SCREENS, ETC"]
[]
[null,null,"Epoxy coated welded screens and gates, to brickwork:"]
[]
[{"v":1,"d":"1 "},null,"Steel security gate approximately 1500mm wide x 2100mm high overall (TP-03)",null,"No",{"v":6,"d":"6 "},null,{"$f":"ROUND($F985*G985,2)","v":0}]
[]
[null,null,"PRESSED STEEL DOOR FRAMES"]
[]
[null,null,"1,6mm Rebated frames suitable for one brick walls:"]
[]
[{"v":2,"d":"2 "},null,"Frame for door 820 x 2400mm high with three hinges per leaf (TP-02)",null,"No",{"v":9,"d":"9 "},null,{"$f":"ROUND($F991*G991,2)","v":0}]
[]
[{"v":3,"d":"3 "},null,"Frame for door 810 x 2125mm high with three hinges per leaf (TP-03)",null,"No",{"v":1,"d":"1 "},null,{"$f":"ROUND($F993*G993,2)","v":0}]
[]
[{"v":4,"d":"4 "},null,"Frame for door 813 x 2125mm high with three hinges per leaf (TP-04)",null,"No",{"v":13,"d":"13 "},null,{"$f":"ROUND($F995*G995,2)","v":0}]
[]
[{"v":5,"d":"5 "},null,"Frame for door 900x 2100mm high with three hinges per leaf (TP-05)",null,"No",{"v":9,"d":"9 "},null,{"$f":"ROUND($F997*G997,2)","v":0}]
[]
[null,null,"PRESSED STEEL COMBINATION DOORS AND FRAMES"]
[]
[null,null,"Flush both sides doors:"]
[]
[{"v":6,"d":"6 "},null," 835 x 2070mm High anti-corrosive galvanised and epoxy coated mild steel door with concealed sides and edges (TP-01)",null,"No",{"v":8,"d":"8 "},null,{"$f":"ROUND($F1003*G1003,2)","v":0}]
[]
[null,null,"BUDGETARY ALLOWANCE"]
[]
[{"v":7,"d":"7 "},null,"Provide a budgetary allowance of Twenty Five Thousand Rand for sundry metalwork to be used as directed by the Principal Agent and to be deducted in whole or in part if not required.",null,"Item",{"v":1,"d":"1 "},null,{"$f":"ROUND($F1007*G1007,2)","v":0}]
[]
[null,null,"SECTION 2"]
[]
[null,null,"BILL NO. 8"]
[]
[null,null,"PLASTERING"]
[]
[null,null,"WORK GROUP ALLOCATION"]
[]
[null,null,"Unless otherwise stated, all items in this Bill will be allocated to Work Group 142 - In situ finishes"]
[]
[null,null,"PREAMBLES"]
[]
[null,null,"The General Preambles for Trades (2017 edition) as published by the Association of South African Quantity Surveyors shall be deemed to be incorporated in these bills of quantities and no claims arising from brevity of description of items fully described in the said General Preambles will be entertained"]
[]
[null,null,"The following \"Supplementary Preambles\" are incorporated in this bill to satisfy the requirements of the project and shall take precedence over the provisions of the said General Preambles"]
[]
[null,null,"SUPPLEMENTARY PREAMBLES"]
[]
[null,null,"Moisture tests:"]
[]
[null,null,"Before any finishes, coverings, etc are applied to screeds, plastering, etc or any other in-situ finish, moisture tests are to be carried out to the  complete satisfaction of the Project Manager to ensure that these surfaces have the correct moisture content for the finish to be applied"]
[]
[null,null,"Labours, etc"]
[]
[null,null,"Labours such as fair, rounded and chamfered edges, trowel cuts, throats, V-joints, angles, etc shall be deemed to be included in the descriptions"]
[]
[null,null,"Sample Panels"]
[]
[null,null,"A sample panel size 1m x1m, of each of the various plaster type wall and floor finishes in this contract, shall be prepared for the approval of the Project Manager and the cost of the sample panel(s) shall be deemed to be included in the overall costs of the relevant wall and floor finishes"]
[]
[null,null,"GRANOLITHIC"]
[]
[null,null,"Method:"]
[]
[null,null,"The method to be used shall be either the monolithic method or the bonded method"]
[]
[null,null,"Preparation:"]
[]
[null,null,"For granolithic applied monolithically, the concrete floor shall be swept clean after bleeding of the concrete has ceased and the slab has begun to stiffen; any remaining bleed water shall be removed and the granolithic applied immediately thereafter. For granolithic to be bonded to the floor slab after it has hardened, the slab surface shall be hacked (preferably by mechanical means) until all laitance, dirt, oil, etc is dislodged and swept clean of all loose matter. The slab shall then be wetted and kept damp for at least six hours before applying the granolithic"]
[]
[null,null,"Mix:"]
[]
[null,null,"Unless otherwise described, granolithic shall attain a compressive strength of at least 41MPa. The coarse aggregate shall comply with SANS 1083 and shall generally be capable of passing a 10mm mesh sieve. Where the thickness of the granolithic exceeds 25mm, the size of the coarse aggregate shall be increased to the maximum size compatible with the thickness of the granolithic"]
[]
[null,null,"Panels:"]
[]
[null,null,"Granolithic shall be laid in panels not exceeding 14m\"² for monolithic finishes, not exceeding 9,5m\"² for bonded finishes and not exceeding 6m\"² for all external granolithic. Wherever possible, panels shall be square but at no time should the length of the panel exceed 1,5 times its width"]
[]
[null,null,"Where possible joints between panels shall be positioned over joints in the floor slab and shall be at least 3mm wide through the full thickness of the finish, separated by strips of wood or fibreboard and finished with V-joints"]
[]
[null,null,"Laying:"]
[]
[null,null,"Monolithic granolithic shall be applied to the partially set slab and thoroughly compacted and lightly wood floated to the required levels"]
[]
[null,null,"Bonded granolithic shall be applied to the slab after applying a 1:1 sand-and-cement slurry brushed over the surface and allowed to partially set before applying the granolithic. The granolithic shall be throughly compacted and lightly wood floated to the required levels"]
[]
[null,null,"After wood floating, the monolithic and bonded granolithic shall remain undisturbed until bleeding has ceased and the surface has stiffened. Any remaining bleed water and laitance shall then be removed and the surface steel trowelled or power floated"]
[]
[null,null,"Curing, seasoning and protection:"]
[]
[null,null,"Granolithic shall be covered with clean hessian with waterproof building foil over and kept wet for at least seven days after laying"]
[]
[null,null,"Colour:"]
[]
[null,null,"Coloured granolithic shall be tinted with an approved colouring pigment mixed into a true and even colour"]
[]
[null,null,"TINTED WHITE CEMENT SCREEDS"]
[]
[null,null,"Tinted screed shall be composed of one bag White Portland Cement or similar approved and two wheelbarrows \"Malmesbury\" or similar approved sand. Surfaces shall be finished with a steel trowel to leave a smooth finish and coated with two coats \"Earthcote S.I. Floorcote\" or similar approved two-pack polyurethane floor sealer applied as per the manufacturer's recommendations"]
[]
[null,null,"NOTE: Tinted screeds are to be strengthened with \"Primal Eccos\" acrylic polymer (15% of the water volume is to be substituted with the acrylic polymer during the mixing process)  Coarse sand is to be used for these screeds  All tinting, finishing, strengthening, etc are to be mixed, applied, etc strictly in accoprdance with the manufacturer's instructions"]
[]
[null,null,"CEMENT PLASTER"]
[]
[null,null,"Unless otherwise described, cement plaster shall be taken to mean Class 1 cement plaster i.e. 1:4 cement:sand plaster (common cement)"]
[]
[null,null,"INTERNAL PLASTER"]
[]
[null,null,"Cement plaster wood floated for tiles, on brickwork:"]
[]
[{"v":1,"d":"1 "},null,"On walls",null,"m²",{"v":35,"d":"35 "},null,{"$f":"ROUND($F1089*G1089,2)","v":0}]
[]
[{"v":2,"d":"2 "},null,"On narrow widths",null,"m²",{"v":7,"d":"7 "},null,{"$f":"ROUND($F1091*G1091,2)","v":0}]
[]
[null,null,"EXTERNAL PLASTER"]
[]
[null,null,"Cement plaster wood floated on brickwork:"]
[]
[{"v":3,"d":"3 "},null,"On walls",null,"m²",{"v":335,"d":"335 "},null,{"$f":"ROUND($F1097*G1097,2)","v":0}]
[]
[{"v":4,"d":"4 "},null,"On narrow widths",null,"m²",{"v":42,"d":"42 "},null,{"$f":"ROUND($F1099*G1099,2)","v":0}]
[]
[null,null,"SECTION 2"]
[]
[null,null,"BILL NO. 9"]
[]
[null,null,"TILING"]
[]
[null,null,"WORK GROUP ALLOCATION"]
[]
[null,null,"Unless otherwise stated, all items in this Bill will be allocated to Work Group 144 - Tiling"]
[]
[null,null,"PREAMBLES"]
[]
[null,null,"The General Preambles for Trades (2017 edition) as published by the Association of South African Quantity Surveyors shall be deemed to be incorporated in these bills of quantities and no claims arising from brevity of description of items fully described in the said General Preambles will be entertained"]
[]
[null,null,"The following \"Supplementary Preambles\" are incorporated in this bill to satisfy the requirements of the project and shall take precedence over the provisions of the said General Preambles"]
[]
[null,null,"SUPPLEMENTARY PREAMBLES"]
[]
[null,null,"Fixing:"]
[]
[null,null,"Unless described as \"fixed with adhesive to plaster (plaster elsewhere)\", descriptions of tiling on brick or concrete walls, columns, etc shall be deemed to include 1:4 cement plaster backing and descriptions of tiling on concrete floors, etc shall be deemed to include 1:3 cement plaster bedding"]
[]
[null,null,"Tiling described as \"fixed with adhesive on power floated concrete\" shall be deemed to include for approved tiling key-coat"]
[]
[null,null,"Ceramic, porcelain, marble and granite tiles are to be fixed and grouted with suitable adhesives and grouts from the \"Tal Goldstar\" or similar approved range of products as recommended by the manufacturer of the tiles"]
[]
[null,null,"Preparatory work to existing painted plastered surfaces:"]
[]
[null,null,"Preparation of all existing painted plastered surfaces is to include for removing all loose and flaking material by wire brushing, thoroughly washing down and allowing to dry completely and applying one coat masonry bonding agent"]
[]
[null,null,"WALL TILING"]
[]
[null,null,"350 x 350mm Ceramic tiles (Allow a Prime Cost Amount of R 250/m2 delivered to site) fixed with adhesive to plaster (plaster elsewhere) and flush pointing with and including waterproof grout:"]
[]
[{"v":1,"d":"1 "},null,"On walls",null,"m²",{"v":237,"d":"237 "},null,{"$f":"ROUND($F1135*G1135,2)","v":0}]
[]
[{"v":2,"d":"2 "},null,"On narrow widths",null,"m²",{"v":19,"d":"19 "},null,{"$f":"ROUND($F1137*G1137,2)","v":0}]
[]
[null,null,"FLOOR TILING"]
[]
[null,null,"600 x 600mm Porcelain floor tiles (Allow a Prime Cost Amount of R 350/m2 delivered to site) fixed with adhesive to screed (screed elsewhere) and flush pointing with and including waterproof grout:"]
[]
[{"v":3,"d":"3 "},null,"On floors",null,"m²",{"v":276,"d":"276 "},null,{"$f":"ROUND($F1143*G1143,2)","v":0}]
[]
[{"v":4,"d":"4 "},null,"Skirting 100mm high (of fair cut tiles)",null,"m",{"v":2,"d":"2 "},null,{"$f":"ROUND($F1145*G1145,2)","v":0}]
[]
[null,null,"SUNDRIES"]
[]
[null,null,"Stainless steel dividing strips:"]
[]
[{"v":5,"d":"5 "},null,"28 x 10 x 2,5mm L-section dividing strips between tiles",null,"m",{"v":38,"d":"38 "},null,{"$f":"ROUND($F1151*G1151,2)","v":0}]
[]
[null,null,"SECTION 2"]
[]
[null,null,"BILL NO. 10"]
[]
[null,null,"PLUMBING AND DRAINAGE (PROVISIONAL)"]
[]
[null,null,"WORK GROUP ALLOCATION"]
[]
[null,null,"The items in this Bill will be allocated to Work Groups as indicated in brackets at the end of headings or descriptions"]
[]
[null,null,"PREAMBLES"]
[]
[null,null,"The General Preambles for Trades (2017 edition) as published by the Association of South African Quantity Surveyors shall be deemed to be incorporated in these bills of quantities and no claims arising from brevity of description of items fully described in the said General Preambles will be entertained"]
[]
[null,null,"The following \"Supplementary Preambles\" are incorporated in this bill to satisfy the requirements of the project and shall take precedence over the provisions of the said General Preambles"]
[]
[null,null,"SUPPLEMENTARY PREAMBLES"]
[]
[null,null,"Wire gratings:"]
[]
[null,null,"Descriptions of gutter outlets, etc shall be deemed to include wire balloon gratings"]
[]
[null,null,"Stormwater channels:"]
[]
[null,null,"Descriptions of channels shall be deemed to include necessary excavation, surface preparation, compaction, etc and disposal of surplus material on site"]
[]
[null,null,"French drains:"]
[]
[null,null,"Descriptions of french drains shall be deemed to include excavation, stone filling graded from 300mm diameter at bottom to 75mm diameter at top, approved geofabric filter blanket over stone, 300mm earthfilling over and disposal of surplus material on site"]
[]
[null,null,"Septic tanks:"]
[]
[null,null,"Descriptions of proprietary type septic tanks shall be deemed to include excavation, bedding and jointing, concrete base slabs, jointing to drains and backfilling, compaction, etc all in accordance with the manufacturer's instructions and disposal of surplus material on site"]
[]
[null,null,"Stainless steel basins, sinks, wash troughs, urinals, etc:"]
[]
[null,null,"Stainless steel for economy basins, domestic sinks and worktops shall be Type 430 (17/0)  Stainless steel for urinals, basins, quality sinks, wash troughs, institutional equipment, etc shall be Type 304 (18/8)  Stainless steel for laboratory sinks, photographic equipment, etc shall be Type 316 (18/8)  Units shall have standard aprons on all exposed edges and tiling keys against walls where applicable"]
[]
[null,null,"Sealing of edges:"]
[]
[null,null,"Outer edges of sinks, basins, baths, urinals, etc are to be sealed against adjacent surfaces with approved mildew resistant silicone sealant and prices must include therefor"]
[]
[null,null,"uPVC pipes and fittings:"]
[]
[null,null,"Sewer and drainage pipes and fittings shall be jointed and sealed with butyl rubber rings  Soil, waste and vent pipes and fittings shall be solvent weld jointed or sealed with butyl rubber rings"]
[]
[null,null,"uPVC pressure pipes and fittings:"]
[]
[null,null,"Pipes of 50mm diameter and smaller shall be plain ended with solvent welded uPVC loose sockets and fittings  Pipes of 63mm diameter and greater shall have sockets and spigots with push-in type integral rubber ring joints.  Bends shall be uPVC and all other fittings shall be cast iron, all with similar push-in type joints"]
[]
[null,null,"High density polyethylene (HDPe) pipes and fittings:"]
[]
[null,null,"Pipes shall be type IV and of the class specified with \"Plasson\" or \"Alprene\" or similar approved compression fittings"]
[]
[null,null,"Polycop polypropylene pipes:"]
[]
[null,null,"Polypropylene pipes 54mm diameter and smaller shall be seamless copper coloured Class 16 pipes jointed with \"Fast-fuse\" heat welded thermoplastic or where so described \"Polylock\" or similar approved compression fittings  Pipes shall be firmly fixed to walls, etc with coloured nylon snap-in pipe clips with provision for accommodating thermal movement and jointed and fixed strictly in accordance with the manufacturer's instructions"]
[]
[null,null,"Copper pipes:"]
[]
[null,null,"Pipes shall be hard drawn and half-hard \"Maksal\" or similar approved pipes of the class described.  Class 0 (thin walled hard drawn) pipes shall not be bent.  Class 1 (thin walled half-hard), Class 2 (half-hard) and Class 3 (heavy walled half-hard) pipes shall only be bent with benders with inner and outer formers.  Fittings to copper waste, vent and anti-syphon pipes, capillary solder fittings and compression fittings shall be \"Cobra Watertech\" similar approved type.  Capillary solder fittings shall comply with ISO 2016. Only compression fittings shall be used in walls or in ground"]
[]
[null,null,"Copper pipes are to be installed in accordance with the latest revision of the Code of Practice for Copper Plumbing soldering techniques.  Flux, solder, etc to be strictly in accordance with the manufacturer's requirements with special attention to copper flux composition"]
[]
[null,null,"Reducing fittings:"]
[]
[null,null,"Where fittings have reducing ends or branches they are described as \"reducing\". In the case of pipes with diameters not exceeding 60mm, only the largest end or branch size is given. Should the Contractor wish to use other fittings and bushes or reducers he may do so on the understanding that no claim in this regard will be entertained. In the case of pipes with diameters exceeding 60mm, all sizes are given and no claims for extra bushes, reducers, etc will be entertained"]
[]
[null,null,"Fixing of pipes:"]
[]
[null,null,"Unless specifically otherwise stated, descriptions of pipes shall be deemed to include fixing to walls, etc casting in, building in or suspending not exceeding 1m below suspension level"]
[]
[null,null,"Paper wrapping to pipes:"]
[]
[null,null,"Pipes chased into brickwork must be wrapped with two layers of stout brown paper tied with wire.  Rates are to include for wrapping around joints and fittings"]
[]
[null,null,"Disinfection of water pipework:"]
[]
[null,null,"Water pipework is to be disinfected at completion in accordance with SANS 1200L (provision for disinfection elsewhere)"]
[]
[null,null,"\"Densyl\" or similar approved petrolatum anti-corrosion tape"]
[]
[null,null,"Pipes to be taped shall be coated with the appropriate primer and the tape shall be applied in the appropriate widths and with suitable overlaps  Couplings and fittings to pipes shall be taped in strict accordance with the manufacturer's instructions including mastic, tape, \"Layflat\" or similar approved sheeting, securing of same, etc"]
[]
[null,null,"Prices for wrapping of pipes shall include for all work as described to couplings in the length"]
[]
[null,null,"Laying, backfilling, bedding, etc of pipes:"]
[]
[null,null,"Pipes shall be laid and bedded in accordance with manufacturers' instructions and trenches shall be carefully backfilled"]
[]
[null,null,"Where no manufacturers' instructions exist, pipes shall be laid in accordance with Clauses 5.1 and 5.2 of each of the following: SANS 1200L\t: Medium-pressure pipelines SANS 1200LD\t: Sewers SANS 1200LE\t: Stormwater drainage Pipe trenches, etc shall be backfilled in accordance with Clauses 3, 5.5, 5.6, 5.7 and 7 of SANS 1200DB : Earthworks (Pipe trenches)Pipes shall be bedded in accordance with Clauses 3.1 to 3.4.1, 5.1 to 5.3 and 7 of SANS 1200LB : Bedding (Pipes)Unless otherwise described, bedding of rigid pipes shall be Class B bedding"]
[]
[null,null,"General:"]
[]
[null,null,"Descriptions of cast iron roof outlets shall be deemed to include joints to pipes and casting into concrete (adaptors for joints to PVC pipes, etc are given separately)  Descriptions of overflow pipes where measured in number, shall be deemed to include joints to cisterns and splay cut ends"]
[]
[null,null,"Descriptions of pipes laid in and including trenches and of inspection chambers, catchpits, etc shall be deemed to include excavation, bedding, backfilling, compaction to a minimum of 98% Mod AASHTO density and disposal of surplus material on site"]
[]
[null,null,"Descriptions of service pipes and flexible connecting pipes shall be deemed to include connections to taps, cisterns, etc and to steel pipes (adaptors for connections to copper pipes, etc are given separately)"]
[]
[null,null,"Descriptions of WC pans, slop hoppers, etc shall be deemed to include for joints to soil pipes (pan connectors are separately measured) and shall have straight or side outlets and \"P\" or \"S\" traps as necessary"]
[]
[null,null,"Description of waste unions shall be deemed to include rubber or vulcanite plugs and chains fixed to fittings."]
[]
[null,null,"As-built drawings:"]
[]
[null,null,"Where required, the Contractor shall prepare an updated set of as-built drawings.  At completion of the contract the Contractor shall hand these drawings to the Project Manager for reproducing onto the originals for handing over to the Employer (provision for allowance of as-built drawings elsewhere)"]
[]
[null,null,"Proprietary items:"]
[]
[null,null,"Where applicable, the manufacturers' names or product catalogue titles are given in sub-headings preceding the itemsNote that the manufacturers names specified in this trade are for the purposes of competitive pricing. Prices are to be based on the specific products/articles specified.On request, returnable samples are to be provided to the Project Manager for consideration"]
[]
[null,null,"- - - - - - - - - - - - - - - - - - - - - - - - -"]
[]
[null,null,"SANITARY FITTINGS (WORK GROUP 148)"]
[]
[null,null,"\"Franke\" or similar approved stainless steel:"]
[]
[{"v":1,"d":"1 "},null,"1050 x 535mm \"Trendline 711 Code: 1030006\" sink with 350 x 460mm end bowl, on cupboard (cupboard elsewhere)",null,"No",{"v":1,"d":"1 "},null,{"$f":"ROUND($F1271*G1271,2)","v":0}]
[]
[null,null,"\"Vaal\" or similar approved:"]
[]
[{"v":2,"d":"2 "},null,"455 x 290mm \"Hibiscus\" 7050 wash hand basin bolted to wall",null,"No",{"v":4,"d":"4 "},null,{"$f":"ROUND($F1275*G1275,2)","v":0}]
[]
[{"v":3,"d":"3 "},null,"\"Hibiscus\" 772402 close-coupled WC suite comprising pan with double flap heavy duty thermoset seat (Code: 8531Z0) and matching 9 litre cistern",null,"No",{"v":5,"d":"5 "},null,{"$f":"ROUND($F1277*G1277,2)","v":0}]
[]
[{"v":4,"d":"4 "},null,"\"Lavatera\" 705426 wall urinal with spreader and waste union (flush valve elsewhere)",null,"No",{"v":3,"d":"3 "},null,{"$f":"ROUND($F1279*G1279,2)","v":0}]
[]
[{"v":5,"d":"5 "},null,"\"Pearl Paraplegic\" 7300SC  or similar approved paraplegic WC suite with lid, fitments, purpose made CP side flush lever and purpose made double flap white epoxy painted wooden seat",null,"No",{"v":1,"d":"1 "},null,{"$f":"ROUND($F1281*G1281,2)","v":0}]
[]
[null,null,"WASTE UNIONS, ETC"]
[]
[null,null,"\"Cobra Watertech\" or similar approved:"]
[]
[{"v":6,"d":"6 "},null,"40mm Code 317 CP basin waste union and code 309CP anti-theft plug",null,"No",{"v":4,"d":"4 "},null,{"$f":"ROUND($F1287*G1287,2)","v":0}]
[]
[null,null,"TRAPS, ETC"]
[]
[null,null,"uPVC:"]
[]
[{"v":7,"d":"7 "},null,"40mm \"P\" or \"S\" trap",null,"No",{"v":14,"d":"14 "},null,{"$f":"ROUND($F1293*G1293,2)","v":0}]
[]
[{"v":8,"d":"8 "},null,"50mm Code 365 CP bottle trap",null,"No",{"v":11,"d":"11 "},null,{"$f":"ROUND($F1295*G1295,2)","v":0}]
[]
[null,null,"TAPS, VALVES, ETC"]
[]
[null,null,"\"Cobra Watertech\" or similar approved:"]
[]
[{"v":9,"d":"9 "},null,"15mm Code1065-15CP fullway isolating ball valve",null,"No",{"v":14,"d":"14 "},null,{"$f":"ROUND($F1301*G1301,2)","v":0}]
[]
[{"v":10,"d":"10 "},null,"15mm Code 902CP \"Focus\" basin mixer with waste union, etc and angle flow regulating valves",null,"No",{"v":4,"d":"4 "},null,{"$f":"ROUND($F1303*G1303,2)","v":0}]
[]
[{"v":11,"d":"11 "},null,"15mm Code 902CP \"Focus\" basin or sink mixer with waste union, etc. and angle flow regulating valves",null,"No",{"v":1,"d":"1 "},null,{"$f":"ROUND($F1305*G1305,2)","v":0}]
[]
[{"v":12,"d":"12 "},null,"Code FJ6.000CP \"Flushmaster Junior\" urinal flush valve",null,"No",{"v":3,"d":"3 "},null,{"$f":"ROUND($F1307*G1307,2)","v":0}]
[]
[null,null,"AS-BUILT DRAWINGS"]
[]
[{"v":13,"d":"13 "},null,"Provision of as-built drawings",null,"Item",{"v":1,"d":"1 "},null,{"$f":"ROUND($F1311*G1311,2)","v":0}]
[]
[null,null,"BUDGETARY ALLOWANCE"]
[]
[{"v":14,"d":"14 "},null,"Provide a budgetary allowance of Twenty Five Thousand Rand for sundry plumbing works to be used as directed by the Principal Agent and to be deducted in whole or in part if not required.",null,"Item",{"v":1,"d":"1 "},null,{"$f":"ROUND($F1315*G1315,2)","v":0}]
[]
[null,null,"SECTION 2"]
[]
[null,null,"BILL NO. 11"]
[]
[null,null,"GLAZING"]
[]
[null,null,"WORK GROUP ALLOCATION"]
[]
[null,null,"Unless otherwise stated, all items in this Bill will be allocated to Work Group 150 - Glazing"]
[]
[null,null,"PREAMBLES"]
[]
[null,null,"The General Preambles for Trades (2017 edition) as published by the Association of South African Quantity Surveyors shall be deemed to be incorporated in these bills of quantities and no claims arising from brevity of description of items fully described in the said General Preambles will be entertained"]
[]
[null,null,"The following \"Supplementary Preambles\" are incorporated in this bill to satisfy the requirements of the project and shall take precedence over the provisions of the said General Preambles"]
[]
[null,null,"SUPPLEMENTARY PREAMBLES"]
[]
[null,null,"Float glass:"]
[]
[null,null,"The term \"float glass\" is used for monolithic annealed glass"]
[]
[null,null,"Laminated glass:"]
[]
[null,null,"Laminated glass to have polyvinyl butyral (PVB) interlayer(s)"]
[]
[null,null,"TOPS, SHELVES, DOORS, MIRRORS, ETC"]
[]
[null,null,"4mm Silvered float glass copper backed mirrors with 10mm bevelled and polished edges fixed with double sided adhesive tape:"]
[]
[{"v":1,"d":"1 "},null,"Mirror 600 x 900mm high",null,"No",{"v":11,"d":"11 "},null,{"$f":"ROUND($F1347*G1347,2)","v":0}]
[]
[null,null,"SECTION 2"]
[]
[null,null,"BILL NO. 12"]
[]
[null,null,"PAINTWORK"]
[]
[null,null,"WORK GROUP ALLOCATION"]
[]
[null,null,"Unless otherwise stated, all items in this Bill will be allocated to Work Group 152 - Painting"]
[]
[null,null,"PREAMBLES"]
[]
[null,null,"The General Preambles for Trades (2017 edition) as published by the Association of South African Quantity Surveyors shall be deemed to be incorporated in these bills of quantities and no claims arising from brevity of description of items fully described in the said General Preambles will be entertained"]
[]
[null,null,"The following \"Supplementary Preambles\" are incorporated in this bill to satisfy the requirements of the project and shall take precedence over the provisions of the said General Preambles"]
[]
[null,null,"SUPPLEMENTARY PREAMBLES"]
[]
[null,null,"PREPARATORY WORK TO EXISTING WORK"]
[]
[null,null,"Previously painted plastered surfaces:"]
[]
[null,null,"Surfaces shall be thoroughly washed down and allowed to dry completely before any paint is applied. Blistered or peeling paint shall be completely removed and minor cracks shall be opened, filled with a suitable filler and finished smooth"]
[]
[null,null,"Previously painted metal surfaces:"]
[]
[null,null,"Surfaces shall be thoroughly rubbed and cleaned down.  Blistered or peeling paint shall be completely removed down to bare metal"]
[]
[null,null,"Previously painted wood surfaces:"]
[]
[null,null,"Surfaces shall be thoroughly cleaned down.  Blistered or peeling paint shall be completely removed and cracks and crevices shall be primed, filled with suitable filler and finished smooth"]
[]
[null,null,"PAINT SPECIFICATIONS"]
[]
[null,null,"All painting shall be done in accordance with \"Plascon\" or similar approved, etc specifications, unless otherwise described"]
[]
[null,null,"COLOURS"]
[]
[null,null,"When staining timber, the resultant colour or shade must be to the complete satisfaction of the Project Manager before any overcoating or preservative is applied  Paintwork is classified in the following different colour groups: \"White\", \"Pastel\", \"Deep\" and \"Transparent\" in accordance with the \"Natural Colour System\" (NCS) adopted by the SA National Standards Unless otherwise described, all paintwork shall be deemed to be classified in the \"White\" colour group"]
[]
[null,null,"PAINTWORK, ETC TO PREVIOUSLY PAINTED WORK"]
[]
[null,null,"ON EXTERNAL FLOATED PLASTER SURFACES"]
[]
[null,null,"One coat alkali resistant plaster primer and two coats PVA acrylic emulsion paint on"]
[]
[{"v":1,"d":"1 "},null,"Walls",null,"m²",{"v":415,"d":"415 "},null,{"$f":"ROUND($F1395*G1395,2)","v":0}]
[]
[null,null,"ON INTERNAL FLOATED PLASTER SURFACES"]
[]
[null,null,"One coat superior quality acrylic emulsion paint for interior and exterior use, on work in sound condition:"]
[]
[{"v":2,"d":"2 "},null,"Walls",null,"m²",{"v":748,"d":"748 "},null,{"$f":"ROUND($F1401*G1401,2)","v":0}]
[]
[null,null,"ON FIBRE-CEMENT BOARD SURFACES"]
[]
[null,null,"One coat alkali resistant primer and two coats superior quality acrylic emulsion paint for interior and exterior use, on:"]
[]
[{"v":3,"d":"3 "},null,"Ceilings and cornices, including priming metal cover strips and nailheads",null,"m²",{"v":275,"d":"275 "},null,{"$f":"ROUND($F1407*G1407,2)","v":0}]
[]
[{"v":4,"d":"4 "},null,"Fascias and barge boards, including priming metal jointing strips",null,"m²",{"v":79,"d":"79 "},null,{"$f":"ROUND($F1409*G1409,2)","v":0}]
[]
[null,null,"METAL SURFACES WITH"]
[]
[null,null,"One coat alkyd based zinc phosphate primer and two coats premium quality polyurethane enamel paint, on steel:"]
[]
[{"v":5,"d":"5 "},null,"Door frames",null,"m²",{"v":50,"d":"50 "},null,{"$f":"ROUND($F1415*G1415,2)","v":0}]
[]
[{"v":6,"d":"6 "},null,"Windows with burglar bars",null,"m²",{"v":15,"d":"15 "},null,{"$f":"ROUND($F1417*G1417,2)","v":0}]
[]
[null,null,"ON WOOD SURFACES"]
[]
[null,null,"One coat primer, one coat alkyd based universal undercoat and two coats superior quality universal enamel paint, on:"]
[]
[{"v":7,"d":"7 "},null,"Doors",null,"m²",{"v":135,"d":"135 "},null,{"$f":"ROUND($F1423*G1423,2)","v":0}]
[]
[{"v":8,"d":"8 "},null,"Skirtings, rails, etc. not exceeding 300mm girth",null,"m",{"v":372,"d":"372 "},null,{"$f":"ROUND($F1425*G1425,2)","v":0}]
[]
[{"v":1,"d":"1 "},null,"Alterations",{"$nulls":4},{"$f":"SUM(H421:H597)","v":0}]
[]
[{"v":2,"d":"2 "},null,"Roof Coverings",{"$nulls":4},{"$f":"SUM(H605:H656)","v":0}]
[]
[{"v":3,"d":"3 "},null,"Carpentry and Joinery",{"$nulls":4},{"$f":"SUM(H683:H743)","v":0}]
[]
[{"v":4,"d":"4 "},null,"Ceilings, Partitions and Access Flooring",{"$nulls":4},{"$f":"SUM(H750:H805)","v":0}]
[]
[{"v":5,"d":"5 "},null,"Ironmongery",{"$nulls":4},{"$f":"SUM(H831:H891)","v":0}]
[]
[{"v":6,"d":"6 "},null,"Structural Steelwork",{"$nulls":4},{"$f":"SUM(H899:H948)","v":0}]
[]
[{"v":7,"d":"7 "},null,"Metalwork",{"$nulls":4},{"$f":"SUM(H961:H1007)","v":0}]
[]
[{"v":8,"d":"8 "},null,"Plastering",{"$nulls":4},{"$f":"SUM(H1077:H1100)","v":0}]
[]
[{"v":9,"d":"9 "},null,"Tiling",{"$nulls":4},{"$f":"SUM(H1109:H1152)","v":0}]
[]
[{"v":10,"d":"10 "},null,"Plumbing and Drainage",{"$nulls":4},{"$f":"SUM(H1236:H1316)","v":0}]
[]
[{"v":11,"d":"11 "},null,"Glazing",{"$nulls":4},{"$f":"SUM(H1321:H1348)","v":0}]
[]
[{"v":12,"d":"12 "},null,"Paintwork",{"$nulls":4},{"$f":"SUM(H1381:H1425)","v":0}]
[]
[null,null,"SECTION 3"]
[]
[null,null,"BILL NO. 1"]
[]
[null,null,"EXTERNAL WORK (PROVISIONAL)"]
[]
[null,null,"(ALL TRADES)"]
[]
[null,null,"WORK GROUP ALLOCATION"]
[]
[null,null,"The items in this Bill will be allocated to Work Groups as indicated in brackets at the end of headings or descriptions"]
[]
[null,null,"PREAMBLES"]
[]
[null,null,"The Model Preambles for Trades (2008 edition) as published by the Association of South African Quantity Surveyors shall be deemed to be incorporated in these bills of quantities and no claims arising from brevity of description of items fully described in the said General Preambles will be entertained"]
[]
[null,null,"The following \"Supplementary Preambles\" are incorporated in this bill to satisfy the requirements of the project and shall take precedence over the provisions of the said General Preambles"]
[]
[null,null,"SUPPLEMENTARY PREAMBLES"]
[]
[null,null,"Nature of ground:"]
[]
[null,null,"The nature of the ground is assumed to be loose sandy material, therefore \"earth\", but possibly interspersed with \"soft rock\" or \"hard rock\""]
[]
[null,null,"The nature of the ground is assumed to be gravel, therefore \"earth\", but possibly interspersed with \"soft rock\" or \"hard rock\""]
[]
[null,null,"The nature of the ground is assumed to be silty clay with loose river boulders varying in size up to approximately 450mm diameter, all of which will be deemed as \"earth\", but possibly interspersed with \"hard rock\""]
[]
[null,null,"Trial holes indicate that the nature of the ground is silty clay to a depth of approximately 500mm with fine to medium loose sandy material below, therefore \"earth\""]
[]
[null,null,"A soils investigation has been carried out on the site by the Engineer and the report is annexed to these bills of quantities.  The soils report indicates that the ground varies between transported soils at surface comprising gravel layers of varying  thickness and interspersed with clay, and weathered shales varying from very soft rock to medium hard rock consistency, all of which will be deemed as \"earth\". All very hard unweathered shale, ironstone, etc the removal of which necessitates the use of explosives or heavy duty hydraulic percussion hammers (peckers), will be classified as \"hard rock\""]
[]
[null,null,"Should the Contractor encounter any \"soft\" or \"hard\" rock in the excavations, he shall immediately notify the Engineer who shall be the sole arbiter as to what constitutes \"soft\" or \"hard\" rock for final account purposes"]
[]
[null,null,"Subterranean water:"]
[]
[null,null,"No subterranean water is expected"]
[]
[null,null,"Excavation for working space in rock:"]
[]
[null,null,"Notwithstanding clause 11 of the Standard System of Measuring Building Work, excavation for working space in rock will be measured in cubic metres to the extent executed and given as \"extra over\" bulk excavation or trench and hole excavation as the case may be"]
[]
[null,null,"Carting away of excavated material:"]
[]
[null,null,"Descriptions of carting away of excavated material shall be deemed to include loading excavated material onto trucks directly from the excavations or, alternatively, from stock piles situated on the building site"]
[]
[null,null,"Filling:"]
[]
[null,null,"Notwithstanding the reference to prescribed multiple handling in Clause 1 of the Standard System of Measuring Building Work, prices for filling and backfilling shall include for all selection and any necessary multiple handling of material"]
[]
[null,null,"Testing:"]
[]
[null,null,"Prices for backfilling to trenches and holes only are to include for all necessary density tests in accordance with SANS 1200D"]
[]
[null,null,"Maintenance period:"]
[]
[null,null,"The maintenance period to civil works such as roads, parking and related earthworks shall be twelve calender months"]
[]
[null,null,"SITE CLEARANCE, ETC (WORK GROUP 104)"]
[]
[null,null,"Site clearance:"]
[]
[{"v":1,"d":"1 "},null,"Stripping average 150mm thick layer of top soil and depositing material in prescribed stock piles on site",null,"m²",{"v":500,"d":"500 "},null,{"$f":"ROUND($F1513*G1513,2)","v":0}]
[]
[null,null,"BUDGETARY ALLOWANCE"]
[]
[null,null,"SUNDRY EXTERNAL WORKS:"]
[]
[{"v":2,"d":"2 "},null,"Provide a budgetary allowance of Twenty Five Thousand Rand for sundry external works to be used as directed by the Principal Agent and to be deducted in whole or in part if not required.",null,"Item",{"v":1,"d":"1 "},null,{"$f":"ROUND($F1519*G1519,2)","v":0}]
[]
[null,null,"BOUNDARY WALL:"]
[]
[{"v":3,"d":"3 "},null,"Provide a budgetary allowance of Twenty Five Thousand Rand for the refurbishment of the existing retaining wall to be used as directed by the Principal Agent and to be deducted in whole or in part if not required.",null,"Item",{"v":1,"d":"1 "},null,{"$f":"ROUND($F1523*G1523,2)","v":0}]
[]
[null,null,"SECTION 3"]
[]
[null,null,"BILL NO. 2"]
[]
[null,null,"SITE SERVICES (PROVISIONAL)"]
[]
[null,null,"WORK GROUP ALLOCATION"]
[]
[null,null,"The items in this Bill will be allocated to Work Groups as indicated in brackets at the end of headings or descriptions"]
[]
[null,null,"PREAMBLES"]
[]
[null,null,"The Model Preambles for Trades (2008 edition) as published by the Association of South African Quantity Surveyors shall be deemed to be incorporated in these bills of quantities and no claims arising from brevity of description of items fully described in the said General Preambles will be entertained"]
[]
[null,null,"The following \"Supplementary Preambles\" are incorporated in this bill to satisfy the requirements of the project and shall take precedence over the provisions of the said General Preambles"]
[]
[null,null,"SUPPLEMENTARY PREAMBLES"]
[]
[null,null,"Stormwater channels:"]
[]
[null,null,"Descriptions of channels shall be deemed to include necessary excavation, surface preparation, compaction, etc and disposal of surplus material on site"]
[]
[null,null,"French drains:"]
[]
[null,null,"Descriptions of french drains shall be deemed to include excavation, stone filling graded from 300mm diameter at bottom to 75mm diameter at top, approved geofabric filter blanket over stone, 300mm earthfilling over and disposal of surplus material on site"]
[]
[null,null,"Septic tanks:"]
[]
[null,null,"Descriptions of proprietary type septic tanks shall be deemed to include excavation, bedding and jointing, concrete base slabs, jointing to drains and backfilling, compaction, etc all in accordance with the manufacturer's instructions and disposal of surplus material on site"]
[]
[null,null,"uPVC pipes and fittings:"]
[]
[null,null,"Sewer and drainage pipes and fittings shall be jointed and sealed with butyl rubber rings  Soil, waste and vent pipes and fittings shall be solvent weld jointed or sealed with butyl rubber rings"]
[]
[null,null,"uPVC pressure pipes and fittings:"]
[]
[null,null,"Pipes of 50mm diameter and smaller shall be plain ended with solvent welded uPVC loose sockets and fittings  Pipes of 63mm diameter and greater shall have sockets and spigots with push-in type integral rubber ring joints.  Bends shall be uPVC and all other fittings shall be cast iron, all with similar push-in type joints"]
[]
[null,null,"High density polyethylene (HDPe) pipes and fittings:"]
[]
[null,null,"Pipes shall be type IV and of the class specified with \"Plasson\" or \"Alprene\" or similar approved compression fittings"]
[]
[null,null,"Polycop polypropylene pipes:"]
[]
[null,null,"Polypropylene pipes 54mm diameter and smaller shall be seamless copper coloured Class 16 pipes jointed with \"Fast-fuse\" heat welded thermoplastic or where so described \"Polylock\" or similar approved compression fittings  Pipes shall be firmly fixed to walls, etc with coloured nylon snap-in pipe clips with provision for accommodating thermal movement and jointed and fixed strictly in accordance with the manufacturer's instructions"]
[]
[null,null,"Copper pipes:"]
[]
[null,null,"Pipes shall be hard drawn and half-hard \"Maksal\" or similar approved pipes of the class described.  Class 0 (thin walled hard drawn) pipes shall not be bent.  Class 1 (thin walled half-hard), Class 2 (half-hard) and Class 3 (heavy walled half-hard) pipes shall only be bent with benders with inner and outer formers.  Fittings to copper waste, vent and anti-syphon pipes, capillary solder fittings and compression fittings shall be \"Cobra Watertech\" or similar approved type.  Capillary solder fittings shall comply with ISO 2016"]
[]
[null,null,"Copper pipes are to be installed in accordance with the latest revision of the Code of Practice for Copper Plumbing soldering techniques.  Flux, solder, etc to be strictly in accordance with the manufacturer's requirements with special attention to copper flux composition"]
[]
[null,null,"Reducing fittings:"]
[]
[null,null,"Where fittings have reducing ends or branches they are described as \"reducing\". In the case of pipes with diameters not exceeding 60mm, only the largest end or branch size is given. Should the Contractor wish to use other fittings and bushes or reducers he may do so on the understanding that no claim in this regard will be entertained. In the case of pipes with diameters exceeding 60mm, all sizes are given and no claim for extra bushes, reducers, etc will be entertained"]
[]
[null,null,"Disinfection of water pipework:"]
[]
[null,null,"Water pipework is to be disinfected at completion in accordance with SABS 1200L (provision for disinfection elsewhere)"]
[]
[null,null,"\"Densyl\" or similar approved petrolatum anti-corrosion tape"]
[]
[null,null,"Pipes to be taped shall be coated with the appropriate primer and the tape shall be applied in the appropriate widths and with suitable overlaps  Couplings and fittings to pipes shall be taped in strict accordance with the manufacturer's instructions including mastic, tape, \"Layflat\" or similar approved sheeting, securing of same, etc"]
[]
[null,null,"Prices for wrapping of pipes shall include for all work as described to couplings in the length"]
[]
[null,null,"Laying, backfilling, bedding, etc of pipes:"]
[]
[null,null,"Pipes shall be laid and bedded in accordance with manufacturers' instructions and trenches shall be carefully backfilled"]
[]
[null,null,"Where no manufacturers' instructions exist, pipes shall be laid in accordance with Clauses 5.1 and 5.2 of each of the following: SABS 1200L\t: Medium-pressure pipelines SABS 1200LD\t: Sewers SABS 1200LE\t: Stormwater drainage Pipe trenches, etc shall be backfilled in accordance with Clauses 3, 5.5, 5.6, 5.7 and 7 of SABS 1200DB : Earthworks (Pipe trenches)Pipes shall be bedded in accordance with Clauses 3.1 to 3.4.1, 5.1 to 5.3 and 7 of SABS 1200LB : Bedding (Pipes)Unless otherwise described, bedding of rigid pipes shall be Class B bedding"]
[]
[null,null,"General:"]
[]
[null,null,"Descriptions of pipes laid in and including trenches and of inspection chambers, catchpits, etc shall be deemed to include excavation, bedding, backfilling, compaction to a minimum of 98% Mod AASHTO density and disposal of surplus material on site"]
[]
[null,null,"Descriptions of service pipes and flexible connecting pipes shall be deemed to include connections to taps, cisterns, etc and to steel pipes (adaptors for connections to copper pipes, etc are given separately)"]
[]
[null,null,"As-built drawings:"]
[]
[null,null,"Where required, the Contractor shall prepare an updated set of as-built drawings.  At completion of the contract the Contractor shall hand these drawings to the Project Manager for reproducing onto the originals for handing over to the Employer (provision for allowance of as-built drawings elsewhere)"]
[]
[null,null," - - - - - - - - - - - - - - - - - - - - - - - - -"]
[]
[null,null,"SOIL DRAINAGE (WORK GROUP 146)"]
[]
[{"v":1,"d":"1 "},null,"Excavation in earth not exceeding 1m deep for pipe trenches",null,"m³",{"v":0,"d":"0 "},null,{"$f":"ROUND($F1611*G1611,2)","v":0}]
[]
[{"v":2,"d":"2 "},null,"Excavation in earth exceeding 1m and not exceeding 2m deep for pipe trenches",null,"m³",{"v":0,"d":"0 "},null,{"$f":"ROUND($F1613*G1613,2)","v":0}]
[]
[{"v":3,"d":"3 "},null,"Excavation in earth exceeding 2m and not exceeding 3m deep for pipe trenches",null,"m³",{"v":0,"d":"0 "},null,{"$f":"ROUND($F1615*G1615,2)","v":0}]
[]
[{"v":4,"d":"4 "},null,"Backfilling to pipe trenches",null,"m³",{"v":0,"d":"0 "},null,{"$f":"ROUND($F1617*G1617,2)","v":0}]
[]
[{"v":5,"d":"5 "},null,"Selected granular filling in bedding under and filling around pipes",null,"m³",{"v":0,"d":"0 "},null,{"$f":"ROUND($F1619*G1619,2)","v":0}]
[]
[null,null,"Heavy duty (Class 34) uPVC sewer and drain pipes:"]
[]
[{"v":6,"d":"6 "},null,"110mm Pipes laid in trenches (trenches elsewhere)",null,"m",{"v":0,"d":"0 "},null,{"$f":"ROUND($F1623*G1623,2)","v":0}]
[]
[{"v":7,"d":"7 "},null,"160mm Pipes laid in trenches (trenches elsewhere)",null,"m",{"v":0,"d":"0 "},null,{"$f":"ROUND($F1625*G1625,2)","v":0}]
[]
[null,null,"Extra over heavy duty (Class 34) uPVC sewer and drain pipes for fittings:"]
[]
[{"v":8,"d":"8 "},null,"110mm Bend",null,"No",{"v":0,"d":"0 "},null,{"$f":"ROUND($F1629*G1629,2)","v":0}]
[]
[{"v":9,"d":"9 "},null,"110mm Junction",null,"No",{"v":0,"d":"0 "},null,{"$f":"ROUND($F1631*G1631,2)","v":0}]
[]
[{"v":10,"d":"10 "},null,"110mm Rodding eye",null,"No",{"v":0,"d":"0 "},null,{"$f":"ROUND($F1633*G1633,2)","v":0}]
[]
[{"v":11,"d":"11 "},null,"110mm Reducing junction",null,"No",{"v":0,"d":"0 "},null,{"$f":"ROUND($F1635*G1635,2)","v":0}]
[]
[{"v":12,"d":"12 "},null,"160mm Overflow gulley head",null,"No",{"v":0,"d":"0 "},null,{"$f":"ROUND($F1637*G1637,2)","v":0}]
[]
[{"v":13,"d":"13 "},null,"160mm Access reducing junction",null,"No",{"v":0,"d":"0 "},null,{"$f":"ROUND($F1639*G1639,2)","v":0}]
[]
[{"v":14,"d":"14 "},null,"160mm Access junction",null,"No",{"v":0,"d":"0 "},null,{"$f":"ROUND($F1641*G1641,2)","v":0}]
[]
[null,null,"Cast iron covers, etc:"]
[]
[{"v":15,"d":"15 "},null,"1000mm Diameter manhole cover and frame",null,"No",{"v":0,"d":"0 "},null,{"$f":"ROUND($F1645*G1645,2)","v":0}]
[]
[{"v":16,"d":"16 "},null,"Lifting-key for manhole cover (handed to Employer)",null,"No",{"v":0,"d":"0 "},null,{"$f":"ROUND($F1647*G1647,2)","v":0}]
[]
[null,null,"Precast Concrete Manhole"]
[]
[null,null,"Manhole formed of precast concrete manhole rings, components all bedded and jointed with approved water tight jointing, 260mm thick 20MPa/19mm mass concrete base projecting 75mm beyond external face of chamber ring and sealed to ring with 75mm wide x 125mm high 20MPa/19mm mass concrete triangular fillet, complete with precast concrete medium duty cover and frame, with and including neccessary step iron, 20MPa/19mm mass concrete benching in bottom with top surfaces to falls and including 160mm vitrified clay channels, channel bends, channel junctions, etc., additional excavation and backfilling compacted to 93% modified AASHTO density"]
[]
[{"v":17,"d":"17 "},null,"1000mm Diameter manhole not exceeding 1m deep",null,"No",{"v":0,"d":"0 "},null,{"$f":"ROUND($F1653*G1653,2)","v":0}]
[]
[{"v":18,"d":"18 "},null,"1000mm Diameter manhole exceeding 1m but not exceeding 2m deep",null,"No",{"v":0,"d":"0 "},null,{"$f":"ROUND($F1655*G1655,2)","v":0}]
[]
[{"v":19,"d":"19 "},null,"1000mm Diameter manhole exceeding 2m but not exceeding 3m deep",null,"No",{"v":0,"d":"0 "},null,{"$f":"ROUND($F1657*G1657,2)","v":0}]
[]
[{"v":20,"d":"20 "},null,"Cutting into existing 160mm drain pipe for and forming junction with 110mm pipe",null,"No",{"v":0,"d":"0 "},null,{"$f":"ROUND($F1659*G1659,2)","v":0}]
[]
[null,null,"Alterations:"]
[]
[{"v":21,"d":"21 "},null,"Excavate for and locate existing 160mm diameter uPVC soil drain pipe approximately 2000mm deep and connect to 160mm diameter uPVC pipe including all necessary fittings, backfilling, etc",null,"No",{"v":0,"d":"0 "},null,{"$f":"ROUND($F1663*G1663,2)","v":0}]
[]
[null,null,"Testing:"]
[]
[{"v":22,"d":"22 "},null,"Testing soil drainage system",null,"Item",{"v":0,"d":"0 "},null,{"$f":"ROUND($F1667*G1667,2)","v":0}]
[]
[null,null,"AS-BUILT DRAWINGS"]
[]
[{"v":23,"d":"23 "},null,"Provision of as-built drawings",null,"Item",{"v":0,"d":"0 "},null,{"$f":"ROUND($F1671*G1671,2)","v":0}]
[]
[null,null,"BUDGETARY ALLOWANCE"]
[]
[{"v":24,"d":"24 "},null,"Provide a budgetary allowance of One Hundred and Fifty Thousand Rand for the decommissioning of an old and construction of a new septic tank to be used as directed by the Principal Agent and to be deducted in whole or in part if not required.",null,"Item",{"v":0,"d":"0 "},null,{"$f":"ROUND($F1675*G1675,2)","v":0}]
[]
[{"v":1,"d":"1 "},null,"External Works (Provisional)",{"$nulls":4},{"$f":"SUM(H1464:H1524)","v":0}]
[]
[{"v":2,"d":"2 "},null,"Site Services (Provisional)",{"$nulls":4},{"$f":"SUM(H1575:H1675)","v":0}]
[]
[null,null,"SECTION NO. 4"]
[]
[null,null,"BILL NO. 1"]
[]
[null,null,"ELECTRICAL INSTALLATION"]
[]
[null,null,"LOW VOLTAGE"]
[]
[null,null,"DISCONNECTION/ REMOVAL OF REDUNDANT ELECTRICAL EQUIPMENT"]
[]
[null,null,"The following equipment shall be isolated, disconnected, removed and handed over to the Employer's"]
[]
[{"v":1,"d":"1 "},null,"Decommissioning and stripping of existing electrical installations including cables, conductors, luminiares, control devices, DB's, etc in the existing building.",null,"SUM",{"v":1,"d":"1 "},null,{"$f":"ROUND($F1693*G1693,2)","v":0}]
[]
[null,null,"LV SWITCHGEAR DBs and LV Switchgear"]
[]
[null,null,"Manufacture, deliver to site, install, commission, test kiosks, distribution boards as per specification and single line diagram, to be housed in electrical. All electrical panels shall be stainless steel material, rates to include powder coated, busbars and drilling, busbar connections internal wiring etc. Refer to single line diagram for electrical panel colour"]
[]
[{"v":2,"d":"2 "},null,"Main DB",null,"No",{"v":1,"d":"1 "},null,{"$f":"ROUND($F1699*G1699,2)","v":0}]
[]
[{"v":3,"d":"3 "},null,"Kiosk",null,"No",{"v":1,"d":"1 "},null,{"$f":"ROUND($F1701*G1701,2)","v":0}]
[]
[{"v":4,"d":"4 "},null,"DB - 3",null,"No",{"v":1,"d":"1 "},null,{"$f":"ROUND($F1703*G1703,2)","v":0}]
[]
[{"v":5,"d":"5 "},null,"DB - 4",null,"No",{"v":1,"d":"1 "},null,{"$f":"ROUND($F1705*G1705,2)","v":0}]
[]
[{"v":6,"d":"6 "},null,"DB - 5",null,"No",{"v":1,"d":"1 "},null,{"$f":"ROUND($F1707*G1707,2)","v":0}]
[]
[{"v":7,"d":"7 "},null,"Surge arrestors for ticket office DB - 1",null,"No",{"v":1,"d":"1 "},null,{"$f":"ROUND($F1709*G1709,2)","v":0}]
[]
[{"v":8,"d":"8 "},null,"UTA4 IP65 Box surface mounted with 32A 1-pole isolator, 3x circuit breakers with complete busbar.",null,"No",{"v":2,"d":"2 "},null,{"$f":"ROUND($F1711*G1711,2)","v":0}]
[]
[null,null,"CABLES AND CONDUCTORS"]
[]
[null,null,"Supply, deliver to site cables and conductors as specified. Install, rack, strap and testing of cables as per specification including clamps, ties and cable numbering system"]
[]
[{"v":9,"d":"9 "},null,"2,5mm conductors (mixed colours - live, neutral and earth)",null,"m",{"v":6000,"d":"6,000 "},null,{"$f":"ROUND($F1717*G1717,2)","v":0}]
[]
[{"v":10,"d":"10 "},null,"4,0mm conductors (mixed colours - live, neutral and earth)",null,"m",{"v":150,"d":"150 "},null,{"$f":"ROUND($F1719*G1719,2)","v":0}]
[]
[{"v":11,"d":"11 "},null,"4,0 mm\"² 2c 600/1000V PVC/SWA/PVC ECC Cu Cable",null,"m",{"v":50,"d":"50 "},null,{"$f":"ROUND($F1721*G1721,2)","v":0}]
[]
[{"v":12,"d":"12 "},null,"6,0 mm\"² 2c 600/1000V PVC/SWA/PVC ECC Cu Cable",null,"m",{"v":90,"d":"90 "},null,{"$f":"ROUND($F1723*G1723,2)","v":0}]
[]
[{"v":13,"d":"13 "},null,"10 mm\"² 2c 600/1000V PVC/SWA/PVC ECC Cu Cable",null,"m",{"v":120,"d":"120 "},null,{"$f":"ROUND($F1725*G1725,2)","v":0}]
[]
[{"v":14,"d":"14 "},null,"10 mm\"² 4c 600/1000V PVC/SWA/PVC ECC Cu Cable",null,"m",{"v":300,"d":"300 "},null,{"$f":"ROUND($F1727*G1727,2)","v":0}]
[]
[{"v":15,"d":"15 "},null,"16 mm\"² 4c 600/1000V PVC/SWA/PVC ECC Cu Cable",null,"m",{"v":1000,"d":"1,000 "},null,{"$f":"ROUND($F1729*G1729,2)","v":0}]
[]
[{"v":16,"d":"16 "},null,"25mm\"² 4c 600/1000V PVC/SWA/PVC ECC Cu Cable",null,"m",{"v":500,"d":"500 "},null,{"$f":"ROUND($F1731*G1731,2)","v":0}]
[]
[{"v":17,"d":"17 "},null,"50mm\"² 4c 600/1000V PVC/SWA/PVC ECC Cu Cable",null,"m",{"v":100,"d":"100 "},null,{"$f":"ROUND($F1733*G1733,2)","v":0}]
[]
[null,null,"CABLES TERMINATIONS"]
[]
[null,null,"Termination of cables shall include supply installation and testing of the glands with corrossion  guard , making-off the cable, lugs, and fitting the gland to the board gland plate, switchgear or equipment and final connection of cable tails into board or terminals.  Include for Reducing Glands and shrouds where applicable. NB:  IP65 Glands are to be used where applicable."]
[]
[{"v":18,"d":"18 "},null,"4.0 mm\"² 2c 600/1000V PVC/SWA/PVC ECC Cu Cable",null,"No",{"v":4,"d":"4 "},null,{"$f":"ROUND($F1739*G1739,2)","v":0}]
[]
[{"v":19,"d":"19 "},null,"6.0 mm\"² 2c 600/1000V PVC/SWA/PVC ECC Cu Cable",null,"No",{"v":4,"d":"4 "},null,{"$f":"ROUND($F1741*G1741,2)","v":0}]
[]
[{"v":20,"d":"20 "},null,"10 mm\"² 4c 600/1000V PVC/SWA/PVC ECC Cu Cable",null,"No",{"v":12,"d":"12 "},null,{"$f":"ROUND($F1743*G1743,2)","v":0}]
[]
[{"v":21,"d":"21 "},null,"10 mm\"² 2c 600/1000V PVC/SWA/PVC ECC Cu Cable",null,"No",{"v":8,"d":"8 "},null,{"$f":"ROUND($F1745*G1745,2)","v":0}]
[]
[{"v":22,"d":"22 "},null,"16 mm\"² 4c 600/1000V PVC/SWA/PVC ECC Cu Cable",null,"No",{"v":6,"d":"6 "},null,{"$f":"ROUND($F1747*G1747,2)","v":0}]
[]
[{"v":23,"d":"23 "},null,"25mm\"² 4c 600/1000V PVC/SWA/PVC ECC Cu Cable",null,"No",{"v":4,"d":"4 "},null,{"$f":"ROUND($F1749*G1749,2)","v":0}]
[]
[{"v":24,"d":"24 "},null,"50 mm\"² 4c 600/1000V PVC/SWA/PVC ECC Cu Cable",null,"No",{"v":2,"d":"2 "},null,{"$f":"ROUND($F1751*G1751,2)","v":0}]
[]
[{"v":25,"d":"25 "},null,"20mm PVC Conduit including all necessary accessories. Rate to include chasing wall for conduit in the wall, close wall and make good.",null,"m",{"v":280,"d":"280 "},null,{"$f":"ROUND($F1753*G1753,2)","v":0}]
[]
[{"v":26,"d":"26 "},null,"32mm steel conduit including all necessary accessories. Rate to include chasing wall for conduit in the wall, close wall and make good",null,"m",{"v":120,"d":"120 "},null,{"$f":"ROUND($F1755*G1755,2)","v":0}]
[]
[null,null,"LUMINARIES AND CONTROL DEVICES"]
[]
[null,null,"Supply, deliver, accept and store the following luminaries, complete with lamps and control gear as per specification. See and refer to the specification document for details of each luminiare."]
[]
[{"v":27,"d":"27 "},null,"Type A5 - IP65 Rated, 30W / 4440 lm LED - 4000k vapour-proof Surface-mounted weather-proof luminaire, GRP body and acrylic diffuser, with 50000 hours lifespan.",null,"No",{"v":35,"d":"35 "},null,{"$f":"ROUND($F1761*G1761,2)","v":0}]
[]
[{"v":28,"d":"28 "},null,"Type A13 - IP65 Rated, 30W / 4440 lm LED - 4000k Rough-guard Surface-mounted weather-proof luminaire, GRP body and acrylic diffuser, with 50000 hours lifespan.",null,"No",{"v":20,"d":"20 "},null,{"$f":"ROUND($F1763*G1763,2)","v":0}]
[]
[{"v":29,"d":"29 "},null,"Type B1 - IP65 Rated high-pressure die cast aluminium base and trim ring 20W/  2600lm LED - 4000k bulkhead luminaire with an opal high-impact acrylic diffuser, with 50000 hours lifespan.",null,"No",{"v":32,"d":"32 "},null,{"$f":"ROUND($F1765*G1765,2)","v":0}]
[]
[{"v":30,"d":"30 "},null,"Type FL1  - 180W / 27000lm LED (4000k) Streetlight rated IP66 with powder coating as per specification",null,"No",{"v":12,"d":"12 "},null,{"$f":"ROUND($F1767*G1767,2)","v":0}]
[]
[{"v":31,"d":"31 "},null,"Type C6  - 80W / 10000lumen LED (4000k) rated IP65. Refer to specification document for details",null,"No",{"v":7,"d":"7 "},null,{"$f":"ROUND($F1769*G1769,2)","v":0}]
[]
[null,null,"LIGHT SWITCHES, SOCKET OUTLET, WELDING ISOLATORS AND ACCESSORIES"]
[]
[null,null,"Supply, deliver and installation of the following  control devices and accessories as per specification. Rate must allow for the termination and connecting of the PVC conductor to the accessory, fixing to the conduit box and the fitting of the cover plate. (PVC coverer)"]
[]
[{"v":32,"d":"32 "},null,"Supply and installation of 40Amp, 1-Pole surface mounted isolator, complete with all necessary accessories",null,"No",{"v":2,"d":"2 "},null,{"$f":"ROUND($F1775*G1775,2)","v":0}]
[]
[{"v":33,"d":"33 "},null,"Supply and installation of 20Amp, 1-Pole surface mounted isolator, complete with all necessary accessories",null,"No",{"v":10,"d":"10 "},null,{"$f":"ROUND($F1777*G1777,2)","v":0}]
[]
[{"v":34,"d":"34 "},null,"Supply and installation of 20Amp, 3-Pole surface mounted isolator, complete with all necessary accessories",null,"No",{"v":1,"d":"1 "},null,{"$f":"ROUND($F1779*G1779,2)","v":0}]
[]
[{"v":35,"d":"35 "},null,"Supply and installation of 20Amp IP66, 1-Pole isolator mounted on the security steel cage, complete with all necessary accessories",null,"No",{"v":2,"d":"2 "},null,{"$f":"ROUND($F1781*G1781,2)","v":0}]
[]
[{"v":36,"d":"36 "},null,"Retrofit existing luminaire by replacing existing 36W T8 / T5 lamps with a LED tube 28W / 2100lumen on a 4ft luminaire",null,"No",{"v":10,"d":"10 "},null,{"$f":"ROUND($F1783*G1783,2)","v":0}]
[]
[{"v":37,"d":"37 "},null,"Photo electric cell as per specification",null,"No",{"v":8,"d":"8 "},null,{"$f":"ROUND($F1785*G1785,2)","v":0}]
[]
[{"v":38,"d":"38 "},null,"Replace existing steel cage for lighting. Cage shall be hot dip galvanised",null,"No",{"v":10,"d":"10 "},null,{"$f":"ROUND($F1787*G1787,2)","v":0}]
[]
[null,null,"EXCAVATIONS"]
[]
[null,null,"For all low voltage cables from existing Municipality Substation to meter room and buildings through manholes as per drawings.  Trenching shall be calculated using the formula below: (700mm deep * 0.4m wide *  length)"]
[]
[{"v":39,"d":"39 "},null,"Excavate in concrete/tar and hard soil, backfilling and compaction to 93% MOD AASHTO",null,"m³",{"v":84,"d":"84 "},null,{"$f":"ROUND($F1793*G1793,2)","v":0}]
[]
[{"v":40,"d":"40 "},null,"Re-instate tar for above item",null,"m³",{"v":84,"d":"84 "},null,{"$f":"ROUND($F1795*G1795,2)","v":0}]
[]
[null,null,"SUNDRIES"]
[]
[{"v":41,"d":"41 "},null,"LV reticulation - Preparation of 'As-Built' drawings and manuals as per this specification.",null,"No",{"v":1,"d":"1 "},null,{"$f":"ROUND($F1799*G1799,2)","v":0}]
[]
[{"v":42,"d":"42 "},null,"Labelling of light switches, sockets and isolators outlets as per drawing pop riveted to cover plate",null,"SUM",{"v":1,"d":"1 "},null,{"$f":"ROUND($F1801*G1801,2)","v":0}]
[]
[{"v":43,"d":"43 "},null,"Supply of hard bound spiral folders containing commissioning/COC certificates, test results & operating & maintenance manuals for the LV equipment, cabling, light fittings, etc.",null,"No",{"v":3,"d":"3 "},null,{"$f":"ROUND($F1803*G1803,2)","v":0}]
[]
[null,null,"Supply, install, test and commissioning of the Lightning protection of the buildings on two corners of the buildings, complete with all necessary required material, accessories for a complete installation. Contractor to use copper earth spike, aluminium or copper conductors as per specification, and have testing points for the building.  Rates to include all necessary required accessories for a complete installation. The installation must comply with SANS 10313."]
[]
[{"v":44,"d":"44 "},null,"Platform waiting area 2 - (L-14.87m, W-3.97m, H-2.9m)",null,"SUM",{"v":1,"d":"1 "},null,{"$f":"ROUND($F1807*G1807,2)","v":0}]
[]
[{"v":45,"d":"45 "},null,"Ticket office - (L-6.98m, W-4.09m, L-3.92m)",null,"SUM",{"v":1,"d":"1 "},null,{"$f":"ROUND($F1809*G1809,2)","v":0}]
[]
[{"v":46,"d":"46 "},null,"Mass room - (L-3.5m, W-4.11m, H-3.1m)",null,"SUM",{"v":1,"d":"1 "},null,{"$f":"ROUND($F1811*G1811,2)","v":0}]
[]
[null,null,"GENERATOR SET"]
[]
[null,null,"Manufacture, deliver to site, install, test and commission of a generator set 400 volts at 50Hz as per specification and single line diagram. The generator shall be enclosed or containerised on a stainless steel Grl316. Rats to include for steelwork and powder coated, busbars and drilling, busbar connections internal wiring, earthing for the generator set, etc. Refer to attached single line diagram"]
[]
[{"v":47,"d":"47 "},null,"60kVA, 400V, 3phase silent Diesel engine alternator set including automatic change-over panel and weatherproof 3CR12-steel canopy",null,"SUM",{"v":1,"d":"1 "},null,{"$f":"ROUND($F1817*G1817,2)","v":0}]
[]
[{"v":48,"d":"48 "},null,"Stainless steel metal cladded thermal insulation of exhaust pipe and silencer within the enclosure",null,"SUM",{"v":1,"d":"1 "},null,{"$f":"ROUND($F1819*G1819,2)","v":0}]
[]
[{"v":49,"d":"49 "},null,"Water trap/fuel filter cartridge",null,"SUM",{"v":1,"d":"1 "},null,{"$f":"ROUND($F1821*G1821,2)","v":0}]
[]
[null,null,"Electrical reticulation"]
[]
[{"v":50,"d":"50 "},null,"Interconnecting control & power cabling between genset and alternator and AMF panel",null,"SUM",{"v":1,"d":"1 "},null,{"$f":"ROUND($F1825*G1825,2)","v":0}]
[]
[{"v":51,"d":"51 "},null,"Support & protection of exposed cabling between genset & AMF panel",null,"SUM",{"v":1,"d":"1 "},null,{"$f":"ROUND($F1827*G1827,2)","v":0}]
[]
[{"v":52,"d":"52 "},null,"Electronic hooter & red flashing general alarm light mounted on the AMF panel",null,"SUM",{"v":1,"d":"1 "},null,{"$f":"ROUND($F1829*G1829,2)","v":0}]
[]
[{"v":53,"d":"53 "},null,"Remote alarm indicator panel complete the red indicator lamp and label - GENERATOR FAULT",null,"SUM",{"v":1,"d":"1 "},null,{"$f":"ROUND($F1831*G1831,2)","v":0}]
[]
[{"v":54,"d":"54 "},null,"External emergency stop push button and cabling",null,"SUM",{"v":1,"d":"1 "},null,{"$f":"ROUND($F1833*G1833,2)","v":0}]
[]
[{"v":55,"d":"55 "},null,"Earthing of generator set",null,"SUM",{"v":1,"d":"1 "},null,{"$f":"ROUND($F1835*G1835,2)","v":0}]
[]
[null,null,"Commissioning"]
[]
[{"v":56,"d":"56 "},null,"Test & commission on site with load",null,"SUM",{"v":1,"d":"1 "},null,{"$f":"ROUND($F1839*G1839,2)","v":0}]
[]
[{"v":57,"d":"57 "},null,"Resistance testing of earth system",null,"SUM",{"v":1,"d":"1 "},null,{"$f":"ROUND($F1841*G1841,2)","v":0}]
[]
[{"v":58,"d":"58 "},null,"Balancing of the essential loads",null,"SUM",{"v":1,"d":"1 "},null,{"$f":"ROUND($F1843*G1843,2)","v":0}]
[]
[{"v":59,"d":"59 "},null,"Electrical certification of compliance",null,"SUM",{"v":1,"d":"1 "},null,{"$f":"ROUND($F1845*G1845,2)","v":0}]
[]
[null,null,"Signage"]
[]
[{"v":60,"d":"60 "},null,"A per OHS Act - fire & resussitation etc.",null,"SUM",{"v":1,"d":"1 "},null,{"$f":"ROUND($F1849*G1849,2)","v":0}]
[]
[{"v":61,"d":"61 "},null,"Generator \"Manual start/test procedure\"",null,"SUM",{"v":1,"d":"1 "},null,{"$f":"ROUND($F1851*G1851,2)","v":0}]
[]
[{"v":62,"d":"62 "},null,"Electricity logo on door to AMF panel",null,"No",{"v":1,"d":"1 "},null,{"$f":"ROUND($F1853*G1853,2)","v":0}]
[]
[{"v":63,"d":"63 "},null,"Contractors / PRASA's details - laminated plastic",null,"No",{"v":1,"d":"1 "},null,{"$f":"ROUND($F1855*G1855,2)","v":0}]
[]
[null,null,"General"]
[]
[{"v":64,"d":"64 "},null,"Diesel fuel for full tank",null,"SUM",{"v":1,"d":"1 "},null,{"$f":"ROUND($F1859*G1859,2)","v":0}]
[]
[{"v":65,"d":"65 "},null,"Laminated plastic framed schematic wiring diagram fixed to the inside of the enclosure adjacent the AMF panel",null,"No",{"v":1,"d":"1 "},null,{"$f":"ROUND($F1861*G1861,2)","v":0}]
[]
[{"v":66,"d":"66 "},null,"A4 size log book on chain in metal envelope in door",null,"No",{"v":1,"d":"1 "},null,{"$f":"ROUND($F1863*G1863,2)","v":0}]
[]
[{"v":67,"d":"67 "},null,"Operational training of Employer's staff",null,"SUM",{"v":1,"d":"1 "},null,{"$f":"ROUND($F1865*G1865,2)","v":0}]
[]
[{"v":68,"d":"68 "},null,"Manuals - 3 sets",null,"SUM",{"v":1,"d":"1 "},null,{"$f":"ROUND($F1867*G1867,2)","v":0}]
[]
[{"v":69,"d":"69 "},null,"Drawings",null,"SUM",{"v":1,"d":"1 "},null,{"$f":"ROUND($F1869*G1869,2)","v":0}]
[]
[null,null,"Service"]
[]
[{"v":70,"d":"70 "},null,"Monthly inspection every quarter  new fuel filters for 1st year",null,"No",{"v":4,"d":"4 "},null,{"$f":"ROUND($F1873*G1873,2)","v":0}]
[]
[{"v":71,"d":"71 "},null,"Full annual service  new battery for 1st year",null,"No",{"v":1,"d":"1 "},null,{"$f":"ROUND($F1875*G1875,2)","v":0}]
[]
[null,null,"TEST AND COMMISSIONING"]
[]
[null,null,"Test and commission  the complete electrical installation including completion of quality check sheets, Compliance Certificates & test results and submitting them to the Employer's Representative."]
[]
[{"v":72,"d":"72 "},null,"Test and commission  the complete electrical installation including Certificates of Compliance & test results to the Engineer.",null,"SUM",{"v":1,"d":"1 "},null,{"$f":"ROUND($F1881*G1881,2)","v":0}]
[]
[null,null,"SECTION 5"]
[]
[null,null,"BILL NO. 1"]
[]
[null,null,"HVAC INSTALLATIONS"]
[]
[null,null,"Design, manufacture, works testing, supply and deliver to site, moving into position, Installion, connecting up, site testing, witness testing, providing to insurance inspectors, demonstrating to the Employer, commissioning and maintenance of the complete mechanical systems and equipment as shown on the drawings."]
[]
[null,null,"Supply, deliver and install the following HVAC units as per specification:"]
[]
[{"v":1,"d":"1 "},null,"3.5 kW Cooling midwall split indoor unit",null,"No",{"v":1,"d":"1 "},null,{"$f":"ROUND($F1893*G1893,2)","v":0}]
[]
[{"v":2,"d":"2 "},null,"3.5 kW Inverter type outdoor condensing unit",null,"No",{"v":1,"d":"1 "},null,{"$f":"ROUND($F1895*G1895,2)","v":0}]
[]
[{"v":3,"d":"3 "},null,"6.8 kW Midwall split indoor  unit",null,"No",{"v":2,"d":"2 "},null,{"$f":"ROUND($F1897*G1897,2)","v":0}]
[]
[{"v":4,"d":"4 "},null,"6.8 kW Inverter type outdoor condensing unit",null,"No",{"v":2,"d":"2 "},null,{"$f":"ROUND($F1899*G1899,2)","v":0}]
[]
[{"v":5,"d":"5 "},null,"Refrigeration copper piping with thermal insulation and all associated fittings.",null,"m",{"v":8,"d":"8 "},null,{"$f":"ROUND($F1901*G1901,2)","v":0}]
[]
[{"v":6,"d":"6 "},null,"PVC Condensate drain piping with insulation",null,"m",{"v":24,"d":"24 "},null,{"$f":"ROUND($F1903*G1903,2)","v":0}]
[]
[{"v":7,"d":"7 "},null,"Wired Controller",null,"No",{"v":3,"d":"3 "},null,{"$f":"ROUND($F1905*G1905,2)","v":0}]
[]
[{"v":8,"d":"8 "},null,"Provide full service to the existing wall mounted unit and the outdoor condensing unit",null,"No",{"v":3,"d":"3 "},null,{"$f":"ROUND($F1907*G1907,2)","v":0}]
[]
[{"v":9,"d":"9 "},null,"Provide full service to the through wall/ window type unit",null,"No",{"v":1,"d":"1 "},null,{"$f":"ROUND($F1909*G1909,2)","v":0}]
[]
[{"v":10,"d":"10 "},null,"Fabricate, supply and install lockable security cages around each outdoor condensing unit",null,"No",{"v":6,"d":"6 "},null,{"$f":"ROUND($F1911*G1911,2)","v":0}]
[]
[{"v":11,"d":"11 "},null,"Application of approved coastal treatment for the outdoor condensing units",null,"No",{"v":6,"d":"6 "},null,{"$f":"ROUND($F1913*G1913,2)","v":0}]
[]
[null,null,"SECTION 5"]
[]
[null,null,"BILL NO. 2"]
[]
[null,null,"WET SERVICES"]
[]
[null,null,"COLD WATER INSTALLATION"]
[]
[null,null,"Supply, install, and commission the water reticulation systems per specification"]
[]
[null,null,"Class 12 HDPE piping laid and buried trenches not exceeding 800mm deep"]
[]
[{"v":1,"d":"1 "},null,"25mm diameter HDPE CI 12 underground water pipe",null,"m",{"v":40,"d":"40 "},null,{"$f":"ROUND($F1927*G1927,2)","v":0}]
[]
[{"v":2,"d":"2 "},null,"32mm diameter HDPE CI 12 underground water pipe",null,"m",{"v":20,"d":"20 "},null,{"$f":"ROUND($F1929*G1929,2)","v":0}]
[]
[null,null,"Fittings for HDPE class 12 piping"]
[]
[{"v":3,"d":"3 "},null,"25mm diameter Adaptor to pex piping",null,"m",{"v":5,"d":"5 "},null,{"$f":"ROUND($F1933*G1933,2)","v":0}]
[]
[{"v":4,"d":"4 "},null,"32mm diameter - 28mm diameter Adaptor to pex piping",null,"m",{"v":1,"d":"1 "},null,{"$f":"ROUND($F1935*G1935,2)","v":0}]
[]
[{"v":5,"d":"5 "},null,"32mm diameter Equal tee",null,"m",{"v":2,"d":"2 "},null,{"$f":"ROUND($F1937*G1937,2)","v":0}]
[]
[{"v":6,"d":"6 "},null,"32mm diameter - 25mm diameter Reducer",null,"m",{"v":2,"d":"2 "},null,{"$f":"ROUND($F1939*G1939,2)","v":0}]
[]
[null,null,"PEX piping"]
[]
[{"v":7,"d":"7 "},null,"15mm diameter pipe",null,"m",{"v":20,"d":"20 "},null,{"$f":"ROUND($F1943*G1943,2)","v":0}]
[]
[{"v":8,"d":"8 "},null,"22mm diameter pipe",null,"m",{"v":20,"d":"20 "},null,{"$f":"ROUND($F1945*G1945,2)","v":0}]
[]
[null,null,"PEX piping fittings"]
[]
[{"v":9,"d":"9 "},null,"15mm diameter Elbow",null,"No",{"v":10,"d":"10 "},null,{"$f":"ROUND($F1949*G1949,2)","v":0}]
[]
[{"v":10,"d":"10 "},null,"22mm diameter Elbow",null,"No",{"v":10,"d":"10 "},null,{"$f":"ROUND($F1951*G1951,2)","v":0}]
[]
[{"v":11,"d":"11 "},null,"22mm diameter Equal tee",null,"No",{"v":10,"d":"10 "},null,{"$f":"ROUND($F1953*G1953,2)","v":0}]
[]
[{"v":12,"d":"12 "},null,"22-15mm diameter Reducer",null,"No",{"v":10,"d":"10 "},null,{"$f":"ROUND($F1955*G1955,2)","v":0}]
[]
[null,null,"Plastic pipe compression fittings and valves"]
[]
[{"v":13,"d":"13 "},null,"15mm Female elbow",null,"No",{"v":10,"d":"10 "},null,{"$f":"ROUND($F1959*G1959,2)","v":0}]
[]
[{"v":14,"d":"14 "},null,"22mm diameter - 15mm diameter Female reducing tee",null,"No",{"v":10,"d":"10 "},null,{"$f":"ROUND($F1961*G1961,2)","v":0}]
[]
[{"v":15,"d":"15 "},null,"22mm diameter Isolation valve",null,"No",{"v":5,"d":"5 "},null,{"$f":"ROUND($F1963*G1963,2)","v":0}]
[]
[{"v":16,"d":"16 "},null,"22mm diameter strainer valve",null,"No",{"v":5,"d":"5 "},null,{"$f":"ROUND($F1965*G1965,2)","v":0}]
[]
[null,null,"Pipe hangers - anchor, treaded rod & hilti hanger"]
[]
[{"v":17,"d":"17 "},null,"15mm diameter",null,"No",{"v":5,"d":"5 "},null,{"$f":"ROUND($F1969*G1969,2)","v":0}]
[]
[{"v":18,"d":"18 "},null,"22mm diameter",null,"No",{"v":10,"d":"10 "},null,{"$f":"ROUND($F1971*G1971,2)","v":0}]
[]
[null,null,"Heavy brown paper loosely wrapped around pipe as shealth for expansion"]
[]
[{"v":19,"d":"19 "},null,"15-22mm diameter",null,"No",{"v":10,"d":"10 "},null,{"$f":"ROUND($F1975*G1975,2)","v":0}]
[]
[null,null,"Potable water system"]
[]
[{"v":20,"d":"20 "},null,"10 000 I PVC Potable water tank with all associated isolation valves and strainers",null,"No",{"v":1,"d":"1 "},null,{"$f":"ROUND($F1979*G1979,2)","v":0}]
[]
[{"v":21,"d":"21 "},null,"Variable speed potable water booster pump capable of delivering 2.3 I/s at 45m of H2O with all associated valves, fitting, PVC pipework, and auto start/stop control circuit.",null,"No",{"v":2,"d":"2 "},null,{"$f":"ROUND($F1981*G1981,2)","v":0}]
[]
[{"v":22,"d":"22 "},null,"Fabricate, supply, and install lockable security cages around the duty/standby potable water pumps",null,"No",{"v":1,"d":"1 "},null,{"$f":"ROUND($F1983*G1983,2)","v":0}]
[]
[null,null,"DRAINAGE, ETC"]
[]
[null,null,"Sewer and drainage pipes and fittings shall be through solid wall Class 34 uPVC socketed soil piping in according to SABS 791, jointed and sealed with butyl rubber rings soil, waste and vent pipes and fittings shall be according to SABS 967 and solvent jointed cold water supply pressure pipes fittings shall be according SABS 966 and jointed by means of the \"Lyng\" type jointing system. Pipes shall be fixed and jointed according to SABS 0112"]
[]
[null,null,"Class 34 uPVC pipe"]
[]
[{"v":23,"d":"23 "},null,"50mm diameter pipe",null,"m",{"v":12,"d":"12 "},null,{"$f":"ROUND($F1991*G1991,2)","v":0}]
[]
[{"v":24,"d":"24 "},null,"110mm diameter pipe",null,"m",{"v":12,"d":"12 "},null,{"$f":"ROUND($F1993*G1993,2)","v":0}]
[]
[null,null,"Class 34 uPVC fittings"]
[]
[{"v":25,"d":"25 "},null,"50mm diameter 90 Deg bend",null,"No",{"v":5,"d":"5 "},null,{"$f":"ROUND($F1997*G1997,2)","v":0}]
[]
[{"v":26,"d":"26 "},null,"110mm diameter 90 Deg bend",null,"No",{"v":5,"d":"5 "},null,{"$f":"ROUND($F1999*G1999,2)","v":0}]
[]
[{"v":27,"d":"27 "},null,"110mm diameter 90 Deg access bend",null,"No",{"v":5,"d":"5 "},null,{"$f":"ROUND($F2001*G2001,2)","v":0}]
[]
[{"v":28,"d":"28 "},null,"50mm diameter 45 Deg bend",null,"No",{"v":5,"d":"5 "},null,{"$f":"ROUND($F2003*G2003,2)","v":0}]
[]
[{"v":29,"d":"29 "},null,"110mm diameter 45 Deg bend",null,"No",{"v":6,"d":"6 "},null,{"$f":"ROUND($F2005*G2005,2)","v":0}]
[]
[{"v":30,"d":"30 "},null,"110mm  diameter Pan connector",null,"No",{"v":10,"d":"10 "},null,{"$f":"ROUND($F2007*G2007,2)","v":0}]
[]
[{"v":31,"d":"31 "},null,"50mm diameter Equal access junction",null,"No",{"v":5,"d":"5 "},null,{"$f":"ROUND($F2009*G2009,2)","v":0}]
[]
[{"v":32,"d":"32 "},null,"110mm diameter - 50mm diameter junction",null,"No",{"v":3,"d":"3 "},null,{"$f":"ROUND($F2011*G2011,2)","v":0}]
[]
[{"v":33,"d":"33 "},null,"110mm diameter Equal access junction",null,"No",{"v":2,"d":"2 "},null,{"$f":"ROUND($F2013*G2013,2)","v":0}]
[]
[null,null,"SECTION NO. 5"]
[]
[null,null,"BILL NO. 3"]
[]
[null,null,"FIRE PROTECTION"]
[]
[null,null,"Supply, deliver and install all Fire appliances and  piping with complete with all auxiliary fittings :."]
[]
[{"v":1,"d":"1 "},null,"4.5kg Carbon dioxide fire extinguisher mounted on a wooden block.",null,"No",{"v":9,"d":"9 "},null,{"$f":"ROUND($F2023*G2023,2)","v":0}]
[]
[{"v":2,"d":"2 "},null,"9kg Carbon dioxide fire extinguisher mounted on a wooden block",null,"No",{"v":5,"d":"5 "},null,{"$f":"ROUND($F2025*G2025,2)","v":0}]
[]
[{"v":3,"d":"3 "},null,"Photoluminated directional signage",null,"SUM",{"v":1,"d":"1 "},null,{"$f":"ROUND($F2027*G2027,2)","v":0}]
[]
[{"v":4,"d":"4 "},null,"Photoluminated fire signage",null,"SUM",{"v":1,"d":"1 "},null,{"$f":"ROUND($F2029*G2029,2)","v":0}]
[]
[{"v":1,"d":"1 "},null,"HVAC Installations",{"$nulls":4},{"$f":"SUM(H1889:H1914)","v":0}]
[]
[{"v":2,"d":"2 "},null,"Wet Services",{"$nulls":4},{"$f":"SUM(H1920:H2014)","v":0}]
[]
[{"v":3,"d":"3 "},null,"Fire Protection",{"$nulls":4},{"$f":"SUM(H2019:H2029)","v":0}]
[]
[null,null,"SECTION 6"]
[]
[null,null,"BILL NO. 1"]
[]
[null,null,"PROVISIONAL AMOUNTS"]
[]
[null,null,"PREAMBLES"]
[]
[null,null,"The Model Preambles for Trades (2008 edition) as published by the Association of South African Quantity Surveyors shall be deemed to be incorporated in these bills of quantities and no claims arising from brevity of description of items fully described in the said Model Preambles will be entertained"]
[]
[null,null,"The following \"Supplementary Preambles\" are incorporated in this bill to satisfy the requirements of the project and shall take precedence over the provisions of the said Model Preambles"]
[]
[null,null,"SUPPLEMENTARY PREAMBLES"]
[]
[null,null,"General:"]
[]
[null,null,"Subcontract amounts are net.  Subcontract amounts are for material and equipment supplied and installed complete by firms of specialists"]
[]
[null,null,"Each subcontract amount may comprise more than one element of work.  Therefore, each subcontract amount may include for work to be carried out by more than one subcontractor"]
[]
[null,null,"Profit:"]
[]
[null,null,"Where stated, the contractor may allow for profit if required"]
[]
[null,null,"General attendance on nominated/selected subcontractors:"]
[]
[null,null,"The item \"General Attendance\" which follows each subcontract amount for nominated/selected subcontractors' work, shall be deemed to cover all the contractor's costs incurred in providing free of charge to the nominated/selected subcontractors, the following:"]
[]
[null,null,"1.  Access to the site and places where the subcontract work is to be carried out, including the reasonable use of any temporary personnel hoists erected by the contractor"]
[]
[null,null,"2.  The provision of water and lighting and of single phase electric power to a position within 50 metres of the place where the subcontract work is to be carried out but excluding water, fuel and power for commissioning of any installation"]
[]
[null,null,"3.  The provision of an area for the subcontractor to establish temporary office accommodation and workshops and for the storage of plant and materials"]
[]
[null,null,"4.  The use of erected scaffolding belonging to the contractor, in common with others having the like right, while it remains erected on the site"]
[]
[null,null,"5.  The use, at reasonable times by arrangement of the contractor's erected hoisting equipment"]
[]
[null,null,"6.  Making good in all trades and cleaning down and removal of rubbish on completion"]
[]
[null,null,"Special attendance on nominated/selected subcontractors:"]
[]
[null,null,"Where stated, special attendance as set out in clause 8.1 of section B of the Preliminaries will be described in detail in this bill"]
[]
[null,null,"Builder's work:"]
[]
[null,null,"Builder's work in connection with specialist services is given elsewhere in these bills of quantities"]
[]
[null,null,"PROTECTION SERVICES"]
[]
[{"v":1,"d":"1 "},null,"Sub-contract amount of Four Hundred Thousand Rand for the provision of protection services  to be spent as the Principal Agent may direct and to be deducted in whole or in part if not required",null,"Item",{"v":1,"d":"1 "},null,{"$f":"ROUND($F2087*G2087,2)","v":0}]
[]
[{"v":2,"d":"2 "},null,"Profit",null,"%",{"v":0,"d":"0%"},null,{"$f":"ROUND($F2089*G2089,2)","v":0}]
[]
[{"v":3,"d":"3 "},null,"General attendance",null,"%",{"v":0,"d":"0%"},null,{"$f":"ROUND($F2091*G2091,2)","v":0}]
[]
[null,null,"STATION FIXED FURNITURE"]
[]
[{"v":4,"d":"4 "},null,"Subcontract amount of One Hundred and Seventy Five Thousand Rand for the provision and installation of fixed station furniture  to be spent as the Principal Agent may direct and to be deducted in whole or in part if not required",null,"Item",{"v":1,"d":"1 "},null,{"$f":"ROUND($F2095*G2095,2)","v":0}]
[]
[{"v":5,"d":"5 "},null,"Profit",null,"%",{"v":0,"d":"0%"},null,{"$f":"ROUND($F2097*G2097,2)","v":0}]
[]
[{"v":6,"d":"6 "},null,"General Attendance",null,"%",{"v":0,"d":"0%"},null,{"$f":"ROUND($F2099*G2099,2)","v":0}]
[]
[null,null,"STATION SIGNAGE"]
[]
[{"v":7,"d":"7 "},null,"Subcontract amount of Two Hundred and Fifty Thousand Rand for the provision and installation of station signage  to be spent as the Principal Agent may direct and to be deducted in whole or in part if not required",null,"Item",{"v":1,"d":"1 "},null,{"$f":"ROUND($F2103*G2103,2)","v":0}]
[]
[{"v":8,"d":"8 "},null,"Profit",null,"%",{"v":0,"d":"0%"},null,{"$f":"ROUND($F2105*G2105,2)","v":0}]
[]
[{"v":9,"d":"9 "},null,"General attendance",null,"%",{"v":0,"d":"0%"},null,{"$f":"ROUND($F2107*G2107,2)","v":0}]
[]
[null,null,"BUILT-IN CUPBOARDS"]
[]
[{"v":10,"d":"10 "},null,"Subcontract amount of Twenty Five Thousand Rand for the provision and installation of Built-In Cupboards  to be spent as the Principal Agent may direct and to be deducted in whole or in part if not required",null,"Item",{"v":1,"d":"1 "},null,{"$f":"ROUND($F2111*G2111,2)","v":0}]
[]
[{"v":11,"d":"11 "},null,"Profit",null,"%",{"v":0,"d":"0%"},null,{"$f":"ROUND($F2113*G2113,2)","v":0}]
[]
[{"v":12,"d":"12 "},null,"General attendance",null,"%",{"v":0,"d":"0%"},null,{"$f":"ROUND($F2115*G2115,2)","v":0}]
[]
[null,null,"COMMUNITY LIAISON OFFICER"]
[]
[{"v":13,"d":"13 "},null,"Subcontract amount of one Ninety Thousand Rand for Community Liaison Officer for a period of six (6) months",null,"Item",{"v":1,"d":"1 "},null,{"$f":"ROUND($F2119*G2119,2)","v":0}]
[]
[{"v":14,"d":"14 "},null,"Profit",null,"%",{"v":0,"d":"0%"},null,{"$f":"ROUND($F2121*G2121,2)","v":0}]
[]
[{"v":15,"d":"15 "},null,"General attendance",null,"%",{"v":0,"d":"0%"},null,{"$f":"ROUND($F2123*G2123,2)","v":0}]
[]
[null,null,"SUMMARY"]
[]
[{"v":1,"d":"1 "},null,"Preliminaries and General",{"$nulls":4},{"$f":"SUM(H5:H413)","v":0}]
[]
[{"v":2,"d":"2 "},null,"Building Works",{"$nulls":4},{"$f":"SUM(H1426:H1449)","v":0}]
[]
[{"v":3,"d":"3 "},null,"External Works",{"$nulls":4},{"$f":"SUM(H1676:H1679)","v":0}]
[]
[{"v":4,"d":"4 "},null,"Electrical Installations",{"$nulls":4},{"$f":"SUM(H1684:H1882)","v":0}]
[]
[{"v":5,"d":"5 "},null,"Mechanical Installations",{"$nulls":4},{"$f":"SUM(H2031:H2036)","v":0}]
[]
[{"v":6,"d":"6 "},null,"Provisional Sums",{"$nulls":4},{"$f":"SUM(H2071:H2123)","v":0}]
[]
[null,null,"SUB TOTAL (EXCLUDING CONTINGENCIES)",{"$nulls":4},{"$f":"SUM(H2127:H2138)","v":0}]
[]
[null,null,"CONTRACT CONTINGENCIES"]
[]
[null,null,"Allow the sum of 10% for Contingencies to be spent as the Principal Agent may direct and to be deducted in whole or in part if not required",{"$nulls":4},{"$f":"H2139*0.1","v":0}]
[]
[null,null,"SUBTOTAL (INCLUDING CONTINGENCIES)",{"$nulls":4},{"$f":"SUM(H2139:H2144)","v":0}]
[]
[null,null,"VALUE ADDED TAX"]
[]
[null,null,"Value Added Tax ",{"$nulls":4},{"$f":"H2145*0.15","v":0}]
[]
[null,null,"Carried to Form of Tender",{"$nulls":4},{"$f":"SUM(H2145:H2150)","v":0}]

{"sheet":"PAHLA STATION","index":3,"n_rows":1913,"n_cols":8,"rows_kept":1913}
["ITEM NO",null,"DESCRIPTION",null,"UNIT","QUANTITY","RATE","AMOUNT"]
[]
[null,null,"SECTION NO. 1"]
[]
[null,null,"BILL NO. 1"]
[]
[null,null,"PRELIMINARIES AND GENERAL"]
[]
[null,null,"BUILDING AGREEMENT AND PRELIMINARIES"]
[]
[null,null,"The  JBCC Principal Building Agreement (May 2018 Edition 6.2) prepared by the Joint Building Contracts Committee shall be the applicable building agreement, amended as hereinafter described"]
[]
[null,null,"The JBCC Principal Building Agreement contract data form an integral part of this agreement"]
[]
[null,null,"The Preliminaries revision 1 (February 2016) published by the Association of South African Quantity Surveyors for use with the JBCC Principal Building Agreement Edition 6.2 shall be deemed to be incorporated in these bills of quantities, amended as hereinafter described"]
[]
[null,null,"The contractor is deemed to have referred to the abovementioned documents for the full intent and meaning of each clause"]
[]
[null,null,"The clauses in the abovementioned documents are hereinafter referred to by clause number and heading only"]
[]
[null,null,"Where any item is not relevant to this agreement such item is marked N/A signifying \"not applicable\""]
[]
[null,null,"PREAMBLES FOR TRADES"]
[]
[null,null,"The Model Preambles for Trades 2008 published by the Association of South African Quantity Surveyors is designed to support and extend the abbreviated descriptions utilised in these bills of quantities by inter alia referring to SANS construction standards."]
[]
[null,null,"Note that the text of the Standard System of Measuring Building Work (seventh edition) and that of the Standard Method of Measuring Building Work for Africa 2015 (first edition) is the same"]
[]
[null,null,"The Model Preambles for Trades 2008 as published by the Association of South African Quantity Surveyors shall be deemed to be incorporated in these bills of quantities and no claims arising from brevity of description of items fully described in the said Model Preambles will be entertained"]
[]
[null,null,"Supplementary preambles and/or specifications are incorporated in these bills of quantities to satisfy the requirements of this project. Such supplementary preambles and/or specifications shall take precedence over the provisions of the Model Preambles"]
[]
[null,null,"The contractor's prices for all items throughout these bills of quantities shall take account of and include for all of the obligations, requirements and specifications given in the Model Preambles and in any supplementary preambles and/or specifications"]
[]
[null,null,"NOTES TO TENDERERS"]
[]
[null,null,"Tenderers are to inspect the drawings issued with these Bills of Quantities and to satisfy themselves with the nature and the requirements of the Contract works. Failure to do so will be the complete responsibility of the Tenderer and no claims whatsoever will be entertained in this regard."]
[]
[null,null,"Tenderers are to read the descriptions, which are intended as a means of identifying various facets of the work, in conjunction with the drawings. Tenderers shall allow for all costs in connection with the various items taking full cognisance of both the drawings and the Bills of Quantities."]
[]
[null,null,"Tenderers shall notify the Quantity Surveyor in writing of any discrepancies encountered upon which clarification will be given by the Quantity Surveyor in writing to the Tenderer. Failure to do so will be the complete responsibility of the Tenderer and no claims whatsoever will be entertained in this regard"]
[]
[null,null,"Tenderers are to note that setting out of the works will be the complete responsibility of the Tenderer and they should therefore acquaint themselves with the site boundaries, site co-ordinates, datum levels etc. Failure to do so will be the complete responsibility of the Tenderer and no claims whatsoever will be entertained in this regard.  Tenderers are to note that all items with ZERO quantities are Rate Only items and should be priced as such."]
[]
[null,null,"Tenderers are to note that there might be specified suppliers to be used for certain trades as per the annexure to this tender document. Tenderers should familiarise themselves with the suppliers on the list and ensure to allow for accordingly. Failure to do so will be the complete responsibility of the Tenderer and no claims whatsoever will be entertained in this regard."]
[]
[null,null,"Tenderers are to fully acquaint themselves with the construction period and shall allow for any night shift if required. Failure to do so will be the complete responsibility of the Tenderer and no claims whatsoever will be entertained in this regard."]
[]
[null,null,"STRUCTURE OF THIS PRELIMINARIES BILL"]
[]
[null,null,"Section A : A recital of the headings of the individual clauses of the aforementioned JBCC Principal Building Agreement"]
[]
[null,null,"Section B : A recital of the headings of the individual clauses of the aforementioned Preliminaries document"]
[]
[null,null,"Section C : Any special clauses to meet the particular circumstances of the project"]
[]
[null,null,"PRICING OF PRELIMINARIES"]
[]
[null,null,"Should the contractor select Option A in the contract data for the adjustment of preliminaries, the amounts entered against the relevant items in these preliminaries are to be divided into one or more of the three categories provided namely fixed (F), value related (V) and time related (T)"]
[]
[null,null,"SECTION A: PRINCIPAL BUILDING AGREEMENT"]
[]
[null,null,"Interpretation (A1-A7)"]
[]
[{"v":1,"d":"1 "},null,"Clause 1.0 - Definitions and interpretation",null,"CONT"]
[]
[null,null,"F:............................. V:............................ T:............................",null,"Item",{"v":0,"d":"0 "},null,{"$f":"ROUND($F67*G67,2)","v":0}]
[]
[{"v":2,"d":"2 "},null,"Clause 2.0 - Law, regulations and notices",null,"CONT"]
[]
[null,null,"F:............................. V:............................ T:............................",null,"Item",{"v":0,"d":"0 "},null,{"$f":"ROUND($F71*G71,2)","v":0}]
[]
[{"v":3,"d":"3 "},null,"Clause 3.0 - Offer and acceptance  F:............................. V:............................ T:............................",null,"Item",{"v":0,"d":"0 "},null,{"$f":"ROUND($F73*G73,2)","v":0}]
[]
[{"v":4,"d":"4 "},null,"Clause 4.0 - Assignment and cession  F:............................. V:............................ T:............................",null,"Item",{"v":0,"d":"0 "},null,{"$f":"ROUND($F75*G75,2)","v":0}]
[]
[{"v":5,"d":"5 "},null,"Clause 5.0 - Contract documents",null,"CONT"]
[]
[null,null,"F:............................. V:............................ T:............................",null,"Item",{"v":0,"d":"0 "},null,{"$f":"ROUND($F79*G79,2)","v":0}]
[]
[{"v":6,"d":"6 "},null,"Clause 6.0 - Employer's agents",null,"CONT"]
[]
[null,null,"F:............................. V:............................ T:............................",null,"Item",{"v":0,"d":"0 "},null,{"$f":"ROUND($F83*G83,2)","v":0}]
[]
[{"v":7,"d":"7 "},null,"Clause 7.0 - Design responsibility  F:............................. V:............................ T:............................",null,"Item",{"v":0,"d":"0 "},null,{"$f":"ROUND($F85*G85,2)","v":0}]
[]
[null,null,"Insurance and security (A8-A11)"]
[]
[{"v":8,"d":"8 "},null,"Clause 8.0 - Works risk  F:............................. V:............................ T:............................",null,"Item",{"v":0,"d":"0 "},null,{"$f":"ROUND($F89*G89,2)","v":0}]
[]
[{"v":9,"d":"9 "},null,"Clause 9.0 - Indemnities  F:............................. V:............................ T:............................",null,"Item",{"v":0,"d":"0 "},null,{"$f":"ROUND($F91*G91,2)","v":0}]
[]
[{"v":10,"d":"10 "},null,"Clause 10.0 - Insurances  F:............................. V:............................ T:............................",null,"Item",{"v":0,"d":"0 "},null,{"$f":"ROUND($F93*G93,2)","v":0}]
[]
[{"v":11,"d":"11 "},null,"Clause 11.0 - Security",null,"CONT"]
[]
[null,null,"F:............................. V:............................ T:............................",null,"Item",{"v":0,"d":"0 "},null,{"$f":"ROUND($F97*G97,2)","v":0}]
[]
[null,null,"Execution (A12 - A17)"]
[]
[{"v":12,"d":"12 "},null,"Clause 12.0 - Duties of the parties",null,"CONT"]
[]
[null,null,"F:............................. V:............................ T:............................",null,"Item",{"v":1,"d":"1 "},null,{"$f":"ROUND($F103*G103,2)","v":0}]
[]
[{"v":13,"d":"13 "},null,"Clause 13.0 - Setting out  F:............................. V:............................ T:............................",null,"Item",{"v":0,"d":"0 "},null,{"$f":"ROUND($F105*G105,2)","v":0}]
[]
[{"v":14,"d":"14 "},null,"Clause 14.0 - Nominated subcontractors",null,"CONT"]
[]
[null,null,"F:............................. V:............................ T:............................",null,"Item",{"v":0,"d":"0 "},null,{"$f":"ROUND($F109*G109,2)","v":0}]
[]
[{"v":15,"d":"15 "},null,"Clause 15.0 - Selected subcontractors",null,"CONT"]
[]
[null,null,"F:............................. V:............................ T:............................",null,"Item",{"v":0,"d":"0 "},null,{"$f":"ROUND($F113*G113,2)","v":0}]
[]
[{"v":16,"d":"16 "},null,"Clause 16.0 - Direct contractors  Attendance on direct contractors  In respect of direct contractors the contractor shall:",null,"CONT"]
[]
[null,null,"F:............................. V:............................ T:............................",null,"Item",{"v":0,"d":"0 "},null,{"$f":"ROUND($F117*G117,2)","v":0}]
[]
[{"v":17,"d":"17 "},null,"Clause 17.0 - Contract instructions  Site instructions  Instructions issued on site are to be recorded in a site instruction book which is to be supplied and maintained on site by the contractor",null,"CONT"]
[]
[null,null,"F:............................. V:............................ T:............................",null,"Item",{"v":0,"d":"0 "},null,{"$f":"ROUND($F121*G121,2)","v":0}]
[]
[null,null,"Completion (A18 - A24)"]
[]
[{"v":18,"d":"18 "},null,"Clause 18.0 - Interim completion  F:............................. V:............................ T:............................",null,"Item",{"v":0,"d":"0 "},null,{"$f":"ROUND($F125*G125,2)","v":0}]
[]
[{"v":19,"d":"19 "},null,"Clause 19.0 - Practical completion   F:............................. V:............................ T:............................",null,"Item",{"v":0,"d":"0 "},null,{"$f":"ROUND($F127*G127,2)","v":0}]
[]
[{"v":20,"d":"20 "},null,"Clause 20.0 - Sectional completion",null,"CONT"]
[]
[null,null,"F:............................. V:............................ T:............................",null,"Item",{"v":0,"d":"0 "},null,{"$f":"ROUND($F131*G131,2)","v":0}]
[]
[{"v":21,"d":"21 "},null,"Clause 21.0 - Defects liability period and final completion",null,"CONT"]
[]
[null,null,"F:............................. V:............................ T:............................",null,"Item",{"v":0,"d":"0 "},null,{"$f":"ROUND($F135*G135,2)","v":0}]
[]
[{"v":22,"d":"22 "},null,"Clause 22.0 - Latent defects liability period F:............................. V:............................ T:............................",null,"Item",{"v":0,"d":"0 "},null,{"$f":"ROUND($F137*G137,2)","v":0}]
[]
[{"v":23,"d":"23 "},null,"Clause 23.0 - Revision of date for practical completion  Substitution of materials and goods  The removal or substitution of any materials and goods which do not conform to the specification or the contract drawings shall not constitute grounds for the extension of the construction period nor for the adjustment of the contract value [17.1.8, 23.1 & 2]",null,"CONT"]
[]
[null,null,"F:............................. V:............................ T:............................",null,"Item",{"v":0,"d":"0 "},null,{"$f":"ROUND($F141*G141,2)","v":0}]
[]
[{"v":24,"d":"24 "},null,"Clause 24.0 - Penalty for late or non-completion   F:............................. V:............................ T:............................",null,"Item",{"v":0,"d":"0 "},null,{"$f":"ROUND($F143*G143,2)","v":0}]
[]
[null,null,"Payment (A25 - A27)"]
[]
[{"v":25,"d":"25 "},null,"Clause 25.0 - Payment",null,"CONT"]
[]
[null,null,"F:............................. V:............................ T:............................",null,"Item",{"v":0,"d":"0 "},null,{"$f":"ROUND($F149*G149,2)","v":0}]
[]
[{"v":26,"d":"26 "},null,"Clause 26.0 - Adjustment of the contract value and final account",null,"CONT"]
[]
[null,null,"F:............................. V:............................ T:............................",null,"Item",{"v":0,"d":"0 "},null,{"$f":"ROUND($F153*G153,2)","v":0}]
[]
[{"v":27,"d":"27 "},null,"Clause 27.0 - Recovery of expense and/or loss  F:............................. V:............................ T:............................",null,"Item",{"v":0,"d":"0 "},null,{"$f":"ROUND($F155*G155,2)","v":0}]
[]
[null,null,"Suspension and termination (A28 - A29)"]
[]
[{"v":28,"d":"28 "},null,"Clause 28.0 - Suspension by the contractor",null,"CONT"]
[]
[null,null,"F:............................. V:............................ T:............................",null,"Item",{"v":0,"d":"0 "},null,{"$f":"ROUND($F161*G161,2)","v":0}]
[]
[{"v":29,"d":"29 "},null,"Clause 29.0 - Termination",null,"CONT"]
[]
[null,null,"F:............................. V:............................ T:............................",null,"Item",{"v":0,"d":"0 "},null,{"$f":"ROUND($F165*G165,2)","v":0}]
[]
[null,null,"Dispute resolution (A30)"]
[]
[{"v":30,"d":"30 "},null,"Clause 30.0 - Dispute resolution  F:............................. V:............................ T:............................",null,"Item",{"v":0,"d":"0 "},null,{"$f":"ROUND($F169*G169,2)","v":0}]
[]
[null,null,"The required information of the parties and the amount of the contract sum shall be inserted in the agreement for signature of the agreement by the parties  F:............................. V:............................ T:............................",null,"Item",{"v":0,"d":"0 "},null,{"$f":"ROUND($F171*G171,2)","v":0}]
[]
[null,null,"F:............................. V:............................ T:............................",null,"Item",{"v":0,"d":"0 "},null,{"$f":"ROUND($F173*G173,2)","v":0}]
[]
[null,null,"42.1  \tCONTRACTING AND OTHER PARTIES"]
[]
[null,null,"42.1.1Employer: Passenger Rail Agency of South AfricaPostal address: PO Box 51324Durban4062Tel.: \t(031) 813 0376Physical Address:65 Masabalala Yengwa AvenueDurban StationDurban4000"]
[]
[null,null,"42.2  \tCONTRACT DETAILS"]
[]
[null,null,"42.2.1 \tWorks Description: Refurbishment, Alterations and Additions at Phahla Station for a period of six (6) months"]
[]
[null,null,"42.2.2 \tSite Description: \t\t\tPhahla Train Station\t"]
[]
[null,null,"42.2.3 \tWork or installations by direct contractors:  N/A"]
[]
[null,null,"42.2.4 \tThis agreement is for a government contract where there are specific options that are applicable to a State organ only Yes"]
[]
[null,null,"42.2.5 \tDate on which possession of the site is intended to be given: TBC"]
[]
[null,null,"42.2.6 \tPeriod for the commencement of the works after the contractor takes possession: TBC"]
[]
[null,null,"42.2.7 \tFor the works as a whole. Intended date of practical completion and the penalty per calendar day Six (6) Months after contractual commencement date               0.04% of contract amount per calender day Penalty Amount"]
[]
[null,null,"42.2.8\tFor the works in sections:  Intended date of practical completion and the penalty per calender day: N/A"]
[]
[null,null,"42.2.9 The law applicable to this agreement shall be that of South Africa     (country)"]
[]
[null,null,"42.3 \tINSURANCES"]
[]
[null,null,"42.3.1 \tContract works insurance to be effected by:Contractor: For the Sum of R Contract Amount  30.00 % With a deductible of - to be determined by the contractor"]
[]
[null,null,"42.3.2 \tSupplementary insurance is required No"]
[]
[null,null,"42.3.3 \tPublic liability insurance to be effected by:Contractor: For the Sum of R 1 000 000-00With a deductible of - to be determined by the contractor"]
[]
[null,null,"42.4 \tDOCUMENTS"]
[]
[null,null,"42.4.1 \tWaivers of contractors lien or right of continuing possession is required  \tYes"]
[]
[null,null,"42.4.2 \tNumber of construction document copies to be \tsupplied to the contractor free of charge: 3   Number of"]
[]
[null,null,"42.4.3 \tBills of Quantities/Lump sum document schedule of rates drawn up in accordance with:  \t\"€œStandard System of Measuring Builders\"€™ Work\"€\u009d"]
[]
[null,null,"42.4.4 \tOn acceptance of the tender the bills of quantities/lump sum document is to be submitted within:  The priced bills of quantities must be handed in with the tender"]
[]
[null,null,"42.4.5 \tJBCC Engineering General Conditions are to be included in the contract documents: No"]
[]
[null,null,"42.4.6 \tThe contract value is to be adjusted using escalation adjustment indices  N/A \tWhere JBCC CPAP is to be used Base Month    N/A"]
[]
[null,null,"42.4.7 \tDetails of changes made to the provision of JBCC standard documentation:"]
[]
[null,null,"SECTION B:  PRELIMINARIES"]
[]
[null,null,"Interpretation (B1)"]
[]
[{"v":31,"d":"31 "},null,"Clause 1.1 - Definitions  F:............................. V:............................ T:............................",null,"Item",{"v":0,"d":"0 "},null,{"$f":"ROUND($F227*G227,2)","v":0}]
[]
[{"v":32,"d":"32 "},null,"Clause 1.2 - Interpretation  F:............................. V:............................ T:............................",null,"Item",{"v":0,"d":"0 "},null,{"$f":"ROUND($F229*G229,2)","v":0}]
[]
[null,null,"Documents (B2)"]
[]
[{"v":33,"d":"33 "},null,"Clause 2.1 - Checking of documents  F:............................. V:............................ T:............................",null,"Item",{"v":0,"d":"0 "},null,{"$f":"ROUND($F233*G233,2)","v":0}]
[]
[{"v":34,"d":"34 "},null,"Clause 2.2 - Provisional bills of quantities",null,"CONT"]
[]
[null,null," F:............................. V:............................ T:............................",null,"Item",{"v":0,"d":"0 "},null,{"$f":"ROUND($F237*G237,2)","v":0}]
[]
[{"v":35,"d":"35 "},null,"Clause 2.3 - Availability of construction information   F:............................. V:............................ T:............................",null,"Item",{"v":0,"d":"0 "},null,{"$f":"ROUND($F239*G239,2)","v":0}]
[]
[{"v":36,"d":"36 "},null,"Clause 2.4 - Ordering of materials and goods  F:............................. V:............................ T:............................",null,"Item",{"v":0,"d":"0 "},null,{"$f":"ROUND($F241*G241,2)","v":0}]
[]
[null,null,"Previous work and adjoining properties (B3)"]
[]
[{"v":37,"d":"37 "},null,"Clause 3.1 - Previous work - dimensional accuracy  F:............................. V:............................ T:............................",null,"Item",{"v":0,"d":"0 "},null,{"$f":"ROUND($F245*G245,2)","v":0}]
[]
[{"v":38,"d":"38 "},null,"Clause 3.2 - Previous work - defects  F:............................. V:............................ T:............................",null,"Item",{"v":0,"d":"0 "},null,{"$f":"ROUND($F247*G247,2)","v":0}]
[]
[{"v":39,"d":"39 "},null,"Clause 3.3 - Inspection of adjoining properties  F:............................. V:............................ T:............................",null,"Item",{"v":0,"d":"0 "},null,{"$f":"ROUND($F249*G249,2)","v":0}]
[]
[null,null,"The site (B4)"]
[]
[{"v":40,"d":"40 "},null,"Clause 4.1 - Defined works area  F:............................. V:............................ T:...........................",null,"Item",{"v":0,"d":"0 "},null,{"$f":"ROUND($F253*G253,2)","v":0}]
[]
[{"v":41,"d":"41 "},null,"Clause 4.2 - Handover of site in stages  F:............................. V:............................ T:............................",null,"Item",{"v":0,"d":"0 "},null,{"$f":"ROUND($F255*G255,2)","v":0}]
[]
[{"v":42,"d":"42 "},null,"Clause 4.3 - Enclosure of the works  F:............................. V:............................ T:............................",null,"Item",{"v":0,"d":"0 "},null,{"$f":"ROUND($F257*G257,2)","v":0}]
[]
[{"v":43,"d":"43 "},null,"Clause 4.4 - Geotechnical investigation  F:............................. V:............................ T:............................",null,"Item",{"v":0,"d":"0 "},null,{"$f":"ROUND($F259*G259,2)","v":0}]
[]
[{"v":44,"d":"44 "},null,"Clause 4.5 - Encroachments  F:............................. V:............................ T:............................",null,"Item",{"v":0,"d":"0 "},null,{"$f":"ROUND($F261*G261,2)","v":0}]
[]
[{"v":45,"d":"45 "},null,"Clause 4.6 - Existing premises occupied  F:............................. V:............................ T:............................",null,"Item",{"v":0,"d":"0 "},null,{"$f":"ROUND($F263*G263,2)","v":0}]
[]
[{"v":46,"d":"46 "},null,"Clause 4.7 - Services - known  F:............................. V:............................ T:............................",null,"Item",{"v":0,"d":"0 "},null,{"$f":"ROUND($F265*G265,2)","v":0}]
[]
[{"v":47,"d":"47 "},null,"Clause 4.8 - Protection of trees and/or relevant natural features  F:............................. V:............................ T:...........................",null,"Item",{"v":0,"d":"0 "},null,{"$f":"ROUND($F267*G267,2)","v":0}]
[]
[null,null,"Management of contract (B5)"]
[]
[{"v":48,"d":"48 "},null,"Clause 5.1 - Management of the works  F:............................. V:............................ T:............................",null,"Item",{"v":0,"d":"0 "},null,{"$f":"ROUND($F271*G271,2)","v":0}]
[]
[{"v":49,"d":"49 "},null,"Clause 5.2 - Progress meetings  F:............................. V:............................ T:............................",null,"Item",{"v":0,"d":"0 "},null,{"$f":"ROUND($F273*G273,2)","v":0}]
[]
[{"v":50,"d":"50 "},null,"Clause 5.3 - Technical meetings  F:............................. V:............................ T:............................",null,"Item",{"v":0,"d":"0 "},null,{"$f":"ROUND($F275*G275,2)","v":0}]
[]
[null,null,"Samples, shop drawings and manufacturer's instructions (B6)"]
[]
[{"v":51,"d":"51 "},null,"Clause 6.1 - Samples of materials  F:............................. V:............................ T:...........................",null,"Item",{"v":0,"d":"0 "},null,{"$f":"ROUND($F279*G279,2)","v":0}]
[]
[{"v":52,"d":"52 "},null,"Clause 6.2 - Workmanship samples  F:............................. V:............................ T:............................",null,"Item",{"v":0,"d":"0 "},null,{"$f":"ROUND($F281*G281,2)","v":0}]
[]
[{"v":53,"d":"53 "},null,"Clause 6.3 - Shop drawings  F:............................. V:............................ T:............................",null,"Item",{"v":0,"d":"0 "},null,{"$f":"ROUND($F283*G283,2)","v":0}]
[]
[{"v":54,"d":"54 "},null,"Clause 6.4 - Compliance with manufacturer's instructions  F:............................. V:............................ T:............................",null,"Item",{"v":0,"d":"0 "},null,{"$f":"ROUND($F285*G285,2)","v":0}]
[]
[null,null,"Deposits and fees (B7)"]
[]
[{"v":55,"d":"55 "},null,"Clause 7.1 - Deposits and fees  F:............................. V:............................ T:............................",null,"Item",{"v":0,"d":"0 "},null,{"$f":"ROUND($F289*G289,2)","v":0}]
[]
[null,null,"Temporary services (B8)"]
[]
[{"v":56,"d":"56 "},null,"Clause 8.1 - Water  F:............................. V:............................ T:............................",null,"Item",{"v":0,"d":"0 "},null,{"$f":"ROUND($F293*G293,2)","v":0}]
[]
[{"v":57,"d":"57 "},null,"Clause 8.2 - Electricity  F:............................. V:............................ T:............................",null,"Item",{"v":0,"d":"0 "},null,{"$f":"ROUND($F295*G295,2)","v":0}]
[]
[{"v":58,"d":"58 "},null,"Clause 8.3 - Ablution and welfare facilities  F:............................. V:............................ T:............................",null,"Item",{"v":0,"d":"0 "},null,{"$f":"ROUND($F297*G297,2)","v":0}]
[]
[{"v":59,"d":"59 "},null,"Clause 8.4 - Communication facilities  F:............................. V:............................ T:............................",null,"Item",{"v":0,"d":"0 "},null,{"$f":"ROUND($F299*G299,2)","v":0}]
[]
[null,null,"Prime cost amounts (B9)"]
[]
[{"v":60,"d":"60 "},null,"Clause 9.1 - Responsibility for prime cost amounts",null,"CONT"]
[]
[null,null," F:............................. V:............................ T:............................",null,"Item",{"v":0,"d":"0 "},null,{"$f":"ROUND($F305*G305,2)","v":0}]
[]
[null,null,"Attendance on subcontractors (B10)"]
[]
[{"v":61,"d":"61 "},null,"Clause 10.1 - General attendance   F:............................. V:............................ T:............................",null,"Item",{"v":0,"d":"0 "},null,{"$f":"ROUND($F309*G309,2)","v":0}]
[]
[{"v":62,"d":"62 "},null,"Clause 10.2 - Special attendance",null,"CONT"]
[]
[null,null," F:............................. V:............................ T:............................",null,"Item",{"v":0,"d":"0 "},null,{"$f":"ROUND($F313*G313,2)","v":0}]
[]
[null,null,"General (B11)"]
[]
[{"v":63,"d":"63 "},null,"Clause 11.1 - Protection of the works  F:............................. V:............................ T:............................",null,"Item",{"v":0,"d":"0 "},null,{"$f":"ROUND($F317*G317,2)","v":0}]
[]
[{"v":64,"d":"64 "},null,"Clause 11.2 - Protection/isolation of existing/sectionally occupied works  F:............................. V:............................ T:............................",null,"Item",{"v":0,"d":"0 "},null,{"$f":"ROUND($F319*G319,2)","v":0}]
[]
[{"v":65,"d":"65 "},null,"Clause 11.3 - Security of the works  F:............................. V:............................ T:............................",null,"Item",{"v":0,"d":"0 "},null,{"$f":"ROUND($F321*G321,2)","v":0}]
[]
[{"v":66,"d":"66 "},null,"Clause 11.4 - Notice before covering work  F:............................. V:............................ T:............................",null,"Item",{"v":0,"d":"0 "},null,{"$f":"ROUND($F323*G323,2)","v":0}]
[]
[{"v":67,"d":"67 "},null,"Clause 11.5 - Disturbance  F:............................. V:............................ T:............................",null,"Item",{"v":0,"d":"0 "},null,{"$f":"ROUND($F325*G325,2)","v":0}]
[]
[null,null,"Clause 11.6 - Environmental disturbance  F:............................. V:............................ T:............................",null,"Item",{"v":0,"d":"0 "},null,{"$f":"ROUND($F327*G327,2)","v":0}]
[]
[{"v":68,"d":"68 "},null,"Clause 11.7 - Works cleaning and clearing  F:............................. V:............................ T:............................",null,"Item",{"v":0,"d":"0 "},null,{"$f":"ROUND($F329*G329,2)","v":0}]
[]
[{"v":69,"d":"69 "},null,"Clause 11.8 - Vermin  F:............................. V:............................ T:............................",null,"Item",{"v":0,"d":"0 "},null,{"$f":"ROUND($F331*G331,2)","v":0}]
[]
[{"v":70,"d":"70 "},null,"Clause 11.9 - Overhand work  F:............................. V:............................ T:............................",null,"Item",{"v":0,"d":"0 "},null,{"$f":"ROUND($F333*G333,2)","v":0}]
[]
[{"v":71,"d":"71 "},null,"Clause 11.11 - Advertising  F:............................. V:............................ T:............................",null,"Item",{"v":0,"d":"0 "},null,{"$f":"ROUND($F335*G335,2)","v":0}]
[]
[null,null,"Preliminaries schedule (B12)"]
[]
[{"v":72,"d":"72 "},null,"Information for completion of the preliminaries schedule  Information necessary for elections and completion of those clauses contained in the preliminaries schedule which are necessary for tender purposes is given hereunder. Where no information is given it shall mean that no specific requirements are expected or that the clause is not relevant to this specific contract",null,"CONT"]
[]
[null,null,"12.1 -\tProvisional bills of quantities [2.2]  \tThe quantities are provisional - Yes"]
[]
[null,null,"12.2 -\tAvailability of construction information [2.3]  \tConstruction documentation is complete - Yes"]
[]
[null,null,"12.3 -\tPrevious work - dimensional accuracy [3.1]"]
[]
[null,null,"12.4 -\tPrevious work - defects [3.2]"]
[]
[null,null,"12.5 -\tInspection of adjoining properties [3.3]"]
[]
[null,null,"12.6 -\tDefined works area [4.1]"]
[]
[null,null,"12.7 -\tHandover of site in stages [4.2]"]
[]
[null,null,"12.8 -\tEnclosure of the works [4.3]"]
[]
[null,null,"12.9 -\tGeotechnical investigation [4.4]"]
[]
[null,null,"12.10 -\tExisting premises occupied [4.6]"]
[]
[null,null,"12.11 -\tServices - known [4.7]"]
[]
[null,null,"12.12 -\tProtection of trees and/or relevant natural features \t[4.8]"]
[]
[null,null,"12.13 -\tWater [8.1]  \tOption A (by contractor) - Yes  \tOption B (by employer - free of charge)\t - No  \tOption C (by employer - metered) -  No"]
[]
[null,null,"12.14 -\tElectricity [8.2]\tOption A (by contractor) - Yes\tOption B (by employer - free of charge)\t - No\tOption C (by employer - metered) -  No"]
[]
[null,null,"12.15 -\tAblution and welfare facilities [8.3]  \tOption A (by contractor) - Yes  \tOption B (by employer - free of charge)\t - No"]
[]
[null,null,"12.16 -\tCommunication facilities [8.4]"]
[]
[null,null,"12.17 -\tProtection of the works [11.1]"]
[]
[null,null,"12.18 -\tProtection/isolation of existing/sectionally occupied works [11.2]  \tProtection/isolation is required - Yes"]
[]
[null,null,"12.19 -\tDisturbance [11.5]"]
[]
[null,null,"12.20 -\tEnvironmental disturbance [11.6]"]
[]
[null,null,"Controlling all forms of pollution  The contractor shall be responsible for and take all precautions in controlling by whatever means necessary all forms of pollution emanating from the site during the construction period due inter alia to noise, artificial light, wind-blown sand, dust, deposits of mud, etc"]
[]
[null,null,"The contractor is to ensure that all roads which border the site and is used by the contractor during the execution of the works are kept clean and free of any dirt or debris caused by the execution of the works"]
[]
[null,null,"F:............................. V:............................ T:............................",null,"Item",{"v":0,"d":"0 "},null,{"$f":"ROUND($F385*G385,2)","v":0}]
[]
[null,null,"SECTION  C: SPECIFIC PRELIMINARIES"]
[]
[null,null,"Section C Section C contains specific preliminary items which apply to this contract except where N/A (Not Applicable) appears against an item"]
[]
[null,null,"The warranty will not be enforced if the work is damaged by defects in the execution of the works, in which case the responsibility for replacement shall rest entirely with the contractor  F:............................. V:............................ T:............................",null,"Item",{"v":0,"d":"0 "},null,{"$f":"ROUND($F391*G391,2)","v":0}]
[]
[{"v":73,"d":"73 "},null,"Overtime  Should overtime be required to be worked for any reason whatsoever, the cost of such overtime is to be borne by the contractor unless the principal agent has specifically authorised, prior to execution thereof, that costs for such overtime are to be borne by the employer  F:............................. V:............................ T:............................",null,"Item",{"v":0,"d":"0 "},null,{"$f":"ROUND($F393*G393,2)","v":0}]
[]
[{"v":74,"d":"74 "},null,"Co-operation of the contractor for cost management  It is specifically agreed that the contractor accepts the obligation of assisting the principal agent in implementing proper cost management. The contractor will be advised by the principal agent of all cost management procedures which will be implemented to ensure that the contract value does not exceed the budget  F:............................. V:............................ T:............................",null,"Item",{"v":0,"d":"0 "},null,{"$f":"ROUND($F395*G395,2)","v":0}]
[]
[{"v":75,"d":"75 "},null,"Overloading  The contractor shall take all necessary steps to ensure that no damage occurs due to overloading of any portion of the works or temporary works eg scaffolding, etc. The contractor shall submit details of his proposed loading, storage, plant erection, etc to the principal agent for approval prior to proceeding with such loading, storing or erecting and shall comply with and pay for the principal agent's requirements in connection with the provision of temporary support work, etc. Any damage caused to the works by overloading shall be made good by the contractor at his sole expense  F:............................. V:............................ T:............................",null,"Item",{"v":0,"d":"0 "},null,{"$f":"ROUND($F397*G397,2)","v":0}]
[]
[{"v":76,"d":"76 "},null,"Propping of floors below  The contractor is advised that propping of floors below may be required if he wishes to use any areas of completed suspended reinforced concrete slabs for vehicle access, storage of materials and goods and location of plant, scaffolding, etc. The location of these areas and any necessary propping shall be approved by the principal agent and the cost thereof shall be borne by the contractor  F:............................. V:............................ T:............................",null,"Item",{"v":0,"d":"0 "},null,{"$f":"ROUND($F399*G399,2)","v":0}]
[]
[{"v":77,"d":"77 "},null,"Testing of flat roof waterproofing for water tightness  Flat roof waterproof areas shall be prepared with small sand dykes around them of a size and enclosing an area approved by the principal agent, flooded with water and kept \"ponded\" for at least forty (40) hours as a test to ensure the water tightness of the waterproofing and before any further construction work is carried out above the waterproofing  F:............................. V:............................ T:............................",null,"Item",{"v":0,"d":"0 "},null,{"$f":"ROUND($F401*G401,2)","v":0}]
[]
[null,null,"The contractor is to submit to the principal agent on an annual basis a schedule of spend, split into vendors engaged as subcontractors and suppliers indicating their BBBEE rating including proof of the said rating  F:............................. V:............................ T:............................",null,"Item",{"v":0,"d":"0 "},null,{"$f":"ROUND($F403*G403,2)","v":0}]
[]
[{"v":78,"d":"78 "},null,"Advertising rights  The employer may elect to contract with advertising agencies for the erection of advertising hoardings, banners, wraps or the like for the duration of the contract. The contractor shall not prevent such an arrangement and will assist in the facilitation of same. Position and type of advertising structure to be agreed with the principal agent so as not to hinder the contractor in meeting the obligations under this agreement  F:............................. V:............................ T:............................",null,"Item",{"v":0,"d":"0 "},null,{"$f":"ROUND($F405*G405,2)","v":0}]
[]
[{"v":79,"d":"79 "},null,"Confidentiality  The contractor undertakes to maintain in confidence any and all information regarding this project and shall obtain appropriate similar undertakings from all subcontractors and suppliers. Such information shall not be used in any way except in connection with the execution of the works  No information regarding this project shall be published or disclosed without the prior written consent of the employer  F:............................. V:............................ T:............................",null,"Item",{"v":0,"d":"0 "},null,{"$f":"ROUND($F407*G407,2)","v":0}]
[]
[{"v":80,"d":"80 "},null,"Media releases  All rights of publication of articles in the media, together with any advertising relating thereto or in any way connected with this project, shall vest with the employer  The contractor together with his subcontractors shall not, without the prior written consent of the employer, cause any statement or advertisement connected with this project to be printed, screened or aired by the media  F:............................. V:............................ T:............................",null,"Item",{"v":0,"d":"0 "},null,{"$f":"ROUND($F409*G409,2)","v":0}]
[]
[null,null,"SUMMARY OF CATEGORIES"]
[]
[null,null,"Category : Fixed   R........................................  Category : Value   R........................................  Category : Time    R........................................"]
[]
[null,null,"SECTION 2"]
[]
[null,null,"BILL NO.1"]
[]
[null,null,"ALTERATIONS (PROVISIONAL)"]
[]
[null,null,"WORK GROUP ALLOCATION"]
[]
[null,null,"Unless otherwise stated, all items in this Bill will be allocated to Work Group 102 - Alterations"]
[]
[null,null,"PREAMBLES"]
[]
[null,null,"The General Preambles for Trades (2017 edition), as published by the Association of South African Quantity Surveyors, shall be deemed to be incorporated in these bills of quantities and no claims arising from brevity of description of items, fully described in the said General Preambles, will be entertained"]
[]
[null,null,"The following \"Supplementary Preambles\" are incorporated in this bill to satisfy the requirements of the project and shall take precedence over the provisions of the said General Preambles"]
[]
[null,null,"SUPPLEMENTARY PREAMBLES"]
[]
[null,null,"View site:"]
[]
[null,null,"Before submitting his tender, the Contractor shall visit the site and satisfy himself as to the nature and extent of the work to be done and the value of the materials contained in the buildings or portions of the buildings to be demolished.  No claim for any variations of the contract sum in respect of the nature and extent of the work or of inferior or damaged materials will be entertained"]
[]
[null,null,"Old materials to become property of the Contractor:"]
[]
[null,null,"Old materials from alterations, except where described as to be re-used or handed over, become the property of the Contractor, who must allow credit for same in the last item of the \"Alterations\" trade"]
[]
[null,null,"Old materials to be carted away:"]
[]
[null,null,"Old materials from the alterations, except where described as to be re-used or handed over, as well as all rubbish, etc must be regularly carted from the site and not be allowed to accumulate on or around the site"]
[]
[null,null,"Old materials to be re-used:"]
[]
[null,null,"None of the old materials are to be used for new work, except where specifically described as being set aside for re-use"]
[]
[null,null,"Handing over of materials:"]
[]
[null,null,"Where certain materials or articles from demolitions or alterations are described as to be \"handed over to the Employer\", it shall be taken to mean \"handed over by the Contractor to the Principal Agent\" and such materials or articles shall be properly stored by the Contractor until handing over thereof and shall include all necessary transport The Contractor must obtain an official receipt from the Principal Agent listing the materials or articles and dates of handing overShould the Contractor fail to submit the receipt when requested to do so, it shall be deemed that the materials or articles are still in his possession and he will be held liable to the Employer for the full replacement value thereof, which amount will be deducted from any monies due to the Contractor"]
[]
[null,null,"Explosives:"]
[]
[null,null,"No explosives whatsoever may be used for demolition purposes, unless otherwise stated"]
[]
[null,null,"GENERAL"]
[]
[null,null,"The contractor shall carry out the whole of the work with as little mess and noise as possible and with a minimum of disturbance to adjoining premises and their tenants. He shall provide proper protection and provide and erect any temporarytarpaulins and temporary plumbing that may be necessary during the progress of the works, all to the satisfaction of the Architect, and remove when directed."]
[]
[null,null,"Any water supplies pipes and other piping that may be met with and found necessary to disconnect or cut, shall be effectually stopped of or grubbed up and removed, and any new connections that may be necessary shall be made with proper fittings, to the satisfaction of the Architect."]
[]
[null,null,"Doors, fanlights, fittings, frames, linings, etc shall be thoroughly overhauled before re-fixing including taking off, easing and rehanging, cramping up, re-wedging as required and making good cramps, dowels, etc and easing, oiling, adjusting and repairing ironmongery if necessary, replacing any glass damaged in removal or subsequently and stopping up all nail and screw holes with tinted wood to match timber."]
[]
[null,null,"Where doors, windows, etc are described as taken out this shall be understood to include for removal of all beads, architraves, ironmongery, etc and doors which are re-fixed are to be provided with new architraves       (elsewhere measured )."]
[]
[null,null,"Prices for taking out and removing doors and frames shall include for removing door stops, cabin locks, etc and making good to match existing."]
[]
[null,null,"With regard to building up openings in existing walls, cement screeds and pavings, granolithic, etc, shall be levelled and prepared for raising of brickwork."]
[]
[null,null,"Allow for making good all existing plastered walls where damaged by furniture, etc, and stopping up all screw and holes before painting."]
[]
[null,null,"Making good finishes shall be deemed to iclude making good of the brick and concrete surfaces onto which new finishes are applied, where necessary."]
[]
[null,null,"The contractor will be required to take all dimensions affecting existing building on the site and he will be held solely responsible for the accuracy of all such dimensions."]
[]
[null,null,"Hazardous materials:"]
[]
[null,null,"Demolitions of buildings, services, external works, site services, etc are to include for the safe removal and disposal of asbestos or asbestos products or other hazardous materials by approved Registered Specialists"]
[]
[null,null,"TEMPORARY BARRIERS, SCREENS, ETC"]
[]
[null,null,"Temporary barriers, screens, etc including removal:"]
[]
[{"v":1,"d":"1 "},null,"Dust screen 2100mm high formed of suitable timber framing with 250 micron polyethylene sheeting stapled on including corners, ends, etc. to be used on all the phases of the construction project and in accordance to the Health and Safety specifications and regulations",null,"m",{"v":300,"d":"300 "},null,{"$f":"ROUND($F485*G485,2)","v":0}]
[]
[null,null,"REMOVAL OF EXISTING WORK"]
[]
[null,null,"Breaking down and removing brickwork, etc:"]
[]
[{"v":2,"d":"2 "},null,"One brickwalls",null,"m²",{"v":44,"d":"44 "},null,{"$f":"ROUND($F491*G491,2)","v":0}]
[]
[null,null,"Taking out and removing doors, windows, etc including thresholds, sills, etc from brickwork (altering openings and making good finishes elsewhere):"]
[]
[{"v":3,"d":"3 "},null,"Timber single door and frame not exceeding 2,5m\"²",null,"No",{"v":13,"d":"13 "},null,{"$f":"ROUND($F495*G495,2)","v":0}]
[]
[null,null,"Taking down and removing roof coverings, accessories, etc.:"]
[]
[{"v":4,"d":"4 "},null,"Profiled sheet metal roof covering including timber purlins",null,"m²",{"v":76,"d":"76 "},null,{"$f":"ROUND($F499*G499,2)","v":0}]
[]
[null,null,"Taking down and removing rainwater goods, etc:"]
[]
[{"v":5,"d":"5 "},null,"Metal box gutters not exceeding 250mm girth including ends, bends, outlets, brackets, etc. complete",null,"m",{"v":82,"d":"82 "},null,{"$f":"ROUND($F503*G503,2)","v":0}]
[]
[null,null,"Taking down and removing ceilings, partitions, etc:"]
[]
[{"v":6,"d":"6 "},null,"Gypsum plasterboard ceilings, including cornices, timber brandering, etc.",null,"m²",{"v":18,"d":"18 "},null,{"$f":"ROUND($F507*G507,2)","v":0}]
[]
[{"v":7,"d":"7 "},null,"Fascias and barge boards",null,"m",{"v":36,"d":"36 "},null,{"$f":"ROUND($F509*G509,2)","v":0}]
[]
[null,null,"Taking out/off and removing ironmongery:"]
[]
[{"v":8,"d":"8 "},null,"Toilet paper holder from wall",null,"No",{"v":5,"d":"5 "},null,{"$f":"ROUND($F513*G513,2)","v":0}]
[]
[null,null,"Hacking up/off and removing ceramic and porcelain tiles, including removing mortar bed or adhesive from concrete or brickwork and preparing surfaces for new screed, plaster, tile finishes, etc:"]
[]
[{"v":9,"d":"9 "},null,"Tiles to floors",null,"m²",{"v":53,"d":"53 "},null,{"$f":"ROUND($F517*G517,2)","v":0}]
[]
[{"v":10,"d":"10 "},null,"Tiles to walls",null,"m²",{"v":132,"d":"132 "},null,{"$f":"ROUND($F519*G519,2)","v":0}]
[]
[{"v":11,"d":"11 "},null,"Tile skirtings 100mm high",null,"m",{"v":48,"d":"48 "},null,{"$f":"ROUND($F521*G521,2)","v":0}]
[]
[null,null,"Taking out and removing piping, sanitary fittings, etc including cutting off as necessary, disconnecting piping from fittings and blocking off and making good damaged plasterwork to walls and screeds to floors (all redecoration work elsewhere):"]
[]
[{"v":12,"d":"12 "},null,"Vitreous china wash hand basin, including short lengths of piping, etc.",null,"No",{"v":3,"d":"3 "},null,{"$f":"ROUND($F525*G525,2)","v":0}]
[]
[{"v":13,"d":"13 "},null,"Vitreous china WC pan with flush valve, including short lengths of piping, etc.",null,"No",{"v":5,"d":"5 "},null,{"$f":"ROUND($F527*G527,2)","v":0}]
[]
[{"v":14,"d":"14 "},null,"Vitreous china wall hung urinal with flush valve, including short lengths of piping, etc.",null,"No",{"v":1,"d":"1 "},null,{"$f":"ROUND($F529*G529,2)","v":0}]
[]
[null,null,"Taking out/off and removing glass and mirrors:"]
[]
[{"v":15,"d":"15 "},null,"Mirror 600 x 600mm high from wall",null,"No",{"v":6,"d":"6 "},null,{"$f":"ROUND($F533*G533,2)","v":0}]
[]
[null,null,"MAKING GOOD OF FINISHES, ETC"]
[]
[null,null,"Making good concrete:"]
[]
[{"v":16,"d":"16 "},null,"Floors in patches",null,"m²",{"v":11,"d":"11 "},null,{"$f":"ROUND($F539*G539,2)","v":0}]
[]
[{"v":17,"d":"17 "},null,"Ceiling slabs in patches",null,"m²",{"v":41,"d":"41 "},null,{"$f":"ROUND($F541*G541,2)","v":0}]
[]
[null,null,"Making good internal/external cement plaster:"]
[]
[{"v":18,"d":"18 "},null,"Walls in patches",null,"m²",{"v":536,"d":"536 "},null,{"$f":"ROUND($F545*G545,2)","v":0}]
[]
[null,null,"Making good platform surfaces:"]
[]
[{"v":19,"d":"19 "},null,"Surfaces in patches",null,"m²",{"v":700,"d":"700 "},null,{"$f":"ROUND($F549*G549,2)","v":0}]
[]
[null,null,"Making good floor finshes:"]
[]
[{"v":20,"d":"20 "},null,"Polished screed",null,"m²",{"v":43,"d":"43 "},null,{"$f":"ROUND($F553*G553,2)","v":0}]
[]
[null,null,"ALTERATIONS, SERVICING AND REPAIRWORK TO EXISTING DOORS, FRAMES AND WINDOWS"]
[]
[null,null,"Notes:"]
[]
[null,null,"The removal and reinstatement of doors, frames, windows, etc for the purpose of altering, servicing and/or repairing are measured elsewhere"]
[]
[null,null,"Supplementary Preambles:"]
[]
[null,null,"Repairwork to timber to include for the following, unless otherwise described:"]
[]
[null,null,"1.\tTimber used in repairs is to match existing in type, moisture content, colour and grain as closely as possible"]
[]
[null,null,"2.\tApproved modern, high-strength waterproof glues which can accommodate any timber movement should be used together with sawdust filler of matching timber"]
[]
[null,null,"3.\tOnly non-corrosive fixings are to be used"]
[]
[null,null,"4.\tAll clamping and pinning as necessary"]
[]
[null,null,"EXISTING WINDOWS"]
[]
[null,null,"Servicing of existing windows including thoroughly cleaning down of all dirt, scale and general contamination from all surfaces, pulleys, handles, rods, fanlight openers, catches, etc. and servicing and lubricating all moving parts, carefully removing all paint from and polishing all brassware and replacing of damaged or missing screws, nuts, etc. (repairing or replacement of existing ironmongery, removal of glass, putty, etc. re-glazing and preparing for and redecorating of existing frames, sashes, etc. all elsewhere measured):"]
[]
[{"v":21,"d":"21 "},null,"Steel extrusions window, size 540mm wide x 870mm high overall with burglar bars (WT-01)",null,"No",{"v":1,"d":"1 "},null,{"$f":"ROUND($F577*G577,2)","v":0}]
[]
[{"v":22,"d":"22 "},null,"Steel extrusions window, size 1415mm wide x 600mm high overall with burglar bars (WT-02)",null,"No",{"v":5,"d":"5 "},null,{"$f":"ROUND($F579*G579,2)","v":0}]
[]
[{"v":23,"d":"23 "},null,"Steel extrusions window, size 1945mm wide x 600mm high overall with burglar bars (WT-04)",null,"No",{"v":1,"d":"1 "},null,{"$f":"ROUND($F581*G581,2)","v":0}]
[]
[{"v":24,"d":"24 "},null,"Aluminium extrusions window, size 540mm wide x 900mm high overall with burglar bars and bullet-proof glass (WT-03)",null,"No",{"v":8,"d":"8 "},null,{"$f":"ROUND($F583*G583,2)","v":0}]
[]
[null,null,"BUDGETARY ALLOWANCE"]
[]
[{"v":25,"d":"25 "},null,"Provide a budgetary allowance of Twenty Five Thousand Rand for sundry alterations to be used as directed by the Principal Agent and to be deducted in whole or in part if not required.",null,"Item",{"v":1,"d":"1 "},null,{"$f":"ROUND($F587*G587,2)","v":0}]
[]
[null,null,"SECTION 2"]
[]
[null,null,"BILL NO. 2"]
[]
[null,null,"ROOF COVERINGS"]
[]
[null,null,"WORK GROUP ALLOCATION"]
[]
[null,null,"The items in this Bill will be allocated to Work Groups as indicated in brackets at the ends of headings or descriptions"]
[]
[null,null,"PREAMBLES"]
[]
[null,null,"The General Preambles for Trades (2017 edition) as published by the Association of South African Quantity Surveyors shall be deemed to be incorporated in these bills of quantities and no claims arising from brevity of description of items fully described in the said General Preambles will be entertained"]
[]
[null,null,"The following \"Supplementary Preambles\" are incorporated in this bill to satisfy the requirements of the project and shall take precedence over the provisions of the said General Preambles"]
[]
[null,null,"SUPPLEMENTARY PREAMBLES"]
[]
[null,null,"Profiled metal roof sheeting and accessories shall be supplied with a 10 year guarantee and be installed by an approved installer"]
[]
[null,null,"All fixing holes shall be drilled and not punched"]
[]
[null,null,"Roof covering accessories shall be manufactured from the same material as used for roof covering"]
[]
[null,null,"PROFILED METAL SHEETING AND ACCESSORIES (WORK GROUP 124)"]
[]
[null,null,"0,53mm \"Klip-Tite 700\"  or similar approved, profile Z275 spelter galvanised steel light industrial troughed interlocking roof sheeting in single lengths and accessories, with \"Chromodek\" or similar approved finish to one side, fixed to timber purlins:"]
[]
[{"v":1,"d":"1 "},null,"Roof coverings with pitch not exceeding 25 degrees",null,"m²",{"v":76,"d":"76 "},null,{"$f":"ROUND($F617*G617,2)","v":0}]
[]
[null,null,"Accessories:"]
[]
[{"v":2,"d":"2 "},null,"Ridge capping 462mm girth",null,"m",{"v":19,"d":"19 "},null,{"$f":"ROUND($F621*G621,2)","v":0}]
[]
[null,null,"ROOF AND WALL INSULATION (WORK GROUP 122)"]
[]
[null,null,"Heavy industrial grade aluminium foil based insulation:"]
[]
[{"v":3,"d":"3 "},null,"Two sided bubble insulation membrane",null,"m²",{"v":76,"d":"76 "},null,{"$f":"ROUND($F627*G627,2)","v":0}]
[]
[null,null,"SECTION 2"]
[]
[null,null,"BILL NO. 3"]
[]
[null,null,"CARPENTRY AND JOINERY"]
[]
[null,null,"WORK GROUP ALLOCATION"]
[]
[null,null,"Unless otherwise stated, all items in this Bill will be allocated to Work Group 126 - Carpentry & Joinery"]
[]
[null,null,"PREAMBLES"]
[]
[null,null,"The General Preambles for Trades (2017 edition) as published by the Association of South African Quantity Surveyors shall be deemed to be incorporated in these bills of quantities and no claims arising from brevity of description of items fully described in the said General Preambles will be entertained"]
[]
[null,null,"The following \"Supplementary Preambles\" are incorporated in this bill to satisfy the requirements of the project and shall take precedence over the provisions of the said General Preambles"]
[]
[null,null,"SUPPLEMENTARY PREAMBLES"]
[]
[null,null,"Fixing:"]
[]
[null,null,"Items described as \"nailed\" shall be deemed to be fixed with hardened steel nails or pins, or to be shot-pinned, to brickwork or concrete"]
[]
[null,null,"Items described as \"plugged\" shall be deemed to include screwing to fibre, plastic or metal plugs at not exceeding 500mm centres, and where described as \"bolted\", the bolts have been given separately elsewhere"]
[]
[null,null,"Joinery:"]
[]
[null,null,"Descriptions of frames shall be deemed to include frames, transomes, rails, etc"]
[]
[null,null,"Descriptions of hardwood joinery shall be deemed to include sinking and pelleting heads and nuts of bolts"]
[]
[null,null,"Particle board"]
[]
[null,null,"All particle board shall comply with SANS 50312 having the required marking as per SANS 50312/EN 312"]
[]
[null,null,"Decorative thermosetting plastic laminate covering:"]
[]
[null,null,"Laminate covering shall be glued under pressure and edge strips of same shall be butt jointed at junctions with adjacent similar finish"]
[]
[null,null,"Sizes:"]
[]
[null,null,"Sizes are nominal and the Contractor shall make allowance in his prices for minor variances in stated finished sizes of timber doors, door members, door frames, architraves, etc"]
[]
[null,null,"Prices"]
[]
[null,null,"Prices for all joinery work are to include for general framing, housing and notching, arris rounded angles, glueing, blocking, planting on, screwing, adhesives, dowels, pellets, cross tongues, screws and nails and setting up complete and also for all square cutting and waste. Tops shall be secured with metal or hardwood buttons."]
[]
[null,null,"ROOFS, ETC"]
[]
[null,null,"EAVES, VERGES, ETC"]
[]
[null,null,"Medium density plain fibre-cement fascias and barge boards:"]
[]
[{"v":1,"d":"1 "},null,"19 x 235mm Fascias and barge boards, including aluminium H-profile jointing strips",null,"m",{"v":82,"d":"82 "},null,{"$f":"ROUND($F681*G681,2)","v":0}]
[]
[null,null,"FLOORS, ETC"]
[]
[null,null,"SKIRTINGS"]
[]
[null,null,"Wrought meranti:"]
[]
[{"v":2,"d":"2 "},null,"19 x 76mm Skirtings including 19mm quadrant bead, nailed",null,"m",{"v":50,"d":"50 "},null,{"$f":"ROUND($F689*G689,2)","v":0}]
[]
[null,null,"DOORS, ETC"]
[]
[null,null,"Solid hardwood with slated panels with sides and counselled edges to suit opening, hung to steel frames:"]
[]
[{"v":3,"d":"3 "},null,"44mm Door 900 x 2100mm high  (TP-01)",null,"No",{"v":1,"d":"1 "},null,{"$f":"ROUND($F695*G695,2)","v":0}]
[]
[{"v":4,"d":"4 "},null,"44mm Door 900 x 2400mm high, including 390 x 300mm high framed openings (TP-02)",null,"No",{"v":4,"d":"4 "},null,{"$f":"ROUND($F697*G697,2)","v":0}]
[]
[null,null,"Semi-solid timber, hung to steel frames:"]
[]
[{"v":5,"d":"5 "},null,"44mm Door 820 x 2100mm high with concealed edges to suit opening (TP-04)",null,"No",{"v":5,"d":"5 "},null,{"$f":"ROUND($F701*G701,2)","v":0}]
[]
[null,null,"SUPPLEMENTARY PREAMBLES"]
[]
[null,null,"Fire doors:"]
[]
[null,null,"Fire doors are to be in accordance with SANS 1253"]
[]
[null,null,"BUDGETARY ALLOWANCE"]
[]
[{"v":6,"d":"6 "},null,"Provide a budgetary allowance of Twenty Five Thousand Rand for sundry carpentry and joinery to be used as directed by the Principal Agent and to be deducted in whole or in part if not required.",null,"Item",{"v":1,"d":"1 "},null,{"$f":"ROUND($F711*G711,2)","v":0}]
[]
[null,null,"SECTION 2"]
[]
[null,null,"BILL NO. 4"]
[]
[null,null,"CEILINGS, PARTITIONS AND ACCESS FLOORING"]
[]
[null,null,"WORK GROUP ALLOCATION"]
[]
[null,null,"Unless otherwise stated, all items in this Bill will be allocated to Work Group 129 - Ceilings"]
[]
[null,null,"PREAMBLES"]
[]
[null,null,"The General Preambles for Trades (2017 edition) as published by the Association of South African Quantity Surveyors shall be deemed to be incorporated in these bills of quantities and no claims arising from brevity of description of items fully described in the said General Preambles will be entertained"]
[]
[null,null,"The following \"Supplementary Preambles\" are incorporated in this bill to satisfy the requirements of the project and shall take precedence over the provisions of the said General Preambles"]
[]
[null,null,"SUPPLEMENTARY PREAMBLES"]
[]
[null,null,"Fixing:"]
[]
[null,null,"Items described as \"nailed\" shall be deemed to be fixed with hardened steel nails or pins, or to be shot-pinned, to brickwork or concrete"]
[]
[null,null,"Items described as \"plugged\" shall be deemed to include screwing to fibre, plastic or metal plugs at not exceeding 500mm centres, and where described as \"bolted\", the bolts have been given separately elsewhere"]
[]
[null,null,"Ceilings:"]
[]
[null,null,"Unless otherwise described, ceilings shall be deemed to be horizontal"]
[]
[null,null,"Bulkheads:"]
[]
[null,null,"Bulkheads are defined as those portions of ceilings which are stepped down from the general ceiling level in a particular room or area and which generally occur along the perimeter. Their purpose is either to conceal services or to create architectural features"]
[]
[null,null,"Bulkheads have only been described as such where they conform to the above definition and where the horizontal, vertical or sloping dimensions do not exceed 1200mm. Where these dimensions are more than 1200mm such portions of ceilings have been included in the appropriate general items of ceilings"]
[]
[null,null,"Unless otherwise described, bulkheads shall be deemed to be horizontal along the length"]
[]
[null,null,"Openings:"]
[]
[null,null,"Prices for openings for light fittings, ventilation grilles, air conditioning diffusers, etc. are to include for any necessary additional support, trimming around, etc."]
[]
[null,null,"Steel components:"]
[]
[null,null,"All steel components for ceilings, partitions, etc are to be galvanised in accordance with SANS 121"]
[]
[null,null,"INSULATION"]
[]
[null,null,"Non-combustible fibreglass insulation of a density of not less than 10kg/m3 bonded with an inert thermo-setting resin:"]
[]
[{"v":1,"d":"1 "},null,"120mm Insulation in blanket form, closely fitted and laid on top of brandering between roof timbers, etc.",null,"m²",{"v":18,"d":"18 "},null,{"$f":"ROUND($F761*G761,2)","v":0}]
[]
[null,null,"NAILED UP CEILINGS"]
[]
[null,null,"12mm Fibre-cement plain ceiling boards with H-profile galvanised steel jointing strips:"]
[]
[{"v":2,"d":"2 "},null,"Ceilings including 38 x 38mm sawn softwood brandering at 400mm centres and cross brandering at 400mm centres",null,"m²",{"v":18,"d":"18 "},null,{"$f":"ROUND($F767*G767,2)","v":0}]
[]
[{"v":3,"d":"3 "},null,"Extra over ceiling for 600 x 600mm trap door of 38 x 38mm wrought softwood rebated framing with one cross brander, covered with ceiling board and fitted flush in opening, including necessary trimmers around",null,"No",{"v":2,"d":"2 "},null,{"$f":"ROUND($F769*G769,2)","v":0}]
[]
[null,null,"Gypsum plasterboard cornices:"]
[]
[{"v":4,"d":"4 "},null,"75mm Coved cornices",null,"m",{"v":47,"d":"47 "},null,{"$f":"ROUND($F773*G773,2)","v":0}]
[]
[null,null,"SECTION 2"]
[]
[null,null,"BILL NO. 5"]
[]
[null,null,"IRONMONGERY"]
[]
[null,null,"WORK GROUP ALLOCATION"]
[]
[null,null,"Unless otherwise stated, all items in this Bill will be allocated to Work Group 132 - Ironmongery"]
[]
[null,null,"PREAMBLES"]
[]
[null,null,"The General Preambles for Trades (2017 edition) as published by the Association of South African Quantity Surveyors shall be deemed to be incorporated in these bills of quantities and no claims arising from brevity of description of items fully described in the said General Preambles will be entertained"]
[]
[null,null,"The following \"Supplementary Preambles\" are incorporated in this bill to satisfy the requirements of the project and shall take precedence over the provisions of the said General Preambles"]
[]
[null,null,"SUPPLEMENTARY PREAMBLES"]
[]
[null,null,"Proprietary items:"]
[]
[null,null,"Where applicable, the manufacturers' names or product catalogue titles are given in sub-headings preceding the itemsNote that the manufacturers names specified in this trade are for the purposes of competitive pricing. Prices are to be based on the specific products/articles specified.On request, returnable samples are to be provided to the Project Manager for consideration"]
[]
[null,null,"Locks:"]
[]
[null,null,"Notwithstanding Clause 2, Item 3 of the \"Ironmongery\" trade of the \"Standard System of Measuring Building Work, Seventh Edition\", descriptions of locks shall be deemed to include two keys per lock"]
[]
[null,null,"Finishes to ironmongery:"]
[]
[null,null,"Where applicable, finishes to ironmongery are indicated by suffixes in accordance with the following list: BS\tSatin bronze lacqueredCH\tChromium plated SC\tSatin chromium plated SE\tSilver enamelled GE\tGrey enamelledAN\tAnodised natural AS\tAnodised silver AB\tAnodised bronze AG\tAnodised gold ABL\tAnodised black PB\tPolished brass PL\tPolished and lacquered PT\tEpoxy coated SD\tSandedBBS\tBrushed stainless steel"]
[]
[null,null,"HINGES, BOLTS, ETC"]
[]
[null,null," \"Union\" or similar approved:"]
[]
[{"v":1,"d":"1 "},null,"\"Ref. CZ80941SCR\" or similar approved sliding indicator bolt set",null,"No",{"v":5,"d":"5 "},null,{"$f":"ROUND($F809*G809,2)","v":0}]
[]
[null,null,"LOCKS"]
[]
[{"v":2,"d":"2 "},null,"75mm Three lever upright mortice rebated lockset with satin chrome furniture (TP-01)",null,"No",{"v":5,"d":"5 "},null,{"$f":"ROUND($F813*G813,2)","v":0}]
[]
[null,null,"\"Calini\" or similar approved:"]
[]
[{"v":3,"d":"3 "},null,"\"Ref. IW2051\" or similar approved double cylinder suitable for master key",null,"No",{"v":1,"d":"1 "},null,{"$f":"ROUND($F817*G817,2)","v":0}]
[]
[null,null,"HANDLES"]
[]
[null,null,"\"Union Assa Abloy\" or similar approved:"]
[]
[{"v":4,"d":"4 "},null,"\"Ref.AL6D67-05A5\" or similar approved anodised aluminium pull handle with back plates",null,"No",{"v":5,"d":"5 "},null,{"$f":"ROUND($F823*G823,2)","v":0}]
[]
[{"v":5,"d":"5 "},null,"100mm Chromium plated bow handle bolted through door with the bolt ends hammered to prevent the nuts being removed",null,"No",{"v":5,"d":"5 "},null,{"$f":"ROUND($F825*G825,2)","v":0}]
[]
[null,null,"PUSH PLATES AND KICK PLATES"]
[]
[null,null,"1,2mm Thick satin finished stainless steel plates countersunk screwed along edges at not exceeding 200mm centres:"]
[]
[{"v":6,"d":"6 "},null," 300 x 150mm Kick plate",null,"No",{"v":6,"d":"6 "},null,{"$f":"ROUND($F831*G831,2)","v":0}]
[]
[null,null,"DOOR CLOSERS"]
[]
[null,null,"\"Union Assa Abloy\" or similar approved:"]
[]
[{"v":7,"d":"7 "},null,"\"Ref. 7770\" door closer",null,"No",{"v":2,"d":"2 "},null,{"$f":"ROUND($F837*G837,2)","v":0}]
[]
[null,null,"SUNDRIES"]
[]
[null,null,"\"Union Assa Abloy\"or similar approved:"]
[]
[{"v":8,"d":"8 "},null,"\"Ref. 99022SS\" door stop, plugged",null,"No",{"v":10,"d":"10 "},null,{"$f":"ROUND($F843*G843,2)","v":0}]
[]
[null,null,"BATHROOM FITTINGS"]
[]
[null,null,"\"Franke\" or similar approved:"]
[]
[{"v":9,"d":"9 "},null,"\"Ref. EXOS618X\" soap dispenser, plugged",null,"No",{"v":4,"d":"4 "},null,{"$f":"ROUND($F849*G849,2)","v":0}]
[]
[{"v":10,"d":"10 "},null,"\"Ref. STRX672\" stainless steel lockable toilet roll holder, plugged",null,"No",{"v":5,"d":"5 "},null,{"$f":"ROUND($F851*G851,2)","v":0}]
[]
[{"v":11,"d":"11 "},null,"\"Ref. RODX602 \" paper towel dispenser and waste bin combination, plugged",null,"No",{"v":4,"d":"4 "},null,{"$f":"ROUND($F853*G853,2)","v":0}]
[]
[{"v":12,"d":"12 "},null,"\"Ref. BS611V\"  stainless steel sanitary towel disposal bin, plugged",null,"No",{"v":6,"d":"6 "},null,{"$f":"ROUND($F855*G855,2)","v":0}]
[]
[null,null,"BUDGETARY ALLOWANCE"]
[]
[{"v":13,"d":"13 "},null,"Provide a budgetary allowance of Fifteen Thousand Rand for sundry ironmongery to be used as directed by the Principal Agent and to be deducted in whole or in part if not required.",null,"Item",{"v":1,"d":"1 "},null,{"$f":"ROUND($F859*G859,2)","v":0}]
[]
[null,null,"SECTION 2"]
[]
[null,null,"BILL NO. 6"]
[]
[null,null,"STRUCTURAL STEELWORK"]
[]
[null,null,"WORK GROUP ALLOCATION"]
[]
[null,null,"Unless otherwise stated, all items in this Bill will be allocated to Work Group 134 - Structural Steelwork in Buildings"]
[]
[null,null,"PREAMBLES"]
[]
[null,null,"The General Preambles for Trades (2017 edition) as published by the Association of South African Quantity Surveyors shall be deemed to be incorporated in these bills of quantities and no claims arising from brevity of description of items fully described in the said General Preambles will be entertained"]
[]
[null,null,"The following \"Supplementary Preambles\" are incorporated in this bill to satisfy the requirements of the project and shall take precedence over the provisions of the said General Preambles"]
[]
[null,null,"SUPPLEMENTARY PREAMBLES"]
[]
[null,null,"Specification:"]
[]
[null,null,"All structural steel must comply with SANS 1200H (Degree of Accuracy II)"]
[]
[null,null,"All hot rolled structural steel sections must comply with SANS 1431 grade 300W, unless otherwise specified on the drawings"]
[]
[null,null,"Unless otherwise designated, all bolts and nuts will be grade 4.6 to SANS 135 and BS 916. Descriptions of bolts shall be deemed to include nuts and washers. Descriptions of L-shaped and U-shaped anchor bolts shall be deemed to include bending, threading, nuts and washers and embedding in concrete. Descriptions of expansion anchors and bolts and chemical anchors and bolts shall be deemed to include nuts, washers and mortices in brickwork or concrete"]
[]
[null,null,"All connections must be welded all round with a 6mm fillet weld, unless otherwise specified on the drawings"]
[]
[null,null,"Drawings and shop details:"]
[]
[null,null,"The Contractor shall be responsible for preparing shop drawings and details which must be submitted to the Principal Agent for approval prior to commencement of fabrication.  Before commencing any fabrication, the steel fabricator must check the accessibility of the site and design the sizes of individual parts accordingly"]
[]
[null,null,"Hot-dipped galvanizing:"]
[]
[null,null,"After fabrication and prior to delivery to site, all steelwork described as hot-dipped galvanized, is to be descaled and thoroughly cleaned by pickling, after which it is to be hot dip galvanized in accordance with the requirements of SANS 121/1501461"]
[]
[null,null,"Descriptions:"]
[]
[null,null,"Descriptions of bolts shall be deemed to include nuts and washers"]
[]
[null,null,"Descriptions of L-shaped and U-shaped anchor bolts shall be deemed to include bending, threading, nuts and washers and embedding in concrete"]
[]
[null,null,"Descriptions of expansion anchors and bolts and chemical anchors and bolts shall be deemed to include nuts, washers and mortices in brickwork or concrete"]
[]
[null,null,"BUDGETARY ALLOWANCE"]
[]
[{"v":1,"d":"1 "},null,"Provide a budgetary allowance of Fifty Thousand Rand for sundry alterations to structural steelworks be used as directed by the Principal Agent and to be deducted in whole or in part if not required.",null,"Item",{"v":1,"d":"1 "},null,{"$f":"ROUND($F907*G907,2)","v":0}]
[]
[null,null,"Paint testing:"]
[]
[{"v":2,"d":"2 "},null,"Subcontract amount of Fifteen Thousand Rand for quality control inspection by an authorised independent authority",null,"SUM",{"v":1,"d":"1 "},null,{"$f":"ROUND($F911*G911,2)","v":0}]
[]
[{"v":3,"d":"3 "},null,"Profit",null,"%",{"v":0,"d":"0%"},null,{"$f":"ROUND($F913*G913,2)","v":0}]
[]
[{"v":4,"d":"4 "},null,"Attendance",null,"%",{"v":0,"d":"0%"},null,{"$f":"ROUND($F915*G915,2)","v":0}]
[]
[null,null,"SECTION 2"]
[]
[null,null,"BILL NO. 7"]
[]
[null,null,"METALWORK"]
[]
[null,null,"WORK GROUP ALLOCATION"]
[]
[null,null,"Unless otherwise stated, all items in this Bill will be allocated to Work Group 136 - Metalwork"]
[]
[null,null,"PREAMBLES"]
[]
[null,null,"The General Preambles for Trades (2017 edition) as published by the Association of South African Quantity Surveyors shall be deemed to be incorporated in these bills of quantities and no claims arising from brevity of description of items fully described in the said General Preambles will be entertained"]
[]
[null,null,"The following \"Supplementary Preambles\" are incorporated in this bill to satisfy the requirements of the project and shall take precedence over the provisions of the said General Preambles"]
[]
[null,null,"SUPPLEMENTARY PREAMBLES"]
[]
[null,null,"Descriptions of bolts, anchors, etc:"]
[]
[null,null,"Descriptions of bolts shall be deemed to include nuts and washers"]
[]
[null,null,"Descriptions of expansion anchors and bolts and chemical anchors and bolts shall be deemed to include nuts, washers and mortices in brickwork or concrete"]
[]
[null,null,"Items described as \"holed for bolt(s)\" shall be deemed to exclude the bolts, unless otherwise described"]
[]
[null,null,"Items described as \"plugged\" shall be deemed to include screwing to fibre, plastic or metal plugs at not exceeding 600mm centres"]
[]
[null,null,"Fixing:"]
[]
[null,null,"Unless otherwise described, descriptions of items shall be deemed to include for fixing to brickwork or concrete  Where items are described as \"bolted\", the bolts are measured elsewhere as stated in clause N.7 of the Model Preambles"]
[]
[null,null,"PRESSED STEEL DOOR FRAMES"]
[]
[null,null,"1,6mm Rebated frames suitable for one brick walls:"]
[]
[{"v":1,"d":"1 "},null,"Frame for door 900 x 2100mm high with three hinges per leaf (TP-01)",null,"No",{"v":1,"d":"1 "},null,{"$f":"ROUND($F953*G953,2)","v":0}]
[]
[{"v":2,"d":"2 "},null,"Frame for door 820 x 2400mm high with three hinges per leaf (TP-02)",null,"No",{"v":4,"d":"4 "},null,{"$f":"ROUND($F955*G955,2)","v":0}]
[]
[{"v":3,"d":"3 "},null,"Frame for door 813 x 2125mm high with three hinges per leaf (TP-04)",null,"No",{"v":5,"d":"5 "},null,{"$f":"ROUND($F957*G957,2)","v":0}]
[]
[null,null,"PRESSED STEEL COMBINATION DOORS AND FRAMES"]
[]
[null,null,"Flush both sides doors:"]
[]
[{"v":4,"d":"4 "},null," 900 x 2070mm High anti-corrosive galvanised and epoxy coated mild steel door with concealed sides and edges (TP-03)",null,"No",{"v":3,"d":"3 "},null,{"$f":"ROUND($F963*G963,2)","v":0}]
[]
[null,null,"BUDGETARY ALLOWANCE"]
[]
[{"v":5,"d":"5 "},null,"Provide a budgetary allowance of Fifteen Thousand Rand for sundry metalwork to be used as directed by the Principal Agent and to be deducted in whole or in part if not required.",null,"Item",{"v":1,"d":"1 "},null,{"$f":"ROUND($F967*G967,2)","v":0}]
[]
[null,null,"SECTION 2"]
[]
[null,null,"BILL NO. 8"]
[]
[null,null,"PLASTERING"]
[]
[null,null,"WORK GROUP ALLOCATION"]
[]
[null,null,"Unless otherwise stated, all items in this Bill will be allocated to Work Group 142 - In situ finishes"]
[]
[null,null,"PREAMBLES"]
[]
[null,null,"The General Preambles for Trades (2017 edition) as published by the Association of South African Quantity Surveyors shall be deemed to be incorporated in these bills of quantities and no claims arising from brevity of description of items fully described in the said General Preambles will be entertained"]
[]
[null,null,"The following \"Supplementary Preambles\" are incorporated in this bill to satisfy the requirements of the project and shall take precedence over the provisions of the said General Preambles"]
[]
[null,null,"SUPPLEMENTARY PREAMBLES"]
[]
[null,null,"Moisture tests:"]
[]
[null,null,"Before any finishes, coverings, etc are applied to screeds, plastering, etc or any other in-situ finish, moisture tests are to be carried out to the  complete satisfaction of the Project Manager to ensure that these surfaces have the correct moisture content for the finish to be applied"]
[]
[null,null,"Labours, etc"]
[]
[null,null,"Labours such as fair, rounded and chamfered edges, trowel cuts, throats, V-joints, angles, etc shall be deemed to be included in the descriptions"]
[]
[null,null,"Sample Panels"]
[]
[null,null,"A sample panel size 1m x1m, of each of the various plaster type wall and floor finishes in this contract, shall be prepared for the approval of the Project Manager and the cost of the sample panel(s) shall be deemed to be included in the overall costs of the relevant wall and floor finishes"]
[]
[null,null,"GRANOLITHIC"]
[]
[null,null,"Method:"]
[]
[null,null,"The method to be used shall be either the monolithic method or the bonded method"]
[]
[null,null,"Preparation:"]
[]
[null,null,"For granolithic applied monolithically, the concrete floor shall be swept clean after bleeding of the concrete has ceased and the slab has begun to stiffen; any remaining bleed water shall be removed and the granolithic applied immediately thereafter. For granolithic to be bonded to the floor slab after it has hardened, the slab surface shall be hacked (preferably by mechanical means) until all laitance, dirt, oil, etc is dislodged and swept clean of all loose matter. The slab shall then be wetted and kept damp for at least six hours before applying the granolithic"]
[]
[null,null,"Mix:"]
[]
[null,null,"Unless otherwise described, granolithic shall attain a compressive strength of at least 41MPa. The coarse aggregate shall comply with SANS 1083 and shall generally be capable of passing a 10mm mesh sieve. Where the thickness of the granolithic exceeds 25mm, the size of the coarse aggregate shall be increased to the maximum size compatible with the thickness of the granolithic"]
[]
[null,null,"Panels:"]
[]
[null,null,"Granolithic shall be laid in panels not exceeding 14m\"² for monolithic finishes, not exceeding 9,5m\"² for bonded finishes and not exceeding 6m\"² for all external granolithic. Wherever possible, panels shall be square but at no time should the length of the panel exceed 1,5 times its width"]
[]
[null,null,"Where possible joints between panels shall be positioned over joints in the floor slab and shall be at least 3mm wide through the full thickness of the finish, separated by strips of wood or fibreboard and finished with V-joints"]
[]
[null,null,"Laying:"]
[]
[null,null,"Monolithic granolithic shall be applied to the partially set slab and thoroughly compacted and lightly wood floated to the required levels"]
[]
[null,null,"Bonded granolithic shall be applied to the slab after applying a 1:1 sand-and-cement slurry brushed over the surface and allowed to partially set before applying the granolithic. The granolithic shall be throughly compacted and lightly wood floated to the required levels"]
[]
[null,null,"After wood floating, the monolithic and bonded granolithic shall remain undisturbed until bleeding has ceased and the surface has stiffened. Any remaining bleed water and laitance shall then be removed and the surface steel trowelled or power floated"]
[]
[null,null,"Curing, seasoning and protection:"]
[]
[null,null,"Granolithic shall be covered with clean hessian with waterproof building foil over and kept wet for at least seven days after laying"]
[]
[null,null,"Colour:"]
[]
[null,null,"Coloured granolithic shall be tinted with an approved colouring pigment mixed into a true and even colour"]
[]
[null,null,"TINTED WHITE CEMENT SCREEDS"]
[]
[null,null,"Tinted screed shall be composed of one bag White Portland Cement or similar approved and two wheelbarrows \"Malmesbury\" or similar approved sand. Surfaces shall be finished with a steel trowel to leave a smooth finish and coated with two coats \"Earthcote S.I. Floorcote\" or similar approved two-pack polyurethane floor sealer applied as per the manufacturer's recommendations"]
[]
[null,null,"NOTE: Tinted screeds are to be strengthened with \"Primal Eccos\" acrylic polymer (15% of the water volume is to be substituted with the acrylic polymer during the mixing process)  Coarse sand is to be used for these screeds  All tinting, finishing, strengthening, etc are to be mixed, applied, etc strictly in accoprdance with the manufacturer's instructions"]
[]
[null,null,"CEMENT PLASTER"]
[]
[null,null,"Unless otherwise described, cement plaster shall be taken to mean Class 1 cement plaster i.e. 1:4 cement:sand plaster (common cement)"]
[]
[null,null,"INTERNAL PLASTER"]
[]
[null,null,"Cement plaster wood floated for tiles, on brickwork:"]
[]
[{"v":1,"d":"1 "},null,"On walls",null,"m²",{"v":207,"d":"207 "},null,{"$f":"ROUND($F1049*G1049,2)","v":0}]
[]
[{"v":2,"d":"2 "},null,"On narrow widths",null,"m²",{"v":27,"d":"27 "},null,{"$f":"ROUND($F1051*G1051,2)","v":0}]
[]
[null,null,"EXTERNAL PLASTER"]
[]
[null,null,"Cement plaster wood floated on brickwork:"]
[]
[{"v":3,"d":"3 "},null,"On walls",null,"m²",{"v":234,"d":"234 "},null,{"$f":"ROUND($F1057*G1057,2)","v":0}]
[]
[{"v":4,"d":"4 "},null,"On narrow widths",null,"m²",{"v":18,"d":"18 "},null,{"$f":"ROUND($F1059*G1059,2)","v":0}]
[]
[null,null,"SECTION 2"]
[]
[null,null,"BILL NO. 9"]
[]
[null,null,"TILING"]
[]
[null,null,"WORK GROUP ALLOCATION"]
[]
[null,null,"Unless otherwise stated, all items in this Bill will be allocated to Work Group 144 - Tiling"]
[]
[null,null,"PREAMBLES"]
[]
[null,null,"The General Preambles for Trades (2017 edition) as published by the Association of South African Quantity Surveyors shall be deemed to be incorporated in these bills of quantities and no claims arising from brevity of description of items fully described in the said General Preambles will be entertained"]
[]
[null,null,"The following \"Supplementary Preambles\" are incorporated in this bill to satisfy the requirements of the project and shall take precedence over the provisions of the said General Preambles"]
[]
[null,null,"SUPPLEMENTARY PREAMBLES"]
[]
[null,null,"Fixing:"]
[]
[null,null,"Unless described as \"fixed with adhesive to plaster (plaster elsewhere)\", descriptions of tiling on brick or concrete walls, columns, etc shall be deemed to include 1:4 cement plaster backing and descriptions of tiling on concrete floors, etc shall be deemed to include 1:3 cement plaster bedding"]
[]
[null,null,"Tiling described as \"fixed with adhesive on power floated concrete\" shall be deemed to include for approved tiling key-coat"]
[]
[null,null,"Ceramic, porcelain, marble and granite tiles are to be fixed and grouted with suitable adhesives and grouts from the \"Tal Goldstar\" or similar approved range of products as recommended by the manufacturer of the tiles"]
[]
[null,null,"Preparatory work to existing painted plastered surfaces:"]
[]
[null,null,"Preparation of all existing painted plastered surfaces is to include for removing all loose and flaking material by wire brushing, thoroughly washing down and allowing to dry completely and applying one coat masonry bonding agent"]
[]
[null,null,"WALL TILING"]
[]
[null,null,"350 x 350mm Ceramic tiles (Allow a Prime Cost Amount of R 250/m2 delivered to site) fixed with adhesive to plaster (plaster elsewhere) and flush pointing with and including waterproof grout:"]
[]
[{"v":1,"d":"1 "},null,"On walls",null,"m²",{"v":132,"d":"132 "},null,{"$f":"ROUND($F1095*G1095,2)","v":0}]
[]
[{"v":2,"d":"2 "},null,"On narrow widths",null,"m²",{"v":15,"d":"15 "},null,{"$f":"ROUND($F1097*G1097,2)","v":0}]
[]
[null,null,"300 x 300mm Ceramic floor tiles (Allow a Prime Cost Amount of R250/m2 delivered to site) fixed with adhesive to screed (screed elsewhere) and flush pointing with and including waterproof grout:"]
[]
[{"v":3,"d":"3 "},null,"On floors",null,"m²",{"v":53,"d":"53 "},null,{"$f":"ROUND($F1101*G1101,2)","v":0}]
[]
[{"v":4,"d":"4 "},null,"Skirting 100mm high (of fair cut tiles)",null,"m",{"v":48,"d":"48 "},null,{"$f":"ROUND($F1103*G1103,2)","v":0}]
[]
[null,null,"SECTION 2"]
[]
[null,null,"BILL NO. 10"]
[]
[null,null,"PLUMBING AND DRAINAGE (PROVISIONAL)"]
[]
[null,null,"WORK GROUP ALLOCATION"]
[]
[null,null,"The items in this Bill will be allocated to Work Groups as indicated in brackets at the end of headings or descriptions"]
[]
[null,null,"PREAMBLES"]
[]
[null,null,"The General Preambles for Trades (2017 edition) as published by the Association of South African Quantity Surveyors shall be deemed to be incorporated in these bills of quantities and no claims arising from brevity of description of items fully described in the said General Preambles will be entertained"]
[]
[null,null,"The following \"Supplementary Preambles\" are incorporated in this bill to satisfy the requirements of the project and shall take precedence over the provisions of the said General Preambles"]
[]
[null,null,"SUPPLEMENTARY PREAMBLES"]
[]
[null,null,"Wire gratings:"]
[]
[null,null,"Descriptions of gutter outlets, etc shall be deemed to include wire balloon gratings"]
[]
[null,null,"Stormwater channels:"]
[]
[null,null,"Descriptions of channels shall be deemed to include necessary excavation, surface preparation, compaction, etc and disposal of surplus material on site"]
[]
[null,null,"French drains:"]
[]
[null,null,"Descriptions of french drains shall be deemed to include excavation, stone filling graded from 300mm diameter at bottom to 75mm diameter at top, approved geofabric filter blanket over stone, 300mm earthfilling over and disposal of surplus material on site"]
[]
[null,null,"Septic tanks:"]
[]
[null,null,"Descriptions of proprietary type septic tanks shall be deemed to include excavation, bedding and jointing, concrete base slabs, jointing to drains and backfilling, compaction, etc all in accordance with the manufacturer's instructions and disposal of surplus material on site"]
[]
[null,null,"Stainless steel basins, sinks, wash troughs, urinals, etc:"]
[]
[null,null,"Stainless steel for economy basins, domestic sinks and worktops shall be Type 430 (17/0)  Stainless steel for urinals, basins, quality sinks, wash troughs, institutional equipment, etc shall be Type 304 (18/8)  Stainless steel for laboratory sinks, photographic equipment, etc shall be Type 316 (18/8)  Units shall have standard aprons on all exposed edges and tiling keys against walls where applicable"]
[]
[null,null,"Sealing of edges:"]
[]
[null,null,"Outer edges of sinks, basins, baths, urinals, etc are to be sealed against adjacent surfaces with approved mildew resistant silicone sealant and prices must include therefor"]
[]
[null,null,"uPVC pipes and fittings:"]
[]
[null,null,"Sewer and drainage pipes and fittings shall be jointed and sealed with butyl rubber rings  Soil, waste and vent pipes and fittings shall be solvent weld jointed or sealed with butyl rubber rings"]
[]
[null,null,"uPVC pressure pipes and fittings:"]
[]
[null,null,"Pipes of 50mm diameter and smaller shall be plain ended with solvent welded uPVC loose sockets and fittings  Pipes of 63mm diameter and greater shall have sockets and spigots with push-in type integral rubber ring joints.  Bends shall be uPVC and all other fittings shall be cast iron, all with similar push-in type joints"]
[]
[null,null,"High density polyethylene (HDPe) pipes and fittings:"]
[]
[null,null,"Pipes shall be type IV and of the class specified with \"Plasson\" or \"Alprene\"  or similar approved compression fittings"]
[]
[null,null,"Polycop polypropylene pipes:"]
[]
[null,null,"Polypropylene pipes 54mm diameter and smaller shall be seamless copper coloured Class 16 pipes jointed with \"Fast-fuse\" heat welded thermoplastic or where so described \"Polylock\" or similar approved compression fittings  Pipes shall be firmly fixed to walls, etc with coloured nylon snap-in pipe clips with provision for accommodating thermal movement and jointed and fixed strictly in accordance with the manufacturer's instructions"]
[]
[null,null,"Copper pipes:"]
[]
[null,null,"Pipes shall be hard drawn and half-hard \"Maksal\" or similar approved pipes of the class described.  Class 0 (thin walled hard drawn) pipes shall not be bent.  Class 1 (thin walled half-hard), Class 2 (half-hard) and Class 3 (heavy walled half-hard) pipes shall only be bent with benders with inner and outer formers.  Fittings to copper waste, vent and anti-syphon pipes, capillary solder fittings and compression fittings shall be \"Cobra Watertech\" or similar approved type.  Capillary solder fittings shall comply with ISO 2016. Only compression fittings shall be used in walls or in ground"]
[]
[null,null,"Copper pipes are to be installed in accordance with the latest revision of the Code of Practice for Copper Plumbing soldering techniques.  Flux, solder, etc to be strictly in accordance with the manufacturer's requirements with special attention to copper flux composition"]
[]
[null,null,"Reducing fittings:"]
[]
[null,null,"Where fittings have reducing ends or branches they are described as \"reducing\". In the case of pipes with diameters not exceeding 60mm, only the largest end or branch size is given. Should the Contractor wish to use other fittings and bushes or reducers he may do so on the understanding that no claim in this regard will be entertained. In the case of pipes with diameters exceeding 60mm, all sizes are given and no claims for extra bushes, reducers, etc will be entertained"]
[]
[null,null,"Fixing of pipes:"]
[]
[null,null,"Unless specifically otherwise stated, descriptions of pipes shall be deemed to include fixing to walls, etc casting in, building in or suspending not exceeding 1m below suspension level"]
[]
[null,null,"Paper wrapping to pipes:"]
[]
[null,null,"Pipes chased into brickwork must be wrapped with two layers of stout brown paper tied with wire.  Rates are to include for wrapping around joints and fittings"]
[]
[null,null,"Disinfection of water pipework:"]
[]
[null,null,"Water pipework is to be disinfected at completion in accordance with SANS 1200L (provision for disinfection elsewhere)"]
[]
[null,null,"\"Densyl\" or similar approved petrolatum anti-corrosion tape"]
[]
[null,null,"Pipes to be taped shall be coated with the appropriate primer and the tape shall be applied in the appropriate widths and with suitable overlaps  Couplings and fittings to pipes shall be taped in strict accordance with the manufacturer's instructions including mastic, tape, \"Layflat\" or similar approved sheeting, securing of same, etc"]
[]
[null,null,"Prices for wrapping of pipes shall include for all work as described to couplings in the length"]
[]
[null,null,"Laying, backfilling, bedding, etc of pipes:"]
[]
[null,null,"Pipes shall be laid and bedded in accordance with manufacturers' instructions and trenches shall be carefully backfilled"]
[]
[null,null,"Where no manufacturers' instructions exist, pipes shall be laid in accordance with Clauses 5.1 and 5.2 of each of the following: SANS 1200L\t: Medium-pressure pipelines SANS 1200LD\t: Sewers SANS 1200LE\t: Stormwater drainage Pipe trenches, etc shall be backfilled in accordance with Clauses 3, 5.5, 5.6, 5.7 and 7 of SANS 1200DB : Earthworks (Pipe trenches)Pipes shall be bedded in accordance with Clauses 3.1 to 3.4.1, 5.1 to 5.3 and 7 of SANS 1200LB : Bedding (Pipes)Unless otherwise described, bedding of rigid pipes shall be Class B bedding"]
[]
[null,null,"General:"]
[]
[null,null,"Descriptions of cast iron roof outlets shall be deemed to include joints to pipes and casting into concrete (adaptors for joints to PVC pipes, etc are given separately)  Descriptions of overflow pipes where measured in number, shall be deemed to include joints to cisterns and splay cut ends"]
[]
[null,null,"Descriptions of pipes laid in and including trenches and of inspection chambers, catchpits, etc shall be deemed to include excavation, bedding, backfilling, compaction to a minimum of 98% Mod AASHTO density and disposal of surplus material on site"]
[]
[null,null,"Descriptions of service pipes and flexible connecting pipes shall be deemed to include connections to taps, cisterns, etc and to steel pipes (adaptors for connections to copper pipes, etc are given separately)"]
[]
[null,null,"Descriptions of WC pans, slop hoppers, etc shall be deemed to include for joints to soil pipes (pan connectors are separately measured) and shall have straight or side outlets and \"P\" or \"S\" traps as necessary"]
[]
[null,null,"Description of waste unions shall be deemed to include rubber or vulcanite plugs and chains fixed to fittings."]
[]
[null,null,"As-built drawings:"]
[]
[null,null,"Where required, the Contractor shall prepare an updated set of as-built drawings.  At completion of the contract the Contractor shall hand these drawings to the Project Manager for reproducing onto the originals for handing over to the Employer (provision for allowance of as-built drawings elsewhere)"]
[]
[null,null,"Proprietary items:"]
[]
[null,null,"Where applicable, the manufacturers' names or product catalogue titles are given in sub-headings preceding the itemsNote that the manufacturers names specified in this trade are for the purposes of competitive pricing. Prices are to be based on the specific products/articles specified.On request, returnable samples are to be provided to the Project Manager for consideration"]
[]
[null,null,"SANITARY FITTINGS (WORK GROUP 148)"]
[]
[null,null,"\"Vaal\" or similar approved:"]
[]
[{"v":1,"d":"1 "},null,"455 x 290mm \"Hibiscus\" 7050 wash hand basin bolted to wall",null,"No",{"v":5,"d":"5 "},null,{"$f":"ROUND($F1221*G1221,2)","v":0}]
[]
[{"v":2,"d":"2 "},null,"\"Hibiscus\" 772402 close-coupled WC suite comprising pan with double flap heavy duty thermoset seat (Code: 8531Z0) and matching 9 litre cistern",null,"No",{"v":5,"d":"5 "},null,{"$f":"ROUND($F1223*G1223,2)","v":0}]
[]
[{"v":3,"d":"3 "},null,"\"Lavatera\" 705426 wall urinal with spreader and waste union (flush valve elsewhere)",null,"No",{"v":1,"d":"1 "},null,{"$f":"ROUND($F1225*G1225,2)","v":0}]
[]
[null,null,"WASTE UNIONS, ETC"]
[]
[null,null,"\"Cobra Watertech\" or similar approved:"]
[]
[{"v":4,"d":"4 "},null,"40mm Code 317 CP basin waste union and code 309CP anti-theft plug",null,"No",{"v":2,"d":"2 "},null,{"$f":"ROUND($F1231*G1231,2)","v":0}]
[]
[null,null,"TRAPS, ETC"]
[]
[null,null,"uPVC:"]
[]
[{"v":5,"d":"5 "},null,"40mm \"P\" or \"S\" trap",null,"No",{"v":2,"d":"2 "},null,{"$f":"ROUND($F1237*G1237,2)","v":0}]
[]
[{"v":6,"d":"6 "},null,"50mm Code 365 CP bottle trap",null,"No",{"v":1,"d":"1 "},null,{"$f":"ROUND($F1239*G1239,2)","v":0}]
[]
[null,null,"TAPS, VALVES, ETC"]
[]
[null,null,"\"Cobra Watertech\" or similar approved:"]
[]
[{"v":7,"d":"7 "},null,"15mm Code1065-15CP fullway isolating ball valve",null,"No",{"v":2,"d":"2 "},null,{"$f":"ROUND($F1245*G1245,2)","v":0}]
[]
[{"v":8,"d":"8 "},null,"15mm Code 902CP \"Focus\" basin mixer with waste union, etc and angle flow regulating valves",null,"No",{"v":2,"d":"2 "},null,{"$f":"ROUND($F1247*G1247,2)","v":0}]
[]
[{"v":9,"d":"9 "},null,"Code FJ6.000CP \"Flushmaster Junior\" urinal flush valve",null,"No",{"v":1,"d":"1 "},null,{"$f":"ROUND($F1249*G1249,2)","v":0}]
[]
[null,null,"AS-BUILT DRAWINGS"]
[]
[{"v":10,"d":"10 "},null,"Provision of as-built drawings",null,"Item",{"v":1,"d":"1 "},null,{"$f":"ROUND($F1253*G1253,2)","v":0}]
[]
[null,null,"BUDGETARY ALLOWANCE"]
[]
[{"v":11,"d":"11 "},null,"Provide a budgetary allowance of Fifteen Thousand Rand for sundry plumbing works to be used as directed by the Principal Agent and to be deducted in whole or in part if not required.",null,"Item",{"v":1,"d":"1 "},null,{"$f":"ROUND($F1257*G1257,2)","v":0}]
[]
[null,null,"SECTION 2"]
[]
[null,null,"BILL NO. 10"]
[]
[null,null,"GLAZING"]
[]
[null,null,"WORK GROUP ALLOCATION"]
[]
[null,null,"Unless otherwise stated, all items in this Bill will be allocated to Work Group 150 - Glazing"]
[]
[null,null,"PREAMBLES"]
[]
[null,null,"The General Preambles for Trades (2017 edition) as published by the Association of South African Quantity Surveyors shall be deemed to be incorporated in these bills of quantities and no claims arising from brevity of description of items fully described in the said General Preambles will be entertained"]
[]
[null,null,"The following \"Supplementary Preambles\" are incorporated in this bill to satisfy the requirements of the project and shall take precedence over the provisions of the said General Preambles"]
[]
[null,null,"SUPPLEMENTARY PREAMBLES"]
[]
[null,null,"Float glass:"]
[]
[null,null,"The term \"float glass\" is used for monolithic annealed glass"]
[]
[null,null,"Laminated glass:"]
[]
[null,null,"Laminated glass to have polyvinyl butyral (PVB) interlayer(s)"]
[]
[null,null,"GLAZING TO STEEL WITH PUTTY"]
[]
[null,null,"6,38mm Normal strength (NS) clear laminated safety glass:"]
[]
[{"v":1,"d":"1 "},null,"Panes exceeding 0,1m2 and not exceeding 0,5m2",null,"m²",{"v":3,"d":"3 "},null,{"$f":"ROUND($F1289*G1289,2)","v":0}]
[]
[{"v":2,"d":"2 "},null,"Panes exceeding 0,5m2 and not exceeding 2,0m2",null,"m²",{"v":1,"d":"1 "},null,{"$f":"ROUND($F1291*G1291,2)","v":0}]
[]
[null,null,"33mm Bulletproof glass (SANS 10400):"]
[]
[{"v":3,"d":"3 "},null,"Panes exceeding 0,1m2 and not exceeding 0,5m2",null,"m²",0.4,null,{"$f":"ROUND($F1295*G1295,2)","v":0}]
[]
[null,null,"TOPS, SHELVES, DOORS, MIRRORS, ETC"]
[]
[null,null,"4mm Silvered float glass copper backed mirrors with 10mm bevelled and polished edges fixed with double sided adhesive tape:"]
[]
[{"v":4,"d":"4 "},null,"Mirror 600 x 1200mm high",null,"No",{"v":2,"d":"2 "},null,{"$f":"ROUND($F1301*G1301,2)","v":0}]
[]
[null,null,"SECTION 2"]
[]
[null,null,"BILL NO. 12"]
[]
[null,null,"PAINTWORK"]
[]
[null,null,"WORK GROUP ALLOCATION"]
[]
[null,null,"Unless otherwise stated, all items in this Bill will be allocated to Work Group 152 - Painting"]
[]
[null,null,"PREAMBLES"]
[]
[null,null,"The General Preambles for Trades (2017 edition) as published by the Association of South African Quantity Surveyors shall be deemed to be incorporated in these bills of quantities and no claims arising from brevity of description of items fully described in the said General Preambles will be entertained"]
[]
[null,null,"The following \"Supplementary Preambles\" are incorporated in this bill to satisfy the requirements of the project and shall take precedence over the provisions of the said General Preambles"]
[]
[null,null,"SUPPLEMENTARY PREAMBLES"]
[]
[null,null,"PREPARATORY WORK TO EXISTING WORK"]
[]
[null,null,"Previously painted plastered surfaces:"]
[]
[null,null,"Surfaces shall be thoroughly washed down and allowed to dry completely before any paint is applied. Blistered or peeling paint shall be completely removed and minor cracks shall be opened, filled with a suitable filler and finished smooth"]
[]
[null,null,"Previously painted metal surfaces:"]
[]
[null,null,"Surfaces shall be thoroughly rubbed and cleaned down.  Blistered or peeling paint shall be completely removed down to bare metal"]
[]
[null,null,"Previously painted wood surfaces:"]
[]
[null,null,"Surfaces shall be thoroughly cleaned down.  Blistered or peeling paint shall be completely removed and cracks and crevices shall be primed, filled with suitable filler and finished smooth"]
[]
[null,null,"PAINT SPECIFICATIONS"]
[]
[null,null,"All painting shall be done in accordance with \"Plascon\"or similar approved, etc specifications, unless otherwise described"]
[]
[null,null,"COLOURS"]
[]
[null,null,"When staining timber, the resultant colour or shade must be to the complete satisfaction of the Project Manager before any overcoating or preservative is applied  Paintwork is classified in the following different colour groups: \"White\", \"Pastel\", \"Deep\" and \"Transparent\" in accordance with the \"Natural Colour System\" (NCS) adopted by the SA National Standards Unless otherwise described, all paintwork shall be deemed to be classified in the \"White\" colour group"]
[]
[null,null,"PAINTWORK, ETC TO PREVIOUSLY PAINTED WORK"]
[]
[null,null,"ON EXTERNAL FLOATED PLASTER SURFACES"]
[]
[null,null,"One coat alkali resistant plaster primer and two coats PVA acrylic emulsion paint on"]
[]
[{"v":1,"d":"1 "},null,"Walls",null,"m²",{"v":406,"d":"406 "},null,{"$f":"ROUND($F1349*G1349,2)","v":0}]
[]
[null,null,"ON INTERNAL FLOATED PLASTER SURFACES"]
[]
[null,null,"One coat superior quality acrylic emulsion paint for interior and exterior use, on work in sound condition:"]
[]
[{"v":2,"d":"2 "},null,"Walls",null,"m²",{"v":96,"d":"96 "},null,{"$f":"ROUND($F1355*G1355,2)","v":0}]
[]
[null,null,"ON FIBRE-CEMENT BOARD SURFACES"]
[]
[null,null,"One coat alkali resistant primer and two coats superior quality acrylic emulsion paint for interior and exterior use, on:"]
[]
[{"v":3,"d":"3 "},null,"Ceilings and cornices, including priming metal cover strips and nailheads",null,"m²",{"v":18,"d":"18 "},null,{"$f":"ROUND($F1361*G1361,2)","v":0}]
[]
[{"v":4,"d":"4 "},null,"On Fascias and barge boards",null,"m²",{"v":11,"d":"11 "},null,{"$f":"ROUND($F1363*G1363,2)","v":0}]
[]
[null,null,"ON SMOOTH CONCRETE SURFACES"]
[]
[null,null,"One coat alkali resistant primer and two coats PVA emulsion paint for interior use, including stopping blowholes, on:"]
[]
[{"v":5,"d":"5 "},null,"On Ceilings",null,"m²",{"v":59,"d":"59 "},null,{"$f":"ROUND($F1369*G1369,2)","v":0}]
[]
[null,null,"METAL SURFACES WITH"]
[]
[null,null,"One coat alkyd based zinc phosphate primer and two coats premium quality polyurethane enamel paint, on steel:"]
[]
[{"v":6,"d":"6 "},null,"Door frames",null,"m²",{"v":12,"d":"12 "},null,{"$f":"ROUND($F1375*G1375,2)","v":0}]
[]
[{"v":7,"d":"7 "},null,"Steel gates",null,"m²",{"v":13,"d":"13 "},null,{"$f":"ROUND($F1377*G1377,2)","v":0}]
[]
[{"v":8,"d":"8 "},null,"Windows with burglar bars",null,"m²",{"v":11,"d":"11 "},null,{"$f":"ROUND($F1379*G1379,2)","v":0}]
[]
[null,null,"ON WOOD SURFACES"]
[]
[null,null,"One coat primer, one coat alkyd based universal undercoat and two coats superior quality universal enamel paint, on:"]
[]
[{"v":9,"d":"9 "},null,"Doors",null,"m²",{"v":39,"d":"39 "},null,{"$f":"ROUND($F1385*G1385,2)","v":0}]
[]
[{"v":10,"d":"10 "},null,"Skirtings, rails, etc. not exceeding 300mm girth",null,"m",{"v":50,"d":"50 "},null,{"$f":"ROUND($F1387*G1387,2)","v":0}]
[]
[{"v":1,"d":"1 "},null,"Alterations",{"$nulls":4},{"$f":"SUM(H419:H588)","v":0}]
[]
[{"v":2,"d":"2 "},null,"Roof Coverings",{"$nulls":4},{"$f":"SUM(H597:H628)","v":0}]
[]
[{"v":3,"d":"3 "},null,"Carpentry and Joinery",{"$nulls":4},{"$f":"SUM(H665:H711)","v":0}]
[]
[{"v":4,"d":"4 "},null,"Ceilings, Partitions and Access Flooring",{"$nulls":4},{"$f":"SUM(H720:H774)","v":0}]
[]
[{"v":5,"d":"5 "},null,"Ironmongery",{"$nulls":4},{"$f":"SUM(H783:H860)","v":0}]
[]
[{"v":6,"d":"6 "},null,"Structural Steelwork",{"$nulls":4},{"$f":"SUM(H891:H916)","v":0}]
[]
[{"v":7,"d":"7 "},null,"Metalwork",{"$nulls":4},{"$f":"SUM(H938:H968)","v":0}]
[]
[{"v":8,"d":"8 "},null,"Plastering",{"$nulls":4},{"$f":"SUM(H1034:H1060)","v":0}]
[]
[{"v":9,"d":"9 "},null,"Tiling",{"$nulls":4},{"$f":"SUM(H1073:H1104)","v":0}]
[]
[{"v":10,"d":"10 "},null,"Plumbing and Drainage",{"$nulls":4},{"$f":"SUM(H1201:H1257)","v":0}]
[]
[{"v":11,"d":"11 "},null,"Glazing",{"$nulls":4},{"$f":"SUM(H1267:H1302)","v":0}]
[]
[{"v":12,"d":"12 "},null,"Paintwork",{"$nulls":4},{"$f":"SUM(H1312:H1387)","v":0}]
[]
[null,null,"SECTION 3"]
[]
[null,null,"BILL NO. 1"]
[]
[null,null,"EXTERNAL WORK (PROVISIONAL)"]
[]
[null,null,"(ALL TRADES)"]
[]
[null,null,"WORK GROUP ALLOCATION"]
[]
[null,null,"The items in this Bill will be allocated to Work Groups as indicated in brackets at the end of headings or descriptions"]
[]
[null,null,"PREAMBLES"]
[]
[null,null,"The Model Preambles for Trades (2008 edition) as published by the Association of South African Quantity Surveyors shall be deemed to be incorporated in these bills of quantities and no claims arising from brevity of description of items fully described in the said General Preambles will be entertained"]
[]
[null,null,"The following \"Supplementary Preambles\" are incorporated in this bill to satisfy the requirements of the project and shall take precedence over the provisions of the said General Preambles"]
[]
[null,null,"SUPPLEMENTARY PREAMBLES"]
[]
[null,null,"Nature of ground:"]
[]
[null,null,"The nature of the ground is assumed to be loose sandy material, therefore \"earth\", but possibly interspersed with \"soft rock\" or \"hard rock\""]
[]
[null,null,"The nature of the ground is assumed to be gravel, therefore \"earth\", but possibly interspersed with \"soft rock\" or \"hard rock\""]
[]
[null,null,"The nature of the ground is assumed to be silty clay with loose river boulders varying in size up to approximately 450mm diameter, all of which will be deemed as \"earth\", but possibly interspersed with \"hard rock\""]
[]
[null,null,"Trial holes indicate that the nature of the ground is silty clay to a depth of approximately 500mm with fine to medium loose sandy material below, therefore \"earth\""]
[]
[null,null,"A soils investigation has been carried out on the site by the Engineer and the report is annexed to these bills of quantities.  The soils report indicates that the ground varies between transported soils at surface comprising gravel layers of varying  thickness and interspersed with clay, and weathered shales varying from very soft rock to medium hard rock consistency, all of which will be deemed as \"earth\". All very hard unweathered shale, ironstone, etc the removal of which necessitates the use of explosives or heavy duty hydraulic percussion hammers (peckers), will be classified as \"hard rock\""]
[]
[null,null,"Should the Contractor encounter any \"soft\" or \"hard\" rock in the excavations, he shall immediately notify the Engineer who shall be the sole arbiter as to what constitutes \"soft\" or \"hard\" rock for final account purposes"]
[]
[null,null,"Subterranean water:"]
[]
[null,null,"No subterranean water is expected"]
[]
[null,null,"Excavation for working space in rock:"]
[]
[null,null,"Notwithstanding clause 11 of the Standard System of Measuring Building Work, excavation for working space in rock will be measured in cubic metres to the extent executed and given as \"extra over\" bulk excavation or trench and hole excavation as the case may be"]
[]
[null,null,"Carting away of excavated material:"]
[]
[null,null,"Descriptions of carting away of excavated material shall be deemed to include loading excavated material onto trucks directly from the excavations or, alternatively, from stock piles situated on the building site"]
[]
[null,null,"Filling:"]
[]
[null,null,"Notwithstanding the reference to prescribed multiple handling in Clause 1 of the Standard System of Measuring Building Work, prices for filling and backfilling shall include for all selection and any necessary multiple handling of material"]
[]
[null,null,"Testing:"]
[]
[null,null,"Prices for backfilling to trenches and holes only are to include for all necessary density tests in accordance with SANS 1200D"]
[]
[null,null,"Maintenance period:"]
[]
[null,null,"The maintenance period to civil works such as roads, parking and related earthworks shall be twelve calender months"]
[]
[null,null,"SITE CLEARANCE, ETC (WORK GROUP 104)"]
[]
[null,null,"Site clearance:"]
[]
[{"v":1,"d":"1 "},null,"Digging up and removing rubbish, debris, vegetation, hedges, shrubs and trees not exceeding 200mm girth, bush, etc.",null,"m²",{"v":300,"d":"300 "},null,{"$f":"ROUND($F1475*G1475,2)","v":0}]
[]
[{"v":2,"d":"2 "},null,"Provide a budgetary allowance of Twenty Five Thousand Rand for sundry external works to be used as directed by the Principal Agent and to be deducted in whole or in part if not required.",null,"Item",{"v":1,"d":"1 "},null,{"$f":"ROUND($F1477*G1477,2)","v":0}]
[]
[null,null,"SECTION NO. 4"]
[]
[null,null,"BILL NO. 1"]
[]
[null,null,"ELECTRICAL INSTALLATION"]
[]
[null,null,"LOW VOLTAGE"]
[]
[null,null,"DISCONNECTION/ REMOVAL OF REDUNDANT ELECTRICAL EQUIPMENT"]
[]
[null,null,"The following equipment shall be isolated, disconnected, removed and handed over to the Employer"]
[]
[{"v":1,"d":"1 "},null,"Decommissioning and stripping of existing electrical installations including cables, conductors, luminiares, control devices, DB's, etc in the existing building.",null,"SUM",{"v":1,"d":"1 "},null,{"$f":"ROUND($F1491*G1491,2)","v":0}]
[]
[null,null,"LV SWITCHGEAR DBs and LV Switchgear"]
[]
[null,null,"Manufacture, deliver to site, install, commission, test kiosks, distribution boards as per specification and single line diagram, to be housed in electrical. All electrical panels shall be stainless steel material, rates to include powder coated, busbars and drilling, busbar connections internal wiring etc. Refer to single line diagram for electrical panel colour"]
[]
[{"v":2,"d":"2 "},null,"DB-1 Ticket Office",null,"No",{"v":1,"d":"1 "},null,{"$f":"ROUND($F1497*G1497,2)","v":0}]
[]
[{"v":3,"d":"3 "},null,"UT4 IP65 Box surface mounted with 32A 1-pole isolator, 3x circuit breakers with complete busbar.",null,"No",{"v":4,"d":"4 "},null,{"$f":"ROUND($F1499*G1499,2)","v":0}]
[]
[null,null,"CABLES AND CONDUCTORS"]
[]
[null,null,"Supply, deliver to site cables and conductors as specified. Install, rack, strap and testing of cables as per specification including clamps, ties and cable numbering system"]
[]
[{"v":4,"d":"4 "},null,"2,5mm conductors (mixed colours - live, neutral and earth)",null,"m",{"v":3300,"d":"3,300 "},null,{"$f":"ROUND($F1505*G1505,2)","v":0}]
[]
[{"v":5,"d":"5 "},null,"4,0mm conductors (mixed colours - live, neutral and earth)",null,"m",{"v":400,"d":"400 "},null,{"$f":"ROUND($F1507*G1507,2)","v":0}]
[]
[{"v":6,"d":"6 "},null,"2.5 mm\"² 2c 600/1000V PVC/SWA/PVC ECC Cu Cable",null,"m",{"v":500,"d":"500 "},null,{"$f":"ROUND($F1509*G1509,2)","v":0}]
[]
[{"v":7,"d":"7 "},null,"10 mm\"² 4c 600/1000V PVC/SWA/PVC ECC Cu Cable",null,"m",{"v":250,"d":"250 "},null,{"$f":"ROUND($F1511*G1511,2)","v":0}]
[]
[{"v":8,"d":"8 "},null,"50 mm\"² 4c 600/1000V PVC/SWA/PVC ECC Cu Cable",null,"m",{"v":50,"d":"50 "},null,{"$f":"ROUND($F1513*G1513,2)","v":0}]
[]
[null,null,"CABLE TERMINATIONS"]
[]
[null,null,"Termination of cables shall include supply installation and testing of the glands with corrossion guard , making-off the cable, lugs, and fitting the gland to the board gland plate, switchgear or equipment and final connection of cable tails into board or terminals.  Include for Reducing Glands and shrouds where applicable. NB:  IP65 Glands are to be used where applicable."]
[]
[{"v":9,"d":"9 "},null,"2.5 mm\"² 2c 600/1000V PVC/SWA/PVC ECC Cu Cable",null,"No",{"v":8,"d":"8 "},null,{"$f":"ROUND($F1519*G1519,2)","v":0}]
[]
[{"v":10,"d":"10 "},null,"10 mm\"² 4c 600/1000V PVC/SWA/PVC ECC Cu Cable",null,"No",{"v":4,"d":"4 "},null,{"$f":"ROUND($F1521*G1521,2)","v":0}]
[]
[{"v":11,"d":"11 "},null,"50 mm\"² 4c 600/1000V PVC/SWA/PVC ECC Cu Cable glands",null,"m",{"v":2,"d":"2 "},null,{"$f":"ROUND($F1523*G1523,2)","v":0}]
[]
[{"v":12,"d":"12 "},null,"20mm PVC conduit including all necessary accessories. Rate to include chasing wall for conduit in the wall, close wall and make good",null,"m",{"v":1300,"d":"1,300 "},null,{"$f":"ROUND($F1525*G1525,2)","v":0}]
[]
[null,null,"LUMINARIES AND CONTROL DEVICES"]
[]
[null,null,"Supply, deliver, accept and store the following luminaries, complete with lamps and control gear as per specification. See and refer to the specification document for details of each luminaire"]
[]
[{"v":13,"d":"13 "},null,"Type A13 - IP65 Rated, 30W / 4440 lm LED - 4000k Rough-guard surface-mounted weather-proof luminaire,  GRP body and acrylic diffuser, with 50000 hours lifespan",null,"No",{"v":7,"d":"7 "},null,{"$f":"ROUND($F1531*G1531,2)","v":0}]
[]
[{"v":14,"d":"14 "},null,"Type A5 - IP65 Rated, 30W / 4440 lm LED - 4000k vapour-proof surface-mounted weather-proof luminaire, GRP body and acrylic diffuser, with 50000 hours lifespan",null,"No",{"v":8,"d":"8 "},null,{"$f":"ROUND($F1533*G1533,2)","v":0}]
[]
[{"v":15,"d":"15 "},null,"Type B1 - IP65 Rated high-pressure die cast aluminium base and trim ring 20W/  2600lm LED - 4000k bulkhead luminaire, GRP body and acrylic diffuser, with 50000 hours lifespan",null,"No",{"v":25,"d":"25 "},null,{"$f":"ROUND($F1535*G1535,2)","v":0}]
[]
[{"v":16,"d":"16 "},null,"Type FL 3  - 75W / 9250lm LED (2700k) Streetlight rated IP66 with powder coating as per specification, and complete with mounting accessories",null,"No",{"v":9,"d":"9 "},null,{"$f":"ROUND($F1537*G1537,2)","v":0}]
[]
[{"v":17,"d":"17 "},null,"Type C6  - 80W / 10000lumen LED (4000k) Floodlight, rated IP65 with powder coating as per specification",null,"No",{"v":3,"d":"3 "},null,{"$f":"ROUND($F1539*G1539,2)","v":0}]
[]
[{"v":18,"d":"18 "},null,"Photo electric cell as per specification",null,"No",{"v":5,"d":"5 "},null,{"$f":"ROUND($F1541*G1541,2)","v":0}]
[]
[null,null,"LIGHT SWITCHES, SOCKET OUTLET, WELDING ISOLATORS AND ACCESSORIES"]
[]
[null,null,"Supply, deliver and installation of the following  control devices and accessories as per specification. Rate must allow for the termination and connecting of the PVC conductor to the accessory, fixing to the conduit box and the fitting of the cover plate. (PVC coveres)"]
[]
[{"v":19,"d":"19 "},null,"Supply and installation of 15Amp, 1 lever, 1-way, white toggle, white coloured plate, light circuit switch complete with cover and all accessories",null,"No",{"v":5,"d":"5 "},null,{"$f":"ROUND($F1547*G1547,2)","v":0}]
[]
[{"v":20,"d":"20 "},null,"Supply and installation of 15Amp, 2 lever, 2-way, white toggle, white coloured plate, light circuit switch complete with cover and all accessories",null,"No",{"v":5,"d":"5 "},null,{"$f":"ROUND($F1549*G1549,2)","v":0}]
[]
[{"v":21,"d":"21 "},null,"Supply and install 16A, 3pin, 2pin 230V  switched socket outlets, white coloured plate with white toggle",null,"No",{"v":5,"d":"5 "},null,{"$f":"ROUND($F1551*G1551,2)","v":0}]
[]
[{"v":22,"d":"22 "},null,"Supply and install 16A, 3pin, 230V double switched socket outlets, red cover plate, red toggle with chamfered earth",null,"No",{"v":5,"d":"5 "},null,{"$f":"ROUND($F1553*G1553,2)","v":0}]
[]
[{"v":23,"d":"23 "},null,"Supply and installation of 20Amp, 1-pole surface mounted isolator, complete with all necessary accessories",null,"No",{"v":2,"d":"2 "},null,{"$f":"ROUND($F1555*G1555,2)","v":0}]
[]
[{"v":24,"d":"24 "},null,"Supply and installation of 20Amp, IP66, 1-Pole isolator mounted on the security steel cage, complete with all necessary accessories",null,"No",{"v":1,"d":"1 "},null,{"$f":"ROUND($F1557*G1557,2)","v":0}]
[]
[{"v":25,"d":"25 "},null,"New steel cage for lighting. Cage shall be hot dip galvanised",null,"No",{"v":15,"d":"15 "},null,{"$f":"ROUND($F1559*G1559,2)","v":0}]
[]
[null,null,"EXCAVATIONS"]
[]
[null,null,"For all low voltage cables from existing Municipality Substation to meter room and buildings through manholes as per drawings.  Trenching shall be calculated using the formula below: (700mm deep * 0.4m wide *  length)"]
[]
[{"v":26,"d":"26 "},null,"Excavate in concrete/tar and hard soil, backfilling and compaction to 93% MOD AASHTO",null,"m³",{"v":35,"d":"35 "},null,{"$f":"ROUND($F1565*G1565,2)","v":0}]
[]
[{"v":27,"d":"27 "},null,"Re-instate tar for above item",null,"m³",{"v":35,"d":"35 "},null,{"$f":"ROUND($F1567*G1567,2)","v":0}]
[]
[null,null,"Supply, install, test and commissioning of the lightning protection of the buildings on two corners of the buildings, complete with all necessary required material, accessories for a complete installation. Contractor to use copper earth spike, aluminium or copper conductors as per specification, and have testing points for the building. Rates to include all necessary required accessories for a complete installation. The installation must comply with SANS 10313.Contractor to issue test certificate per building"]
[]
[{"v":28,"d":"28 "},null,"Ticket office",null,"SUM",{"v":1,"d":"1 "},null,{"$f":"ROUND($F1571*G1571,2)","v":0}]
[]
[{"v":29,"d":"29 "},null,"Waiting area & ablution",null,"SUM",{"v":1,"d":"1 "},null,{"$f":"ROUND($F1573*G1573,2)","v":0}]
[]
[{"v":30,"d":"30 "},null,"Existing shelter",null,"SUM",{"v":1,"d":"1 "},null,{"$f":"ROUND($F1575*G1575,2)","v":0}]
[]
[{"v":31,"d":"31 "},null,"Proposed shelter",null,"SUM",{"v":1,"d":"1 "},null,{"$f":"ROUND($F1577*G1577,2)","v":0}]
[]
[null,null,"SUNDRIES"]
[]
[{"v":32,"d":"32 "},null,"LV reticulation - Preparation of 'As-Built' drawings and manuals as per this specification.",null,"No",{"v":1,"d":"1 "},null,{"$f":"ROUND($F1581*G1581,2)","v":0}]
[]
[{"v":33,"d":"33 "},null,"Labelling of light switches, sockets and isolators outlets as per drawing pop riveted to cover plate.",null,"SUM",{"v":1,"d":"1 "},null,{"$f":"ROUND($F1583*G1583,2)","v":0}]
[]
[{"v":34,"d":"34 "},null,"Supply of hard bound spiral folders containing commissioning/COC certificates, test results & operating & maintenance manuals for the LV equipment, cabling, light fittings, etc.",null,"No",{"v":3,"d":"3 "},null,{"$f":"ROUND($F1585*G1585,2)","v":0}]
[]
[null,null,"GENERATOR SET"]
[]
[null,null,"Manufacture, deliver to site, install, test and commission of a generator set 400 volts at 50Hz as per specification and single line diagram. The generator shall be enclosed or containerised on a stainless steel Grl316. Rats to include for steelwork and powder coated, busbars and drilling, busbar connections internal wiring, earthing for the generator set, etc. Refer to attached single line diagram"]
[]
[{"v":35,"d":"35 "},null,"60kVA, 400V, 3phase silent Diesel engine alternator set with weatherproof mild-steel canopy",null,"SUM",{"v":1,"d":"1 "},null,{"$f":"ROUND($F1591*G1591,2)","v":0}]
[]
[{"v":36,"d":"36 "},null,"Stainless steel metal cladded thermal insulation of exhaust pipe and silencer within the enclosure",null,"SUM",{"v":1,"d":"1 "},null,{"$f":"ROUND($F1593*G1593,2)","v":0}]
[]
[{"v":37,"d":"37 "},null,"Water trap/fuel filter cartridge",null,"SUM",{"v":1,"d":"1 "},null,{"$f":"ROUND($F1595*G1595,2)","v":0}]
[]
[{"v":38,"d":"38 "},null,"New AMF panel - for essential and non - essential electric board",null,"SUM",{"v":1,"d":"1 "},null,{"$f":"ROUND($F1597*G1597,2)","v":0}]
[]
[null,null,"Electrical reticulation"]
[]
[{"v":39,"d":"39 "},null,"Interconnecting control & power cabling between genset and alternator and AMF panel",null,"SUM",{"v":1,"d":"1 "},null,{"$f":"ROUND($F1601*G1601,2)","v":0}]
[]
[{"v":40,"d":"40 "},null,"Support & protection of exposed cabling between genset & AMF panel",null,"SUM",{"v":1,"d":"1 "},null,{"$f":"ROUND($F1603*G1603,2)","v":0}]
[]
[{"v":41,"d":"41 "},null,"Electronic hooter & red flashing general alarm light mounted on the AMF panel",null,"SUM",{"v":1,"d":"1 "},null,{"$f":"ROUND($F1605*G1605,2)","v":0}]
[]
[{"v":42,"d":"42 "},null,"Remote alarm indicator panel complete the red indicator lamp and label - GENERATOR FAULT",null,"SUM",{"v":1,"d":"1 "},null,{"$f":"ROUND($F1607*G1607,2)","v":0}]
[]
[{"v":43,"d":"43 "},null,"External emergency stop push button and cabling",null,"SUM",{"v":1,"d":"1 "},null,{"$f":"ROUND($F1609*G1609,2)","v":0}]
[]
[{"v":44,"d":"44 "},null,"Earthing of generator set",null,"SUM",{"v":1,"d":"1 "},null,{"$f":"ROUND($F1611*G1611,2)","v":0}]
[]
[null,null,"Commissioning"]
[]
[{"v":45,"d":"45 "},null,"Test & commission on site with load",null,"SUM",{"v":1,"d":"1 "},null,{"$f":"ROUND($F1615*G1615,2)","v":0}]
[]
[{"v":46,"d":"46 "},null,"Resistance testing of earth system",null,"SUM",{"v":1,"d":"1 "},null,{"$f":"ROUND($F1617*G1617,2)","v":0}]
[]
[{"v":47,"d":"47 "},null,"Balancing of the essential loads",null,"SUM",{"v":1,"d":"1 "},null,{"$f":"ROUND($F1619*G1619,2)","v":0}]
[]
[{"v":48,"d":"48 "},null,"Electrical certification of compliance",null,"SUM",{"v":1,"d":"1 "},null,{"$f":"ROUND($F1621*G1621,2)","v":0}]
[]
[null,null,"Signage"]
[]
[{"v":49,"d":"49 "},null,"A per OHS Act - fire & resussitation etc.",null,"SUM",{"v":1,"d":"1 "},null,{"$f":"ROUND($F1625*G1625,2)","v":0}]
[]
[{"v":50,"d":"50 "},null,"Generator \"Manual start/test procedure\"",null,"SUM",{"v":1,"d":"1 "},null,{"$f":"ROUND($F1627*G1627,2)","v":0}]
[]
[{"v":51,"d":"51 "},null,"Caution - This generator will start automatically. Isolate power before working on plant",null,"No",{"v":1,"d":"1 "},null,{"$f":"ROUND($F1629*G1629,2)","v":0}]
[]
[{"v":52,"d":"52 "},null,"Electricity logo on door to AMF panel",null,"No",{"v":1,"d":"1 "},null,{"$f":"ROUND($F1631*G1631,2)","v":0}]
[]
[{"v":53,"d":"53 "},null,"Municipality's ID label of genset & control panel",null,"No",{"v":2,"d":"2 "},null,{"$f":"ROUND($F1633*G1633,2)","v":0}]
[]
[{"v":54,"d":"54 "},null,"Contractors / PRASA's details - laminated plastic",null,"No",{"v":1,"d":"1 "},null,{"$f":"ROUND($F1635*G1635,2)","v":0}]
[]
[null,null,"General"]
[]
[{"v":55,"d":"55 "},null,"Diesel fuel for full tank",null,"SUM",{"v":1,"d":"1 "},null,{"$f":"ROUND($F1639*G1639,2)","v":0}]
[]
[{"v":56,"d":"56 "},null,"Laminated plastic framed schematic wiring diagram fixed to the inside of the enclosure adjacent the AMF panel",null,"No",{"v":1,"d":"1 "},null,{"$f":"ROUND($F1641*G1641,2)","v":0}]
[]
[{"v":57,"d":"57 "},null,"A4 size log book on chain in metal envelope in door",null,"No",{"v":1,"d":"1 "},null,{"$f":"ROUND($F1643*G1643,2)","v":0}]
[]
[{"v":58,"d":"58 "},null,"Operational training of Employer's staff",null,"SUM",{"v":1,"d":"1 "},null,{"$f":"ROUND($F1645*G1645,2)","v":0}]
[]
[{"v":59,"d":"59 "},null,"Manuals - 3 sets",null,"SUM",{"v":1,"d":"1 "},null,{"$f":"ROUND($F1647*G1647,2)","v":0}]
[]
[{"v":60,"d":"60 "},null,"Drawings",null,"SUM",{"v":1,"d":"1 "},null,{"$f":"ROUND($F1649*G1649,2)","v":0}]
[]
[null,null,"Service"]
[]
[{"v":61,"d":"61 "},null,"Monthly inspection every quarter  new fuel filters for 1st year",null,"No",{"v":4,"d":"4 "},null,{"$f":"ROUND($F1653*G1653,2)","v":0}]
[]
[{"v":62,"d":"62 "},null,"Full annual service and new battery for 1st year",null,"No",{"v":1,"d":"1 "},null,{"$f":"ROUND($F1655*G1655,2)","v":0}]
[]
[null,null,"TEST AND COMMISSIONING"]
[]
[null,null,"Test and commission  the complete electrical installation including completion of quality check sheets, Compliance Certificates & test results and submitting them to the Employer's Representative."]
[]
[{"v":63,"d":"63 "},null,"Test and commission  the complete electrical installation including Certificates of Compliance & test results to the Engineer.",null,"SUM",{"v":1,"d":"1 "},null,{"$f":"ROUND($F1661*G1661,2)","v":0}]
[]
[null,null,"SECTION 6"]
[]
[null,null,"BILL NO. 1"]
[]
[null,null,"HVAC INSTALLATIONS"]
[]
[null,null,"Supply, deliver and install the following HVAC units as per specification:"]
[]
[{"v":1,"d":"1 "},null,"3.5 kW Cooling midwall split indoor unit",null,"No",{"v":1,"d":"1 "},null,{"$f":"ROUND($F1671*G1671,2)","v":0}]
[]
[{"v":2,"d":"2 "},null,"3.5 kW inverter type outdoor condensing unit",null,"No",{"v":1,"d":"1 "},null,{"$f":"ROUND($F1673*G1673,2)","v":0}]
[]
[{"v":3,"d":"3 "},null,"6 kW cooling mini cassette indoor unit",null,"No",{"v":1,"d":"1 "},null,{"$f":"ROUND($F1675*G1675,2)","v":0}]
[]
[{"v":4,"d":"4 "},null,"6 kW Inverter type outdoor condensing unit",null,"No",{"v":1,"d":"1 "},null,{"$f":"ROUND($F1677*G1677,2)","v":0}]
[]
[{"v":5,"d":"5 "},null,"Refrigeration copper piping with thermal insulation and all associated fittings",null,"m",{"v":6,"d":"6 "},null,{"$f":"ROUND($F1679*G1679,2)","v":0}]
[]
[{"v":6,"d":"6 "},null,"PVC condensate drain piping with insulation",null,"m",{"v":12,"d":"12 "},null,{"$f":"ROUND($F1681*G1681,2)","v":0}]
[]
[{"v":7,"d":"7 "},null,"Wired controller",null,"No",{"v":2,"d":"2 "},null,{"$f":"ROUND($F1683*G1683,2)","v":0}]
[]
[{"v":8,"d":"8 "},null,"Fabricate, supply, and install lockable security cages around each outdoor condensing unit",null,"No",{"v":2,"d":"2 "},null,{"$f":"ROUND($F1685*G1685,2)","v":0}]
[]
[{"v":9,"d":"9 "},null,"Application of approved coastal treatment for the outdoor condensing units",null,"No",{"v":2,"d":"2 "},null,{"$f":"ROUND($F1687*G1687,2)","v":0}]
[]
[{"v":10,"d":"10 "},null,"350 x 250 door grille",null,"No",{"v":2,"d":"2 "},null,{"$f":"ROUND($F1689*G1689,2)","v":0}]
[]
[null,null,"SECTION 6"]
[]
[null,null,"BILL NO. 2"]
[]
[null,null,"WET SERVICES"]
[]
[null,null,"COLD WATER INSTALLATION"]
[]
[null,null,"Supply, install, and commission the water reticulation systems per specification"]
[]
[null,null,"Class 12 HDPE piping laid and buried trenches not exceeding 800mm deep"]
[]
[{"v":1,"d":"1 "},null,"25mm diameter HDPE CI 12 underground water pipe",null,"m",{"v":35,"d":"35 "},null,{"$f":"ROUND($F1703*G1703,2)","v":0}]
[]
[{"v":2,"d":"2 "},null,"32mm diameter HDPE CI 12 underground water pipe",null,"m",{"v":3,"d":"3 "},null,{"$f":"ROUND($F1705*G1705,2)","v":0}]
[]
[null,null,"Fittings for HDPE class 12 piping"]
[]
[{"v":3,"d":"3 "},null,"25mm diameter Adaptor to pex piping",null,"m",{"v":2,"d":"2 "},null,{"$f":"ROUND($F1709*G1709,2)","v":0}]
[]
[{"v":4,"d":"4 "},null,"32mm diameter - 28mm diameter Adaptor to pex piping",null,"m",{"v":1,"d":"1 "},null,{"$f":"ROUND($F1711*G1711,2)","v":0}]
[]
[{"v":5,"d":"5 "},null,"32mm diameter Equal tee",null,"m",{"v":1,"d":"1 "},null,{"$f":"ROUND($F1713*G1713,2)","v":0}]
[]
[{"v":6,"d":"6 "},null,"32mm diameter - 25mm diameter Reducer",null,"m",{"v":2,"d":"2 "},null,{"$f":"ROUND($F1715*G1715,2)","v":0}]
[]
[null,null,"PEX piping"]
[]
[{"v":7,"d":"7 "},null,"15mm diameter pipe",null,"m",{"v":35,"d":"35 "},null,{"$f":"ROUND($F1719*G1719,2)","v":0}]
[]
[{"v":8,"d":"8 "},null,"22mm diameter pipe",null,"m",{"v":8,"d":"8 "},null,{"$f":"ROUND($F1721*G1721,2)","v":0}]
[]
[null,null,"PEX piping fittings"]
[]
[{"v":9,"d":"9 "},null,"15mm diameter Elbow",null,"No",{"v":8,"d":"8 "},null,{"$f":"ROUND($F1725*G1725,2)","v":0}]
[]
[{"v":10,"d":"10 "},null,"22mm diameter Elbow",null,"No",{"v":4,"d":"4 "},null,{"$f":"ROUND($F1727*G1727,2)","v":0}]
[]
[{"v":11,"d":"11 "},null,"22mm diameter Equal tee",null,"No",{"v":5,"d":"5 "},null,{"$f":"ROUND($F1729*G1729,2)","v":0}]
[]
[{"v":12,"d":"12 "},null,"22-15mm diameter Reducer",null,"No",{"v":6,"d":"6 "},null,{"$f":"ROUND($F1731*G1731,2)","v":0}]
[]
[null,null,"Plastic pipe compression fittings and valves"]
[]
[{"v":13,"d":"13 "},null,"15mm Female elbow",null,"No",{"v":6,"d":"6 "},null,{"$f":"ROUND($F1735*G1735,2)","v":0}]
[]
[{"v":14,"d":"14 "},null,"22mm diameter Isolation valve",null,"No",{"v":1,"d":"1 "},null,{"$f":"ROUND($F1737*G1737,2)","v":0}]
[]
[{"v":15,"d":"15 "},null,"22mm diameter strainer valve",null,"No",{"v":1,"d":"1 "},null,{"$f":"ROUND($F1739*G1739,2)","v":0}]
[]
[null,null,"Pipe hangers - anchor, treaded rod & hilti hanger"]
[]
[{"v":16,"d":"16 "},null,"15mm diameter",null,"No",{"v":2,"d":"2 "},null,{"$f":"ROUND($F1743*G1743,2)","v":0}]
[]
[{"v":17,"d":"17 "},null,"22mm diameter",null,"No",{"v":4,"d":"4 "},null,{"$f":"ROUND($F1745*G1745,2)","v":0}]
[]
[null,null,"Heavy brown paper loosely wrapped around pipe as shealth for expansion"]
[]
[{"v":18,"d":"18 "},null,"15-22mm diameter",null,"No",{"v":20,"d":"20 "},null,{"$f":"ROUND($F1749*G1749,2)","v":0}]
[]
[null,null,"Potable water system"]
[]
[{"v":19,"d":"19 "},null,"5 000 I PVC Potable water tank with all associated isolation valves and strainers",null,"No",{"v":1,"d":"1 "},null,{"$f":"ROUND($F1753*G1753,2)","v":0}]
[]
[{"v":20,"d":"20 "},null,"Variable speed potable water booster pump capable of delivering 2.3 I/s at 45m of H2O with all associated valves, fitting, PVC pipework, and auto start/stop control circuit.",null,"No",{"v":2,"d":"2 "},null,{"$f":"ROUND($F1755*G1755,2)","v":0}]
[]
[{"v":21,"d":"21 "},null,"Fabricate, supply, and install lockable security cages around the duty/standby potable water pumps",null,"No",{"v":1,"d":"1 "},null,{"$f":"ROUND($F1757*G1757,2)","v":0}]
[]
[null,null,"DRAINAGE, ETC"]
[]
[null,null,"Sewer and drainage pipes and fittings shall be through solid wall Class 34 uPVC socketed soil piping in according to SABS 791, jointed and sealed with butyl rubber rings soil, waste and vent pipes and fittings shall be according to SABS 967 and solvent jointed cold water supply pressure pipes fittings shall be according SABS 966 and jointed by means of the \"Lyng\" type jointing system. Pipes shall be fixed and jointed according to SABS 0112"]
[]
[null,null,"Class 34 uPVC pipe"]
[]
[{"v":22,"d":"22 "},null,"50mm diameter pipe",null,"m",{"v":10,"d":"10 "},null,{"$f":"ROUND($F1765*G1765,2)","v":0}]
[]
[{"v":23,"d":"23 "},null,"110mm diameter pipe",null,"m",{"v":10,"d":"10 "},null,{"$f":"ROUND($F1767*G1767,2)","v":0}]
[]
[null,null,"Class 34 uPVC fittings"]
[]
[{"v":24,"d":"24 "},null,"50mm diameter 90 Deg bend",null,"No",{"v":3,"d":"3 "},null,{"$f":"ROUND($F1771*G1771,2)","v":0}]
[]
[{"v":25,"d":"25 "},null,"110mm diameter 90 Deg bend",null,"No",{"v":2,"d":"2 "},null,{"$f":"ROUND($F1773*G1773,2)","v":0}]
[]
[{"v":26,"d":"26 "},null,"110mm diameter 90 Deg access bend",null,"No",{"v":4,"d":"4 "},null,{"$f":"ROUND($F1775*G1775,2)","v":0}]
[]
[{"v":27,"d":"27 "},null,"50mm diameter 45 Deg bend",null,"No",{"v":4,"d":"4 "},null,{"$f":"ROUND($F1777*G1777,2)","v":0}]
[]
[{"v":28,"d":"28 "},null,"110mm diameter 45 Deg bend",null,"No",{"v":6,"d":"6 "},null,{"$f":"ROUND($F1779*G1779,2)","v":0}]
[]
[{"v":29,"d":"29 "},null,"110mm  diameter Pan connector",null,"No",{"v":4,"d":"4 "},null,{"$f":"ROUND($F1781*G1781,2)","v":0}]
[]
[{"v":30,"d":"30 "},null,"50mm diameter Equal access junction",null,"No",{"v":2,"d":"2 "},null,{"$f":"ROUND($F1783*G1783,2)","v":0}]
[]
[{"v":31,"d":"31 "},null,"110mm diameter - 50mm diameter junction",null,"No",{"v":3,"d":"3 "},null,{"$f":"ROUND($F1785*G1785,2)","v":0}]
[]
[{"v":32,"d":"32 "},null,"110mm diameter Equal access junction",null,"No",{"v":4,"d":"4 "},null,{"$f":"ROUND($F1787*G1787,2)","v":0}]
[]
[{"v":1,"d":"1 "},null,"HVAC Installations",{"$nulls":4},{"$f":"SUM(H1670:H1690)","v":0}]
[]
[{"v":2,"d":"2 "},null,"Wet Services",{"$nulls":4},{"$f":"SUM(H1696:H1788)","v":0}]
[]
[null,null,"SECTION 6"]
[]
[null,null,"BILL NO. 1"]
[]
[null,null,"PROVISIONAL AMOUNTS"]
[]
[null,null,"PREAMBLES"]
[]
[null,null,"The Model Preambles for Trades (2008 edition) as published by the Association of South African Quantity Surveyors shall be deemed to be incorporated in these bills of quantities and no claims arising from brevity of description of items fully described in the said Model Preambles will be entertained"]
[]
[null,null,"The following \"Supplementary Preambles\" are incorporated in this bill to satisfy the requirements of the project and shall take precedence over the provisions of the said Model Preambles"]
[]
[null,null,"SUPPLEMENTARY PREAMBLES"]
[]
[null,null,"General:"]
[]
[null,null,"Subcontract amounts are net.  Subcontract amounts are for material and equipment supplied and installed complete by firms of specialists"]
[]
[null,null,"Each subcontract amount may comprise more than one element of work.  Therefore, each subcontract amount may include for work to be carried out by more than one subcontractor"]
[]
[null,null,"Profit:"]
[]
[null,null,"Where stated, the contractor may allow for profit if required"]
[]
[null,null,"General attendance on nominated/selected subcontractors:"]
[]
[null,null,"The item \"General Attendance\" which follows each subcontract amount for nominated/selected subcontractors' work, shall be deemed to cover all the contractor's costs incurred in providing free of charge to the nominated/selected subcontractors, the following:"]
[]
[null,null,"1.  Access to the site and places where the subcontract work is to be carried out, including the reasonable use of any temporary personnel hoists erected by the contractor"]
[]
[null,null,"2.  The provision of water and lighting and of single phase electric power to a position within 50 metres of the place where the subcontract work is to be carried out but excluding water, fuel and power for commissioning of any installation"]
[]
[null,null,"3.  The provision of an area for the subcontractor to establish temporary office accommodation and workshops and for the storage of plant and materials"]
[]
[null,null,"4.  The use of erected scaffolding belonging to the contractor, in common with others having the like right, while it remains erected on the site"]
[]
[null,null,"5.  The use, at reasonable times by arrangement of the contractor's erected hoisting equipment"]
[]
[null,null,"6.  Making good in all trades and cleaning down and removal of rubbish on completion"]
[]
[null,null,"Special attendance on nominated/selected subcontractors:"]
[]
[null,null,"Where stated, special attendance as set out in clause 8.1 of section B of the Preliminaries will be described in detail in this bill"]
[]
[null,null,"Builder's work:"]
[]
[null,null,"Builder's work in connection with specialist services is given elsewhere in these bills of quantities"]
[]
[null,null,"PROTECTION SERVICES"]
[]
[{"v":1,"d":"1 "},null,"Sub-contract amount of Two Hundred Thousand Rand for the provision of protection services  to be spent as the Principal Agent may direct and to be deducted in whole or in part if not required",null,"Item",{"v":1,"d":"1 "},null,{"$f":"ROUND($F1843*G1843,2)","v":0}]
[]
[{"v":2,"d":"2 "},null,"Profit",null,"%",{"v":0,"d":"0%"},null,{"$f":"ROUND($F1845*G1845,2)","v":0}]
[]
[{"v":3,"d":"3 "},null,"General attendance",null,"%",{"v":0,"d":"0%"},null,{"$f":"ROUND($F1847*G1847,2)","v":0}]
[]
[null,null,"STATION FIXED FURNITURE"]
[]
[{"v":4,"d":"4 "},null,"Subcontract amount of Fifty Thousand Rand for the provision and installation of fixed station furniture  to be spent as the Principal Agent may direct and to be deducted in whole or in part if not required",null,"Item",{"v":1,"d":"1 "},null,{"$f":"ROUND($F1851*G1851,2)","v":0}]
[]
[{"v":5,"d":"5 "},null,"Profit",null,"%",{"v":0,"d":"0%"},null,{"$f":"ROUND($F1853*G1853,2)","v":0}]
[]
[{"v":6,"d":"6 "},null,"General Attendance",null,"%",{"v":0,"d":"0%"},null,{"$f":"ROUND($F1855*G1855,2)","v":0}]
[]
[null,null,"STATION SIGNAGE"]
[]
[{"v":7,"d":"7 "},null,"Subcontract amount of Seventy Five Thousand Rand for the provision and installation of station signage  to be spent as the Principal Agent may direct and to be deducted in whole or in part if not required",null,"Item",{"v":1,"d":"1 "},null,{"$f":"ROUND($F1859*G1859,2)","v":0}]
[]
[{"v":8,"d":"8 "},null,"Profit",null,"%",{"v":0,"d":"0%"},null,{"$f":"ROUND($F1861*G1861,2)","v":0}]
[]
[{"v":9,"d":"9 "},null,"General attendance",null,"%",{"v":0,"d":"0%"},null,{"$f":"ROUND($F1863*G1863,2)","v":0}]
[]
[null,null,"BUILT-IN CUPBOARDS"]
[]
[{"v":10,"d":"10 "},null,"Subcontract amount of Twenty Five Thousand Rand for the provision and installation of Built-In Cupboards  to be spent as the Principal Agent may direct and to be deducted in whole or in part if not required",null,"Item",{"v":1,"d":"1 "},null,{"$f":"ROUND($F1867*G1867,2)","v":0}]
[]
[{"v":11,"d":"11 "},null,"Profit",null,"%",{"v":0,"d":"0%"},null,{"$f":"ROUND($F1869*G1869,2)","v":0}]
[]
[{"v":12,"d":"12 "},null,"General attendance",null,"%",{"v":0,"d":"0%"},null,{"$f":"ROUND($F1871*G1871,2)","v":0}]
[]
[null,null,"COMMUNITY LIAISON OFFICER"]
[]
[{"v":13,"d":"13 "},null,"Subcontract amount of one Ninety Thousand Rand for Community Liaison Officer for a period of six (6) months",null,"Item",{"v":1,"d":"1 "},null,{"$f":"ROUND($F1875*G1875,2)","v":0}]
[]
[{"v":14,"d":"14 "},null,"Profit",null,"%",{"v":0,"d":"0%"},null,{"$f":"ROUND($F1877*G1877,2)","v":0}]
[]
[{"v":15,"d":"15 "},null,"General attendance",null,"%",{"v":0,"d":"0%"},null,{"$f":"ROUND($F1879*G1879,2)","v":0}]
[]
[null,null,"BUDGETARY AMOUNTS"]
[]
[null,null,"PROVISION OF A NEW WAITING AREA"]
[]
[{"v":16,"d":"16 "},null,"Budgetary amount of Thirty Four Thousand Rand for the construction of a new waiting area complete  to be spent as the Principal Agent may direct and to be deducted in whole or in part if not required",null,"Item",{"v":1,"d":"1 "},null,{"$f":"ROUND($F1885*G1885,2)","v":0}]
[]
[null,null,"SUMMARY"]
[]
[{"v":1,"d":"1 "},null,"Preliminaries and General",{"$nulls":4},{"$f":"SUM(H5:H412)","v":0}]
[]
[{"v":2,"d":"2 "},null,"Building Works",{"$nulls":4},{"$f":"SUM(H1388:H1412)","v":0}]
[]
[{"v":3,"d":"3 "},null,"External Works",{"$nulls":4},{"$f":"SUM(H1427:H1477)","v":0}]
[]
[{"v":4,"d":"4 "},null,"Electrical Installations",{"$nulls":4},{"$f":"SUM(H1482:H1661)","v":0}]
[]
[{"v":5,"d":"5 "},null,"Mechanical Installations",{"$nulls":4},{"$f":"SUM(H1789:H1792)","v":0}]
[]
[{"v":6,"d":"6 "},null,"Provisional Sums",{"$nulls":4},{"$f":"SUM(H1819:H1885)","v":0}]
[]
[null,null,"SUB TOTAL (EXCLUDING CONTINGENCIES)",{"$nulls":4},{"$f":"SUM(H1888:H1900)","v":0}]
[]
[null,null,"CONTRACT CONTINGENCIES"]
[]
[null,null,"Allow the sum of 10% for Contingencies to be spent as the Principal Agent may direct and to be deducted in whole or in part if not required",{"$nulls":4},{"$f":"H1901*0.1","v":0}]
[]
[null,null,"SUBTOTAL (INCLUDING CONTINGENCIES)",{"$nulls":4},{"$f":"SUM(H1901:H1906)","v":0}]
[]
[null,null,"VALUE ADDED TAX"]
[]
[null,null,"Value Added Tax ",{"$nulls":4},{"$f":"H1907*0.15","v":0}]
[]
[null,null,"Carried to Form of Tender",{"$nulls":4},{"$f":"SUM(H1907:H1912)","v":0}]

{"sheet":"DOONSIDE STATION","index":4,"n_rows":1853,"n_cols":8,"rows_kept":1853}
["ITEM NO",null,"DESCRIPTION",null,"UNIT","QUANTITY","RATE","AMOUNT"]
[]
[null,null,"SECTION NO. 1"]
[]
[null,null,"BILL NO. 1"]
[]
[null,null,"PRELIMINARIES AND GENERAL"]
[]
[null,null,"BUILDING AGREEMENT AND PRELIMINARIES"]
[]
[null,null,"The  JBCC Principal Building Agreement (May 2018 Edition 6.2) prepared by the Joint Building Contracts Committee shall be the applicable building agreement, amended as hereinafter described"]
[]
[null,null,"The JBCC Principal Building Agreement contract data form an integral part of this agreement"]
[]
[null,null,"The Preliminaries revision 1 (February 2016) published by the Association of South African Quantity Surveyors for use with the JBCC Principal Building Agreement Edition 6.2 shall be deemed to be incorporated in these bills of quantities, amended as hereinafter described"]
[]
[null,null,"The contractor is deemed to have referred to the abovementioned documents for the full intent and meaning of each clause"]
[]
[null,null,"The clauses in the abovementioned documents are hereinafter referred to by clause number and heading only"]
[]
[null,null,"Where any item is not relevant to this agreement such item is marked N/A signifying \"not applicable\""]
[]
[null,null,"PREAMBLES FOR TRADES"]
[]
[null,null,"The Model Preambles for Trades 2008 published by the Association of South African Quantity Surveyors is designed to support and extend the abbreviated descriptions utilised in these bills of quantities by inter alia referring to SANS construction standards."]
[]
[null,null,"Note that the text of the Standard System of Measuring Building Work (seventh edition) and that of the Standard Method of Measuring Building Work for Africa 2015 (first edition) is the same"]
[]
[null,null,"The Model Preambles for Trades 2008 as published by the Association of South African Quantity Surveyors shall be deemed to be incorporated in these bills of quantities and no claims arising from brevity of description of items fully described in the said Model Preambles will be entertained"]
[]
[null,null,"Supplementary preambles and/or specifications are incorporated in these bills of quantities to satisfy the requirements of this project. Such supplementary preambles and/or specifications shall take precedence over the provisions of the Model Preambles"]
[]
[null,null,"The contractor's prices for all items throughout these bills of quantities shall take account of and include for all of the obligations, requirements and specifications given in the Model Preambles and in any supplementary preambles and/or specifications"]
[]
[null,null,"NOTES TO TENDERERS"]
[]
[null,null,"Tenderers are to inspect the drawings issued with these Bills of Quantities and to satisfy themselves with the nature and the requirements of the Contract works. Failure to do so will be the complete responsibility of the Tenderer and no claims whatsoever will be entertained in this regard."]
[]
[null,null,"Tenderers are to read the descriptions, which are intended as a means of identifying various facets of the work, in conjunction with the drawings. Tenderers shall allow for all costs in connection with the various items taking full cognisance of both the drawings and the Bills of Quantities."]
[]
[null,null,"Tenderers shall notify the Quantity Surveyor in writing of any discrepancies encountered upon which clarification will be given by the Quantity Surveyor in writing to the Tenderer. Failure to do so will be the complete responsibility of the Tenderer and no claims whatsoever will be entertained in this regard"]
[]
[null,null,"Tenderers are to note that setting out of the works will be the complete responsibility of the Tenderer and they should therefore acquaint themselves with the site boundaries, site co-ordinates, datum levels etc. Failure to do so will be the complete responsibility of the Tenderer and no claims whatsoever will be entertained in this regard.  Tenderers are to note that all items with ZERO quantities are Rate Only items and should be priced as such."]
[]
[null,null,"Tenderers are to note that there might be specified suppliers to be used for certain trades as per the annexure to this tender document. Tenderers should familiarise themselves with the suppliers on the list and ensure to allow for accordingly. Failure to do so will be the complete responsibility of the Tenderer and no claims whatsoever will be entertained in this regard."]
[]
[null,null,"Tenderers are to fully acquaint themselves with the construction period and shall allow for any night shift if required. Failure to do so will be the complete responsibility of the Tenderer and no claims whatsoever will be entertained in this regard."]
[]
[null,null,"STRUCTURE OF THIS PRELIMINARIES BILL"]
[]
[null,null,"Section A : A recital of the headings of the individual clauses of the aforementioned JBCC Principal Building Agreement"]
[]
[null,null,"Section B : A recital of the headings of the individual clauses of the aforementioned Preliminaries document"]
[]
[null,null,"Section C : Any special clauses to meet the particular circumstances of the project"]
[]
[null,null,"PRICING OF PRELIMINARIES"]
[]
[null,null,"Should the contractor select Option A in the contract data for the adjustment of preliminaries, the amounts entered against the relevant items in these preliminaries are to be divided into one or more of the three categories provided namely fixed (F), value related (V) and time related (T)"]
[]
[null,null,"SECTION A: PRINCIPAL BUILDING AGREEMENT"]
[]
[null,null,"Interpretation (A1-A7)"]
[]
[{"v":1,"d":"1 "},null,"Clause 1.0 - Definitions and interpretation",null,"CONT"]
[]
[null,null,"F:............................. V:............................ T:............................",null,"Item",{"v":0,"d":"0 "},null,{"$f":"ROUND($F67*G67,2)","v":0}]
[]
[{"v":2,"d":"2 "},null,"Clause 2.0 - Law, regulations and notices",null,"CONT"]
[]
[null,null,"F:............................. V:............................ T:............................",null,"Item",{"v":0,"d":"0 "},null,{"$f":"ROUND($F71*G71,2)","v":0}]
[]
[{"v":3,"d":"3 "},null,"Clause 3.0 - Offer and acceptance  F:............................. V:............................ T:............................",null,"Item",{"v":0,"d":"0 "},null,{"$f":"ROUND($F73*G73,2)","v":0}]
[]
[{"v":4,"d":"4 "},null,"Clause 4.0 - Assignment and cession  F:............................. V:............................ T:............................",null,"Item",{"v":0,"d":"0 "},null,{"$f":"ROUND($F75*G75,2)","v":0}]
[]
[{"v":5,"d":"5 "},null,"Clause 5.0 - Contract documents",null,"CONT"]
[]
[null,null,"F:............................. V:............................ T:............................",null,"Item",{"v":0,"d":"0 "},null,{"$f":"ROUND($F79*G79,2)","v":0}]
[]
[{"v":6,"d":"6 "},null,"Clause 6.0 - Employer's agents",null,"CONT"]
[]
[null,null,"F:............................. V:............................ T:............................",null,"Item",{"v":0,"d":"0 "},null,{"$f":"ROUND($F83*G83,2)","v":0}]
[]
[{"v":7,"d":"7 "},null,"Clause 7.0 - Design responsibility  F:............................. V:............................ T:............................",null,"Item",{"v":0,"d":"0 "},null,{"$f":"ROUND($F85*G85,2)","v":0}]
[]
[null,null,"Insurance and security (A8-A11)"]
[]
[{"v":8,"d":"8 "},null,"Clause 8.0 - Works risk  F:............................. V:............................ T:............................",null,"Item",{"v":0,"d":"0 "},null,{"$f":"ROUND($F89*G89,2)","v":0}]
[]
[{"v":9,"d":"9 "},null,"Clause 9.0 - Indemnities  F:............................. V:............................ T:............................",null,"Item",{"v":0,"d":"0 "},null,{"$f":"ROUND($F91*G91,2)","v":0}]
[]
[{"v":10,"d":"10 "},null,"Clause 10.0 - Insurances  F:............................. V:............................ T:............................",null,"Item",{"v":0,"d":"0 "},null,{"$f":"ROUND($F93*G93,2)","v":0}]
[]
[{"v":11,"d":"11 "},null,"Clause 11.0 - Security",null,"CONT"]
[]
[null,null,"F:............................. V:............................ T:............................",null,"Item",{"v":0,"d":"0 "},null,{"$f":"ROUND($F97*G97,2)","v":0}]
[]
[null,null,"Execution (A12 - A17)"]
[]
[{"v":12,"d":"12 "},null,"Clause 12.0 - Duties of the parties",null,"CONT"]
[]
[null,null,"F:............................. V:............................ T:............................",null,"Item",{"v":1,"d":"1 "},null,{"$f":"ROUND($F103*G103,2)","v":0}]
[]
[{"v":13,"d":"13 "},null,"Clause 13.0 - Setting out  F:............................. V:............................ T:............................",null,"Item",{"v":0,"d":"0 "},null,{"$f":"ROUND($F105*G105,2)","v":0}]
[]
[{"v":14,"d":"14 "},null,"Clause 14.0 - Nominated subcontractors",null,"CONT"]
[]
[null,null,"F:............................. V:............................ T:............................",null,"Item",{"v":0,"d":"0 "},null,{"$f":"ROUND($F109*G109,2)","v":0}]
[]
[{"v":15,"d":"15 "},null,"Clause 15.0 - Selected subcontractors",null,"CONT"]
[]
[null,null,"F:............................. V:............................ T:............................",null,"Item",{"v":0,"d":"0 "},null,{"$f":"ROUND($F113*G113,2)","v":0}]
[]
[{"v":16,"d":"16 "},null,"Clause 16.0 - Direct contractors  Attendance on direct contractors  In respect of direct contractors the contractor shall:",null,"CONT"]
[]
[null,null,"F:............................. V:............................ T:............................",null,"Item",{"v":0,"d":"0 "},null,{"$f":"ROUND($F117*G117,2)","v":0}]
[]
[{"v":17,"d":"17 "},null,"Clause 17.0 - Contract instructions  Site instructions  Instructions issued on site are to be recorded in a site instruction book which is to be supplied and maintained on site by the contractor",null,"CONT"]
[]
[null,null,"F:............................. V:............................ T:............................",null,"Item",{"v":0,"d":"0 "},null,{"$f":"ROUND($F121*G121,2)","v":0}]
[]
[null,null,"Completion (A18 - A24)"]
[]
[{"v":18,"d":"18 "},null,"Clause 18.0 - Interim completion  F:............................. V:............................ T:............................",null,"Item",{"v":0,"d":"0 "},null,{"$f":"ROUND($F125*G125,2)","v":0}]
[]
[{"v":19,"d":"19 "},null,"Clause 19.0 - Practical completion   F:............................. V:............................ T:............................",null,"Item",{"v":0,"d":"0 "},null,{"$f":"ROUND($F127*G127,2)","v":0}]
[]
[{"v":20,"d":"20 "},null,"Clause 20.0 - Sectional completion",null,"CONT"]
[]
[null,null,"F:............................. V:............................ T:............................",null,"Item",{"v":0,"d":"0 "},null,{"$f":"ROUND($F131*G131,2)","v":0}]
[]
[{"v":21,"d":"21 "},null,"Clause 21.0 - Defects liability period and final completion",null,"CONT"]
[]
[null,null,"F:............................. V:............................ T:............................",null,"Item",{"v":0,"d":"0 "},null,{"$f":"ROUND($F135*G135,2)","v":0}]
[]
[{"v":22,"d":"22 "},null,"Clause 22.0 - Latent defects liability period F:............................. V:............................ T:............................",null,"Item",{"v":0,"d":"0 "},null,{"$f":"ROUND($F137*G137,2)","v":0}]
[]
[{"v":23,"d":"23 "},null,"Clause 23.0 - Revision of date for practical completion  Substitution of materials and goods  The removal or substitution of any materials and goods which do not conform to the specification or the contract drawings shall not constitute grounds for the extension of the construction period nor for the adjustment of the contract value [17.1.8, 23.1 & 2]",null,"CONT"]
[]
[null,null,"F:............................. V:............................ T:............................",null,"Item",{"v":0,"d":"0 "},null,{"$f":"ROUND($F141*G141,2)","v":0}]
[]
[{"v":24,"d":"24 "},null,"Clause 24.0 - Penalty for late or non-completion   F:............................. V:............................ T:............................",null,"Item",{"v":0,"d":"0 "},null,{"$f":"ROUND($F143*G143,2)","v":0}]
[]
[null,null,"Payment (A25 - A27)"]
[]
[{"v":25,"d":"25 "},null,"Clause 25.0 - Payment",null,"CONT"]
[]
[null,null,"F:............................. V:............................ T:............................",null,"Item",{"v":0,"d":"0 "},null,{"$f":"ROUND($F149*G149,2)","v":0}]
[]
[{"v":26,"d":"26 "},null,"Clause 26.0 - Adjustment of the contract value and final account",null,"CONT"]
[]
[null,null,"F:............................. V:............................ T:............................",null,"Item",{"v":0,"d":"0 "},null,{"$f":"ROUND($F153*G153,2)","v":0}]
[]
[{"v":27,"d":"27 "},null,"Clause 27.0 - Recovery of expense and/or loss  F:............................. V:............................ T:............................",null,"Item",{"v":0,"d":"0 "},null,{"$f":"ROUND($F155*G155,2)","v":0}]
[]
[null,null,"Suspension and termination (A28 - A29)"]
[]
[{"v":28,"d":"28 "},null,"Clause 28.0 - Suspension by the contractor",null,"CONT"]
[]
[null,null,"F:............................. V:............................ T:............................",null,"Item",{"v":0,"d":"0 "},null,{"$f":"ROUND($F161*G161,2)","v":0}]
[]
[{"v":29,"d":"29 "},null,"Clause 29.0 - Termination",null,"CONT"]
[]
[null,null,"F:............................. V:............................ T:............................",null,"Item",{"v":0,"d":"0 "},null,{"$f":"ROUND($F165*G165,2)","v":0}]
[]
[null,null,"Dispute resolution (A30)"]
[]
[{"v":30,"d":"30 "},null,"Clause 30.0 - Dispute resolution  F:............................. V:............................ T:............................",null,"Item",{"v":0,"d":"0 "},null,{"$f":"ROUND($F169*G169,2)","v":0}]
[]
[null,null,"The required information of the parties and the amount of the contract sum shall be inserted in the agreement for signature of the agreement by the parties  F:............................. V:............................ T:............................",null,"Item",{"v":0,"d":"0 "},null,{"$f":"ROUND($F171*G171,2)","v":0}]
[]
[null,null,"F:............................. V:............................ T:............................",null,"Item",{"v":0,"d":"0 "},null,{"$f":"ROUND($F173*G173,2)","v":0}]
[]
[null,null,"42.1  \tCONTRACTING AND OTHER PARTIES"]
[]
[null,null,"42.1.1Employer: Passenger Rail Agency of South AfricaPostal address: PO Box 51324Durban4062Tel.: \t(031) 813 0376Physical Address:65 Masabalala Yengwa AvenueDurban StationDurban4000"]
[]
[null,null,"42.2  \tCONTRACT DETAILS"]
[]
[null,null,"42.2.1 \tWorks Description: Refurbishment, Alterations and Additions at Doonside Station for a period of six (6) months"]
[]
[null,null,"42.2.2 \tSite Description: \t\t\tDoonside Train Station\t"]
[]
[null,null,"42.2.3 \tWork or installations by direct contractors:  N/A"]
[]
[null,null,"42.2.4 \tThis agreement is for a government contract where there are specific options that are applicable to a State organ only Yes"]
[]
[null,null,"42.2.5 \tDate on which possession of the site is intended to be given: TBC"]
[]
[null,null,"42.2.6 \tPeriod for the commencement of the works after the contractor takes possession: TBC"]
[]
[null,null,"42.2.7 \tFor the works as a whole. Intended date of practical completion and the penalty per calendar day Six (6) Months after contractual commencement date               0.04% of contract amount per calender day Penalty Amount"]
[]
[null,null,"42.2.8\tFor the works in sections:  Intended date of practical completion and the penalty per calender day: N/A"]
[]
[null,null,"42.2.9 The law applicable to this agreement shall be that of South Africa     (country)"]
[]
[null,null,"42.3 \tINSURANCES"]
[]
[null,null,"42.3.1 \tContract works insurance to be effected by:Contractor: For the Sum of R Contract Amount  30.00 % With a deductible of - to be determined by the contractor"]
[]
[null,null,"42.3.2 \tSupplementary insurance is required No"]
[]
[null,null,"42.3.3 \tPublic liability insurance to be effected by:Contractor: For the Sum of R 1 000 000-00With a deductible of - to be determined by the contractor"]
[]
[null,null,"42.4 \tDOCUMENTS"]
[]
[null,null,"42.4.1 \tWaivers of contractors lien or right of continuing possession is required  \tYes"]
[]
[null,null,"42.4.2 \tNumber of construction document copies to be \tsupplied to the contractor free of charge: 3   Number of"]
[]
[null,null,"42.4.3 \tBills of Quantities/Lump sum document schedule of rates drawn up in accordance with:  \t\"€œStandard System of Measuring Builders\"€™ Work\"€\u009d"]
[]
[null,null,"42.4.4 \tOn acceptance of the tender the bills of quantities/lump sum document is to be submitted within:  The priced bills of quantities must be handed in with the tender"]
[]
[null,null,"42.4.5 \tJBCC Engineering General Conditions are to be included in the contract documents: No"]
[]
[null,null,"42.4.6 \tThe contract value is to be adjusted using escalation adjustment indices  N/A \tWhere JBCC CPAP is to be used Base Month    N/A"]
[]
[null,null,"42.4.7 \tDetails of changes made to the provision of JBCC standard documentation:"]
[]
[null,null,"SECTION B:  PRELIMINARIES"]
[]
[null,null,"Interpretation (B1)"]
[]
[{"v":31,"d":"31 "},null,"Clause 1.1 - Definitions  F:............................. V:............................ T:............................",null,"Item",{"v":0,"d":"0 "},null,{"$f":"ROUND($F227*G227,2)","v":0}]
[]
[{"v":32,"d":"32 "},null,"Clause 1.2 - Interpretation  F:............................. V:............................ T:............................",null,"Item",{"v":0,"d":"0 "},null,{"$f":"ROUND($F229*G229,2)","v":0}]
[]
[null,null,"Documents (B2)"]
[]
[{"v":33,"d":"33 "},null,"Clause 2.1 - Checking of documents  F:............................. V:............................ T:............................",null,"Item",{"v":0,"d":"0 "},null,{"$f":"ROUND($F233*G233,2)","v":0}]
[]
[{"v":34,"d":"34 "},null,"Clause 2.2 - Provisional bills of quantities",null,"CONT"]
[]
[null,null," F:............................. V:............................ T:............................",null,"Item",{"v":0,"d":"0 "},null,{"$f":"ROUND($F237*G237,2)","v":0}]
[]
[{"v":35,"d":"35 "},null,"Clause 2.3 - Availability of construction information   F:............................. V:............................ T:............................",null,"Item",{"v":0,"d":"0 "},null,{"$f":"ROUND($F239*G239,2)","v":0}]
[]
[{"v":36,"d":"36 "},null,"Clause 2.4 - Ordering of materials and goods  F:............................. V:............................ T:............................",null,"Item",{"v":0,"d":"0 "},null,{"$f":"ROUND($F241*G241,2)","v":0}]
[]
[null,null,"Previous work and adjoining properties (B3)"]
[]
[{"v":37,"d":"37 "},null,"Clause 3.1 - Previous work - dimensional accuracy  F:............................. V:............................ T:............................",null,"Item",{"v":0,"d":"0 "},null,{"$f":"ROUND($F245*G245,2)","v":0}]
[]
[{"v":38,"d":"38 "},null,"Clause 3.2 - Previous work - defects  F:............................. V:............................ T:............................",null,"Item",{"v":0,"d":"0 "},null,{"$f":"ROUND($F247*G247,2)","v":0}]
[]
[{"v":39,"d":"39 "},null,"Clause 3.3 - Inspection of adjoining properties  F:............................. V:............................ T:............................",null,"Item",{"v":0,"d":"0 "},null,{"$f":"ROUND($F249*G249,2)","v":0}]
[]
[null,null,"The site (B4)"]
[]
[{"v":40,"d":"40 "},null,"Clause 4.1 - Defined works area  F:............................. V:............................ T:...........................",null,"Item",{"v":0,"d":"0 "},null,{"$f":"ROUND($F253*G253,2)","v":0}]
[]
[{"v":41,"d":"41 "},null,"Clause 4.2 - Handover of site in stages  F:............................. V:............................ T:............................",null,"Item",{"v":0,"d":"0 "},null,{"$f":"ROUND($F255*G255,2)","v":0}]
[]
[{"v":42,"d":"42 "},null,"Clause 4.3 - Enclosure of the works  F:............................. V:............................ T:............................",null,"Item",{"v":0,"d":"0 "},null,{"$f":"ROUND($F257*G257,2)","v":0}]
[]
[{"v":43,"d":"43 "},null,"Clause 4.4 - Geotechnical investigation  F:............................. V:............................ T:............................",null,"Item",{"v":0,"d":"0 "},null,{"$f":"ROUND($F259*G259,2)","v":0}]
[]
[{"v":44,"d":"44 "},null,"Clause 4.5 - Encroachments  F:............................. V:............................ T:............................",null,"Item",{"v":0,"d":"0 "},null,{"$f":"ROUND($F261*G261,2)","v":0}]
[]
[{"v":45,"d":"45 "},null,"Clause 4.6 - Existing premises occupied  F:............................. V:............................ T:............................",null,"Item",{"v":0,"d":"0 "},null,{"$f":"ROUND($F263*G263,2)","v":0}]
[]
[{"v":46,"d":"46 "},null,"Clause 4.7 - Services - known  F:............................. V:............................ T:............................",null,"Item",{"v":0,"d":"0 "},null,{"$f":"ROUND($F265*G265,2)","v":0}]
[]
[{"v":47,"d":"47 "},null,"Clause 4.8 - Protection of trees and/or relevant natural features  F:............................. V:............................ T:...........................",null,"Item",{"v":0,"d":"0 "},null,{"$f":"ROUND($F267*G267,2)","v":0}]
[]
[null,null,"Management of contract (B5)"]
[]
[{"v":48,"d":"48 "},null,"Clause 5.1 - Management of the works  F:............................. V:............................ T:............................",null,"Item",{"v":0,"d":"0 "},null,{"$f":"ROUND($F271*G271,2)","v":0}]
[]
[{"v":49,"d":"49 "},null,"Clause 5.2 - Progress meetings  F:............................. V:............................ T:............................",null,"Item",{"v":0,"d":"0 "},null,{"$f":"ROUND($F273*G273,2)","v":0}]
[]
[{"v":50,"d":"50 "},null,"Clause 5.3 - Technical meetings  F:............................. V:............................ T:............................",null,"Item",{"v":0,"d":"0 "},null,{"$f":"ROUND($F275*G275,2)","v":0}]
[]
[null,null,"Samples, shop drawings and manufacturer's instructions (B6)"]
[]
[{"v":51,"d":"51 "},null,"Clause 6.1 - Samples of materials  F:............................. V:............................ T:...........................",null,"Item",{"v":0,"d":"0 "},null,{"$f":"ROUND($F279*G279,2)","v":0}]
[]
[{"v":52,"d":"52 "},null,"Clause 6.2 - Workmanship samples  F:............................. V:............................ T:............................",null,"Item",{"v":0,"d":"0 "},null,{"$f":"ROUND($F281*G281,2)","v":0}]
[]
[{"v":53,"d":"53 "},null,"Clause 6.3 - Shop drawings  F:............................. V:............................ T:............................",null,"Item",{"v":0,"d":"0 "},null,{"$f":"ROUND($F283*G283,2)","v":0}]
[]
[{"v":54,"d":"54 "},null,"Clause 6.4 - Compliance with manufacturer's instructions  F:............................. V:............................ T:............................",null,"Item",{"v":0,"d":"0 "},null,{"$f":"ROUND($F285*G285,2)","v":0}]
[]
[null,null,"Deposits and fees (B7)"]
[]
[{"v":55,"d":"55 "},null,"Clause 7.1 - Deposits and fees  F:............................. V:............................ T:............................",null,"Item",{"v":0,"d":"0 "},null,{"$f":"ROUND($F289*G289,2)","v":0}]
[]
[null,null,"Temporary services (B8)"]
[]
[{"v":56,"d":"56 "},null,"Clause 8.1 - Water  F:............................. V:............................ T:............................",null,"Item",{"v":0,"d":"0 "},null,{"$f":"ROUND($F293*G293,2)","v":0}]
[]
[{"v":57,"d":"57 "},null,"Clause 8.2 - Electricity  F:............................. V:............................ T:............................",null,"Item",{"v":0,"d":"0 "},null,{"$f":"ROUND($F295*G295,2)","v":0}]
[]
[{"v":58,"d":"58 "},null,"Clause 8.3 - Ablution and welfare facilities  F:............................. V:............................ T:............................",null,"Item",{"v":0,"d":"0 "},null,{"$f":"ROUND($F297*G297,2)","v":0}]
[]
[{"v":59,"d":"59 "},null,"Clause 8.4 - Communication facilities  F:............................. V:............................ T:............................",null,"Item",{"v":0,"d":"0 "},null,{"$f":"ROUND($F299*G299,2)","v":0}]
[]
[null,null,"Prime cost amounts (B9)"]
[]
[{"v":60,"d":"60 "},null,"Clause 9.1 - Responsibility for prime cost amounts",null,"CONT"]
[]
[null,null," F:............................. V:............................ T:............................",null,"Item",{"v":0,"d":"0 "},null,{"$f":"ROUND($F305*G305,2)","v":0}]
[]
[null,null,"Attendance on subcontractors (B10)"]
[]
[{"v":61,"d":"61 "},null,"Clause 10.1 - General attendance   F:............................. V:............................ T:............................",null,"Item",{"v":0,"d":"0 "},null,{"$f":"ROUND($F309*G309,2)","v":0}]
[]
[{"v":62,"d":"62 "},null,"Clause 10.2 - Special attendance",null,"CONT"]
[]
[null,null," F:............................. V:............................ T:............................",null,"Item",{"v":0,"d":"0 "},null,{"$f":"ROUND($F313*G313,2)","v":0}]
[]
[null,null,"General (B11)"]
[]
[{"v":63,"d":"63 "},null,"Clause 11.1 - Protection of the works  F:............................. V:............................ T:............................",null,"Item",{"v":0,"d":"0 "},null,{"$f":"ROUND($F317*G317,2)","v":0}]
[]
[{"v":64,"d":"64 "},null,"Clause 11.2 - Protection/isolation of existing/sectionally occupied works  F:............................. V:............................ T:............................",null,"Item",{"v":0,"d":"0 "},null,{"$f":"ROUND($F319*G319,2)","v":0}]
[]
[{"v":65,"d":"65 "},null,"Clause 11.3 - Security of the works  F:............................. V:............................ T:............................",null,"Item",{"v":0,"d":"0 "},null,{"$f":"ROUND($F321*G321,2)","v":0}]
[]
[{"v":66,"d":"66 "},null,"Clause 11.4 - Notice before covering work  F:............................. V:............................ T:............................",null,"Item",{"v":0,"d":"0 "},null,{"$f":"ROUND($F323*G323,2)","v":0}]
[]
[{"v":67,"d":"67 "},null,"Clause 11.5 - Disturbance  F:............................. V:............................ T:............................",null,"Item",{"v":0,"d":"0 "},null,{"$f":"ROUND($F325*G325,2)","v":0}]
[]
[null,null,"Clause 11.6 - Environmental disturbance  F:............................. V:............................ T:............................",null,"Item",{"v":0,"d":"0 "},null,{"$f":"ROUND($F327*G327,2)","v":0}]
[]
[{"v":68,"d":"68 "},null,"Clause 11.7 - Works cleaning and clearing  F:............................. V:............................ T:............................",null,"Item",{"v":0,"d":"0 "},null,{"$f":"ROUND($F329*G329,2)","v":0}]
[]
[{"v":69,"d":"69 "},null,"Clause 11.8 - Vermin  F:............................. V:............................ T:............................",null,"Item",{"v":0,"d":"0 "},null,{"$f":"ROUND($F331*G331,2)","v":0}]
[]
[{"v":70,"d":"70 "},null,"Clause 11.9 - Overhand work  F:............................. V:............................ T:............................",null,"Item",{"v":0,"d":"0 "},null,{"$f":"ROUND($F333*G333,2)","v":0}]
[]
[{"v":71,"d":"71 "},null,"Clause 11.11 - Advertising  F:............................. V:............................ T:............................",null,"Item",{"v":0,"d":"0 "},null,{"$f":"ROUND($F335*G335,2)","v":0}]
[]
[null,null,"Preliminaries schedule (B12)"]
[]
[{"v":72,"d":"72 "},null,"Information for completion of the preliminaries schedule  Information necessary for elections and completion of those clauses contained in the preliminaries schedule which are necessary for tender purposes is given hereunder. Where no information is given it shall mean that no specific requirements are expected or that the clause is not relevant to this specific contract",null,"CONT"]
[]
[null,null,"12.1 -\tProvisional bills of quantities [2.2]  \tThe quantities are provisional - Yes"]
[]
[null,null,"12.2 -\tAvailability of construction information [2.3]  \tConstruction documentation is complete - Yes"]
[]
[null,null,"12.3 -\tPrevious work - dimensional accuracy [3.1]"]
[]
[null,null,"12.4 -\tPrevious work - defects [3.2]"]
[]
[null,null,"12.5 -\tInspection of adjoining properties [3.3]"]
[]
[null,null,"12.6 -\tDefined works area [4.1]"]
[]
[null,null,"12.7 -\tHandover of site in stages [4.2]"]
[]
[null,null,"12.8 -\tEnclosure of the works [4.3]"]
[]
[null,null,"12.9 -\tGeotechnical investigation [4.4]"]
[]
[null,null,"12.10 -\tExisting premises occupied [4.6]"]
[]
[null,null,"12.11 -\tServices - known [4.7]"]
[]
[null,null,"12.12 -\tProtection of trees and/or relevant natural features \t[4.8]"]
[]
[null,null,"12.13 -\tWater [8.1]  \tOption A (by contractor) - Yes  \tOption B (by employer - free of charge)\t - No  \tOption C (by employer - metered) -  No"]
[]
[null,null,"12.14 -\tElectricity [8.2]\tOption A (by contractor) - Yes\tOption B (by employer - free of charge)\t - No\tOption C (by employer - metered) -  No"]
[]
[null,null,"12.15 -\tAblution and welfare facilities [8.3]  \tOption A (by contractor) - Yes  \tOption B (by employer - free of charge)\t - No"]
[]
[null,null,"12.16 -\tCommunication facilities [8.4]"]
[]
[null,null,"12.17 -\tProtection of the works [11.1]"]
[]
[null,null,"12.18 -\tProtection/isolation of existing/sectionally occupied works [11.2]  \tProtection/isolation is required - Yes"]
[]
[null,null,"12.19 -\tDisturbance [11.5]"]
[]
[null,null,"12.20 -\tEnvironmental disturbance [11.6]"]
[]
[null,null,"Controlling all forms of pollution  The contractor shall be responsible for and take all precautions in controlling by whatever means necessary all forms of pollution emanating from the site during the construction period due inter alia to noise, artificial light, wind-blown sand, dust, deposits of mud, etc"]
[]
[null,null,"The contractor is to ensure that all roads which border the site and is used by the contractor during the execution of the works are kept clean and free of any dirt or debris caused by the execution of the works"]
[]
[null,null,"F:............................. V:............................ T:............................",null,"Item",{"v":0,"d":"0 "},null,{"$f":"ROUND($F385*G385,2)","v":0}]
[]
[null,null,"SECTION  C: SPECIFIC PRELIMINARIES"]
[]
[null,null,"Section C Section C contains specific preliminary items which apply to this contract except where N/A (Not Applicable) appears against an item"]
[]
[null,null,"The warranty will not be enforced if the work is damaged by defects in the execution of the works, in which case the responsibility for replacement shall rest entirely with the contractor  F:............................. V:............................ T:............................",null,"Item",{"v":0,"d":"0 "},null,{"$f":"ROUND($F391*G391,2)","v":0}]
[]
[{"v":73,"d":"73 "},null,"Overtime  Should overtime be required to be worked for any reason whatsoever, the cost of such overtime is to be borne by the contractor unless the principal agent has specifically authorised, prior to execution thereof, that costs for such overtime are to be borne by the employer  F:............................. V:............................ T:............................",null,"Item",{"v":0,"d":"0 "},null,{"$f":"ROUND($F393*G393,2)","v":0}]
[]
[{"v":74,"d":"74 "},null,"Co-operation of the contractor for cost management  It is specifically agreed that the contractor accepts the obligation of assisting the principal agent in implementing proper cost management. The contractor will be advised by the principal agent of all cost management procedures which will be implemented to ensure that the contract value does not exceed the budget  F:............................. V:............................ T:............................",null,"Item",{"v":0,"d":"0 "},null,{"$f":"ROUND($F395*G395,2)","v":0}]
[]
[{"v":75,"d":"75 "},null,"Overloading  The contractor shall take all necessary steps to ensure that no damage occurs due to overloading of any portion of the works or temporary works eg scaffolding, etc. The contractor shall submit details of his proposed loading, storage, plant erection, etc to the principal agent for approval prior to proceeding with such loading, storing or erecting and shall comply with and pay for the principal agent's requirements in connection with the provision of temporary support work, etc. Any damage caused to the works by overloading shall be made good by the contractor at his sole expense  F:............................. V:............................ T:............................",null,"Item",{"v":0,"d":"0 "},null,{"$f":"ROUND($F397*G397,2)","v":0}]
[]
[{"v":76,"d":"76 "},null,"Propping of floors below  The contractor is advised that propping of floors below may be required if he wishes to use any areas of completed suspended reinforced concrete slabs for vehicle access, storage of materials and goods and location of plant, scaffolding, etc. The location of these areas and any necessary propping shall be approved by the principal agent and the cost thereof shall be borne by the contractor  F:............................. V:............................ T:............................",null,"Item",{"v":0,"d":"0 "},null,{"$f":"ROUND($F399*G399,2)","v":0}]
[]
[{"v":77,"d":"77 "},null,"Testing of flat roof waterproofing for water tightness  Flat roof waterproof areas shall be prepared with small sand dykes around them of a size and enclosing an area approved by the principal agent, flooded with water and kept \"ponded\" for at least forty (40) hours as a test to ensure the water tightness of the waterproofing and before any further construction work is carried out above the waterproofing  F:............................. V:............................ T:............................",null,"Item",{"v":0,"d":"0 "},null,{"$f":"ROUND($F401*G401,2)","v":0}]
[]
[null,null,"The contractor is to submit to the principal agent on an annual basis a schedule of spend, split into vendors engaged as subcontractors and suppliers indicating their BBBEE rating including proof of the said rating  F:............................. V:............................ T:............................",null,"Item",{"v":0,"d":"0 "},null,{"$f":"ROUND($F403*G403,2)","v":0}]
[]
[{"v":78,"d":"78 "},null,"Advertising rights  The employer may elect to contract with advertising agencies for the erection of advertising hoardings, banners, wraps or the like for the duration of the contract. The contractor shall not prevent such an arrangement and will assist in the facilitation of same. Position and type of advertising structure to be agreed with the principal agent so as not to hinder the contractor in meeting the obligations under this agreement  F:............................. V:............................ T:............................",null,"Item",{"v":0,"d":"0 "},null,{"$f":"ROUND($F405*G405,2)","v":0}]
[]
[{"v":79,"d":"79 "},null,"Confidentiality  The contractor undertakes to maintain in confidence any and all information regarding this project and shall obtain appropriate similar undertakings from all subcontractors and suppliers. Such information shall not be used in any way except in connection with the execution of the works  No information regarding this project shall be published or disclosed without the prior written consent of the employer  F:............................. V:............................ T:............................",null,"Item",{"v":0,"d":"0 "},null,{"$f":"ROUND($F407*G407,2)","v":0}]
[]
[{"v":80,"d":"80 "},null,"Media releases  All rights of publication of articles in the media, together with any advertising relating thereto or in any way connected with this project, shall vest with the employer  The contractor together with his subcontractors shall not, without the prior written consent of the employer, cause any statement or advertisement connected with this project to be printed, screened or aired by the media  F:............................. V:............................ T:............................",null,"Item",{"v":0,"d":"0 "},null,{"$f":"ROUND($F409*G409,2)","v":0}]
[]
[null,null,"SUMMARY OF CATEGORIES"]
[]
[null,null,"Category : Fixed   R........................................  Category : Value   R........................................  Category : Time    R........................................"]
[]
[null,null,"SECTION 2"]
[]
[null,null,"BILL NO.1"]
[]
[null,null,"ALTERATIONS (PROVISIONAL)"]
[]
[null,null,"WORK GROUP ALLOCATION"]
[]
[null,null,"Unless otherwise stated, all items in this Bill will be allocated to Work Group 102 - Alterations"]
[]
[null,null,"PREAMBLES"]
[]
[null,null,"The General Preambles for Trades (2017 edition), as published by the Association of South African Quantity Surveyors, shall be deemed to be incorporated in these bills of quantities and no claims arising from brevity of description of items, fully described in the said General Preambles, will be entertained"]
[]
[null,null,"The following \"Supplementary Preambles\" are incorporated in this bill to satisfy the requirements of the project and shall take precedence over the provisions of the said General Preambles"]
[]
[null,null,"SUPPLEMENTARY PREAMBLES"]
[]
[null,null,"View site:"]
[]
[null,null,"Before submitting his tender, the Contractor shall visit the site and satisfy himself as to the nature and extent of the work to be done and the value of the materials contained in the buildings or portions of the buildings to be demolished.  No claim for any variations of the contract sum in respect of the nature and extent of the work or of inferior or damaged materials will be entertained"]
[]
[null,null,"Old materials to become property of the Contractor:"]
[]
[null,null,"Old materials from alterations, except where described as to be re-used or handed over, become the property of the Contractor, who must allow credit for same in the last item of the \"Alterations\" trade"]
[]
[null,null,"Old materials to be carted away:"]
[]
[null,null,"Old materials from the alterations, except where described as to be re-used or handed over, as well as all rubbish, etc must be regularly carted from the site and not be allowed to accumulate on or around the site"]
[]
[null,null,"Old materials to be re-used:"]
[]
[null,null,"None of the old materials are to be used for new work, except where specifically described as being set aside for re-use"]
[]
[null,null,"Handing over of materials:"]
[]
[null,null,"Where certain materials or articles from demolitions or alterations are described as to be \"handed over to the Employer\", it shall be taken to mean \"handed over by the Contractor to the Principal Agent\" and such materials or articles shall be properly stored by the Contractor until handing over thereof and shall include all necessary transport The Contractor must obtain an official receipt from the Principal Agent listing the materials or articles and dates of handing overShould the Contractor fail to submit the receipt when requested to do so, it shall be deemed that the materials or articles are still in his possession and he will be held liable to the Employer for the full replacement value thereof, which amount will be deducted from any monies due to the Contractor"]
[]
[null,null,"Explosives:"]
[]
[null,null,"No explosives whatsoever may be used for demolition purposes, unless otherwise stated"]
[]
[null,null,"GENERAL"]
[]
[null,null,"The contractor shall carry out the whole of the work with as little mess and noise as possible and with a minimum of disturbance to adjoining premises and their tenants. He shall provide proper protection and provide and erect any temporarytarpaulins and temporary plumbing that may be necessary during the progress of the works, all to the satisfaction of the Architect, and remove when directed."]
[]
[null,null,"Any water supplies pipes and other piping that may be met with and found necessary to disconnect or cut, shall be effectually stopped of or grubbed up and removed, and any new connections that may be necessary shall be made with proper fittings, to the satisfaction of the Architect."]
[]
[null,null,"Doors, fanlights, fittings, frames, linings, etc shall be thoroughly overhauled before re-fixing including taking off, easing and rehanging, cramping up, re-wedging as required and making good cramps, dowels, etc and easing, oiling, adjusting and repairing ironmongery if necessary, replacing any glass damaged in removal or subsequently and stopping up all nail and screw holes with tinted wood to match timber."]
[]
[null,null,"Where doors, windows, etc are described as taken out this shall be understood to include for removal of all beads, architraves, ironmongery, etc and doors which are re-fixed are to be provided with new architraves       (elsewhere measured )."]
[]
[null,null,"Prices for taking out and removing doors and frames shall include for removing door stops, cabin locks, etc and making good to match existing."]
[]
[null,null,"With regard to building up openings in existing walls, cement screeds and pavings, granolithic, etc, shall be levelled and prepared for raising of brickwork."]
[]
[null,null,"Allow for making good all existing plastered walls where damaged by furniture, etc, and stopping up all screw and holes before painting."]
[]
[null,null,"Making good finishes shall be deemed to iclude making good of the brick and concrete surfaces onto which new finishes are applied, where necessary."]
[]
[null,null,"The contractor will be required to take all dimensions affecting existing building on the site and he will be held solely responsible for the accuracy of all such dimensions."]
[]
[null,null,"Hazardous materials:"]
[]
[null,null,"Demolitions of buildings, services, external works, site services, etc are to include for the safe removal and disposal of asbestos or asbestos products or other hazardous materials by approved Registered Specialists"]
[]
[null,null,"TEMPORARY BARRIERS, SCREENS, ETC"]
[]
[null,null,"Temporary barriers, screens, etc including removal:"]
[]
[{"v":1,"d":"1 "},null,"Dust screen 2100mm high formed of suitable timber framing with 250 micron polyethylene sheeting stapled on including corners, ends, etc. to be used on all the phases of the construction project and in accordance to the Health and Safety specifications and regulations",null,"m",{"v":300,"d":"300 "},null,{"$f":"ROUND($F485*G485,2)","v":0}]
[]
[null,null,"REMOVAL OF EXISTING WORK"]
[]
[null,null,"Taking out and removing doors, windows, etc including thresholds, sills, etc from brickwork (altering openings and making good finishes elsewhere):"]
[]
[{"v":2,"d":"2 "},null,"Timber single door and frame not exceeding 2,5m\"²",null,"No",{"v":23,"d":"23 "},null,{"$f":"ROUND($F491*G491,2)","v":0}]
[]
[null,null,"Taking down and removing roof coverings, accessories, etc.:"]
[]
[{"v":3,"d":"3 "},null,"Roof tiling",null,"m²",{"v":91,"d":"91 "},null,{"$f":"ROUND($F495*G495,2)","v":0}]
[]
[null,null,"Taking down and removing rainwater goods, etc:"]
[]
[{"v":4,"d":"4 "},null,"Metal box gutters not exceeding 250mm girth including ends, bends, outlets, brackets, etc. complete",null,"m",{"v":88,"d":"88 "},null,{"$f":"ROUND($F499*G499,2)","v":0}]
[]
[null,null,"Taking down and removing ceilings, partitions, etc:"]
[]
[{"v":5,"d":"5 "},null,"Gypsum plasterboard ceilings, including cornices, timber brandering, etc.",null,"m²",{"v":98,"d":"98 "},null,{"$f":"ROUND($F503*G503,2)","v":0}]
[]
[{"v":6,"d":"6 "},null,"Fascias and barge boards",null,"m",{"v":88,"d":"88 "},null,{"$f":"ROUND($F505*G505,2)","v":0}]
[]
[null,null,"Taking out/off and removing ironmongery:"]
[]
[{"v":7,"d":"7 "},null,"Toilet paper holder from wall",null,"No",{"v":8,"d":"8 "},null,{"$f":"ROUND($F509*G509,2)","v":0}]
[]
[null,null,"Hacking up/off and removing ceramic and porcelain tiles, including removing mortar bed or adhesive from concrete or brickwork and preparing surfaces for new screed, plaster, tile finishes, etc:"]
[]
[{"v":8,"d":"8 "},null,"Tiles to floors",null,"m²",{"v":98,"d":"98 "},null,{"$f":"ROUND($F513*G513,2)","v":0}]
[]
[{"v":9,"d":"9 "},null,"Tiles to walls",null,"m²",{"v":272,"d":"272 "},null,{"$f":"ROUND($F515*G515,2)","v":0}]
[]
[{"v":10,"d":"10 "},null,"Tile skirtings 100mm high",null,"m",{"v":100,"d":"100 "},null,{"$f":"ROUND($F517*G517,2)","v":0}]
[]
[null,null,"Taking out and removing piping, sanitary fittings, etc including cutting off as necessary, disconnecting piping from fittings and blocking off and making good damaged plasterwork to walls and screeds to floors (all redecoration work elsewhere):"]
[]
[{"v":11,"d":"11 "},null,"Vitreous china wash hand basin, including short lengths of piping, etc.",null,"No",{"v":2,"d":"2 "},null,{"$f":"ROUND($F521*G521,2)","v":0}]
[]
[{"v":12,"d":"12 "},null,"Vitreous china WC pan with flush valve, including short lengths of piping, etc.",null,"No",{"v":8,"d":"8 "},null,{"$f":"ROUND($F523*G523,2)","v":0}]
[]
[{"v":13,"d":"13 "},null,"Vitreous china wall hung urinal with flush valve, including short lengths of piping, etc.",null,"No",{"v":2,"d":"2 "},null,{"$f":"ROUND($F525*G525,2)","v":0}]
[]
[null,null,"Taking out/off and removing glass and mirrors:"]
[]
[{"v":14,"d":"14 "},null,"Mirror 600 x 600mm high from wall",null,"No",{"v":4,"d":"4 "},null,{"$f":"ROUND($F529*G529,2)","v":0}]
[]
[null,null,"MAKING GOOD OF FINISHES, ETC"]
[]
[null,null,"Making good concrete:"]
[]
[{"v":15,"d":"15 "},null,"Roof slabs in patches",null,"m²",{"v":50,"d":"50 "},null,{"$f":"ROUND($F535*G535,2)","v":0}]
[]
[null,null,"Making good internal/external cement plaster:"]
[]
[{"v":16,"d":"16 "},null,"Walls in patches",null,"m²",{"v":552,"d":"552 "},null,{"$f":"ROUND($F539*G539,2)","v":0}]
[]
[null,null,"Making good platform surfaces:"]
[]
[{"v":17,"d":"17 "},null,"Surfaces in patches",null,"m²",{"v":1663,"d":"1,663 "},null,{"$f":"ROUND($F543*G543,2)","v":0}]
[]
[null,null,"Making good floor finshes:"]
[]
[{"v":18,"d":"18 "},null,"Polished screed",null,"m²",{"v":5,"d":"5 "},null,{"$f":"ROUND($F547*G547,2)","v":0}]
[]
[null,null,"Making good existing sanitary fittings:"]
[]
[{"v":19,"d":"19 "},null,"Refurbish existing shower including shower tray and install new shower furniture complete",null,"No",{"v":1,"d":"1 "},null,{"$f":"ROUND($F551*G551,2)","v":0}]
[]
[null,null,"GENERAL REPAIRWORK"]
[]
[null,null,"Repairwork to existing brick walls:"]
[]
[{"v":20,"d":"20 "},null,"Waterjetting surfaces of existing facebrick walls with high pressure low-volume water jetting lance to remove all dirt, brushing down and washing to remove surface contamination, mould, fungus, damp and treating with two coats of antifungal wash and leaving perfectly clean on completion",null,"m²",{"v":376,"d":"376 "},null,{"$f":"ROUND($F557*G557,2)","v":0}]
[]
[null,null,"ALTERATIONS, SERVICING AND REPAIRWORK TO EXISTING DOORS, FRAMES AND WINDOWS"]
[]
[null,null,"Notes:"]
[]
[null,null,"The removal and reinstatement of doors, frames, windows, etc for the purpose of altering, servicing and/or repairing are measured elsewhere"]
[]
[null,null,"Supplementary Preambles:"]
[]
[null,null,"Repairwork to timber to include for the following, unless otherwise described:"]
[]
[null,null,"1.\tTimber used in repairs is to match existing in type, moisture content, colour and grain as closely as possible"]
[]
[null,null,"2.\tApproved modern, high-strength waterproof glues which can accommodate any timber movement should be used together with sawdust filler of matching timber"]
[]
[null,null,"3.\tOnly non-corrosive fixings are to be used"]
[]
[null,null,"4.\tAll clamping and pinning as necessary"]
[]
[null,null,"EXISTING WINDOWS"]
[]
[null,null,"Servicing of existing windows including thoroughly cleaning down of all dirt, scale and general contamination from all surfaces, pulleys, handles, rods, fanlight openers, catches, etc. and servicing and lubricating all moving parts, carefully removing all paint from and polishing all brassware and replacing of damaged or missing screws, nuts, etc. (repairing or replacement of existing ironmongery, removal of glass, putty, etc. re-glazing and preparing for and redecorating of existing frames, sashes, etc. all elsewhere measured):"]
[]
[{"v":21,"d":"21 "},null,"Aluminium extrusions window, size 550mm wide x 875mm high overall with burglar bars and bullet-proof glass (WT-01)",null,"No",{"v":5,"d":"5 "},null,{"$f":"ROUND($F581*G581,2)","v":0}]
[]
[{"v":22,"d":"22 "},null,"Aluminium extrusions window, size 465mm wide x 570mm high overall (WT-03)",null,"No",{"v":5,"d":"5 "},null,{"$f":"ROUND($F583*G583,2)","v":0}]
[]
[{"v":23,"d":"23 "},null,"Aluminium extrusions window, size 1065mm wide x 960mm high overall (WT-04)",null,"No",{"v":1,"d":"1 "},null,{"$f":"ROUND($F585*G585,2)","v":0}]
[]
[{"v":24,"d":"24 "},null,"Aluminium extrusions window, size 595mm wide x 770mm high overall (WT-05)",null,"No",{"v":9,"d":"9 "},null,{"$f":"ROUND($F587*G587,2)","v":0}]
[]
[{"v":25,"d":"25 "},null,"Aluminium extrusions window, size 1800mm wide x 1000mm high overall with burglar bars (WT-06)",null,"No",{"v":1,"d":"1 "},null,{"$f":"ROUND($F589*G589,2)","v":0}]
[]
[{"v":26,"d":"26 "},null,"Aluminium extrusions window, size 1800mm wide x 860mm high overall with burglar bars (WT-07)",null,"No",{"v":1,"d":"1 "},null,{"$f":"ROUND($F591*G591,2)","v":0}]
[]
[{"v":27,"d":"27 "},null,"Aluminium extrusions window, size 600mm wide x 670mm high overall with burglar bars (WT-07)",null,"No",{"v":1,"d":"1 "},null,{"$f":"ROUND($F593*G593,2)","v":0}]
[]
[null,null,"BUDGETARY ALLOWANCE"]
[]
[{"v":28,"d":"28 "},null,"Provide a budgetary allowance of Twenty Five Thousand Rand for sundry alterations to be used as directed by the Principal Agent and to be deducted in whole or in part if not required.",null,"Item",{"v":1,"d":"1 "},null,{"$f":"ROUND($F597*G597,2)","v":0}]
[]
[null,null,"SECTION 2"]
[]
[null,null,"BILL NO. 2"]
[]
[null,null,"ROOF COVERINGS"]
[]
[null,null,"WORK GROUP ALLOCATION"]
[]
[null,null,"The items in this Bill will be allocated to Work Groups as indicated in brackets at the ends of headings or descriptions"]
[]
[null,null,"PREAMBLES"]
[]
[null,null,"The General Preambles for Trades (2017 edition) as published by the Association of South African Quantity Surveyors shall be deemed to be incorporated in these bills of quantities and no claims arising from brevity of description of items fully described in the said General Preambles will be entertained"]
[]
[null,null,"The following \"Supplementary Preambles\" are incorporated in this bill to satisfy the requirements of the project and shall take precedence over the provisions of the said General Preambles"]
[]
[null,null,"SUPPLEMENTARY PREAMBLES"]
[]
[null,null,"Profiled metal roof sheeting and accessories shall be supplied with a 10 year guarantee and be installed by an approved installer"]
[]
[null,null,"All fixing holes shall be drilled and not punched"]
[]
[null,null,"Roof covering accessories shall be manufactured from the same material as used for roof covering"]
[]
[null,null,"TILES"]
[]
[null,null,"User note:"]
[]
[null,null,"The fixing recommendations of the manufacturer of the tiles used for the specific region and/or situation are to be incorporated as supplementary preambles"]
[]
[null,null,"340  x 420mm \"Double Roman\" or similar approved concrete/terra cotta tiles nailed with non-corrosive tile nails to 38 x 38mm sawn softwood battens at 340mm centres"]
[]
[{"v":1,"d":"1 "},null,"Roof covering with pitch not exceeding 25 degrees",null,"m²",{"v":91,"d":"91 "},null,{"$f":"ROUND($F631*G631,2)","v":0}]
[]
[{"v":2,"d":"2 "},null,"Ridge tiles to match roofing tiles bedded and pointed in 1:3 cement mortar tinted to match tile colour",null,"m",{"v":80,"d":"80 "},null,{"$f":"ROUND($F633*G633,2)","v":0}]
[]
[null,null,"ROOF AND WALL INSULATION (WORK GROUP 122)"]
[]
[null,null,"Heavy industrial grade aluminium foil based insulation:"]
[]
[{"v":3,"d":"3 "},null,"Two sided bubble insulation membrane",null,"m²",{"v":91,"d":"91 "},null,{"$f":"ROUND($F639*G639,2)","v":0}]
[]
[null,null,"SECTION 2"]
[]
[null,null,"BILL NO. 3"]
[]
[null,null,"CARPENTRY AND JOINERY"]
[]
[null,null,"WORK GROUP ALLOCATION"]
[]
[null,null,"Unless otherwise stated, all items in this Bill will be allocated to Work Group 126 - Carpentry & Joinery"]
[]
[null,null,"PREAMBLES"]
[]
[null,null,"The General Preambles for Trades (2017 edition) as published by the Association of South African Quantity Surveyors shall be deemed to be incorporated in these bills of quantities and no claims arising from brevity of description of items fully described in the said General Preambles will be entertained"]
[]
[null,null,"The following \"Supplementary Preambles\" are incorporated in this bill to satisfy the requirements of the project and shall take precedence over the provisions of the said General Preambles"]
[]
[null,null,"SUPPLEMENTARY PREAMBLES"]
[]
[null,null,"Fixing:"]
[]
[null,null,"Items described as \"nailed\" shall be deemed to be fixed with hardened steel nails or pins, or to be shot-pinned, to brickwork or concrete"]
[]
[null,null,"Items described as \"plugged\" shall be deemed to include screwing to fibre, plastic or metal plugs at not exceeding 500mm centres, and where described as \"bolted\", the bolts have been given separately elsewhere"]
[]
[null,null,"Joinery:"]
[]
[null,null,"Descriptions of frames shall be deemed to include frames, transomes, rails, etc"]
[]
[null,null,"Descriptions of hardwood joinery shall be deemed to include sinking and pelleting heads and nuts of bolts"]
[]
[null,null,"Particle board"]
[]
[null,null,"All particle board shall comply with SANS 50312 having the required marking as per SANS 50312/EN 312"]
[]
[null,null,"Decorative thermosetting plastic laminate covering:"]
[]
[null,null,"Laminate covering shall be glued under pressure and edge strips of same shall be butt jointed at junctions with adjacent similar finish"]
[]
[null,null,"Sizes:"]
[]
[null,null,"Sizes are nominal and the Contractor shall make allowance in his prices for minor variances in stated finished sizes of timber doors, door members, door frames, architraves, etc"]
[]
[null,null,"Prices"]
[]
[null,null,"Prices for all joinery work are to include for general framing, housing and notching, arris rounded angles, glueing, blocking, planting on, screwing, adhesives, dowels, pellets, cross tongues, screws and nails and setting up complete and also for all square cutting and waste. Tops shall be secured with metal or hardwood buttons."]
[]
[null,null,"ROOFS, ETC"]
[]
[null,null,"EAVES, VERGES, ETC"]
[]
[null,null,"Medium density plain fibre-cement fascias and barge boards:"]
[]
[{"v":1,"d":"1 "},null,"19 x 235mm Fascias and barge boards, including aluminium H-profile jointing strips",null,"m",{"v":88,"d":"88 "},null,{"$f":"ROUND($F693*G693,2)","v":0}]
[]
[null,null,"FLOORS, ETC"]
[]
[null,null,"SKIRTINGS"]
[]
[null,null,"Wrought meranti:"]
[]
[{"v":2,"d":"2 "},null,"19 x 76mm Skirtings including 19mm quadrant bead, nailed",null,"m",{"v":92,"d":"92 "},null,{"$f":"ROUND($F701*G701,2)","v":0}]
[]
[null,null,"DOORS, ETC"]
[]
[null,null,"Solid hardwood with slated panels with sides and counselled edges to suit opening, hung to steel frames:"]
[]
[{"v":3,"d":"3 "},null,"44mm Door 900 x 2100mm high  (TP-01)",null,"No",{"v":2,"d":"2 "},null,{"$f":"ROUND($F707*G707,2)","v":0}]
[]
[null,null,"Semi-solid timber, hung to steel frames:"]
[]
[{"v":4,"d":"4 "},null,"44mm Door 820 x 2100mm high with concealed edges to suit opening (TP-02)",null,"No",{"v":11,"d":"11 "},null,{"$f":"ROUND($F711*G711,2)","v":0}]
[]
[{"v":5,"d":"5 "},null,"44mm Door 820 x 2100mm high with concealed edges to suit opening (TP-03)",null,"No",{"v":8,"d":"8 "},null,{"$f":"ROUND($F713*G713,2)","v":0}]
[]
[null,null,"Heavy duty timber anti-bandit door with galvanised mild steel pressed metal frame (elsewhere measured) to suit door:"]
[]
[{"v":6,"d":"6 "},null,"44mm Door 900 x 2400mm high finished with galvanised steel panels (TP-01)",null,"No",{"v":2,"d":"2 "},null,{"$f":"ROUND($F717*G717,2)","v":0}]
[]
[null,null,"SUPPLEMENTARY PREAMBLES"]
[]
[null,null,"Fire doors:"]
[]
[null,null,"Fire doors are to be in accordance with SANS 1253"]
[]
[null,null,"BUDGETARY ALLOWANCE"]
[]
[{"v":7,"d":"7 "},null,"Provide a budgetary allowance of Twenty Five Thousand Rand for sundry carpentry and joinery to be used as directed by the Principal Agent and to be deducted in whole or in part if not required.",null,"Item",{"v":1,"d":"1 "},null,{"$f":"ROUND($F727*G727,2)","v":0}]
[]
[null,null,"SECTION 2"]
[]
[null,null,"BILL NO. 4"]
[]
[null,null,"CEILINGS, PARTITIONS AND ACCESS FLOORING"]
[]
[null,null,"WORK GROUP ALLOCATION"]
[]
[null,null,"Unless otherwise stated, all items in this Bill will be allocated to Work Group 129 - Ceilings"]
[]
[null,null,"PREAMBLES"]
[]
[null,null,"The General Preambles for Trades (2017 edition) as published by the Association of South African Quantity Surveyors shall be deemed to be incorporated in these bills of quantities and no claims arising from brevity of description of items fully described in the said General Preambles will be entertained"]
[]
[null,null,"The following \"Supplementary Preambles\" are incorporated in this bill to satisfy the requirements of the project and shall take precedence over the provisions of the said General Preambles"]
[]
[null,null,"SUPPLEMENTARY PREAMBLES"]
[]
[null,null,"Fixing:"]
[]
[null,null,"Items described as \"nailed\" shall be deemed to be fixed with hardened steel nails or pins, or to be shot-pinned, to brickwork or concrete"]
[]
[null,null,"Items described as \"plugged\" shall be deemed to include screwing to fibre, plastic or metal plugs at not exceeding 500mm centres, and where described as \"bolted\", the bolts have been given separately elsewhere"]
[]
[null,null,"Ceilings:"]
[]
[null,null,"Unless otherwise described, ceilings shall be deemed to be horizontal"]
[]
[null,null,"Bulkheads:"]
[]
[null,null,"Bulkheads are defined as those portions of ceilings which are stepped down from the general ceiling level in a particular room or area and which generally occur along the perimeter. Their purpose is either to conceal services or to create architectural features"]
[]
[null,null,"Bulkheads have only been described as such where they conform to the above definition and where the horizontal, vertical or sloping dimensions do not exceed 1200mm. Where these dimensions are more than 1200mm such portions of ceilings have been included in the appropriate general items of ceilings"]
[]
[null,null,"Unless otherwise described, bulkheads shall be deemed to be horizontal along the length"]
[]
[null,null,"Openings:"]
[]
[null,null,"Prices for openings for light fittings, ventilation grilles, air conditioning diffusers, etc. are to include for any necessary additional support, trimming around, etc."]
[]
[null,null,"Steel components:"]
[]
[null,null,"All steel components for ceilings, partitions, etc are to be galvanised in accordance with SANS 121"]
[]
[null,null,"INSULATION"]
[]
[null,null,"Non-combustible fibreglass insulation of a density of not less than 10kg/m3 bonded with an inert thermo-setting resin:"]
[]
[{"v":1,"d":"1 "},null,"120mm Insulation in blanket form, closely fitted and laid on top of brandering between roof timbers, etc.",null,"m²",{"v":98,"d":"98 "},null,{"$f":"ROUND($F777*G777,2)","v":0}]
[]
[null,null,"NAILED UP CEILINGS"]
[]
[null,null,"9.5mm Fibre-cement plain ceiling boards with H-profile galvanised steel jointing strips:"]
[]
[{"v":2,"d":"2 "},null,"Ceilings including 38 x 38mm sawn softwood brandering at 400mm centres and cross brandering at 400mm centres",null,"m²",{"v":98,"d":"98 "},null,{"$f":"ROUND($F783*G783,2)","v":0}]
[]
[null,null,"Extra over:"]
[]
[{"v":3,"d":"3 "},null,"Extra over ceiling for 600 x 600mm trap door of 38 x 38mm wrought softwood rebated framing with one cross brander, covered with ceiling board and fitted flush in opening, including necessary trimmers around",null,"No",{"v":2,"d":"2 "},null,{"$f":"ROUND($F787*G787,2)","v":0}]
[]
[null,null,"Gypsum plasterboard cornices:"]
[]
[{"v":4,"d":"4 "},null,"75mm Coved cornices",null,"m",{"v":192,"d":"192 "},null,{"$f":"ROUND($F791*G791,2)","v":0}]
[]
[null,null,"SECTION 2"]
[]
[null,null,"BILL NO. 5"]
[]
[null,null,"IRONMONGERY"]
[]
[null,null,"WORK GROUP ALLOCATION"]
[]
[null,null,"Unless otherwise stated, all items in this Bill will be allocated to Work Group 132 - Ironmongery"]
[]
[null,null,"PREAMBLES"]
[]
[null,null,"The General Preambles for Trades (2017 edition) as published by the Association of South African Quantity Surveyors shall be deemed to be incorporated in these bills of quantities and no claims arising from brevity of description of items fully described in the said General Preambles will be entertained"]
[]
[null,null,"The following \"Supplementary Preambles\" are incorporated in this bill to satisfy the requirements of the project and shall take precedence over the provisions of the said General Preambles"]
[]
[null,null,"SUPPLEMENTARY PREAMBLES"]
[]
[null,null,"Proprietary items:"]
[]
[null,null,"Where applicable, the manufacturers' names or product catalogue titles are given in sub-headings preceding the itemsNote that the manufacturers names specified in this trade are for the purposes of competitive pricing. Prices are to be based on the specific products/articles specified.On request, returnable samples are to be provided to the Project Manager for consideration"]
[]
[null,null,"Locks:"]
[]
[null,null,"Notwithstanding Clause 2, Item 3 of the \"Ironmongery\" trade of the \"Standard System of Measuring Building Work, Seventh Edition\", descriptions of locks shall be deemed to include two keys per lock"]
[]
[null,null,"Finishes to ironmongery:"]
[]
[null,null,"Where applicable, finishes to ironmongery are indicated by suffixes in accordance with the following list: BS\tSatin bronze lacqueredCH\tChromium plated SC\tSatin chromium plated SE\tSilver enamelled GE\tGrey enamelledAN\tAnodised natural AS\tAnodised silver AB\tAnodised bronze AG\tAnodised gold ABL\tAnodised black PB\tPolished brass PL\tPolished and lacquered PT\tEpoxy coated SD\tSandedBBS\tBrushed stainless steel"]
[]
[null,null,"HINGES, BOLTS, ETC"]
[]
[null,null," \"Union\" or similar approved:"]
[]
[{"v":1,"d":"1 "},null,"\"Ref. CZ80941SCR\" or similar approved sliding indicator bolt set",null,"No",{"v":8,"d":"8 "},null,{"$f":"ROUND($F827*G827,2)","v":0}]
[]
[null,null,"LOCKS"]
[]
[{"v":2,"d":"2 "},null,"75mm Three lever upright mortice rebated lockset with satin chrome furniture (TP-01)",null,"No",{"v":13,"d":"13 "},null,{"$f":"ROUND($F831*G831,2)","v":0}]
[]
[null,null,"\"Calini\" or similar approved:"]
[]
[{"v":3,"d":"3 "},null,"\"Ref. IW2051\" or similar approved double cylinder suitable for master key",null,"No",{"v":1,"d":"1 "},null,{"$f":"ROUND($F835*G835,2)","v":0}]
[]
[null,null,"HANDLES"]
[]
[null,null,"\"Union Assa Abloy\" or similar approved:"]
[]
[{"v":4,"d":"4 "},null,"\"Ref.AL6D67-05A5\" or similar approved anodised aluminium pull handle with back plates",null,"No",{"v":32,"d":"32 "},null,{"$f":"ROUND($F841*G841,2)","v":0}]
[]
[{"v":5,"d":"5 "},null,"100mm Chromium plated bow handle bolted through door with the bolt ends hammered to prevent the nuts being removed",null,"No",{"v":2,"d":"2 "},null,{"$f":"ROUND($F843*G843,2)","v":0}]
[]
[null,null,"PUSH PLATES AND KICK PLATES"]
[]
[null,null,"1,2mm Thick satin finished stainless steel plates countersunk screwed along edges at not exceeding 200mm centres:"]
[]
[{"v":6,"d":"6 "},null," 820 x 150mm Kick plate",null,"No",{"v":8,"d":"8 "},null,{"$f":"ROUND($F849*G849,2)","v":0}]
[]
[{"v":7,"d":"7 "},null," 900 x 150mm Kick plate",null,"No",{"v":20,"d":"20 "},null,{"$f":"ROUND($F851*G851,2)","v":0}]
[]
[null,null,"DOOR CLOSERS"]
[]
[null,null,"\"Union Assa Abloy\" or similar approved:"]
[]
[{"v":8,"d":"8 "},null,"\"Ref. 7770\" door closer",null,"No",{"v":3,"d":"3 "},null,{"$f":"ROUND($F857*G857,2)","v":0}]
[]
[null,null,"SUNDRIES"]
[]
[null,null,"\"Union Assa Abloy\"or similar approved:"]
[]
[{"v":9,"d":"9 "},null,"\"Ref. 99022SS\" door stop, plugged",null,"No",{"v":12,"d":"12 "},null,{"$f":"ROUND($F863*G863,2)","v":0}]
[]
[null,null,"BATHROOM FITTINGS"]
[]
[null,null,"\"Franke\" or similar approved:"]
[]
[{"v":10,"d":"10 "},null,"\"Ref. STRX672\" stainless steel lockable toilet roll holder, plugged",null,"No",{"v":8,"d":"8 "},null,{"$f":"ROUND($F869*G869,2)","v":0}]
[]
[{"v":11,"d":"11 "},null,"\"Ref. RODX602 \" paper towel dispenser and waste bin combination, plugged",null,"No",{"v":8,"d":"8 "},null,{"$f":"ROUND($F871*G871,2)","v":0}]
[]
[{"v":12,"d":"12 "},null,"\"Ref. BS611V\"  stainless steel sanitary towel disposal bin, plugged",null,"No",{"v":8,"d":"8 "},null,{"$f":"ROUND($F873*G873,2)","v":0}]
[]
[null,null,"BUDGETARY ALLOWANCE"]
[]
[{"v":13,"d":"13 "},null,"Provide a budgetary allowance of Fifteen Thousand Rand for sundry ironmongery to be used as directed by the Principal Agent and to be deducted in whole or in part if not required.",null,"Item",{"v":1,"d":"1 "},null,{"$f":"ROUND($F877*G877,2)","v":0}]
[]
[null,null,"SECTION 2"]
[]
[null,null,"BILL NO. 6"]
[]
[null,null,"STRUCTURAL STEELWORK"]
[]
[null,null,"WORK GROUP ALLOCATION"]
[]
[null,null,"Unless otherwise stated, all items in this Bill will be allocated to Work Group 134 - Structural Steelwork in Buildings"]
[]
[null,null,"PREAMBLES"]
[]
[null,null,"The General Preambles for Trades (2017 edition) as published by the Association of South African Quantity Surveyors shall be deemed to be incorporated in these bills of quantities and no claims arising from brevity of description of items fully described in the said General Preambles will be entertained"]
[]
[null,null,"The following \"Supplementary Preambles\" are incorporated in this bill to satisfy the requirements of the project and shall take precedence over the provisions of the said General Preambles"]
[]
[null,null,"SUPPLEMENTARY PREAMBLES"]
[]
[null,null,"Specification:"]
[]
[null,null,"All structural steel must comply with SANS 1200H (Degree of Accuracy II)"]
[]
[null,null,"All hot rolled structural steel sections must comply with SANS 1431 grade 300W, unless otherwise specified on the drawings"]
[]
[null,null,"Unless otherwise designated, all bolts and nuts will be grade 4.6 to SANS 135 and BS 916. Descriptions of bolts shall be deemed to include nuts and washers. Descriptions of L-shaped and U-shaped anchor bolts shall be deemed to include bending, threading, nuts and washers and embedding in concrete. Descriptions of expansion anchors and bolts and chemical anchors and bolts shall be deemed to include nuts, washers and mortices in brickwork or concrete"]
[]
[null,null,"All connections must be welded all round with a 6mm fillet weld, unless otherwise specified on the drawings"]
[]
[null,null,"Drawings and shop details:"]
[]
[null,null,"The Contractor shall be responsible for preparing shop drawings and details which must be submitted to the Principal Agent for approval prior to commencement of fabrication.  Before commencing any fabrication, the steel fabricator must check the accessibility of the site and design the sizes of individual parts accordingly"]
[]
[null,null,"Hot-dipped galvanizing:"]
[]
[null,null,"After fabrication and prior to delivery to site, all steelwork described as hot-dipped galvanized, is to be descaled and thoroughly cleaned by pickling, after which it is to be hot dip galvanized in accordance with the requirements of SANS 121/1501461"]
[]
[null,null,"Descriptions:"]
[]
[null,null,"Descriptions of bolts shall be deemed to include nuts and washers"]
[]
[null,null,"Descriptions of L-shaped and U-shaped anchor bolts shall be deemed to include bending, threading, nuts and washers and embedding in concrete"]
[]
[null,null,"Descriptions of expansion anchors and bolts and chemical anchors and bolts shall be deemed to include nuts, washers and mortices in brickwork or concrete"]
[]
[null,null,"BUDGETARY ALLOWANCE"]
[]
[{"v":1,"d":"1 "},null,"Provide a budgetary allowance of Fifty Thousand Rand for sundry alterations to structural steelworks be used as directed by the Principal Agent and to be deducted in whole or in part if not required.",null,"Item",{"v":1,"d":"1 "},null,{"$f":"ROUND($F925*G925,2)","v":0}]
[]
[null,null,"Paint testing:"]
[]
[{"v":2,"d":"2 "},null,"Subcontract amount of Fifteen Thousand Rand for quality control inspection by an authorised independent authority",null,"SUM",{"v":1,"d":"1 "},null,{"$f":"ROUND($F929*G929,2)","v":0}]
[]
[{"v":3,"d":"3 "},null,"Profit",null,"%",{"v":0,"d":"0%"},null,{"$f":"ROUND($F931*G931,2)","v":0}]
[]
[{"v":4,"d":"4 "},null,"Attendance",null,"%",{"v":0,"d":"0%"},null,{"$f":"ROUND($F933*G933,2)","v":0}]
[]
[null,null,"SECTION 2"]
[]
[null,null,"BILL NO. 7"]
[]
[null,null,"METALWORK"]
[]
[null,null,"WORK GROUP ALLOCATION"]
[]
[null,null,"Unless otherwise stated, all items in this Bill will be allocated to Work Group 136 - Metalwork"]
[]
[null,null,"PREAMBLES"]
[]
[null,null,"The General Preambles for Trades (2017 edition) as published by the Association of South African Quantity Surveyors shall be deemed to be incorporated in these bills of quantities and no claims arising from brevity of description of items fully described in the said General Preambles will be entertained"]
[]
[null,null,"The following \"Supplementary Preambles\" are incorporated in this bill to satisfy the requirements of the project and shall take precedence over the provisions of the said General Preambles"]
[]
[null,null,"SUPPLEMENTARY PREAMBLES"]
[]
[null,null,"Descriptions of bolts, anchors, etc:"]
[]
[null,null,"Descriptions of bolts shall be deemed to include nuts and washers"]
[]
[null,null,"Descriptions of expansion anchors and bolts and chemical anchors and bolts shall be deemed to include nuts, washers and mortices in brickwork or concrete"]
[]
[null,null,"Items described as \"holed for bolt(s)\" shall be deemed to exclude the bolts, unless otherwise described"]
[]
[null,null,"Items described as \"plugged\" shall be deemed to include screwing to fibre, plastic or metal plugs at not exceeding 600mm centres"]
[]
[null,null,"Fixing:"]
[]
[null,null,"Unless otherwise described, descriptions of items shall be deemed to include for fixing to brickwork or concrete  Where items are described as \"bolted\", the bolts are measured elsewhere as stated in clause N.7 of the Model Preambles"]
[]
[null,null,"PRESSED STEEL DOOR FRAMES"]
[]
[null,null,"1,6mm Rebated frames suitable for one brick walls:"]
[]
[{"v":1,"d":"1 "},null,"Frame for door 900 x 2100mm high with three hinges per leaf (TP-02)",null,"No",{"v":12,"d":"12 "},null,{"$f":"ROUND($F971*G971,2)","v":0}]
[]
[{"v":2,"d":"2 "},null,"Frame for door 900 x 2100mm high with three hinges per leaf (TP-03)",null,"No",{"v":9,"d":"9 "},null,{"$f":"ROUND($F973*G973,2)","v":0}]
[]
[null,null,"PRESSED STEEL COMBINATION DOORS AND FRAMES"]
[]
[null,null,"Flush both sides doors:"]
[]
[{"v":3,"d":"3 "},null," 900 x 2100mm High anti-corrosive galvanised and epoxy coated mild steel door with concealed sides and edges (TP-04)",null,"No",{"v":4,"d":"4 "},null,{"$f":"ROUND($F979*G979,2)","v":0}]
[]
[null,null,"BUDGETARY ALLOWANCE"]
[]
[{"v":4,"d":"4 "},null,"Provide a budgetary allowance of Fifteen Thousand Rand for sundry metalwork to be used as directed by the Principal Agent and to be deducted in whole or in part if not required.",null,"Item",{"v":1,"d":"1 "},null,{"$f":"ROUND($F983*G983,2)","v":0}]
[]
[null,null,"SECTION 2"]
[]
[null,null,"BILL NO. 8"]
[]
[null,null,"PLASTERING"]
[]
[null,null,"WORK GROUP ALLOCATION"]
[]
[null,null,"Unless otherwise stated, all items in this Bill will be allocated to Work Group 142 - In situ finishes"]
[]
[null,null,"PREAMBLES"]
[]
[null,null,"The General Preambles for Trades (2017 edition) as published by the Association of South African Quantity Surveyors shall be deemed to be incorporated in these bills of quantities and no claims arising from brevity of description of items fully described in the said General Preambles will be entertained"]
[]
[null,null,"The following \"Supplementary Preambles\" are incorporated in this bill to satisfy the requirements of the project and shall take precedence over the provisions of the said General Preambles"]
[]
[null,null,"SUPPLEMENTARY PREAMBLES"]
[]
[null,null,"Moisture tests:"]
[]
[null,null,"Before any finishes, coverings, etc are applied to screeds, plastering, etc or any other in-situ finish, moisture tests are to be carried out to the  complete satisfaction of the Project Manager to ensure that these surfaces have the correct moisture content for the finish to be applied"]
[]
[null,null,"Labours, etc"]
[]
[null,null,"Labours such as fair, rounded and chamfered edges, trowel cuts, throats, V-joints, angles, etc shall be deemed to be included in the descriptions"]
[]
[null,null,"Sample Panels"]
[]
[null,null,"A sample panel size 1m x1m, of each of the various plaster type wall and floor finishes in this contract, shall be prepared for the approval of the Project Manager and the cost of the sample panel(s) shall be deemed to be included in the overall costs of the relevant wall and floor finishes"]
[]
[null,null,"GRANOLITHIC"]
[]
[null,null,"Method:"]
[]
[null,null,"The method to be used shall be either the monolithic method or the bonded method"]
[]
[null,null,"Preparation:"]
[]
[null,null,"For granolithic applied monolithically, the concrete floor shall be swept clean after bleeding of the concrete has ceased and the slab has begun to stiffen; any remaining bleed water shall be removed and the granolithic applied immediately thereafter. For granolithic to be bonded to the floor slab after it has hardened, the slab surface shall be hacked (preferably by mechanical means) until all laitance, dirt, oil, etc is dislodged and swept clean of all loose matter. The slab shall then be wetted and kept damp for at least six hours before applying the granolithic"]
[]
[null,null,"Mix:"]
[]
[null,null,"Unless otherwise described, granolithic shall attain a compressive strength of at least 41MPa. The coarse aggregate shall comply with SANS 1083 and shall generally be capable of passing a 10mm mesh sieve. Where the thickness of the granolithic exceeds 25mm, the size of the coarse aggregate shall be increased to the maximum size compatible with the thickness of the granolithic"]
[]
[null,null,"Panels:"]
[]
[null,null,"Granolithic shall be laid in panels not exceeding 14m\"² for monolithic finishes, not exceeding 9,5m\"² for bonded finishes and not exceeding 6m\"² for all external granolithic. Wherever possible, panels shall be square but at no time should the length of the panel exceed 1,5 times its width"]
[]
[null,null,"Where possible joints between panels shall be positioned over joints in the floor slab and shall be at least 3mm wide through the full thickness of the finish, separated by strips of wood or fibreboard and finished with V-joints"]
[]
[null,null,"Laying:"]
[]
[null,null,"Monolithic granolithic shall be applied to the partially set slab and thoroughly compacted and lightly wood floated to the required levels"]
[]
[null,null,"Bonded granolithic shall be applied to the slab after applying a 1:1 sand-and-cement slurry brushed over the surface and allowed to partially set before applying the granolithic. The granolithic shall be throughly compacted and lightly wood floated to the required levels"]
[]
[null,null,"After wood floating, the monolithic and bonded granolithic shall remain undisturbed until bleeding has ceased and the surface has stiffened. Any remaining bleed water and laitance shall then be removed and the surface steel trowelled or power floated"]
[]
[null,null,"Curing, seasoning and protection:"]
[]
[null,null,"Granolithic shall be covered with clean hessian with waterproof building foil over and kept wet for at least seven days after laying"]
[]
[null,null,"Colour:"]
[]
[null,null,"Coloured granolithic shall be tinted with an approved colouring pigment mixed into a true and even colour"]
[]
[null,null,"TINTED WHITE CEMENT SCREEDS"]
[]
[null,null,"Tinted screed shall be composed of one bag White Portland Cement or similar approved and two wheelbarrows \"Malmesbury\" or similar approved sand. Surfaces shall be finished with a steel trowel to leave a smooth finish and coated with two coats \"Earthcote S.I. Floorcote\" or similar approved two-pack polyurethane floor sealer applied as per the manufacturer's recommendations"]
[]
[null,null,"NOTE: Tinted screeds are to be strengthened with \"Primal Eccos\" acrylic polymer (15% of the water volume is to be substituted with the acrylic polymer during the mixing process)  Coarse sand is to be used for these screeds  All tinting, finishing, strengthening, etc are to be mixed, applied, etc strictly in accoprdance with the manufacturer's instructions"]
[]
[null,null,"CEMENT PLASTER"]
[]
[null,null,"Unless otherwise described, cement plaster shall be taken to mean Class 1 cement plaster i.e. 1:4 cement:sand plaster (common cement)"]
[]
[null,null,"INTERNAL PLASTER"]
[]
[null,null,"Cement plaster wood floated for tiles, on brickwork:"]
[]
[{"v":1,"d":"1 "},null,"On walls",null,"m²",{"v":552,"d":"552 "},null,{"$f":"ROUND($F1065*G1065,2)","v":0}]
[]
[{"v":2,"d":"2 "},null,"On narrow widths",null,"m²",{"v":50,"d":"50 "},null,{"$f":"ROUND($F1067*G1067,2)","v":0}]
[]
[null,null,"SECTION 2"]
[]
[null,null,"BILL NO. 9"]
[]
[null,null,"TILING"]
[]
[null,null,"WORK GROUP ALLOCATION"]
[]
[null,null,"Unless otherwise stated, all items in this Bill will be allocated to Work Group 144 - Tiling"]
[]
[null,null,"PREAMBLES"]
[]
[null,null,"The General Preambles for Trades (2017 edition) as published by the Association of South African Quantity Surveyors shall be deemed to be incorporated in these bills of quantities and no claims arising from brevity of description of items fully described in the said General Preambles will be entertained"]
[]
[null,null,"The following \"Supplementary Preambles\" are incorporated in this bill to satisfy the requirements of the project and shall take precedence over the provisions of the said General Preambles"]
[]
[null,null,"SUPPLEMENTARY PREAMBLES"]
[]
[null,null,"Fixing:"]
[]
[null,null,"Unless described as \"fixed with adhesive to plaster (plaster elsewhere)\", descriptions of tiling on brick or concrete walls, columns, etc shall be deemed to include 1:4 cement plaster backing and descriptions of tiling on concrete floors, etc shall be deemed to include 1:3 cement plaster bedding"]
[]
[null,null,"Tiling described as \"fixed with adhesive on power floated concrete\" shall be deemed to include for approved tiling key-coat"]
[]
[null,null,"Ceramic, porcelain, marble and granite tiles are to be fixed and grouted with suitable adhesives and grouts from the \"Tal Goldstar\" or similar approved range of products as recommended by the manufacturer of the tiles"]
[]
[null,null,"Preparatory work to existing painted plastered surfaces:"]
[]
[null,null,"Preparation of all existing painted plastered surfaces is to include for removing all loose and flaking material by wire brushing, thoroughly washing down and allowing to dry completely and applying one coat masonry bonding agent"]
[]
[null,null,"WALL TILING"]
[]
[null,null,"350 x 350mm Ceramic tiles (Allow a Prime Cost Amount of R 250/m2 delivered to site) fixed with adhesive to plaster (plaster elsewhere) and flush pointing with and including waterproof grout:"]
[]
[{"v":1,"d":"1 "},null,"On walls",null,"m²",{"v":272,"d":"272 "},null,{"$f":"ROUND($F1103*G1103,2)","v":0}]
[]
[{"v":2,"d":"2 "},null,"On narrow widths",null,"m²",{"v":27,"d":"27 "},null,{"$f":"ROUND($F1105*G1105,2)","v":0}]
[]
[null,null,"300 x 300mm Ceramic floor tiles (Allow a Prime Cost Amount of R250/m2 delivered to site) fixed with adhesive to screed (screed elsewhere) and flush pointing with and including waterproof grout:"]
[]
[{"v":3,"d":"3 "},null,"On floors",null,"m²",{"v":98,"d":"98 "},null,{"$f":"ROUND($F1109*G1109,2)","v":0}]
[]
[{"v":4,"d":"4 "},null,"Skirting 100mm high (of fair cut tiles)",null,"m",{"v":100,"d":"100 "},null,{"$f":"ROUND($F1111*G1111,2)","v":0}]
[]
[null,null,"SECTION 2"]
[]
[null,null,"BILL NO. 10"]
[]
[null,null,"PLUMBING AND DRAINAGE (PROVISIONAL)"]
[]
[null,null,"WORK GROUP ALLOCATION"]
[]
[null,null,"The items in this Bill will be allocated to Work Groups as indicated in brackets at the end of headings or descriptions"]
[]
[null,null,"PREAMBLES"]
[]
[null,null,"The General Preambles for Trades (2017 edition) as published by the Association of South African Quantity Surveyors shall be deemed to be incorporated in these bills of quantities and no claims arising from brevity of description of items fully described in the said General Preambles will be entertained"]
[]
[null,null,"The following \"Supplementary Preambles\" are incorporated in this bill to satisfy the requirements of the project and shall take precedence over the provisions of the said General Preambles"]
[]
[null,null,"SUPPLEMENTARY PREAMBLES"]
[]
[null,null,"Wire gratings:"]
[]
[null,null,"Descriptions of gutter outlets, etc shall be deemed to include wire balloon gratings"]
[]
[null,null,"Stormwater channels:"]
[]
[null,null,"Descriptions of channels shall be deemed to include necessary excavation, surface preparation, compaction, etc and disposal of surplus material on site"]
[]
[null,null,"French drains:"]
[]
[null,null,"Descriptions of french drains shall be deemed to include excavation, stone filling graded from 300mm diameter at bottom to 75mm diameter at top, approved geofabric filter blanket over stone, 300mm earthfilling over and disposal of surplus material on site"]
[]
[null,null,"Septic tanks:"]
[]
[null,null,"Descriptions of proprietary type septic tanks shall be deemed to include excavation, bedding and jointing, concrete base slabs, jointing to drains and backfilling, compaction, etc all in accordance with the manufacturer's instructions and disposal of surplus material on site"]
[]
[null,null,"Stainless steel basins, sinks, wash troughs, urinals, etc:"]
[]
[null,null,"Stainless steel for economy basins, domestic sinks and worktops shall be Type 430 (17/0)  Stainless steel for urinals, basins, quality sinks, wash troughs, institutional equipment, etc shall be Type 304 (18/8)  Stainless steel for laboratory sinks, photographic equipment, etc shall be Type 316 (18/8)  Units shall have standard aprons on all exposed edges and tiling keys against walls where applicable"]
[]
[null,null,"Sealing of edges:"]
[]
[null,null,"Outer edges of sinks, basins, baths, urinals, etc are to be sealed against adjacent surfaces with approved mildew resistant silicone sealant and prices must include therefor"]
[]
[null,null,"uPVC pipes and fittings:"]
[]
[null,null,"Sewer and drainage pipes and fittings shall be jointed and sealed with butyl rubber rings  Soil, waste and vent pipes and fittings shall be solvent weld jointed or sealed with butyl rubber rings"]
[]
[null,null,"uPVC pressure pipes and fittings:"]
[]
[null,null,"Pipes of 50mm diameter and smaller shall be plain ended with solvent welded uPVC loose sockets and fittings  Pipes of 63mm diameter and greater shall have sockets and spigots with push-in type integral rubber ring joints.  Bends shall be uPVC and all other fittings shall be cast iron, all with similar push-in type joints"]
[]
[null,null,"High density polyethylene (HDPe) pipes and fittings:"]
[]
[null,null,"Pipes shall be type IV and of the class specified with \"Plasson\" or \"Alprene\" or similar approved compression fittings"]
[]
[null,null,"Polycop polypropylene pipes:"]
[]
[null,null,"Polypropylene pipes 54mm diameter and smaller shall be seamless copper coloured Class 16 pipes jointed with \"Fast-fuse\" heat welded thermoplastic or where so described \"Polylock\" or similar approved compression fittings  Pipes shall be firmly fixed to walls, etc with coloured nylon snap-in pipe clips with provision for accommodating thermal movement and jointed and fixed strictly in accordance with the manufacturer's instructions"]
[]
[null,null,"Copper pipes:"]
[]
[null,null,"Pipes shall be hard drawn and half-hard \"Maksal\" or similar approved pipes of the class described.  Class 0 (thin walled hard drawn) pipes shall not be bent.  Class 1 (thin walled half-hard), Class 2 (half-hard) and Class 3 (heavy walled half-hard) pipes shall only be bent with benders with inner and outer formers.  Fittings to copper waste, vent and anti-syphon pipes, capillary solder fittings and compression fittings shall be \"Cobra Watertech\" or similar approved type.  Capillary solder fittings shall comply with ISO 2016. Only compression fittings shall be used in walls or in ground"]
[]
[null,null,"Copper pipes are to be installed in accordance with the latest revision of the Code of Practice for Copper Plumbing soldering techniques.  Flux, solder, etc to be strictly in accordance with the manufacturer's requirements with special attention to copper flux composition"]
[]
[null,null,"Reducing fittings:"]
[]
[null,null,"Where fittings have reducing ends or branches they are described as \"reducing\". In the case of pipes with diameters not exceeding 60mm, only the largest end or branch size is given. Should the Contractor wish to use other fittings and bushes or reducers he may do so on the understanding that no claim in this regard will be entertained. In the case of pipes with diameters exceeding 60mm, all sizes are given and no claims for extra bushes, reducers, etc will be entertained"]
[]
[null,null,"Fixing of pipes:"]
[]
[null,null,"Unless specifically otherwise stated, descriptions of pipes shall be deemed to include fixing to walls, etc casting in, building in or suspending not exceeding 1m below suspension level"]
[]
[null,null,"Paper wrapping to pipes:"]
[]
[null,null,"Pipes chased into brickwork must be wrapped with two layers of stout brown paper tied with wire.  Rates are to include for wrapping around joints and fittings"]
[]
[null,null,"Disinfection of water pipework:"]
[]
[null,null,"Water pipework is to be disinfected at completion in accordance with SANS 1200L (provision for disinfection elsewhere)"]
[]
[null,null,"\"Densyl\" or similar approved petrolatum anti-corrosion tape"]
[]
[null,null,"Pipes to be taped shall be coated with the appropriate primer and the tape shall be applied in the appropriate widths and with suitable overlaps  Couplings and fittings to pipes shall be taped in strict accordance with the manufacturer's instructions including mastic, tape, \"Layflat\" or similar approved sheeting, securing of same, etc"]
[]
[null,null,"Prices for wrapping of pipes shall include for all work as described to couplings in the length"]
[]
[null,null,"Laying, backfilling, bedding, etc of pipes:"]
[]
[null,null,"Pipes shall be laid and bedded in accordance with manufacturers' instructions and trenches shall be carefully backfilled"]
[]
[null,null,"Where no manufacturers' instructions exist, pipes shall be laid in accordance with Clauses 5.1 and 5.2 of each of the following: SANS 1200L\t: Medium-pressure pipelines SANS 1200LD\t: Sewers SANS 1200LE\t: Stormwater drainage Pipe trenches, etc shall be backfilled in accordance with Clauses 3, 5.5, 5.6, 5.7 and 7 of SANS 1200DB : Earthworks (Pipe trenches)Pipes shall be bedded in accordance with Clauses 3.1 to 3.4.1, 5.1 to 5.3 and 7 of SANS 1200LB : Bedding (Pipes)Unless otherwise described, bedding of rigid pipes shall be Class B bedding"]
[]
[null,null,"General:"]
[]
[null,null,"Descriptions of cast iron roof outlets shall be deemed to include joints to pipes and casting into concrete (adaptors for joints to PVC pipes, etc are given separately)  Descriptions of overflow pipes where measured in number, shall be deemed to include joints to cisterns and splay cut ends"]
[]
[null,null,"Descriptions of pipes laid in and including trenches and of inspection chambers, catchpits, etc shall be deemed to include excavation, bedding, backfilling, compaction to a minimum of 98% Mod AASHTO density and disposal of surplus material on site"]
[]
[null,null,"Descriptions of service pipes and flexible connecting pipes shall be deemed to include connections to taps, cisterns, etc and to steel pipes (adaptors for connections to copper pipes, etc are given separately)"]
[]
[null,null,"Descriptions of WC pans, slop hoppers, etc shall be deemed to include for joints to soil pipes (pan connectors are separately measured) and shall have straight or side outlets and \"P\" or \"S\" traps as necessary"]
[]
[null,null,"Description of waste unions shall be deemed to include rubber or vulcanite plugs and chains fixed to fittings."]
[]
[null,null,"As-built drawings:"]
[]
[null,null,"Where required, the Contractor shall prepare an updated set of as-built drawings.  At completion of the contract the Contractor shall hand these drawings to the Project Manager for reproducing onto the originals for handing over to the Employer (provision for allowance of as-built drawings elsewhere)"]
[]
[null,null,"Proprietary items:"]
[]
[null,null,"Where applicable, the manufacturers' names or product catalogue titles are given in sub-headings preceding the itemsNote that the manufacturers names specified in this trade are for the purposes of competitive pricing. Prices are to be based on the specific products/articles specified.On request, returnable samples are to be provided to the Project Manager for consideration"]
[]
[null,null,"SANITARY FITTINGS (WORK GROUP 148)"]
[]
[null,null,"\"Vaal\" or similar approved:"]
[]
[{"v":1,"d":"1 "},null,"455 x 290mm \"Hibiscus\" 7050 wash hand basin bolted to wall",null,"No",{"v":2,"d":"2 "},null,{"$f":"ROUND($F1229*G1229,2)","v":0}]
[]
[{"v":2,"d":"2 "},null,"\"Hibiscus\" 772402 close-coupled WC suite comprising pan with double flap heavy duty thermoset seat (Code: 8531Z0) and matching 9 litre cistern",null,"No",{"v":8,"d":"8 "},null,{"$f":"ROUND($F1231*G1231,2)","v":0}]
[]
[{"v":3,"d":"3 "},null,"\"Lavatera\" 705426 wall urinal with spreader and waste union (flush valve elsewhere)",null,"No",{"v":2,"d":"2 "},null,{"$f":"ROUND($F1233*G1233,2)","v":0}]
[]
[null,null,"WASTE UNIONS, ETC"]
[]
[null,null,"\"Cobra Watertech\" or similar approved:"]
[]
[{"v":4,"d":"4 "},null,"40mm Code 317 CP basin waste union and code 309CP anti-theft plug",null,"No",{"v":2,"d":"2 "},null,{"$f":"ROUND($F1239*G1239,2)","v":0}]
[]
[null,null,"TRAPS, ETC"]
[]
[null,null,"uPVC:"]
[]
[{"v":5,"d":"5 "},null,"40mm \"P\" or \"S\" trap",null,"No",{"v":6,"d":"6 "},null,{"$f":"ROUND($F1245*G1245,2)","v":0}]
[]
[{"v":6,"d":"6 "},null,"50mm Code 365 CP bottle trap",null,"No",{"v":2,"d":"2 "},null,{"$f":"ROUND($F1247*G1247,2)","v":0}]
[]
[null,null,"TAPS, VALVES, ETC"]
[]
[null,null,"\"Cobra Watertech\" or similar approved:"]
[]
[{"v":7,"d":"7 "},null,"15mm Code1065-15CP fullway isolating ball valve",null,"No",{"v":14,"d":"14 "},null,{"$f":"ROUND($F1253*G1253,2)","v":0}]
[]
[{"v":8,"d":"8 "},null,"15mm Code 902CP \"Focus\" basin mixer with waste union, etc and angle flow regulating valves",null,"No",{"v":6,"d":"6 "},null,{"$f":"ROUND($F1255*G1255,2)","v":0}]
[]
[{"v":9,"d":"9 "},null,"Code FJ6.000CP \"Flushmaster Junior\" urinal flush valve",null,"No",{"v":2,"d":"2 "},null,{"$f":"ROUND($F1257*G1257,2)","v":0}]
[]
[null,null,"AS-BUILT DRAWINGS"]
[]
[{"v":10,"d":"10 "},null,"Provision of as-built drawings",null,"Item",{"v":1,"d":"1 "},null,{"$f":"ROUND($F1261*G1261,2)","v":0}]
[]
[null,null,"BUDGETARY ALLOWANCE"]
[]
[{"v":11,"d":"11 "},null,"Provide a budgetary allowance of Fifteen Thousand Rand for sundry plumbing works to be used as directed by the Principal Agent and to be deducted in whole or in part if not required.",null,"Item",{"v":1,"d":"1 "},null,{"$f":"ROUND($F1265*G1265,2)","v":0}]
[]
[null,null,"SECTION 2"]
[]
[null,null,"BILL NO. 11"]
[]
[null,null,"GLAZING"]
[]
[null,null,"WORK GROUP ALLOCATION"]
[]
[null,null,"Unless otherwise stated, all items in this Bill will be allocated to Work Group 150 - Glazing"]
[]
[null,null,"PREAMBLES"]
[]
[null,null,"The General Preambles for Trades (2017 edition) as published by the Association of South African Quantity Surveyors shall be deemed to be incorporated in these bills of quantities and no claims arising from brevity of description of items fully described in the said General Preambles will be entertained"]
[]
[null,null,"The following \"Supplementary Preambles\" are incorporated in this bill to satisfy the requirements of the project and shall take precedence over the provisions of the said General Preambles"]
[]
[null,null,"SUPPLEMENTARY PREAMBLES"]
[]
[null,null,"Float glass:"]
[]
[null,null,"The term \"float glass\" is used for monolithic annealed glass"]
[]
[null,null,"Laminated glass:"]
[]
[null,null,"Laminated glass to have polyvinyl butyral (PVB) interlayer(s)"]
[]
[null,null,"GLAZING TO STEEL WITH PUTTY"]
[]
[null,null,"6,38mm Normal strength (NS) clear laminated safety glass:"]
[]
[{"v":1,"d":"1 "},null,"Panes exceeding 0,1m2 and not exceeding 0,5m2",null,"m²",{"v":7,"d":"7 "},null,{"$f":"ROUND($F1297*G1297,2)","v":0}]
[]
[{"v":2,"d":"2 "},null,"Panes exceeding 0,5m2 and not exceeding 2,0m2",null,"m²",{"v":2,"d":"2 "},null,{"$f":"ROUND($F1299*G1299,2)","v":0}]
[]
[null,null,"33mm Bulletproof glass (SANS 10400):"]
[]
[{"v":3,"d":"3 "},null,"Panes exceeding 0,1m2 and not exceeding 0,5m2",null,"m²",{"v":0.5,"d":"1 "},null,{"$f":"ROUND($F1303*G1303,2)","v":0}]
[]
[null,null,"TOPS, SHELVES, DOORS, MIRRORS, ETC"]
[]
[null,null,"4mm Silvered float glass copper backed mirrors with 10mm bevelled and polished edges fixed with double sided adhesive tape:"]
[]
[{"v":4,"d":"4 "},null,"Mirror 600 x 1200mm high",null,"No",{"v":4,"d":"4 "},null,{"$f":"ROUND($F1309*G1309,2)","v":0}]
[]
[null,null,"SECTION 2"]
[]
[null,null,"BILL NO. 12"]
[]
[null,null,"PAINTWORK"]
[]
[null,null,"WORK GROUP ALLOCATION"]
[]
[null,null,"Unless otherwise stated, all items in this Bill will be allocated to Work Group 152 - Painting"]
[]
[null,null,"PREAMBLES"]
[]
[null,null,"The General Preambles for Trades (2017 edition) as published by the Association of South African Quantity Surveyors shall be deemed to be incorporated in these bills of quantities and no claims arising from brevity of description of items fully described in the said General Preambles will be entertained"]
[]
[null,null,"The following \"Supplementary Preambles\" are incorporated in this bill to satisfy the requirements of the project and shall take precedence over the provisions of the said General Preambles"]
[]
[null,null,"SUPPLEMENTARY PREAMBLES"]
[]
[null,null,"PREPARATORY WORK TO EXISTING WORK"]
[]
[null,null,"Previously painted plastered surfaces:"]
[]
[null,null,"Surfaces shall be thoroughly washed down and allowed to dry completely before any paint is applied. Blistered or peeling paint shall be completely removed and minor cracks shall be opened, filled with a suitable filler and finished smooth"]
[]
[null,null,"Previously painted metal surfaces:"]
[]
[null,null,"Surfaces shall be thoroughly rubbed and cleaned down.  Blistered or peeling paint shall be completely removed down to bare metal"]
[]
[null,null,"Previously painted wood surfaces:"]
[]
[null,null,"Surfaces shall be thoroughly cleaned down.  Blistered or peeling paint shall be completely removed and cracks and crevices shall be primed, filled with suitable filler and finished smooth"]
[]
[null,null,"PAINT SPECIFICATIONS"]
[]
[null,null,"All painting shall be done in accordance with \"Plascon or similar approved, etc specifications, unless otherwise described"]
[]
[null,null,"COLOURS"]
[]
[null,null,"When staining timber, the resultant colour or shade must be to the complete satisfaction of the Project Manager before any overcoating or preservative is applied  Paintwork is classified in the following different colour groups: \"White\", \"Pastel\", \"Deep\" and \"Transparent\" in accordance with the \"Natural Colour System\" (NCS) adopted by the SA National Standards Unless otherwise described, all paintwork shall be deemed to be classified in the \"White\" colour group"]
[]
[null,null,"PAINTWORK, ETC TO PREVIOUSLY PAINTED WORK"]
[]
[null,null,"ON INTERNAL FLOATED PLASTER SURFACES"]
[]
[null,null,"One coat superior quality acrylic emulsion paint for interior and exterior use, on work in sound condition:"]
[]
[{"v":1,"d":"1 "},null,"Walls",null,"m²",{"v":552,"d":"552 "},null,{"$f":"ROUND($F1357*G1357,2)","v":0}]
[]
[null,null,"ON FIBRE-CEMENT BOARD SURFACES"]
[]
[null,null,"One coat alkali resistant primer and two coats superior quality acrylic emulsion paint for interior and exterior use, on:"]
[]
[{"v":2,"d":"2 "},null,"Ceilings and cornices, including priming metal cover strips and nailheads",null,"m²",{"v":98,"d":"98 "},null,{"$f":"ROUND($F1363*G1363,2)","v":0}]
[]
[{"v":3,"d":"3 "},null,"On Fascias and barge boards",null,"m²",{"v":75,"d":"75 "},null,{"$f":"ROUND($F1365*G1365,2)","v":0}]
[]
[null,null,"METAL SURFACES WITH"]
[]
[null,null,"One coat alkyd based zinc phosphate primer and two coats premium quality polyurethane enamel paint, on steel:"]
[]
[{"v":4,"d":"4 "},null,"Door frames",null,"m²",{"v":13,"d":"13 "},null,{"$f":"ROUND($F1371*G1371,2)","v":0}]
[]
[{"v":5,"d":"5 "},null,"Windows with burglar bars",null,"m²",{"v":12,"d":"12 "},null,{"$f":"ROUND($F1373*G1373,2)","v":0}]
[]
[null,null,"ON WOOD SURFACES"]
[]
[null,null,"One coat primer, one coat alkyd based universal undercoat and two coats superior quality universal enamel paint, on:"]
[]
[{"v":6,"d":"6 "},null,"Doors",null,"m²",{"v":81,"d":"81 "},null,{"$f":"ROUND($F1379*G1379,2)","v":0}]
[]
[{"v":7,"d":"7 "},null,"Skirtings, rails, etc. not exceeding 300mm girth",null,"m",{"v":92,"d":"92 "},null,{"$f":"ROUND($F1381*G1381,2)","v":0}]
[]
[{"v":1,"d":"1 "},null,"Alterations",{"$nulls":4},{"$f":"SUM(H418:H597)","v":0}]
[]
[{"v":2,"d":"2 "},null,"Roof Coverings",{"$nulls":4},{"$f":"SUM(H605:H640)","v":0}]
[]
[{"v":3,"d":"3 "},null,"Carpentry and Joinery",{"$nulls":4},{"$f":"SUM(H647:H727)","v":0}]
[]
[{"v":4,"d":"4 "},null,"Ceilings, Partitions and Access Flooring",{"$nulls":4},{"$f":"SUM(H734:H792)","v":0}]
[]
[{"v":5,"d":"5 "},null,"Ironmongery",{"$nulls":4},{"$f":"SUM(H801:H878)","v":0}]
[]
[{"v":6,"d":"6 "},null,"Structural Steelwork",{"$nulls":4},{"$f":"SUM(H887:H934)","v":0}]
[]
[{"v":7,"d":"7 "},null,"Metalwork",{"$nulls":4},{"$f":"SUM(H937:H984)","v":0}]
[]
[{"v":8,"d":"8 "},null,"Plastering",{"$nulls":4},{"$f":"SUM(H987:H1068)","v":0}]
[]
[{"v":9,"d":"9 "},null,"Tiling",{"$nulls":4},{"$f":"SUM(H1074:H1112)","v":0}]
[]
[{"v":10,"d":"10 "},null,"Plumbing and Drainage",{"$nulls":4},{"$f":"SUM(H1118:H1266)","v":0}]
[]
[{"v":11,"d":"11 "},null,"Glazing",{"$nulls":4},{"$f":"SUM(H1275:H1310)","v":0}]
[]
[{"v":12,"d":"12 "},null,"Paintwork",{"$nulls":4},{"$f":"SUM(H1346:H1382)","v":0}]
[]
[null,null,"SECTION 3"]
[]
[null,null,"BILL NO. 1"]
[]
[null,null,"EXTERNAL WORK (PROVISIONAL)"]
[]
[null,null,"(ALL TRADES)"]
[]
[null,null,"WORK GROUP ALLOCATION"]
[]
[null,null,"The items in this Bill will be allocated to Work Groups as indicated in brackets at the end of headings or descriptions"]
[]
[null,null,"PREAMBLES"]
[]
[null,null,"The Model Preambles for Trades (2008 edition) as published by the Association of South African Quantity Surveyors shall be deemed to be incorporated in these bills of quantities and no claims arising from brevity of description of items fully described in the said General Preambles will be entertained"]
[]
[null,null,"The following \"Supplementary Preambles\" are incorporated in this bill to satisfy the requirements of the project and shall take precedence over the provisions of the said General Preambles"]
[]
[null,null,"SUPPLEMENTARY PREAMBLES"]
[]
[null,null,"Nature of ground:"]
[]
[null,null,"The nature of the ground is assumed to be loose sandy material, therefore \"earth\", but possibly interspersed with \"soft rock\" or \"hard rock\""]
[]
[null,null,"The nature of the ground is assumed to be gravel, therefore \"earth\", but possibly interspersed with \"soft rock\" or \"hard rock\""]
[]
[null,null,"The nature of the ground is assumed to be silty clay with loose river boulders varying in size up to approximately 450mm diameter, all of which will be deemed as \"earth\", but possibly interspersed with \"hard rock\""]
[]
[null,null,"Trial holes indicate that the nature of the ground is silty clay to a depth of approximately 500mm with fine to medium loose sandy material below, therefore \"earth\""]
[]
[null,null,"A soils investigation has been carried out on the site by the Engineer and the report is annexed to these bills of quantities.  The soils report indicates that the ground varies between transported soils at surface comprising gravel layers of varying  thickness and interspersed with clay, and weathered shales varying from very soft rock to medium hard rock consistency, all of which will be deemed as \"earth\". All very hard unweathered shale, ironstone, etc the removal of which necessitates the use of explosives or heavy duty hydraulic percussion hammers (peckers), will be classified as \"hard rock\""]
[]
[null,null,"Should the Contractor encounter any \"soft\" or \"hard\" rock in the excavations, he shall immediately notify the Engineer who shall be the sole arbiter as to what constitutes \"soft\" or \"hard\" rock for final account purposes"]
[]
[null,null,"Subterranean water:"]
[]
[null,null,"No subterranean water is expected"]
[]
[null,null,"Excavation for working space in rock:"]
[]
[null,null,"Notwithstanding clause 11 of the Standard System of Measuring Building Work, excavation for working space in rock will be measured in cubic metres to the extent executed and given as \"extra over\" bulk excavation or trench and hole excavation as the case may be"]
[]
[null,null,"Carting away of excavated material:"]
[]
[null,null,"Descriptions of carting away of excavated material shall be deemed to include loading excavated material onto trucks directly from the excavations or, alternatively, from stock piles situated on the building site"]
[]
[null,null,"Filling:"]
[]
[null,null,"Notwithstanding the reference to prescribed multiple handling in Clause 1 of the Standard System of Measuring Building Work, prices for filling and backfilling shall include for all selection and any necessary multiple handling of material"]
[]
[null,null,"Testing:"]
[]
[null,null,"Prices for backfilling to trenches and holes only are to include for all necessary density tests in accordance with SANS 1200D"]
[]
[null,null,"Maintenance period:"]
[]
[null,null,"The maintenance period to civil works such as roads, parking and related earthworks shall be twelve calender months"]
[]
[null,null,"SITE CLEARANCE, ETC (WORK GROUP 104)"]
[]
[null,null,"Site clearance:"]
[]
[{"v":1,"d":"1 "},null,"Digging up and removing rubbish, debris, vegetation, hedges, shrubs and trees not exceeding 200mm girth, bush, etc.",null,"m²",{"v":375,"d":"375 "},null,{"$f":"ROUND($F1469*G1469,2)","v":0}]
[]
[{"v":2,"d":"2 "},null,"Provide a budgetary allowance of Twenty Five Thousand Rand for sundry external works to be used as directed by the Principal Agent and to be deducted in whole or in part if not required.",null,"Item",{"v":1,"d":"1 "},null,{"$f":"ROUND($F1471*G1471,2)","v":0}]
[]
[null,null,"SECTION NO. 4"]
[]
[null,null,"BILL NO. 1"]
[]
[null,null,"ELECTRICAL INSTALLATION"]
[]
[null,null,"LOW VOLTAGE"]
[]
[null,null,"LV SWITCHGEAR DBs and LV Switchgear"]
[]
[null,null,"Manufacture, deliver to site, install, commission, test kiosks, distribution boards as per specification and single line diagram, to be housed in electrical. All electrical panels shall be stainless steel material, rates to include powder coated, busbars and drilling, busbar connections internal wiring etc. Refer to single line diagram for electrical panel colour"]
[]
[{"v":1,"d":"1 "},null,"Sub-DB box ablution 1",null,"No",{"v":1,"d":"1 "},null,{"$f":"ROUND($F1485*G1485,2)","v":0}]
[]
[{"v":2,"d":"2 "},null,"UT4 IP65 Box surface mounted with 32A 1-pole isolator, 3x circuit breakers with complete busbar.",null,"No",{"v":2,"d":"2 "},null,{"$f":"ROUND($F1487*G1487,2)","v":0}]
[]
[null,null,"CABLES AND CONDUCTORS"]
[]
[null,null,"Supply, deliver to site cables and conductors as specified. Install, rack, strap and testing of cables as per specification including clamps, ties and cable numbering system"]
[]
[{"v":3,"d":"3 "},null,"2,5mm conductors (mixed colours - live, neutral and earth)",null,"m",{"v":650,"d":"650 "},null,{"$f":"ROUND($F1493*G1493,2)","v":0}]
[]
[{"v":4,"d":"4 "},null,"4,0mm conductors (mixed colours - live, neutral and earth)",null,"m",{"v":150,"d":"150 "},null,{"$f":"ROUND($F1495*G1495,2)","v":0}]
[]
[{"v":5,"d":"5 "},null,"10 mm\"² 2c 600/1000V PVC/SWA/PVC ECC Cu Cable",null,"m",{"v":250,"d":"250 "},null,{"$f":"ROUND($F1497*G1497,2)","v":0}]
[]
[{"v":6,"d":"6 "},null,"50 mm\"² 4c 600/1000V PVC/SWA/PVC ECC Cu Cable",null,"m",{"v":50,"d":"50 "},null,{"$f":"ROUND($F1499*G1499,2)","v":0}]
[]
[null,null,"CABLE TERMINATIONS"]
[]
[null,null,"Termination of cables shall include supply installation and testing of the glands with corrossion guard , making-off the cable, lugs, and fitting the gland to the board gland plate, switchgear or equipment and final connection of cable tails into board or terminals.  Include for Reducing Glands and shrouds where applicable. NB:  IP65 Glands are to be used where applicable."]
[]
[{"v":7,"d":"7 "},null,"10 mm\"² 2c 600/1000V PVC/SWA/PVC ECC Cu Cable",null,"No",{"v":4,"d":"4 "},null,{"$f":"ROUND($F1505*G1505,2)","v":0}]
[]
[{"v":8,"d":"8 "},null,"50 mm\"² 4c 600/1000V PVC/SWA/PVC ECC Cu Cable glands",null,"m",{"v":2,"d":"2 "},null,{"$f":"ROUND($F1507*G1507,2)","v":0}]
[]
[{"v":9,"d":"9 "},null,"20mm PVC conduit including all necessary accessories. Rate to include chasing wall for conduit in the wall, close wall and make good",null,"m",{"v":180,"d":"180 "},null,{"$f":"ROUND($F1509*G1509,2)","v":0}]
[]
[null,null,"LUMINARIES AND CONTROL DEVICES"]
[]
[null,null,"Supply, deliver, accept and store the following luminaries, complete with lamps and control gear as per specification. See and refer to the specification document for details of each luminaire"]
[]
[{"v":10,"d":"10 "},null,"Type A5 - IP65 Rated, 30W / 4440 lm LED - 4000k vapour-proof surface-mounted weather-proof luminaire, GRP body and acrylic diffuser, with 50000 hours lifespan",null,"No",{"v":4,"d":"4 "},null,{"$f":"ROUND($F1515*G1515,2)","v":0}]
[]
[{"v":11,"d":"11 "},null,"Type A13 - IP65 Rated, 30W / 4440 lm LED - 4000k Rough-guard surface-mounted weather-proof luminaire,  GRP body and acrylic diffuser, with 50000 hours lifespan",null,"No",{"v":5,"d":"5 "},null,{"$f":"ROUND($F1517*G1517,2)","v":0}]
[]
[{"v":12,"d":"12 "},null,"Type B1 - IP65 Rated high-pressure die cast aluminium base and trim ring 20W/  2600lm LED - 4000k bulkhead luminaire, GRP body and acrylic diffuser, with 50000 hours lifespan",null,"No",{"v":4,"d":"4 "},null,{"$f":"ROUND($F1519*G1519,2)","v":0}]
[]
[{"v":13,"d":"13 "},null,"Type FL 1  - 180W / 2700lm LED (4000k) Streetlight rated IP66 with powder coating as per specification",null,"No",{"v":3,"d":"3 "},null,{"$f":"ROUND($F1521*G1521,2)","v":0}]
[]
[null,null,"LIGHT SWITCHES, SOCKET OUTLET, WELDING ISOLATORS AND ACCESSORIES"]
[]
[null,null,"Supply, deliver and installation of the following  control devices and accessories as per specification. Rate must allow for the termination and connecting of the PVC conductor to the accessory, fixing to the conduit box and the fitting of the cover plate. (PVC coveres)"]
[]
[{"v":14,"d":"14 "},null,"Supply and installation of 20Amp, 1-pole surface mounted isolator, complete with all necessary accessories",null,"No",{"v":1,"d":"1 "},null,{"$f":"ROUND($F1527*G1527,2)","v":0}]
[]
[{"v":15,"d":"15 "},null,"Supply and installation of 20Amp, IP66, 1-Pole isolator mounted on the security steel cage, complete with all necessary accessories",null,"No",{"v":1,"d":"1 "},null,{"$f":"ROUND($F1529*G1529,2)","v":0}]
[]
[{"v":16,"d":"16 "},null,"Retrofit existing luminiare by replacing",null,"No",{"v":8,"d":"8 "},null,{"$f":"ROUND($F1531*G1531,2)","v":0}]
[]
[{"v":17,"d":"17 "},null,"Photo electric cell as per specification",null,"No",{"v":4,"d":"4 "},null,{"$f":"ROUND($F1533*G1533,2)","v":0}]
[]
[{"v":18,"d":"18 "},null,"Replace existing steel cage for lighting. Cage shall be hot dip galvanised",null,"No",{"v":5,"d":"5 "},null,{"$f":"ROUND($F1535*G1535,2)","v":0}]
[]
[null,null,"Supply, install, test and commissioning of the lightning protection of the buildings on two corners of the buildings, complete with all necessary required material, accessories for a complete installation. Contractor to use copper earth spike, aluminium or copper conductors as per specification, and have testing points for the building. Rates to include all necessary required accessories for a complete installation. The installation must comply with SANS 10313.Contractor to issue test certificate per building"]
[]
[{"v":19,"d":"19 "},null,"Shelter",null,"SUM",{"v":1,"d":"1 "},null,{"$f":"ROUND($F1539*G1539,2)","v":0}]
[]
[{"v":20,"d":"20 "},null,"Platform ablution - 1",null,"SUM",{"v":1,"d":"1 "},null,{"$f":"ROUND($F1541*G1541,2)","v":0}]
[]
[{"v":21,"d":"21 "},null,"Platform ablution - 3",null,"SUM",{"v":1,"d":"1 "},null,{"$f":"ROUND($F1543*G1543,2)","v":0}]
[]
[null,null,"GENERATOR SET"]
[]
[null,null,"Manufacture, deliver to site, install, test and commission of a generator set 400 volts at 50Hz as per specification and single line diagram. The generator shall be enclosed or containerised on a stainless steel Grl316. Rats to include for steelwork and powder coated, busbars and drilling, busbar connections internal wiring, earthing for the generator set, etc. Refer to attached single line diagram"]
[]
[{"v":22,"d":"22 "},null,"60kVA, 400V, 3phase silent Diesel engine alternator set with weatherproof mild-steel canopy",null,"SUM",{"v":1,"d":"1 "},null,{"$f":"ROUND($F1549*G1549,2)","v":0}]
[]
[{"v":23,"d":"23 "},null,"Stainless steel metal cladded thermal insulation of exhaust pipe and silencer within the enclosure",null,"SUM",{"v":1,"d":"1 "},null,{"$f":"ROUND($F1551*G1551,2)","v":0}]
[]
[{"v":24,"d":"24 "},null,"Water trap/fuel filter cartridge",null,"SUM",{"v":1,"d":"1 "},null,{"$f":"ROUND($F1553*G1553,2)","v":0}]
[]
[{"v":25,"d":"25 "},null,"New AMF panel - for essential and non - essential electric board",null,"SUM",{"v":1,"d":"1 "},null,{"$f":"ROUND($F1555*G1555,2)","v":0}]
[]
[null,null,"Electrical reticulation"]
[]
[{"v":26,"d":"26 "},null,"Interconnecting control & power cabling between genset and alternator and AMF panel",null,"SUM",{"v":1,"d":"1 "},null,{"$f":"ROUND($F1559*G1559,2)","v":0}]
[]
[{"v":27,"d":"27 "},null,"Support & protection of exposed cabling between genset & AMF panel",null,"SUM",{"v":1,"d":"1 "},null,{"$f":"ROUND($F1561*G1561,2)","v":0}]
[]
[{"v":28,"d":"28 "},null,"Electronic hooter & red flashing general alarm light mounted on the AMF panel",null,"SUM",{"v":1,"d":"1 "},null,{"$f":"ROUND($F1563*G1563,2)","v":0}]
[]
[{"v":29,"d":"29 "},null,"Remote alarm indicator panel complete the red indicator lamp and label - GENERATOR FAULT",null,"SUM",{"v":1,"d":"1 "},null,{"$f":"ROUND($F1565*G1565,2)","v":0}]
[]
[{"v":30,"d":"30 "},null,"External emergency stop push button and cabling",null,"SUM",{"v":1,"d":"1 "},null,{"$f":"ROUND($F1567*G1567,2)","v":0}]
[]
[{"v":31,"d":"31 "},null,"Earthing of generator set",null,"SUM",{"v":1,"d":"1 "},null,{"$f":"ROUND($F1569*G1569,2)","v":0}]
[]
[null,null,"Commissioning"]
[]
[{"v":32,"d":"32 "},null,"Test & commission on site with load",null,"SUM",{"v":1,"d":"1 "},null,{"$f":"ROUND($F1573*G1573,2)","v":0}]
[]
[{"v":33,"d":"33 "},null,"Resistance testing of earth system",null,"SUM",{"v":1,"d":"1 "},null,{"$f":"ROUND($F1575*G1575,2)","v":0}]
[]
[{"v":34,"d":"34 "},null,"Balancing of the essential loads",null,"SUM",{"v":1,"d":"1 "},null,{"$f":"ROUND($F1577*G1577,2)","v":0}]
[]
[{"v":35,"d":"35 "},null,"Electrical certification of compliance",null,"SUM",{"v":1,"d":"1 "},null,{"$f":"ROUND($F1579*G1579,2)","v":0}]
[]
[null,null,"Signage"]
[]
[{"v":36,"d":"36 "},null,"A per OHS Act - fire & resussitation etc.",null,"SUM",{"v":1,"d":"1 "},null,{"$f":"ROUND($F1583*G1583,2)","v":0}]
[]
[{"v":37,"d":"37 "},null,"Generator \"Manual start/test procedure\"",null,"SUM",{"v":1,"d":"1 "},null,{"$f":"ROUND($F1585*G1585,2)","v":0}]
[]
[{"v":38,"d":"38 "},null,"Caution - This generator will start automatically. Isolate power before working on plant",null,"No",{"v":1,"d":"1 "},null,{"$f":"ROUND($F1587*G1587,2)","v":0}]
[]
[{"v":39,"d":"39 "},null,"Electricity logo on door to AMF panel",null,"No",{"v":1,"d":"1 "},null,{"$f":"ROUND($F1589*G1589,2)","v":0}]
[]
[{"v":40,"d":"40 "},null,"Municipality's ID label of genset & control panel",null,"No",{"v":2,"d":"2 "},null,{"$f":"ROUND($F1591*G1591,2)","v":0}]
[]
[{"v":41,"d":"41 "},null,"Contractors / PRASA's details - laminated plastic",null,"No",{"v":1,"d":"1 "},null,{"$f":"ROUND($F1593*G1593,2)","v":0}]
[]
[null,null,"General"]
[]
[{"v":42,"d":"42 "},null,"Diesel fuel for full tank",null,"SUM",{"v":1,"d":"1 "},null,{"$f":"ROUND($F1597*G1597,2)","v":0}]
[]
[{"v":43,"d":"43 "},null,"Laminated plastic framed schematic wiring diagram fixed to the inside of the enclosure adjacent the AMF panel",null,"No",{"v":1,"d":"1 "},null,{"$f":"ROUND($F1599*G1599,2)","v":0}]
[]
[{"v":44,"d":"44 "},null,"A4 size log book on chain in metal envelope in door",null,"No",{"v":1,"d":"1 "},null,{"$f":"ROUND($F1601*G1601,2)","v":0}]
[]
[{"v":45,"d":"45 "},null,"Operational training of Employer's staff",null,"SUM",{"v":1,"d":"1 "},null,{"$f":"ROUND($F1603*G1603,2)","v":0}]
[]
[{"v":46,"d":"46 "},null,"Manuals - 3 sets",null,"SUM",{"v":1,"d":"1 "},null,{"$f":"ROUND($F1605*G1605,2)","v":0}]
[]
[{"v":47,"d":"47 "},null,"Drawings",null,"SUM",{"v":1,"d":"1 "},null,{"$f":"ROUND($F1607*G1607,2)","v":0}]
[]
[null,null,"Service"]
[]
[{"v":48,"d":"48 "},null,"Monthly inspection every quarter  new fuel filters for 1st year",null,"No",{"v":4,"d":"4 "},null,{"$f":"ROUND($F1611*G1611,2)","v":0}]
[]
[{"v":49,"d":"49 "},null,"Full annual service  new battery for 1st year",null,"No",{"v":1,"d":"1 "},null,{"$f":"ROUND($F1613*G1613,2)","v":0}]
[]
[null,null,"TEST AND COMMISSIONING"]
[]
[null,null,"Test and commission  the complete electrical installation including completion of quality check sheets, Compliance Certificates & test results and submitting them to the Employer's Representative."]
[]
[{"v":50,"d":"50 "},null,"Test and commission  the complete electrical installation including Certificates of Compliance & test results to the Engineer.",null,"SUM",{"v":1,"d":"1 "},null,{"$f":"ROUND($F1619*G1619,2)","v":0}]
[]
[null,null,"SECTION 6"]
[]
[null,null,"BILL NO. 1"]
[]
[null,null,"HVAC INSTALLATIONS"]
[]
[null,null,"Supply, deliver and install the following HVAC units as per specification:"]
[]
[{"v":1,"d":"1 "},null,"Provide full service to the existing wall mounted unit and the outdoor condensing unit",null,"No",{"v":3,"d":"3 "},null,{"$f":"ROUND($F1629*G1629,2)","v":0}]
[]
[{"v":2,"d":"2 "},null,"Fabricate, supply, and install lockable security cages around each outdoor condensing unit",null,"No",{"v":3,"d":"3 "},null,{"$f":"ROUND($F1631*G1631,2)","v":0}]
[]
[{"v":3,"d":"3 "},null,"Application of approved coastal treatment for the outdoor condensing units",null,"No",{"v":3,"d":"3 "},null,{"$f":"ROUND($F1633*G1633,2)","v":0}]
[]
[null,null,"SECTION 6"]
[]
[null,null,"BILL NO. 2"]
[]
[null,null,"WET SERVICES"]
[]
[null,null,"COLD WATER INSTALLATION"]
[]
[null,null,"Supply, install, and commission the water reticulation systems per specification"]
[]
[null,null,"Class 12 HDPE piping laid and buried trenches not exceeding 800mm deep"]
[]
[{"v":1,"d":"1 "},null,"25mm diameter HDPE CI 12 underground water pipe",null,"m",{"v":150,"d":"150 "},null,{"$f":"ROUND($F1647*G1647,2)","v":0}]
[]
[{"v":2,"d":"2 "},null,"32mm diameter HDPE CI 12 underground water pipe",null,"m",{"v":20,"d":"20 "},null,{"$f":"ROUND($F1649*G1649,2)","v":0}]
[]
[null,null,"Fittings for HDPE class 12 piping"]
[]
[{"v":3,"d":"3 "},null,"25mm diameter Adaptor to pex piping",null,"m",{"v":4,"d":"4 "},null,{"$f":"ROUND($F1653*G1653,2)","v":0}]
[]
[{"v":4,"d":"4 "},null,"32mm diameter Equal tee",null,"m",{"v":3,"d":"3 "},null,{"$f":"ROUND($F1655*G1655,2)","v":0}]
[]
[{"v":5,"d":"5 "},null,"32mm diameter - 25mm diameter Reducer",null,"m",{"v":4,"d":"4 "},null,{"$f":"ROUND($F1657*G1657,2)","v":0}]
[]
[null,null,"PEX piping"]
[]
[{"v":6,"d":"6 "},null,"15mm diameter pipe",null,"m",{"v":55,"d":"55 "},null,{"$f":"ROUND($F1661*G1661,2)","v":0}]
[]
[{"v":7,"d":"7 "},null,"22mm diameter pipe",null,"m",{"v":31,"d":"31 "},null,{"$f":"ROUND($F1663*G1663,2)","v":0}]
[]
[null,null,"PEX piping fittings"]
[]
[{"v":8,"d":"8 "},null,"15mm diameter Elbow",null,"No",{"v":24,"d":"24 "},null,{"$f":"ROUND($F1667*G1667,2)","v":0}]
[]
[{"v":9,"d":"9 "},null,"22mm diameter Elbow",null,"No",{"v":6,"d":"6 "},null,{"$f":"ROUND($F1669*G1669,2)","v":0}]
[]
[{"v":10,"d":"10 "},null,"15mm diameter Equal tee",null,"No",{"v":2,"d":"2 "},null,{"$f":"ROUND($F1671*G1671,2)","v":0}]
[]
[{"v":11,"d":"11 "},null,"22mm diameter Equal tee",null,"No",{"v":10,"d":"10 "},null,{"$f":"ROUND($F1673*G1673,2)","v":0}]
[]
[{"v":12,"d":"12 "},null,"22-15mm diameter Reducer",null,"No",{"v":14,"d":"14 "},null,{"$f":"ROUND($F1675*G1675,2)","v":0}]
[]
[null,null,"Plastic pipe compression fittings and valves"]
[]
[{"v":13,"d":"13 "},null,"15mm Female elbow",null,"No",{"v":16,"d":"16 "},null,{"$f":"ROUND($F1679*G1679,2)","v":0}]
[]
[{"v":14,"d":"14 "},null,"15mm diameter - 15mm diameter Female tee",null,"No",{"v":1,"d":"1 "},null,{"$f":"ROUND($F1681*G1681,2)","v":0}]
[]
[{"v":15,"d":"15 "},null,"22mm diameter Isolation valve",null,"No",{"v":4,"d":"4 "},null,{"$f":"ROUND($F1683*G1683,2)","v":0}]
[]
[{"v":16,"d":"16 "},null,"22mm diameter strainer valve",null,"No",{"v":4,"d":"4 "},null,{"$f":"ROUND($F1685*G1685,2)","v":0}]
[]
[null,null,"Pipe hangers - anchor, treaded rod & hilti hanger"]
[]
[{"v":17,"d":"17 "},null,"15mm diameter",null,"No",{"v":8,"d":"8 "},null,{"$f":"ROUND($F1689*G1689,2)","v":0}]
[]
[{"v":18,"d":"18 "},null,"22mm diameter",null,"No",{"v":15,"d":"15 "},null,{"$f":"ROUND($F1691*G1691,2)","v":0}]
[]
[null,null,"Heavy brown paper loosely wrapped around pipe as shealth for expansion"]
[]
[{"v":19,"d":"19 "},null,"15-22mm diameter",null,"No",{"v":45,"d":"45 "},null,{"$f":"ROUND($F1695*G1695,2)","v":0}]
[]
[null,null,"Potable water system"]
[]
[{"v":20,"d":"20 "},null,"10 000 I PVC Potable water tank with all associated isolation valves and strainers",null,"No",{"v":1,"d":"1 "},null,{"$f":"ROUND($F1699*G1699,2)","v":0}]
[]
[{"v":21,"d":"21 "},null,"Variable speed potable water booster pump capable of delivering 2.3 I/s at 45m of H2O with all associated valves, fitting, PVC pipework, and auto start/stop control circuit.",null,"No",{"v":2,"d":"2 "},null,{"$f":"ROUND($F1701*G1701,2)","v":0}]
[]
[{"v":22,"d":"22 "},null,"Fabricate, supply, and install lockable security cages around the duty/standby potable water pumps",null,"No",{"v":1,"d":"1 "},null,{"$f":"ROUND($F1703*G1703,2)","v":0}]
[]
[null,null,"DRAINAGE, ETC"]
[]
[null,null,"Sewer and drainage pipes and fittings shall be through solid wall Class 34 uPVC socketed soil piping in according to SABS 791, jointed and sealed with butyl rubber rings soil, waste and vent pipes and fittings shall be according to SABS 967 and solvent jointed cold water supply pressure pipes fittings shall be according SABS 966 and jointed by means of the \"Lyng\" type jointing system. Pipes shall be fixed and jointed according to SABS 0112"]
[]
[null,null,"Class 34 uPVC pipe"]
[]
[{"v":23,"d":"23 "},null,"50mm diameter pipe",null,"m",{"v":25,"d":"25 "},null,{"$f":"ROUND($F1711*G1711,2)","v":0}]
[]
[{"v":24,"d":"24 "},null,"110mm diameter pipe",null,"m",{"v":25,"d":"25 "},null,{"$f":"ROUND($F1713*G1713,2)","v":0}]
[]
[null,null,"Class 34 uPVC fittings"]
[]
[{"v":25,"d":"25 "},null,"50mm diameter 90 Deg bend",null,"No",{"v":15,"d":"15 "},null,{"$f":"ROUND($F1717*G1717,2)","v":0}]
[]
[{"v":26,"d":"26 "},null,"110mm diameter 90 Deg bend",null,"No",{"v":2,"d":"2 "},null,{"$f":"ROUND($F1719*G1719,2)","v":0}]
[]
[{"v":27,"d":"27 "},null,"110mm diameter 90 Deg access bend",null,"No",{"v":7,"d":"7 "},null,{"$f":"ROUND($F1721*G1721,2)","v":0}]
[]
[{"v":28,"d":"28 "},null,"50mm diameter 45 Deg bend",null,"No",{"v":8,"d":"8 "},null,{"$f":"ROUND($F1723*G1723,2)","v":0}]
[]
[{"v":29,"d":"29 "},null,"110mm diameter 45 Deg bend",null,"No",{"v":7,"d":"7 "},null,{"$f":"ROUND($F1725*G1725,2)","v":0}]
[]
[{"v":30,"d":"30 "},null,"110mm  diameter Pan connector",null,"No",{"v":7,"d":"7 "},null,{"$f":"ROUND($F1727*G1727,2)","v":0}]
[]
[{"v":31,"d":"31 "},null,"50mm diameter Equal access junction",null,"No",{"v":5,"d":"5 "},null,{"$f":"ROUND($F1729*G1729,2)","v":0}]
[]
[{"v":32,"d":"32 "},null,"110mm diameter - 50mm diameter junction",null,"No",{"v":6,"d":"6 "},null,{"$f":"ROUND($F1731*G1731,2)","v":0}]
[]
[{"v":33,"d":"33 "},null,"110mm diameter Equal access junction",null,"No",{"v":7,"d":"7 "},null,{"$f":"ROUND($F1733*G1733,2)","v":0}]
[]
[{"v":1,"d":"1 "},null,"HVAC Installations",{"$nulls":4},{"$f":"SUM(H1623:H1634)","v":0}]
[]
[{"v":2,"d":"2 "},null,"Wet Services",{"$nulls":4},{"$f":"SUM(H1640:H1733)","v":0}]
[]
[null,null,"SECTION 6"]
[]
[null,null,"BILL NO. 1"]
[]
[null,null,"PROVISIONAL AMOUNTS"]
[]
[null,null,"PREAMBLES"]
[]
[null,null,"The Model Preambles for Trades (2008 edition) as published by the Association of South African Quantity Surveyors shall be deemed to be incorporated in these bills of quantities and no claims arising from brevity of description of items fully described in the said Model Preambles will be entertained"]
[]
[null,null,"The following \"Supplementary Preambles\" are incorporated in this bill to satisfy the requirements of the project and shall take precedence over the provisions of the said Model Preambles"]
[]
[null,null,"SUPPLEMENTARY PREAMBLES"]
[]
[null,null,"General:"]
[]
[null,null,"Subcontract amounts are net.  Subcontract amounts are for material and equipment supplied and installed complete by firms of specialists"]
[]
[null,null,"Each subcontract amount may comprise more than one element of work.  Therefore, each subcontract amount may include for work to be carried out by more than one subcontractor"]
[]
[null,null,"Profit:"]
[]
[null,null,"Where stated, the contractor may allow for profit if required"]
[]
[null,null,"General attendance on nominated/selected subcontractors:"]
[]
[null,null,"The item \"General Attendance\" which follows each subcontract amount for nominated/selected subcontractors' work, shall be deemed to cover all the contractor's costs incurred in providing free of charge to the nominated/selected subcontractors, the following:"]
[]
[null,null,"1.  Access to the site and places where the subcontract work is to be carried out, including the reasonable use of any temporary personnel hoists erected by the contractor"]
[]
[null,null,"2.  The provision of water and lighting and of single phase electric power to a position within 50 metres of the place where the subcontract work is to be carried out but excluding water, fuel and power for commissioning of any installation"]
[]
[null,null,"3.  The provision of an area for the subcontractor to establish temporary office accommodation and workshops and for the storage of plant and materials"]
[]
[null,null,"4.  The use of erected scaffolding belonging to the contractor, in common with others having the like right, while it remains erected on the site"]
[]
[null,null,"5.  The use, at reasonable times by arrangement of the contractor's erected hoisting equipment"]
[]
[null,null,"6.  Making good in all trades and cleaning down and removal of rubbish on completion"]
[]
[null,null,"Special attendance on nominated/selected subcontractors:"]
[]
[null,null,"Where stated, special attendance as set out in clause 8.1 of section B of the Preliminaries will be described in detail in this bill"]
[]
[null,null,"Builder's work:"]
[]
[null,null,"Builder's work in connection with specialist services is given elsewhere in these bills of quantities"]
[]
[null,null,"PROTECTION SERVICES"]
[]
[{"v":1,"d":"1 "},null,"Sub-contract amount of Three Hundred Thousand Rand for the provision of protection services  to be spent as the Principal Agent may direct and to be deducted in whole or in part if not required",null,"Item",{"v":1,"d":"1 "},null,{"$f":"ROUND($F1789*G1789,2)","v":0}]
[]
[{"v":2,"d":"2 "},null,"Profit",null,"%",{"v":0,"d":"0%"},null,{"$f":"ROUND($F1791*G1791,2)","v":0}]
[]
[{"v":3,"d":"3 "},null,"General attendance",null,"%",{"v":0,"d":"0%"},null,{"$f":"ROUND($F1793*G1793,2)","v":0}]
[]
[null,null,"STATION FIXED FURNITURE"]
[]
[{"v":4,"d":"4 "},null,"Subcontract amount of Fifty Thousand Rand for the provision and installation of fixed station furniture  to be spent as the Principal Agent may direct and to be deducted in whole or in part if not required",null,"Item",{"v":1,"d":"1 "},null,{"$f":"ROUND($F1797*G1797,2)","v":0}]
[]
[{"v":5,"d":"5 "},null,"Profit",null,"%",{"v":0,"d":"0%"},null,{"$f":"ROUND($F1799*G1799,2)","v":0}]
[]
[{"v":6,"d":"6 "},null,"General Attendance",null,"%",{"v":0,"d":"0%"},null,{"$f":"ROUND($F1801*G1801,2)","v":0}]
[]
[null,null,"STATION SIGNAGE"]
[]
[{"v":7,"d":"7 "},null,"Subcontract amount of Seventy Five Thousand Rand for the provision and installation of station signage  to be spent as the Principal Agent may direct and to be deducted in whole or in part if not required",null,"Item",{"v":1,"d":"1 "},null,{"$f":"ROUND($F1805*G1805,2)","v":0}]
[]
[{"v":8,"d":"8 "},null,"Profit",null,"%",{"v":0,"d":"0%"},null,{"$f":"ROUND($F1807*G1807,2)","v":0}]
[]
[{"v":9,"d":"9 "},null,"General attendance",null,"%",{"v":0,"d":"0%"},null,{"$f":"ROUND($F1809*G1809,2)","v":0}]
[]
[null,null,"BUILT-IN CUPBOARDS"]
[]
[{"v":10,"d":"10 "},null,"Subcontract amount of Twenty Five Thousand Rand for the provision and installation of Built-In Cupboards  to be spent as the Principal Agent may direct and to be deducted in whole or in part if not required",null,"Item",{"v":1,"d":"1 "},null,{"$f":"ROUND($F1813*G1813,2)","v":0}]
[]
[{"v":11,"d":"11 "},null,"Profit",null,"%",{"v":0,"d":"0%"},null,{"$f":"ROUND($F1815*G1815,2)","v":0}]
[]
[{"v":12,"d":"12 "},null,"General attendance",null,"%",{"v":0,"d":"0%"},null,{"$f":"ROUND($F1817*G1817,2)","v":0}]
[]
[null,null,"COMMUNITY LIAISON OFFICER"]
[]
[{"v":13,"d":"13 "},null,"Subcontract amount of one Ninety Thousand Rand for Community Liaison Officer for a period of six (6) months",null,"Item",{"v":1,"d":"1 "},null,{"$f":"ROUND($F1821*G1821,2)","v":0}]
[]
[{"v":14,"d":"14 "},null,"Profit",null,"%",{"v":0,"d":"0%"},null,{"$f":"ROUND($F1823*G1823,2)","v":0}]
[]
[{"v":15,"d":"15 "},null,"General attendance",null,"%",{"v":0,"d":"0%"},null,{"$f":"ROUND($F1825*G1825,2)","v":0}]
[]
[null,null,"SUMMARY"]
[]
[{"v":1,"d":"1 "},null,"Preliminaries and General",{"$nulls":4},{"$f":"SUM(H9:H413)","v":0}]
[]
[{"v":2,"d":"2 "},null,"Building Works",{"$nulls":4},{"$f":"SUM(H1382:H1406)","v":0}]
[]
[{"v":3,"d":"3 "},null,"External Works",{"$nulls":4},{"$f":"SUM(H1417:H1471)","v":0}]
[]
[{"v":4,"d":"4 "},null,"Electrical Installations",{"$nulls":4},{"$f":"SUM(H1475:H1620)","v":0}]
[]
[{"v":5,"d":"5 "},null,"Mechanical Installations",{"$nulls":4},{"$f":"SUM(H1735:H1738)","v":0}]
[]
[{"v":6,"d":"6 "},null,"Provisional Sums",{"$nulls":4},{"$f":"SUM(H1765:H1825)","v":0}]
[]
[null,null,"SUB TOTAL (EXCLUDING CONTINGENCIES)",{"$nulls":4},{"$f":"SUM(H1829:H1840)","v":0}]
[]
[null,null,"CONTRACT CONTINGENCIES"]
[]
[null,null,"Allow the sum of 10% for Contingencies to be spent as the Principal Agent may direct and to be deducted in whole or in part if not required",{"$nulls":4},{"$f":"H1841*0.1","v":0}]
[]
[null,null,"SUBTOTAL (INCLUDING CONTINGENCIES)",{"$nulls":4},{"$f":"SUM(H1841:H1845)","v":0}]
[]
[null,null,"VALUE ADDED TAX"]
[]
[null,null,"Value Added Tax ",{"$nulls":4},{"$f":"H1847*0.15","v":0}]
[]
[null,null,"Carried to Form of Tender",{"$nulls":4},{"$f":"SUM(H1847:H1852)","v":0}]